Workbook

Sheet INDICE
F1: ESPANHA
F2: Trocas comerciais com Portugal (PT) 2018-2022 Setores agrícola e agroalimentar, do mar e das florestas
C3: Fonte
D4: Estatísticas do Comércio Internacional | F4: Espanha - Síntese
D5: dados: 2022 definitivos | F5: 1. Evolução da balança comercial
F6: 2. Ranking dos parceiros comerciais de Portugal por país
C7: Data | D7: 2023-10-31T11:29:41.030 | F7: 2A Parceiros comerciais de Portugal - UE vs. Países Terceiros
F8: 3. Principais produtos transacionados (NC a 2 e 4 dígitos)
F9: 3A Principais produtos transacionados (sem mar nem florestas)
F10: 4A Evolução da balança comercial por produto
F11: 5.2. Trocas comerciais por produto (NC 2 dígitos)

Sheet Sintese
A1: Espanha - Síntese (2018-2022)
A3: • As trocas comerciais de bens transacionáveis (excluindo serviços) entre Portugal e Espanha representam um total de 16,1 mil milhões de € (M€) em exportações e 26,5 mil M€ em importações, na média do período 2018-2022, correspondendo a um saldo negativo da balança comercial de cerca de -10,4 M€. No que se refere ao total da economia (incluindo serviços), as exportações totalizam 19,5 mil M€ e as importações 29,3 mil milhões, correspondendo a um saldo negativo de cerca de -9,7 mil M€.
A4: • No que respeita aos produtos dos setores agrícola e agroalimentar, mar e florestas, Portugal exportou para Espanha 4,2 mil M€ em média anual, no mesmo período (este país ocupa assim a 1ª posição em relação ao total dos países), enquanto as importações totalizaram 6,9 mil M€ (1ª posição), com um saldo negativo de -2,7 mil M€. Estes setores representam perto de 25,7% do total de exportações de bens transacionáveis e 26% das correspondentes importações.
A5: • Se nos referirmos apenas ao setor agrícola e agroalimentar, as exportações representam, em média, 2,4 mil M€ (1ª posição) e as importações 4,7 mil milhões (1ª posição), ou seja, Portugal tem um saldo negativo de -2,3 mil M€. Estes valores representam, respetivamente, cerca de 58,2% das exportações do setor agroflorestal e mar e 68,2% das importações.
A6: • As principais exportações agrícolas e agroalimentares (NC 4 dígitos) neste período são Charutos, cigarrilhas e cigarros (11%), Azeite (processos mecânicos ou físicos) (10%) e Citrinos, frescos ou secos (4%). As importações agrícolas e agroalimentares mais relevantes referem-se a Azeite (processos mecânicos ou físicos) (7%), Carnes de bovino, frescas ou refrigeradas (6%) e Carnes de suíno (6%). Se considerarmos também os produtos do mar e da floresta, merecem particular destaque, em termos de exportações, Charutos, cigarrilhas e cigarros (7%), Azeite (processos mecânicos ou físicos) (6%) e Pastas químicas de madeira, à soda ou ao sulfato (3%). Nas importações destes setores, destacam-se Azeite (processos mecânicos ou físicos) (5%), Carnes de bovino, frescas ou refrigeradas (4%) e Carnes de suíno (4%).
A9: Saldo da Balança Comercial | B9: 2018 | C9: 2019 | D9: 2020 | E9: 2021 | F9: 2022 | G9: média 2018-2022 | J9: Posição entre os parceiros comerciais de Portugal (milhares de euros)
A10: Total Economia (bens e serviços) | B10: -8517.1 | C10: -9132.2 | D10: -7999.5 | E10: -9588.8 | F10: -13494.2 | G10: -9746.36 | J10: AA + M + F | K10: Posição | L10: média 2018-2022 | M10: % do total | N10: TVMA* 2018-2022 | O10: TVT* 2018-2022
A11: Total de Bens Transacionáveis* | B11: -9104.004899 | C11: -9594.808294 | D11: -8453.124125 | E11: -10283.68161 | F11: -14400.91867 | G11: -10367.30752 | J11: Exportações | K11: 1ª | L11: 4148750.739 | M11: 0.3201250482 | N11: 0.1141278384 | O11: 0.5407781245
A12: Agrícola e Agroalimentar (AA) | B12: -2166.198325 | C12: -2330.407905 | D12: -2050.454525 | E12: -2177.553241 | F12: -2698.019047 | G12: -2284.526609 | J12: Importações | K12: 1ª | L12: 6893783.417 | M12: 0.4610160031 | N12: 0.09063285178 | O12: 0.4148627117
A13: Mar (M) | B13: -270.401204 | C13: -293.063771 | D13: -354.300105 | E13: -346.044541 | F13: -415.91787 | G13: -335.9454982 | J13: AA
A14: Florestas (F) | B14: -159.5566 | C14: -125.424364 | D14: -128.998778 | E14: -105.660836 | F14: -103.162277 | G14: -124.560571 | J14: Exportações | K14: 1ª | L14: 2415706.759 | M14: 0.3417342339 | N14: 0.1320141208 | O14: 0.6421294021
A15: AA + M + F | B15: -2596.156129 | C15: -2748.89604 | D15: -2533.753408 | E15: -2629.258618 | F15: -3217.099194 | G15: -2745.032678 | J15: Importações | K15: 1ª | L15: 4700233.367 | M15: 0.4607579981 | N15: 0.07519856847 | O15: 0.4369557264
K16: *TVMA - Taxa de variação média anual; TVT - Taxa de variação total
A17: milhões de euros *exclui serviços
A19: Evolução das trocas comerciais Portugal-Espanha em milhares de euros (2018-2022)
E28: Exportações | G28: Importações | I28: Saldo
A29: Principais produtos agrícolas e agroalimentares, do mar e da floresta transacionados (NC 4 dígitos)
A48: Principais produtos agrícolas e agroalimentares transacionados (NC 4 dígitos)
A82: Fonte: GPP a partir de dados INE/Comércio Internacional (2022 definitivos) | N82: 2023-10-31T11:29:41.030

Sheet 1
A1: Evolução da balança comercial Portugal-Espanha 2018-2022 em milhões de euros
A3: Total da Economia (TE)(1) | B3: 2018 | C3: 2019 | D3: 2020 | E3: 2021 | F3: 2022 | G3: média quinquénio | H3: var. 18/19 | I3: var. 19/20 | J3: var. 20/21 | K3: var. 21/22 | L3: TVMA* 2018-2022 | M3: TVT* 2018-2022
A4: Exportações | B4: 17854.7 | C4: 18326.1 | D4: 16272.7 | E4: 20308.6 | F4: 24893.7 | G4: 19531.16 | H4: 0.0264020118 | I4: -0.1120478443 | J4: 0.2480166168 | K4: 0.2257713481 | L4: 0.08663633651 | M4: 0.3942379317
A5: Importações | B5: 26371.8 | C5: 27458.3 | D5: 24272.2 | E5: 29897.4 | F5: 38387.9 | G5: 29277.52 | H5: 0.04119931139 | I5: -0.1160341318 | J5: 0.2317548471 | K5: 0.2839879053 | L5: 0.09840789381 | M5: 0.4556420115
A6: Saldo (exp-imp) | B6: -8517.1 | C6: -9132.2 | D6: -7999.5 | E6: -9588.8 | F6: -13494.2 | G6: -9746.36
A7: Cobertura (exp/imp) | B7: 0.6770375932 | C7: 0.6674156812 | D7: 0.670425425 | E7: 0.6792764588 | F7: 0.6484777755 | G7: 0.6671043176 | L7: Exportações
A8: Exp TE Espanha / Exp TE Mundo | B8: 0.2002911748 | C8: 0.196482264 | D8: 0.2190554156 | E8: 0.2271535806 | F8: 0.2078775033 | G8: 0.2096261362 | L8: Importações
A9: Imp TE Espanha / Imp TE Mundo | B9: 0.2990190599 | C9: 0.2974840027 | D9: 0.3088664518 | E9: 0.3129612163 | F9: 0.3053980333 | G9: 0.3047776257
A10: (1) Todas as transações entre PT e Espanha (inclui bens e serviços) | E10: Fonte: GEE/ME e GPP a partir de INE/Contas Nacionais (2016 e 2020 provisórios; 2021 preliminares) | H10: *TVMA - Taxa de variação média anual; TVT - Taxa de variação total
A22: Total de Bens Transacionáveis (BT)(1) | B22: 2018 | C22: 2019 | D22: 2020 | E22: 2021 | F22: 2022 | G22: média quinquénio | H22: var. 18/19 | I22: var. 19/20 | J22: var. 20/21 | K22: var. 21/22 | L22: TVMA* 2018-2022 | M22: TVT* 2018-2022
A23: Exportações | B23: 14666.08774 | C23: 14811.17312 | D23: 13636.22215 | E23: 17016.14144 | F23: 20561.96743 | G23: 16138.31838 | H23: 0.009892575962 | I23: -0.07932869107 | J23: 0.2478633203 | K23: 0.2083801432 | L23: 0.08814707017 | M23: 0.4020076658
A24: Importações | B24: 23770.09264 | C24: 24405.98142 | D24: 22089.34627 | E24: 27299.82306 | F24: 34962.88611 | G24: 26505.6259 | H24: 0.02675163247 | I24: -0.09492079447 | J24: 0.2358818918 | K24: 0.2807000994 | L24: 0.1012707396 | M24: 0.4708771498
A25: Saldo (exp-imp) | B25: -9104.004899 | C25: -9594.808294 | D25: -8453.124125 | E25: -10283.68161 | F25: -14400.91867 | G25: -10367.30752
A26: Cobertura (exp/imp) | B26: 0.6169975002 | C26: 0.6068665246 | D26: 0.6173212181 | E26: 0.6233059242 | F26: 0.5881084122 | G26: 0.6088638857
A27: Exp BT Espanha / Exp TE Espanha | B27: 0.8214132826 | C27: 0.8082010424 | D27: 0.8379815363 | E27: 0.8378786053 | F27: 0.8259908102 | G27: 0.8262857084 | L27: Exportações
A28: Imp BT Espanha / Imp TE Espanha | B28: 0.9013450972 | C28: 0.888838035 | D28: 0.910067743 | E28: 0.9131169619 | F28: 0.9107788159 | G28: 0.9053234665 | L28: Importações
A29: Exp BT Espanha / Exp BT Mundo | B29: 0.2535192716 | C29: 0.2472533949 | D29: 0.2536622685 | E29: 0.2674714852 | F29: 0.2624770789 | G29: 0.2574166557
A30: Imp BT Espanha / Imp BT Mundo | B30: 0.3150892115 | C30: 0.3051620122 | D30: 0.3241494191 | E30: 0.3283371022 | F30: 0.3193371711 | G30: 0.3184291503
A31: Exp BT Espanha / Exp TE Mundo | B31: 0.1645218313 | C31: 0.1587971706 | D31: 0.1835643937 | E31: 0.1903271253 | F31: 0.1717049074 | G31: 0.1732110805
A32: Imp BT Espanha / Imp TE Mundo | B32: 0.2695193636 | C32: 0.2644150964 | D32: 0.2810893946 | E32: 0.2857701951 | F32: 0.2781500591 | G32: 0.2759223366
A33: (1) Todos os produtos transacionados entre PT e Espanha (exclui serviços) | D33: TE - Total da Economia (bens e serviços) Fonte: INE/Contas Nacionais | H33: *TVMA - Taxa de variação média anual; TVT - Taxa de variação total
A46: Agro(1) + Mar + Florestas (AMF) | B46: 2018 | C46: 2019 | D46: 2020 | E46: 2021 | F46: 2022 | G46: média quinquénio | H46: var. 18/19 | I46: var. 19/20 | J46: var. 20/21 | K46: var. 21/22 | L46: TVMA* 2018-2022 | M46: TVT* 2018-2022
A47: Exportações | B47: 3622.315146 | C47: 3619.480855 | D47: 3571.177168 | E47: 4349.596588 | F47: 5581.183937 | G47: 4148.750739 | H47: -0.0007824529026 | I47: -0.01334547382 | J47: 0.2179727813 | K47: 0.2831497874 | L47: 0.1141278384 | M47: 0.5407781245
A48: Importações | B48: 6218.471275 | C48: 6368.376895 | D48: 6104.930576 | E48: 6978.855206 | F48: 8798.283131 | G48: 6893.783417 | H48: 0.02410650679 | I48: -0.04136789065 | J48: 0.1431506254 | K48: 0.260705785 | L48: 0.09063285178 | M48: 0.4148627117
A49: Saldo (exp-imp) | B49: -2596.156129 | C49: -2748.89604 | D49: -2533.753408 | E49: -2629.258618 | F49: -3217.099194 | G49: -2745.032678
A50: Cobertura (exp/imp) | B50: 0.5825089457 | C50: 0.5683521743 | D50: 0.5849660571 | E50: 0.6232535938 | F50: 0.6343492081 | G50: 0.6018104266
A51: Exp AMF Espanha / Exp BT Espanha | B51: 0.2469857818 | C51: 0.2443750286 | D51: 0.261889043 | E51: 0.2556159164 | F51: 0.2714323887 | G51: 0.2570745379 | L51: Exportações
A52: Imp AMF Espanha / Imp BT Espanha | B52: 0.2616090467 | C52: 0.2609350874 | D52: 0.2763744341 | E52: 0.2556373787 | F52: 0.2516463631 | G52: 0.2600875544 | L52: Importações
A53: Exp AMF Espanha / Exp TE Espanha | B53: 0.2028774018 | C53: 0.1975041528 | D53: 0.2194581826 | E53: 0.2141751075 | F53: 0.2242006587 | G53: 0.2124170166
A54: Imp AMF Espanha / Imp TE Espanha | B54: 0.2358000317 | C54: 0.2319290304 | D54: 0.2515194575 | E54: 0.2334268266 | F54: 0.2291941766 | G54: 0.2354633663
A55: Exp AMF Espanha / Exp AMF Mundo | B55: 0.3109094015 | C55: 0.3060140587 | D55: 0.3095831163 | E55: 0.3246798795 | F55: 0.3405577056 | G55: 0.3201250482
A56: Imp AMF Espanha / Imp AMF Mundo | B56: 0.4562141607 | C56: 0.4603635225 | D56: 0.467976166 | E56: 0.466981386 | F56: 0.4555549883 | G56: 0.4610160031
A57: Exp AMF Espanha / Exp BT Mundo | B57: 0.0626156555 | C57: 0.06042255544 | D57: 0.06643136874 | E57: 0.06836996878 | F57: 0.0712447805 | G57: 0.06617526781
A58: Imp AMF Espanha / Imp BT Mundo | B58: 0.08243018826 | C58: 0.07962747634 | D58: 0.08958661227 | E58: 0.08393523613 | F58: 0.0803600377 | G58: 0.08281945895
A59: (1) Produtos agrícolas e agroalimentares | B59: BT - Total de Bens Transacionáveis (exclui serviços); TE - Total da Economia (bens e serviços) | H59: *TVMA - Taxa de variação média anual; TVT - Taxa de variação total
A71: Agroalimentar (AA)(1) | B71: 2018 | C71: 2019 | D71: 2020 | E71: 2021 | F71: 2022 | G71: média quinquénio | H71: var. 18/19 | I71: var. 19/20 | J71: var. 20/21 | K71: var. 21/22 | L71: TVMA* 2018-2022 | M71: TVT* 2018-2022
A72: Exportações | B72: 2021.273145 | C72: 2005.829268 | D72: 2174.802431 | E72: 2557.436888 | F72: 3319.192061 | G72: 2415.706759 | H72: -0.007640667981 | I72: 0.08424104967 | J72: 0.17593987 | K72: 0.2978588354 | L72: 0.1320141208 | M72: 0.6421294021
A73: Importações | B73: 4187.47147 | C73: 4336.237173 | D73: 4225.256956 | E73: 4734.990129 | F73: 6017.211108 | G73: 4700.233367 | H73: 0.03552638008 | I73: -0.02559366856 | J73: 0.1206395678 | K73: 0.2707969698 | L73: 0.09486569111 | M73: 0.4369557264
A74: Saldo (exp-imp) | B74: -2166.198325 | C74: -2330.407905 | D74: -2050.454525 | E74: -2177.553241 | F74: -2698.019047 | G74: -2284.526609
A75: Cobertura (exp/imp) | B75: 0.482695383 | C75: 0.4625736988 | D75: 0.5147148336 | E75: 0.5401145131 | F75: 0.5516163554 | G75: 0.5139546422
A76: Exp AA Espanha / Exp AMF Espanha | B76: 0.5580058784 | C76: 0.5541759574 | D76: 0.6089875491 | E76: 0.5879710535 | F76: 0.594711104 | G76: 0.582273294 | L76: Exportações
A77: Imp AA Espanha / Imp AMF Espanha | B77: 0.6733924279 | C77: 0.6809014674 | D77: 0.6921056519 | E77: 0.6784766254 | F77: 0.683907419 | G77: 0.6818075189 | L77: Importações
A78: Exp AA Espanha / Exp BT Espanha | B78: 0.1378195182 | C78: 0.1354267654 | D78: 0.1594871664 | E78: 0.1502947596 | F78: 0.1614238556 | G78: 0.149687638
A79: Imp AA Espanha / Imp BT Espanha | B79: 0.1761655512 | C79: 0.1776710839 | D79: 0.1912803079 | E79: 0.173443986 | F79: 0.1721028147 | G79: 0.1773296501
A80: Exp AA Espanha / Exp TE Espanha | B80: 0.1132067828 | C80: 0.109452053 | D80: 0.1336473008 | E80: 0.1259287636 | F80: 0.1333346212 | G80: 0.123684756
A81: Imp AA Espanha / Imp TE Espanha | B81: 0.1587859558 | C81: 0.1579208171 | D81: 0.1740780381 | E81: 0.1583746456 | F81: 0.1567475978 | G81: 0.1605406936
A82: Exp AA Espanha / Exp AA Mundo | B82: 0.3309831207 | C82: 0.3188076673 | D82: 0.3286648936 | E82: 0.3431970698 | F82: 0.3738925387 | G82: 0.3417342339
A83: Imp AA Espanha / Imp AA Mundo | B83: 0.4603703048 | C83: 0.4654076559 | D83: 0.4651086644 | E83: 0.4610127814 | F83: 0.4545682419 | G83: 0.4607579981
A84: Exp AA Espanha / Exp AMF Mundo | B84: 0.1734892737 | C84: 0.1695856339 | D84: 0.1885322632 | E84: 0.1909023708 | F84: 0.2025334491 | G84: 0.1864002663
A85: Imp AA Espanha / Imp AMF Mundo | B85: 0.3072111613 | C85: 0.313462198 | D85: 0.3238889494 | E85: 0.3168359549 | F85: 0.3115574363 | G85: 0.3143241772
A86: (1) Produtos agrícolas e agroalimentares | H86: *TVMA - Taxa de variação média anual; TVT - Taxa de variação total
A87: AMF - Agroalimentar, Mar e Florestas; BT - Total de Bens Transacionáveis (exclui serviços); TE - Total da Economia (bens e serviços)
A98: Mar (M) | B98: 2018 | C98: 2019 | D98: 2020 | E98: 2021 | F98: 2022 | G98: média quinquénio | H98: var. 18/19 | I98: var. 19/20 | J98: var. 20/21 | K98: var. 21/22 | L98: TVMA* 2018-2022 | M98: TVT* 2018-2022
A99: Exportações | B99: 566.559795 | C99: 554.362334 | D99: 424.935341 | E99: 553.092364 | F99: 655.502403 | G99: 550.8904474 | H99: -0.02152899148 | I99: -0.2334700341 | J99: 0.3015918203 | K99: 0.185159018 | L99: 0.03712746176 | M99: 0.1569871508
A100: Importações | B100: 836.960999 | C100: 847.426105 | D100: 779.235446 | E100: 899.136905 | F100: 1071.420273 | G100: 886.8359456 | H100: 0.01250369613 | I100: -0.08046797071 | J100: 0.1538706428 | K100: 0.1916097171 | L100: 0.06368653016 | M100: 0.28013166
A101: Saldo (exp-imp) | B101: -270.401204 | C101: -293.063771 | D101: -354.300105 | E101: -346.044541 | F101: -415.91787 | G101: -335.9454982
A102: Cobertura (exp/imp) | B102: 0.6769249651 | C102: 0.6541718868 | D102: 0.5453234233 | E102: 0.6151369841 | F102: 0.6118069814 | G102: 0.6211864214
A103: Exp M Espanha / Exp AMF Espanha | B103: 0.1564082009 | C103: 0.1531607311 | D103: 0.1189902716 | E103: 0.1271594624 | F103: 0.1174486293 | G103: 0.1327846579 | L103: Exportações
A104: Imp M Espanha / Imp AMF Espanha | B104: 0.1345927258 | C104: 0.1330678317 | D104: 0.1276403452 | E104: 0.1288373062 | F104: 0.1217760621 | G104: 0.1286428499 | L104: Importações
A105: Exp M Espanha / Exp BT Espanha | B105: 0.03863060178 | C105: 0.03742865804 | D105: 0.03116224834 | E105: 0.03250398252 | F105: 0.03187936199 | G105: 0.03413555456
A106: Imp M Espanha / Imp BT Espanha | B106: 0.03521067468 | C106: 0.03472206631 | D106: 0.03527652817 | E106: 0.03293563123 | F106: 0.03064450314 | G106: 0.03345840423
A107: Exp M Espanha / Exp TE Espanha | B107: 0.03173168942 | C107: 0.03024988044 | D107: 0.02611338874 | E107: 0.02723439154 | F107: 0.02633206004 | G107: 0.02820572088
A108: Imp M Espanha / Imp TE Espanha | B108: 0.031736969 | C108: 0.03086229319 | D108: 0.03210403037 | E108: 0.03007408353 | F108: 0.02791036428 | G108: 0.0302906785
A109: Exp M Espanha / Exp M Mundo | B109: 0.519395044 | C109: 0.5188778665 | D109: 0.4723237264 | E109: 0.5049107198 | F109: 0.5124628759 | G109: 0.5069471048
A110: Imp M Espanha / Imp M Mundo | B110: 0.3797059078 | C110: 0.3888448949 | D110: 0.4048256242 | E110: 0.4297865396 | F110: 0.412016245 | G110: 0.4030731439
A111: Exp M Espanha / Exp AMF Mundo | B111: 0.04862878012 | C111: 0.04686933696 | D111: 0.03683737908 | E111: 0.04128611894 | F111: 0.03999803571 | G111: 0.042507695
A112: Imp M Espanha / Imp AMF Mundo | B112: 0.06140310742 | C112: 0.06125957574 | D112: 0.05973263936 | E112: 0.06016462381 | F112: 0.05547569255 | G112: 0.05930641251
A113: AMF - Agroalimentar, Mar e Florestas; BT - Total de Bens Transacionáveis (exclui serviços); TE - Total da Economia (bens e serviços) | H113: *TVMA - Taxa de variação média anual; TVT - Taxa de variação total
A125: Florestas (F) | B125: 2018 | C125: 2019 | D125: 2020 | E125: 2021 | F125: 2022 | G125: média quinquénio | H125: var. 18/19 | I125: var. 19/20 | J125: var. 20/21 | K125: var. 21/22 | L125: TVMA* 2018-2022 | M125: TVT* 2018-2022
A126: Exportações | B126: 1034.482206 | C126: 1059.289253 | D126: 971.439396 | E126: 1239.067336 | F126: 1606.489473 | G126: 1182.153533 | H126: 0.02398015824 | I126: -0.08293283138 | J126: 0.2754962802 | K126: 0.2965312105 | L126: 0.1163200236 | M126: 0.5529406535
A127: Importações | B127: 1194.038806 | C127: 1184.713617 | D127: 1100.438174 | E127: 1344.728172 | F127: 1709.65175 | G127: 1306.714104 | H127: -0.007809787214 | I127: -0.07113570891 | J127: 0.2219933875 | K127: 0.2713734906 | L127: 0.0938866028 | M127: 0.4318226019
A128: Saldo (exp-imp) | B128: -159.5566 | C128: -125.424364 | D128: -128.998778 | E128: -105.660836 | F128: -103.162277 | G128: -124.560571
A129: Cobertura (exp/imp) | B129: 0.8663723497 | C129: 0.8941310691 | D129: 0.882775079 | E129: 0.9214258776 | F129: 0.9396588943 | G129: 0.904676493
A130: Exp F Espanha / Exp AMF Espanha | B130: 0.2855859207 | C130: 0.2926633115 | D130: 0.2720221793 | E130: 0.2848694841 | F130: 0.2878402667 | G130: 0.2849420482 | L130: Exportações
A131: Imp F Espanha / Imp AMF Espanha | B131: 0.1920148463 | C131: 0.1860307008 | D131: 0.1802540029 | E131: 0.1926860685 | F131: 0.1943165189 | G131: 0.1895496311 | L131: Importações
A132: Exp F Espanha / Exp BT Espanha | B132: 0.0705356619 | C132: 0.07151960511 | D132: 0.07123962822 | E132: 0.07281717422 | F132: 0.07812917116 | G132: 0.07325134535
A133: Imp F Espanha / Imp BT Espanha | B133: 0.0502328209 | C133: 0.04854193719 | D133: 0.04981759806 | E133: 0.04925776146 | F133: 0.04889904526 | G133: 0.0492995
A134: Exp F Espanha / Exp TE Espanha | B134: 0.05793892958 | C134: 0.0578022194 | D134: 0.0596974931 | E134: 0.06101195237 | F134: 0.06453397739 | G134: 0.06052653979
A135: Imp F Espanha / Imp TE Espanha | B135: 0.04527710683 | C135: 0.04314592007 | D135: 0.04533738903 | E135: 0.04497809749 | F135: 0.04453621454 | G135: 0.04463199423
A136: Exp F Espanha / Exp F Mundo | B136: 0.2323099567 | C136: 0.2370952652 | D136: 0.2417305009 | E136: 0.2555125361 | F136: 0.2577870404 | G136: 0.2460699514
A137: Imp F Espanha / Imp F Mundo | B137: 0.5123562789 | C137: 0.5069486007 | D137: 0.5404717509 | E137: 0.5208666369 | F137: 0.4918876604 | G137: 0.5119986402
A138: Exp F Espanha / Exp AMF Mundo | B138: 0.08879134767 | C138: 0.08955908778 | D138: 0.08421347398 | E138: 0.09249138976 | F138: 0.09802622082 | G138: 0.09121708691
A139: Imp F Espanha / Imp AMF Mundo | B139: 0.08759989194 | C139: 0.08564174873 | D139: 0.0843545772 | E139: 0.08998080732 | F139: 0.08852185948 | G139: 0.08738541333
A140: AMF - Agroalimentar, Mar e Florestas; BT - Total de Bens Transacionáveis (exclui serviços); TE - Total da Economia (bens e serviços) | H140: *TVMA - Taxa de variação média anual; TVT - Taxa de variação total
A150: Fonte: GPP a partir de dados INE/Comércio Internacional (2020 provisórios; 2021 preliminares) | K150: 2023-10-31T11:29:41.030

Sheet 2
A1: Ranking dos parceiros comerciais de Portugal por país (média 2018-2022 em milhares de euros) produtos agrícolas e agroalimentares, do mar e da floresta
A2: Exportações | F2: Importações | K2: Trocas comerciais (total e saldo)
A3: P | B3: País | C3: média quinquénio | D3: % do Total | F3: P | G3: País | H3: média quinquénio | I3: % do Total | K3: P | L3: País | M3: Total (exp+imp) | N3: % do Total | O3: Saldo (exp-imp)
A4: 1 | B4: Espanha | C4: 4148750.739 | D4: 0.3201250482 | F4: 1 | G4: Espanha | H4: 6893783.417 | I4: 0.4610160031 | K4: 1 | L4: Espanha | M4: 11042534.16 | N4: 0.395602026 | O4: -2745032.678
A5: 2 | B5: França | C5: 1358886.663 | D5: 0.1048541322 | F5: 2 | G5: França | H5: 986144.9388 | I5: 0.06594761841 | K5: 2 | L5: França | M5: 2345031.602 | N5: 0.08401144518 | O5: 372741.7244
A6: 3 | B6: Itália | C6: 876413.3826 | D6: 0.06762562854 | F6: 3 | G6: Alemanha | H6: 882996.1958 | I6: 0.05904963245 | K6: 3 | L6: Alemanha | M6: 1518197.709 | N6: 0.05438987836 | O6: -247794.6828
A7: 4 | B7: Alemanha | C7: 635201.513 | D7: 0.04901328804 | F7: 4 | G7: Países Baixos | H7: 837622.6294 | I7: 0.05601531312 | K7: 4 | L7: Países Baixos | M7: 1425039.699 | N7: 0.05105246534 | O7: -250205.5596
A8: 5 | B8: Países Baixos | C8: 587417.0698 | D8: 0.0453261547 | F8: 5 | G8: Brasil | H8: 705232.1134 | I8: 0.04716180804 | K8: 5 | L8: Itália | M8: 1326247.626 | N8: 0.04751321033 | O8: 426579.139
A9: 6 | B9: Estados Unidos | C9: 554009.1122 | D9: 0.04274833677 | F9: 6 | G9: Itália | H9: 449834.2436 | I9: 0.030082289 | K9: 6 | L9: Brasil | M9: 1157937.372 | N9: 0.04148344611 | O9: -252526.8544 | P9: Nota: Nesta listagem, o Reino Unido passa a ser constituído por três componentes: Reino Unido [até 2020] ; Reino Unido (sem Irlanda do Norte) pós-2020 e Reino Unido (Irlanda do Norte) pós-2020. Estas componentes são calculadas igualmente como média do quinquénio, embora a primeira corresponda apenas a 2018-2020 e as duas últimas a 2021-2022.
A10: 7 | B10: Brasil | C10: 452705.259 | D10: 0.03493154976 | F10: 7 | G10: Suécia | H10: 342054.8722 | I10: 0.02287463364 | K10: 7 | L10: Estados Unidos | M10: 835402.1152 | N10: 0.02992852589 | O10: 272616.1092
A11: 8 | B11: Reino Unido | C11: 382822.421 | D11: 0.02953926464 | F11: 8 | G11: Bélgica | H11: 286674.3358 | I11: 0.01917110656 | K11: 8 | L11: Reino Unido | M11: 527725.3878 | N11: 0.01890591685 | O11: 237919.4542
A12: 9 | B12: Angola | C12: 331091.7324 | D12: 0.02554763192 | F12: 9 | G12: Estados Unidos | H12: 281393.003 | I12: 0.01881792184 | K12: 9 | L12: Bélgica | M12: 526747.6872 | N12: 0.01887089044 | O12: -46600.9844
A13: 10 | B13: Reino Unido (sem Irlanda do Norte) pós 2020 | C13: 297693.4518 | D13: 0.02297056069 | F13: 10 | G13: Polónia | H13: 206886.255 | I13: 0.01383534536 | K13: 10 | L13: Polónia | M13: 458140.6776 | N13: 0.0164130242 | O13: 44368.1676
A14: 11 | B14: Polónia | C14: 251254.4226 | D14: 0.0193872419 | F14: 11 | G14: Ucrânia | H14: 195333.6414 | I14: 0.01306277398 | K14: 11 | L14: Suécia | M14: 435988.145 | N14: 0.01561940322 | O14: -248121.5994
A15: 12 | B15: Bélgica | C15: 240073.3514 | D15: 0.01852449039 | F15: 12 | G15: China, República Popular da | H15: 173665.6746 | I15: 0.01161374681 | K15: 12 | L15: China, República Popular da | M15: 367334.7522 | N15: 0.01315987528 | O15: 20003.403
A16: 13 | B16: Israel | C16: 214331.8496 | D16: 0.01653822994 | F16: 13 | G16: África do Sul | H16: 145344.1816 | I16: 0.009719770643 | K16: 13 | L16: Reino Unido (sem Irlanda do Norte) pós 2020 | M16: 358748.5572 | N16: 0.01285227232 | O16: 236638.3464
A17: 14 | B17: China, República Popular da | C17: 193669.0776 | D17: 0.01494385339 | F17: 14 | G17: Reino Unido | H17: 144902.9668 | I17: 0.009690264772 | K17: 14 | L17: Angola | M17: 346515.8172 | N17: 0.01241403082 | O17: 315667.6476
A18: 15 | B18: Turquia | C18: 167223.9134 | D18: 0.01290329709 | F18: 15 | G18: Dinamarca | H18: 144508.7452 | I18: 0.009663901532 | K18: 15 | L18: Dinamarca | M18: 229058.3694 | N18: 0.00820608329 | O18: -59959.121
A19: 16 | B19: Suíça | C19: 143369.888 | D19: 0.01106267771 | F19: 16 | G19: Roménia | H19: 138998.2312 | I19: 0.009295390515 | K19: 16 | L19: Turquia | M19: 223211.8948 | N19: 0.007996631622 | O19: 111235.932
A20: 17 | B20: Marrocos | C20: 109026.8306 | D20: 0.0084127058 | F20: 17 | G20: Irlanda | H20: 115719.6518 | I20: 0.007738654977 | K20: 17 | L20: Israel | M20: 222680.6996 | N20: 0.007977601399 | O20: 205982.9996
A21: 18 | B21: Cabo Verde | C21: 100863.1066 | D21: 0.007782778214 | F21: 18 | G21: Canadá | H21: 108524.1664 | I21: 0.007257462906 | K21: 18 | L21: Ucrânia | M21: 209671.7124 | N21: 0.007511550615 | O21: -180995.5704
A22: 19 | B22: Canadá | C22: 96453.797 | D22: 0.007442547977 | F22: 19 | G22: Rússia, Federação da | H22: 105950.8246 | I22: 0.007085372825 | K22: 19 | L22: Canadá | M22: 204977.9634 | N22: 0.00734339568 | O22: -12070.3694
A23: 20 | B23: Suécia | C23: 93933.2728 | D23: 0.007248059809 | F23: 20 | G23: Uruguai | H23: 102112.0792 | I23: 0.006828659935 | K23: 20 | L23: Rússia, Federação da | M23: 185978.7022 | N23: 0.006662741573 | O23: -25922.947
A24: 21 | B24: Dinamarca | C24: 84549.6242 | D24: 0.006524000652 | F24: 21 | G24: Argentina | H24: 97727.8454 | I24: 0.006535467965 | K24: 21 | L24: África do Sul | M24: 182499.4124 | N24: 0.006538094995 | O24: -108188.9508
A25: 22 | B25: Egito | C25: 83372.4854 | D25: 0.006433170511 | F25: 22 | G25: Índia | H25: 75558.034 | I25: 0.00505288036 | K25: 22 | L25: Irlanda | M25: 179693.3864 | N25: 0.006437568291 | O25: -51745.9172
A26: 23 | B26: Rússia, Federação da | C26: 80027.8776 | D26: 0.006175094574 | F26: 23 | G26: Finlândia | H26: 73941.3526 | I26: 0.004944766143 | K26: 23 | L26: Roménia | M26: 164861.988 | N26: 0.005906229091 | O26: -113134.4744
A27: 24 | B27: Argélia | C27: 78380.8918 | D27: 0.006048010196 | F27: 24 | G27: Vietname | H27: 70011.1556 | I27: 0.004681937504 | K27: 24 | L27: Marrocos | M27: 151643.736 | N27: 0.005432681335 | O27: 66409.9252
A28: 25 | B28: México | C28: 73493.3644 | D28: 0.005670879815 | F28: 25 | G28: Costa Rica | H28: 69969.0578 | I28: 0.004679122249 | K28: 25 | L28: Suíça | M28: 147880.9734 | N28: 0.005297879261 | O28: 138858.8026
A29: 26 | B29: Japão | C29: 66606.0156 | D29: 0.005139439629 | F29: 26 | G29: Áustria | H29: 63908.1406 | I29: 0.004273803478 | K29: 26 | L29: Grécia | M29: 116697.7842 | N29: 0.004180732359 | O29: -11083.3998
A30: 27 | B30: Irlanda | C30: 63973.7346 | D30: 0.004936328105 | F30: 27 | G30: Grécia | H30: 63890.592 | I30: 0.00427262993 | K30: 27 | L30: Argentina | M30: 113763.425 | N30: 0.004075608079 | O30: -81692.2658
A31: 28 | B31: Luxemburgo | C31: 54794.7774 | D31: 0.004228063304 | F31: 28 | G31: Reino Unido (sem Irlanda do Norte) pós 2020 | H31: 61055.1054 | I31: 0.004083009134 | K31: 28 | L31: Uruguai | M31: 105101.1588 | N31: 0.003765279851 | O31: -99122.9996
A32: 29 | B32: Grécia | C32: 52807.1922 | D32: 0.004074697665 | F32: 29 | G32: Turquia | H32: 55987.9814 | I32: 0.003744149453 | K32: 29 | L32: Finlândia | M32: 103158.5318 | N32: 0.003695684669 | O32: -44724.1734
A33: 30 | B33: Áustria | C33: 39217.279 | D33: 0.003026075588 | F33: 30 | G33: Equador | H33: 48767.8678 | I33: 0.003261310391 | K33: 30 | L33: Áustria | M33: 103125.4196 | N33: 0.003694498415 | O33: -24690.8616
A34: 31 | B34: Moçambique | C34: 37446.547 | D34: 0.002889442731 | F34: 31 | G34: Chile | H34: 47784.2222 | I34: 0.003195529914 | K34: 31 | L34: Cabo Verde | M34: 101700.8832 | N34: 0.00364346398 | O34: 100025.33
A35: 32 | B35: África do Sul | C35: 37155.2308 | D35: 0.00286696425 | F35: 32 | G35: Bulgária | H35: 46240.758 | I35: 0.003092312036 | K35: 32 | L35: Índia | M35: 100022.4076 | N35: 0.003583332099 | O35: -51093.6604
A36: 33 | B36: Chile | C36: 36026.5554 | D36: 0.002779873632 | F36: 33 | G36: Cuba | H36: 43073.1354 | I36: 0.002880479923 | K36: 33 | L36: Egito | M36: 93738.5794 | N36: 0.00335821211 | O36: 73006.3914
A37: 34 | B37: Austrália | C37: 34889.2592 | D37: 0.002692117817 | F37: 34 | G37: Marrocos | H37: 42616.9054 | I37: 0.002849969923 | K37: 34 | L37: México | M37: 93580.153 | N37: 0.003352536438 | O37: 53406.5758
A38: 35 | B38: Arábia Saudita | C38: 32818.8452 | D38: 0.00253236096 | F38: 35 | G38: Moçambique | H38: 40008.831 | I38: 0.002675557127 | K38: 35 | L38: Chile | M38: 83810.7776 | N38: 0.003002545698 | O38: -11757.6668
A39: 36 | B39: Guiné-Bissau | C39: 32182.3082 | D39: 0.002483244623 | F39: 36 | G39: Checa, República | H39: 35780.8524 | I39: 0.002392814593 | K39: 36 | L39: Argélia | M39: 83294.638 | N39: 0.002984054845 | O39: 73467.1456
A40: 37 | B40: Finlândia | C40: 29217.1792 | D40: 0.002254449951 | F40: 37 | G40: Colômbia | H40: 29157.4358 | I40: 0.001949879145 | K40: 37 | L40: Japão | M40: 82993.326 | N40: 0.002973260255 | O40: 50218.7052
A41: 38 | B41: Checa, República | C41: 29096.25 | D41: 0.002245118837 | F41: 38 | G41: Indonésia | H41: 28526.3034 | I41: 0.001907672693 | K41: 38 | L41: Moçambique | M41: 77455.378 | N41: 0.002774861643 | O41: -2562.284
A42: 39 | B42: Emirados Árabes Unidos | C42: 29052.9664 | D42: 0.002241778997 | F42: 39 | G42: Guiana | H42: 28025.2924 | I42: 0.001874168001 | K42: 39 | L42: Vietname | M42: 75958.0768 | N42: 0.002721220388 | O42: -64064.2344
A43: 40 | B43: São Tomé e Príncipe | C43: 26792.4812 | D43: 0.002067355905 | F43: 40 | G43: Hungria | H43: 24242.0034 | I43: 0.001621163712 | K43: 40 | L43: Costa Rica | M43: 73986.347 | N43: 0.002650582589 | O43: -65951.7686
A44: 41 | B44: Jordânia | C44: 26642.1032 | D44: 0.002055752468 | F44: 41 | G44: Namíbia | H44: 22831.866 | I44: 0.001526861952 | K44: 41 | L44: Checa, República | M44: 64877.1024 | N44: 0.002324241229 | O44: -6684.6024
A45: 42 | B45: Roménia | C45: 25863.7568 | D45: 0.001995693864 | F45: 42 | G45: Costa do Marfim | H45: 22796.209 | I45: 0.00152447742 | K45: 42 | L45: Luxemburgo | M45: 63347.0378 | N45: 0.002269426215 | O45: 46242.517
A46: 43 | B46: Tunísia | C46: 24967.3514 | D46: 0.001926525616 | F46: 43 | G46: Uganda | H46: 22685.1228 | I46: 0.001517048623 | K46: 43 | L46: Bulgária | M46: 59231.1196 | N46: 0.002121972238 | O46: -33250.3964
A47: 44 | B47: Índia | C47: 24464.3736 | D47: 0.001887714946 | F47: 44 | G47: México | H47: 20086.7886 | I47: 0.001343287196 | K47: 44 | L47: Equador | M47: 51817.4262 | N47: 0.001856374497 | O47: -45718.3094
A48: 45 | B48: Noruega | C48: 22053.074 | D48: 0.001701654744 | F48: 45 | G48: Peru | H48: 19493.8856 | I48: 0.001303637303 | K48: 45 | L48: Austrália | M48: 48712.5526 | N48: 0.001745141489 | O48: 21065.9658
A49: 46 | B49: Coreia, República da | C49: 18924.4824 | D49: 0.001460247005 | F49: 46 | G49: Paraguai | H49: 18840.7592 | I49: 0.001259960021 | K49: 46 | L49: Cuba | M49: 48369.362 | N49: 0.001732846585 | O49: -37776.9088
A50: 47 | B50: Hungria | C50: 18306.327 | D50: 0.001412549026 | F50: 47 | G50: Senegal | H50: 17576.5504 | I50: 0.001175417115 | K50: 47 | L50: Hungria | M50: 42548.3304 | N50: 0.00152430642 | O50: -5935.6764
A51: 48 | B51: Nigéria | C51: 16216.7282 | D51: 0.001251311834 | F51: 48 | G51: Nova Zelânda | H51: 17377.015 | I51: 0.001162073352 | K51: 48 | L51: Colômbia | M51: 37490.321 | N51: 0.00134310175 | O51: -20824.5506
A52: 49 | B52: Argentina | C52: 16035.5796 | D52: 0.001237334083 | F52: 49 | G52: Japão | H52: 16387.3104 | I52: 0.001095887684 | K52: 49 | L52: Tunísia | M52: 35510.5226 | N52: 0.001272174891 | O52: 14424.1802
A53: 50 | B53: Lituânia | C53: 14426.2296 | D53: 0.001113153751 | F53: 50 | G53: Lituânia | H53: 15822.4366 | I53: 0.001058112221 | K53: 50 | L53: Noruega | M53: 34932.4536 | N53: 0.0012514654 | O53: 9173.6944
A54: 51 | B54: Ucrânia | C54: 14338.071 | D54: 0.001106351275 | F54: 51 | G54: Angola | H54: 15424.0848 | I54: 0.001031472777 | K54: 51 | L54: Costa do Marfim | M54: 32973.8046 | N54: 0.001181296224 | O54: -12618.6134
A55: 52 | B55: Macau | C55: 14162.3328 | D55: 0.001092791001 | F55: 52 | G55: Mauritânia | H55: 14124.4552 | I55: 0.0009445611341 | K55: 52 | L55: Arábia Saudita | M55: 32855.5924 | N55: 0.001177061238 | O55: 32782.098
A56: 53 | B56: Síria, República Árabe da | C56: 13309.7072 | D56: 0.00102700088 | F56: 53 | G56: Austrália | H56: 13823.2934 | I56: 0.0009244211904 | K56: 53 | L56: Guiné-Bissau | M56: 32561.5128 | N56: 0.00116652575 | O56: 31803.1036
A57: 54 | B57: Iraque | C57: 13216.9518 | D57: 0.001019843707 | F57: 54 | G57: Tanzânia, República Unida da | H57: 13711.0264 | I57: 0.0009169134287 | K57: 54 | L57: Indonésia | M57: 32128.1024 | N57: 0.001150998695 | O57: -24924.5044
A58: 55 | B58: Bulgária | C58: 12990.3616 | D58: 0.001002359601 | F58: 55 | G58: Eslovénia | H58: 13709.4752 | I58: 0.0009168096935 | K58: 55 | L58: Coreia, República da | M58: 31301.2172 | N58: 0.00112137529 | O58: 6547.7476
A59: 56 | B59: HongKong | C59: 12801.5844 | D59: 0.0009877932133 | F59: 56 | G59: Suazilândia | H59: 13238.7086 | I59: 0.0008853275706 | K59: 56 | L59: Lituânia | M59: 30248.6662 | N59: 0.001083667342 | O59: -1396.207
A60: 57 | B60: Eslováquia | C60: 12740.7416 | D60: 0.0009830984737 | F60: 57 | G60: Noruega | H60: 12879.3796 | I60: 0.0008612977441 | K60: 57 | L60: Emirados Árabes Unidos | M60: 29704.259 | N60: 0.001064163794 | O60: 28401.6738
A61: 58 | B61: Letónia | C61: 11849.96 | D61: 0.0009143641678 | F61: 58 | G61: Tailândia | H61: 12766.4348 | I61: 0.0008537446551 | K61: 58 | L61: Senegal | M61: 28854.894 | N61: 0.001033735044 | O61: -6298.2068
A62: 59 | B62: Croácia | C62: 11388.7032 | D62: 0.0008787727658 | F62: 59 | G62: Camarões | H62: 12420.4028 | I62: 0.0008306040543 | K62: 59 | L62: Guiana | M62: 28164.8726 | N62: 0.001009014825 | O62: -27885.7122
A63: 60 | B63: Senegal | C63: 11278.3436 | D63: 0.0008702572211 | F63: 60 | G63: Coreia, República da | H63: 12376.7348 | I63: 0.0008276837933 | K63: 60 | L63: São Tomé e Príncipe | M63: 27846.3486 | N63: 0.0009976036088 | O63: 25738.6138
A64: 61 | B64: Dominicana, República | C64: 11211.5302 | D64: 0.0008651017793 | F64: 61 | G64: Estónia | H64: 12113.6096 | I64: 0.0008100875155 | K64: 61 | L64: Jordânia | M64: 26699.1202 | N64: 0.0009565038148 | O64: 26585.0862
A65: 62 | B65: Líbia, Jamahira Árabe da | C65: 11110.2892 | D65: 0.0008572898422 | F65: 62 | G65: Moldava, República de | H65: 11911.9324 | I65: 0.0007966005214 | K65: 62 | L65: Peru | M65: 25631.4274 | N65: 0.000918253407 | O65: -13356.3438
A66: 63 | B66: Costa do Marfim | C66: 10177.5956 | D66: 0.0007853215311 | F66: 63 | G66: Sérvia | H66: 11557.857 | I66: 0.000772922025 | K66: 63 | L66: Uganda | M66: 23651.4418 | N66: 0.0008473198419 | O66: -21718.8038
A67: 64 | B67: Malta | C67: 10082.9972 | D67: 0.0007780221489 | F67: 64 | G67: Tunísia | H67: 10543.1712 | I67: 0.0007050657604 | K67: 64 | L67: Namíbia | M67: 23571.3778 | N67: 0.0008444515256 | O67: -22092.3542
A68: 65 | B68: Território Palestiniano Ocupado | C68: 9895.7186 | D68: 0.0007635713962 | F68: 65 | G68: Paquistão | H68: 10440.9988 | I68: 0.0006982330665 | K68: 65 | L68: Tailândia | M68: 22048.0496 | N68: 0.0007898778459 | O68: -3484.82
A69: 66 | B69: Líbano | C69: 9880.5148 | D69: 0.0007623982437 | F69: 66 | G69: Egito | H69: 10366.094 | I69: 0.0006932238706 | K69: 66 | L69: Eslovénia | M69: 22027.284 | N69: 0.0007891339122 | O69: -5391.6664
A70: 67 | B70: Chipre | C70: 9763.9754 | D70: 0.0007534058546 | F70: 67 | G70: Islândia | H70: 10004.441 | I70: 0.0006690386286 | K70: 67 | L70: Nigéria | M70: 21603.5138 | N70: 0.0007739522204 | O70: 10829.9426
A71: 68 | B71: Tailândia | C71: 9281.6148 | D71: 0.0007161860455 | F71: 68 | G71: Maurícias | H71: 9636.4388 | I71: 0.0006444287891 | K71: 68 | L71: Nova Zelânda | M71: 21601.671 | N71: 0.0007738862016 | O71: -13152.359
A72: 69 | B72: Kuwait | C72: 9121.1468 | D72: 0.0007038040468 | F72: 69 | G72: Letónia | H72: 9340.8474 | I72: 0.0006246613613 | K72: 69 | L72: Camarões | M72: 21512.3584 | N72: 0.0007706865515 | O72: -3328.4472
A73: 70 | B73: Camarões | C73: 9091.9556 | D73: 0.0007015516015 | F73: 70 | G73: Luxemburgo | H73: 8552.2604 | I73: 0.0005719252649 | K73: 70 | L73: Letónia | M73: 21190.8074 | N73: 0.0007591668926 | O73: 2509.1126
A74: 71 | B74: Colômbia | C74: 8332.8852 | D74: 0.000642980368 | F74: 71 | G74: Israel | H74: 8348.85 | I74: 0.0005583223645 | K74: 71 | L74: Estónia | M74: 20382.3 | N74: 0.0007302018777 | O74: -3844.9192
A75: 72 | B75: Eslovénia | C75: 8317.8088 | D75: 0.0006418170459 | F75: 72 | G75: Filipinas | H75: 8338.4466 | I75: 0.0005576266458 | K75: 72 | L75: Paraguai | M75: 20050.052 | N75: 0.0007182989957 | O75: -17631.4664
A76: 73 | B76: Estónia | C76: 8268.6904 | D76: 0.000638026982 | F76: 73 | G76: Belize | H76: 8129.6594 | I76: 0.0005436641763 | K76: 73 | L76: Croácia | M76: 18469.8002 | N76: 0.0006616860113 | O76: 4307.6062
A77: 74 | B77: Geórgia | C77: 8048.6886 | D77: 0.0006210512486 | F77: 74 | G77: Malásia | H77: 8113.8152 | I77: 0.0005426046087 | K77: 74 | L77: Eslováquia | M77: 18139.0792 | N77: 0.0006498378344 | O77: 7342.404
A78: 75 | B78: Gibraltar | C78: 7970.9208 | D78: 0.0006150505456 | F78: 75 | G78: Bangladesh | H78: 7929.0306 | I78: 0.000530247293 | K78: 75 | L78: Sérvia | M78: 17502.4848 | N78: 0.0006270316533 | O78: -5613.2292
A79: 76 | B79: Gana | C79: 7307.4466 | D79: 0.0005638556863 | F79: 76 | G79: Croácia | H79: 7081.097 | I79: 0.0004735424424 | K79: 76 | L79: Mauritânia | M79: 16931.2984 | N79: 0.0006065687329 | O79: -11317.612
A80: 77 | B80: Taiwan | C80: 6603.7526 | D80: 0.0005095573952 | F80: 77 | G80: Quénia | H80: 6721.3334 | I80: 0.0004494835524 | K80: 77 | L80: HongKong | M80: 15600.7076 | N80: 0.0005588999271 | O80: 10002.4612
A81: 78 | B81: Belarus | C81: 6189.2796 | D81: 0.0004775759151 | F81: 78 | G81: Gana | H81: 6621.1502 | I81: 0.0004427838846 | K81: 78 | L81: Maurícias | M81: 15492.987 | N81: 0.000555040805 | O81: -3779.8906
A82: 79 | B82: Guatemala | C82: 6179.6032 | D82: 0.0004768292667 | F82: 79 | G82: Panamá | H82: 6513.4974 | I82: 0.0004355846936 | K82: 79 | L82: Suazilândia | M82: 15229.8654 | N82: 0.0005456143965 | O82: -11247.5518
A83: 80 | B83: Peru | C83: 6137.5418 | D83: 0.0004735837336 | F83: 80 | G83: Honduras | H83: 6221.5346 | I83: 0.0004160599254 | K83: 80 | L83: Moldava, República de | M83: 14881.0396 | N83: 0.0005331176098 | O83: -8942.8252
A84: 81 | B84: Vietname | C84: 5946.9212 | D84: 0.0004588751062 | F84: 81 | G84: Suriname | H84: 5829.6302 | I84: 0.0003898516463 | K84: 81 | L84: Síria, República Árabe da | M84: 14259.5412 | N84: 0.0005108522473 | O84: 12359.8732
A85: 82 | B85: Sérvia | C85: 5944.6278 | D85: 0.0004586981434 | F85: 82 | G85: Eslováquia | H85: 5398.3376 | I85: 0.0003610093142 | K85: 82 | L85: Tanzânia, República Unida da | M85: 14227.4986 | N85: 0.0005097043117 | O85: -13194.5542
A86: 83 | B86: Maurícias | C86: 5856.5482 | D86: 0.0004519017635 | F86: 83 | G86: Nigéria | H86: 5386.7856 | I86: 0.0003602367839 | K86: 83 | L86: Macau | M86: 14182.009 | N86: 0.0005080746335 | O86: 14142.6566
A87: 84 | B87: Andorra | C87: 5401.2632 | D87: 0.0004167711563 | F87: 84 | G87: Etiópia | H87: 5332.9722 | I87: 0.0003566380577 | K87: 84 | L87: Gana | M87: 13928.5968 | N87: 0.0004989960671 | O87: 686.2964
A88: 85 | B88: Cuba | C88: 5296.2266 | D88: 0.0004086663438 | F88: 85 | G88: Congo | H88: 5207.279 | I88: 0.0003482324301 | K88: 85 | L88: Paquistão | M88: 13696.3036 | N88: 0.000490674095 | O88: -7185.694
A89: 86 | B89: Singapura | C89: 4670.5802 | D89: 0.0003603903454 | F89: 86 | G89: Guatemala | H89: 5139.0112 | I89: 0.000343667078 | K89: 86 | L89: Dominicana, República | M89: 13463.2218 | N89: 0.0004823238711 | O89: 8959.8386
A90: 87 | B90: Omã | C90: 4393.4536 | D90: 0.0003390067599 | F90: 87 | G90: Camboja | H90: 4965.3018 | I90: 0.0003320504071 | K90: 87 | L90: Iraque | M90: 13230.1254 | N90: 0.0004739731242 | O90: 13203.7782
A91: 88 | B91: Nova Zelânda | C91: 4224.656 | D91: 0.0003259820343 | F91: 88 | G91: Argélia | H91: 4913.7462 | I91: 0.0003286026694 | K91: 88 | L91: Chipre | M91: 13179.1368 | N91: 0.0004721464427 | O91: 6348.814
A92: 89 | B92: Panamá | C92: 4203.97 | D92: 0.0003243858655 | F92: 89 | G92: Reino Unido (Irlanda do Norte) pós-2020 | H92: 4864.879 | I92: 0.0003253347163 | K92: 89 | L92: Filipinas | M92: 11817.2578 | N92: 0.0004233567279 | O92: -4859.6354
A93: 90 | B93: Costa Rica | C93: 4017.2892 | D93: 0.0003099812401 | F93: 90 | G93: Macedónia, Antiga República jugoslava da | H93: 4838.7308 | I93: 0.0003235860773 | K93: 90 | L93: Islândia | M93: 11807.9024 | N93: 0.000423021568 | O93: -8200.9796
A94: 91 | B94: Catar | C94: 3814.9902 | D94: 0.0002943714864 | F94: 91 | G94: Zimbabwe | H94: 4709.246 | I94: 0.0003149268895 | K94: 91 | L94: Malta | M94: 11740.4076 | N94: 0.000420603547 | O94: 8425.5868
A95: 92 | B95: Burquina Faso | C95: 3646.8948 | D95: 0.0002814009439 | F95: 92 | G95: Suíça | H95: 4511.0854 | I95: 0.0003016750651 | K95: 92 | L95: Malásia | M95: 11542.323 | N95: 0.000413507108 | O95: -4685.3074
A96: 93 | B96: Indonésia | C96: 3601.799 | D96: 0.0002779212711 | F96: 93 | G96: Sri Lanca | H96: 4405.8098 | I96: 0.0002946348473 | K96: 93 | L96: Guatemala | M96: 11318.6144 | N96: 0.0004054926818 | O96: 1040.592
A97: 94 | B97: Sudão | C97: 3570.9408 | D97: 0.000275540197 | F97: 94 | G97: Madagáscar | H97: 3797.7566 | I97: 0.0002539717979 | K97: 94 | L97: Líbia, Jamahira Árabe da | M97: 11116.3092 | N97: 0.0003982450387 | O97: 11104.2692
A98: 95 | B98: Filipinas | C98: 3478.8112 | D98: 0.0002684313118 | F98: 95 | G98: Mali | H98: 3762.6334 | I98: 0.0002516229632 | K98: 95 | L98: Panamá | M98: 10717.4674 | N98: 0.0003839564142 | O98: -2309.5274
A99: 96 | B99: Mali | C99: 3441.82 | D99: 0.0002655770045 | F99: 96 | G99: Myanmar | H99: 3487.5672 | I99: 0.000233228141 | K99: 96 | L99: Líbano | M99: 10422.5976 | N99: 0.0003733926171 | O99: 9338.432
A100: 97 | B100: Malásia | C100: 3428.5078 | D100: 0.0002645498112 | F100: 97 | G100: Nicarágua | H100: 3458.6704 | I100: 0.0002312956917 | K100: 97 | L100: Kuwait | M100: 10304.9986 | N100: 0.0003691795984 | O100: 7937.295
A101: 98 | B101: Venezuela | C101: 3292.1542 | D101: 0.0002540285229 | F101: 98 | G101: Taiwan | H101: 3425.7168 | I101: 0.0002290919472 | K101: 98 | L101: Taiwan | M101: 10029.4694 | N101: 0.0003593086839 | O101: 3178.0358
A102: 99 | B102: Paquistão | C102: 3255.3048 | D102: 0.0002511851571 | F102: 99 | G102: Chipre | H102: 3415.1614 | I102: 0.0002283860637 | K102: 99 | L102: Território Palestiniano Ocupado | M102: 9896.2038 | N102: 0.0003545344047 | O102: 9895.2334
A103: 100 | B103: Irão, República Islâmica do | C103: 3151.3458 | D103: 0.0002431634942 | F103: 100 | G103: Congo, República Democrática do | H103: 3287.5926 | I103: 0.0002198550068 | K103: 100 | L103: Bangladesh | M103: 9893.849 | N103: 0.0003544500433 | O103: -5964.2122
A104: 101 | B104: Equador | C104: 3049.5584 | D104: 0.0002353093959 | F104: 101 | G104: Malavi | H104: 3258.3272 | I104: 0.0002178979077 | K104: 101 | L104: Quénia | M104: 9768.3614 | N104: 0.0003499544132 | O104: -3674.3054
A105: 102 | B105: Quénia | C105: 3047.028 | D105: 0.0002351141457 | F105: 102 | G105: Papuásia-Nova Guiné | H105: 3105.1676 | I105: 0.0002076554875 | K105: 102 | L105: Geórgia | M105: 8359.5618 | N105: 0.0002994837542 | O105: 7737.8154
A106: 103 | B106: Uruguai | C106: 2989.0796 | D106: 0.0002306427432 | F106: 103 | G106: HongKong | H106: 2799.1232 | I106: 0.0001871890241 | K106: 103 | L106: Belize | M106: 8131.84 | N106: 0.0002913255539 | O106: -8127.4788
A107: 104 | B107: Moldava, República de | C107: 2969.1072 | D107: 0.000229101637 | F107: 104 | G107: Gabão | H107: 2643.292 | I107: 0.0001767679428 | K107: 104 | L107: Gibraltar | M107: 8002.9498 | N107: 0.0002867080247 | O107: 7938.8918
A108: 105 | B108: Mauritânia | C108: 2806.8432 | D108: 0.0002165810557 | F108: 105 | G108: Centro-Africana, República | H108: 2579.2684 | I108: 0.0001724864181 | K108: 105 | L108: Congo | M108: 7636.6094 | N108: 0.0002735837724 | O108: -2777.9486
A109: 106 | B109: Timor-Leste | C109: 2726.394 | D109: 0.0002103734511 | F109: 106 | G109: Gâmbia | H109: 2389.373 | I109: 0.000159787322 | K109: 106 | L109: Honduras | M109: 7591.1752 | N109: 0.0002719560788 | O109: -4851.894
A110: 107 | B110: Guiné | C110: 2700.6706 | D110: 0.0002083885874 | F110: 107 | G110: Dominicana, República | H110: 2251.6916 | I110: 0.0001505799934 | K110: 107 | L110: Etiópia | M110: 7365.0862 | N110: 0.0002638563741 | O110: -3300.8582
A111: 108 | B111: Arménia | C111: 2588.4812 | D111: 0.0001997318521 | F111: 108 | G111: Serra Leoa | H111: 1997.9044 | I111: 0.0001336081866 | K111: 108 | L111: Reino Unido (Irlanda do Norte) pós-2020 | M111: 7284.542 | N111: 0.0002609708545 | O111: -2445.216
A112: 109 | B112: Gabão | C112: 2550.5466 | D112: 0.0001968047503 | F112: 109 | G112: Benim | H112: 1832.1494 | I112: 0.0001225234595 | K112: 109 | L112: Mali | M112: 7204.4534 | N112: 0.0002581016569 | O112: -320.8134
A113: 110 | B113: Congo | C113: 2429.3304 | D113: 0.0001874514909 | F113: 110 | G113: El Salvador | H113: 1779.7304 | I113: 0.0001190179827 | K113: 110 | L113: Belarus | M113: 7048.5194 | N113: 0.0002525152756 | O113: 5330.0398
A114: 111 | B114: Reino Unido (Irlanda do Norte) pós-2020 | C114: 2419.663 | D114: 0.000186705537 | F114: 111 | G114: Burquina Faso | H114: 1725.7576 | I114: 0.0001154085968 | K114: 111 | L114: Suriname | M114: 6411.9606 | N114: 0.0002297103698 | O114: -5247.2998
A115: 112 | B115: Albânia | C115: 2229.7502 | D115: 0.0001720515247 | F115: 112 | G115: Malta | H115: 1657.4104 | I115: 0.000110837935 | K115: 112 | L115: Singapura | M115: 5982.0136 | N115: 0.0002143073924 | O115: 3359.1468
A116: 113 | B116: Seychelles | C116: 2209.8298 | D116: 0.0001705144309 | F116: 113 | G116: Laos, República Democrática Popular do | H116: 1570.485 | I116: 0.0001050248715 | K116: 113 | L116: Camboja | M116: 5868.6792 | N116: 0.0002102471542 | O116: -4061.9244
A117: 114 | B117: Guiné Equatorial | C117: 2176.263 | D117: 0.0001679243564 | F117: 114 | G117: Singapura | H117: 1311.4334 | I117: 8.770101232e-05 | K117: 114 | L117: Sri Lanca | M117: 5846.5976 | N117: 0.0002094560744 | O117: -2965.022
A118: 115 | B118: Etiópia | C118: 2032.114 | D118: 0.0001568015611 | F118: 115 | G118: Seychelles | H118: 1264.2444 | I118: 8.45452874e-05 | K118: 115 | L118: Macedónia, Antiga República jugoslava da | M118: 5789.6166 | N118: 0.0002074147134 | O118: -3887.845
A119: 116 | B119: Suazilândia | C119: 1991.1568 | D119: 0.00015364123 | F119: 116 | G119: Kuwait | H119: 1183.8518 | I119: 7.916909948e-05 | K119: 116 | L119: Andorra | M119: 5443.4826 | N119: 0.0001950143613 | O119: 5359.0438
A120: 117 | B120: Bangladesh | C120: 1964.8184 | D120: 0.0001516089119 | F120: 117 | G120: Bolívia | H120: 1171.3558 | I120: 7.833343992e-05 | K120: 117 | L120: Burquina Faso | M120: 5372.6524 | N120: 0.0001924768486 | O120: 1921.1372
A121: 118 | B121: Islândia | C121: 1803.4614 | D121: 0.0001391583163 | F121: 118 | G121: Togo | H121: 1123.3282 | I121: 7.512163432e-05 | K121: 118 | L121: Gabão | M121: 5193.8386 | N121: 0.0001860707917 | O121: -92.7454
A122: 119 | B122: Benim | C122: 1771.8166 | D122: 0.0001367165468 | F122: 119 | G122: São Tomé e Príncipe | H122: 1053.8674 | I122: 7.047650139e-05 | K122: 119 | L122: Nicarágua | M122: 5085.114 | N122: 0.000182175701 | O122: -1832.2268
A123: 120 | B123: Congo, República Democrática do | C123: 1727.181 | D123: 0.0001332723838 | F123: 120 | G123: Venezuela | H123: 1042.655 | I123: 6.972668151e-05 | K123: 120 | L123: Congo, República Democrática do | M123: 5014.7736 | N123: 0.0001796557356 | O123: -1560.4116
A124: 121 | B124: Jamaica | C124: 1687.498 | D124: 0.0001302103724 | F124: 121 | G124: Iémen | H124: 1024.4982 | I124: 6.851246069e-05 | K124: 121 | L124: Omã | M124: 4885.6232 | N124: 0.0001750288846 | O124: 3901.284
A125: 122 | B125: Nicarágua | C125: 1626.4436 | D125: 0.0001254993054 | F125: 122 | G125: Síria, República Árabe da | H125: 949.834 | I125: 6.351935473e-05 | K125: 122 | L125: Zimbabwe | M125: 4774.2052 | N125: 0.0001710373021 | O125: -4644.2868
A126: 123 | B126: Togo | C126: 1570.864 | D126: 0.0001212106838 | F126: 123 | G126: Belarus | H126: 859.2398 | I126: 5.746094334e-05 | K126: 123 | L126: Venezuela | M126: 4334.8092 | N126: 0.0001552958114 | O126: 2249.4992
A127: 124 | B127: El Salvador | C127: 1565.6294 | D127: 0.0001208067726 | F127: 124 | G127: Cabo Verde | H127: 837.7766 | I127: 5.602560978e-05 | K127: 124 | L127: Madagáscar | M127: 4107.7518 | N127: 0.0001471614135 | O127: -3487.7614
A128: 125 | B128: Cazaquistão | C128: 1534.519 | D128: 0.0001184062384 | F128: 125 | G128: Bósnia-Herzegovina | H128: 758.2198 | I128: 5.070531529e-05 | K128: 125 | L128: Myanmar | M128: 3979.95 | N128: 0.0001425828765 | O128: -2995.1844
A129: 126 | B129: Sri Lanca | C129: 1440.7878 | D129: 0.0001111737709 | F129: 126 | G129: Turquemenistão | H129: 720.6558 | I129: 4.819325419e-05 | K129: 126 | L129: Catar | M129: 3836.467 | N129: 0.0001374425559 | O129: 3793.5134
A130: 127 | B130: Azerbaijão | C130: 1435.1898 | D130: 0.0001107418191 | F130: 127 | G130: Chade | H130: 675.9004 | I130: 4.520027423e-05 | K130: 127 | L130: Benim | M130: 3603.966 | N130: 0.0001291131394 | O130: -60.3328
A131: 128 | B131: Bolívia | C131: 1412.2374 | D131: 0.0001089707708 | F131: 128 | G131: Emirados Árabes Unidos | H131: 651.2926 | I131: 4.355464817e-05 | K131: 128 | L131: Sudão | M131: 3591.4234 | N131: 0.000128663797 | O131: 3550.4582
A132: 129 | B132: Honduras | C132: 1369.6406 | D132: 0.0001056839253 | F132: 129 | G132: Timor-Leste | H132: 614.587 | I132: 4.109999186e-05 | K132: 129 | L132: Seychelles | M132: 3474.0742 | N132: 0.0001244597275 | O132: 945.5854
A133: 130 | B133: São Bartolomeu | C133: 1280.9726 | D133: 9.884214338e-05 | F133: 130 | G133: Faroé, Ilhas | H133: 597.6172 | I133: 3.996515067e-05 | K133: 130 | L133: Irão, República Islâmica do | M133: 3375.8844 | N133: 0.0001209420491 | O133: 2926.8072
A134: 131 | B134: Ruanda | C134: 1241.1874 | D134: 9.577224599e-05 | F134: 131 | G134: Líbano | H134: 542.0828 | I134: 3.625133409e-05 | K134: 131 | L134: El Salvador | M134: 3345.3598 | N134: 0.0001198484964 | O134: -214.101
A135: 132 | B135: Paraguai | C135: 1209.2928 | D135: 9.331120144e-05 | F135: 132 | G135: Omã | H135: 492.1696 | I135: 3.291343057e-05 | K135: 132 | L135: Timor-Leste | M135: 3340.981 | N135: 0.0001196916246 | O135: 2111.807
A136: 133 | B136: Iémen | C136: 1145.3826 | D136: 8.837977578e-05 | F136: 133 | G136: Gronelândia | H136: 481.3548 | I136: 3.219019986e-05 | K136: 133 | L136: Malavi | M136: 3267.4564 | N136: 0.0001170575842 | O136: -3249.198
A137: 134 | B137: Montenegro | C137: 1046.3476 | D137: 8.073805755e-05 | F137: 134 | G137: Guiné-Bissau | H137: 379.2046 | I137: 2.535899063e-05 | K137: 134 | L137: Papuásia-Nova Guiné | M137: 3108.0532 | N137: 0.0001113469178 | O137: -3102.282
A138: 135 | B138: Uganda | C138: 966.319 | D138: 7.456290724e-05 | F138: 135 | G138: Geórgia | H138: 310.8732 | I138: 2.078938537e-05 | K138: 135 | L138: Guiné | M138: 3003.4878 | N138: 0.0001076008317 | O138: 2397.8534
A139: 136 | B139: Macedónia, Antiga República jugoslava da | C139: 950.8858 | D139: 7.337205384e-05 | F139: 136 | G139: Usbequistão | H139: 308.419 | I139: 2.06252628e-05 | K139: 136 | L139: Gâmbia | M139: 2880.9438 | N139: 0.0001032106569 | O139: -1897.8022
A140: 137 | B140: Bermudas | C140: 907.5284 | D140: 7.002651909e-05 | F140: 137 | G140: Guiné | H140: 302.8172 | I140: 2.025064711e-05 | K140: 137 | L140: Togo | M140: 2694.1922 | N140: 9.652022605e-05 | O140: 447.5358
A141: 138 | B141: Camboja | C141: 903.3774 | D141: 6.970622049e-05 | F141: 138 | G141: Irão, República Islâmica do | H141: 224.5386 | I141: 1.501583117e-05 | K141: 138 | L141: Centro-Africana, República | M141: 2675.6308 | N141: 9.585525845e-05 | O141: -2482.906
A142: 139 | B142: Barbados | C142: 889.1274 | D142: 6.860666493e-05 | F142: 139 | G142: Zâmbia | H142: 199.3992 | I142: 1.333465481e-05 | K142: 139 | L142: Arménia | M142: 2615.5848 | N142: 9.370409288e-05 | O142: 2561.3776
A143: 140 | B143: Trindade e Tobago | C143: 876.5142 | D143: 6.763340779e-05 | F143: 140 | G143: Azerbaijão | H143: 125.9264 | I143: 8.421222731e-06 | K143: 140 | L143: Bolívia | M143: 2583.5932 | N143: 9.255798443e-05 | O143: 240.8816
A144: 141 | B144: Namíbia | C144: 739.5118 | D144: 5.706205688e-05 | F144: 141 | G144: Fiji, Ilhas | H144: 123.8396 | I144: 8.281669725e-06 | K144: 141 | L144: Serra Leoa | M144: 2504.721 | N144: 8.973236472e-05 | O144: -1491.0878
A145: 142 | B145: Turquemenistão | C145: 730.8192 | D145: 5.639132027e-05 | F145: 142 | G145: Maldivas | H145: 106.2128 | I145: 7.102892211e-06 | K145: 142 | L145: Albânia | M145: 2335.6576 | N145: 8.367561881e-05 | O145: 2123.8428
A146: 143 | B146: Barém | C146: 714.5288 | D146: 5.513432379e-05 | F146: 143 | G146: Albânia | H146: 105.9074 | I146: 7.082468841e-06 | K146: 143 | L146: Guiné Equatorial | M146: 2182.2494 | N146: 7.817972504e-05 | O146: 2170.2766
A147: 144 | B147: Burundi | C147: 677.1012 | D147: 5.224634305e-05 | F147: 144 | G147: Tajiquistão | H147: 59.4122 | I147: 3.973141209e-06 | K147: 144 | L147: Iémen | M147: 2169.8808 | N147: 7.773661631e-05 | O147: 120.8844
A148: 145 | B148: Aruba | C148: 656.9934 | D148: 5.069478913e-05 | F148: 145 | G148: Jordânia | H148: 57.017 | I148: 3.812964211e-06 | K148: 145 | L148: Jamaica | M148: 1698.661 | N148: 6.085502872e-05 | O148: 1676.335
A149: 146 | B149: Niger | C149: 652.165 | D149: 5.032222113e-05 | F149: 146 | G149: Andorra | H149: 42.2194 | I149: 2.823387081e-06 | K149: 146 | L149: Laos, República Democrática Popular do | M149: 1586.3348 | N149: 5.683090965e-05 | O149: -1554.6352
A150: 147 | B150: São Martinho (parte holandesa) | C150: 597.7744 | D150: 4.612534488e-05 | F150: 147 | G150: Libéria | H150: 38.8276 | I150: 2.596563292e-06 | K150: 147 | L150: Azerbaijão | M150: 1561.1162 | N150: 5.59274459e-05 | O150: 1309.2634
A151: 148 | B151: Suriname | C151: 582.3304 | D151: 4.493365814e-05 | F151: 148 | G151: Falkland Ilhas (Malvinas) | H151: 38.0622 | I151: 2.545377807e-06 | K151: 148 | L151: Cazaquistão | M151: 1551.583 | N151: 5.558591622e-05 | O151: 1517.455
A152: 149 | B152: Bósnia-Herzegovina | C152: 535.6404 | D152: 4.133097399e-05 | F152: 149 | G152: Aruba | H152: 38.0518 | I152: 2.544682315e-06 | K152: 149 | L152: Turquemenistão | M152: 1451.475 | N152: 5.199951774e-05 | O152: 10.1634
A153: 150 | B153: Tanzânia, República Unida da | C153: 516.4722 | D153: 3.98519213e-05 | F153: 150 | G153: Arábia Saudita | H153: 36.7472 | I153: 2.457438281e-06 | K153: 150 | L153: Bósnia-Herzegovina | M153: 1293.8602 | N153: 4.635292129e-05 | O153: -222.5794
A154: 151 | B154: Ceuta e Melilha | C154: 507.8786 | D154: 3.918882371e-05 | F154: 151 | G154: São Marino | H154: 32.7702 | I154: 2.191479731e-06 | K154: 151 | L154: São Bartolomeu | M154: 1281.3282 | N154: 4.590395871e-05 | O154: 1280.617
A155: 152 | B155: Serra Leoa | C155: 506.8166 | D155: 3.910687789e-05 | F155: 152 | G155: Gibraltar | H155: 32.029 | I155: 2.1419126e-06 | K155: 152 | L155: Ruanda | M155: 1241.8574 | N155: 4.448990572e-05 | O155: 1240.5174
A156: 153 | B156: Myanmar | C156: 492.3828 | D156: 3.799313999e-05 | F156: 153 | G156: Botswana | H156: 30.0284 | I156: 2.008124148e-06 | K156: 153 | L156: Montenegro | M156: 1046.7 | N156: 3.749833461e-05 | O156: 1045.9952
A157: 154 | B157: Gâmbia | C157: 491.5708 | D157: 3.793048461e-05 | F157: 154 | G157: São Pedro e Miquelon | H157: 28.9156 | I157: 1.933706578e-06 | K157: 154 | L157: Bermudas | M157: 908.3498 | N157: 3.25418981e-05 | O157: 906.707
A158: 155 | B158: Curaçau | C158: 479.6396 | D158: 3.700985182e-05 | F158: 155 | G158: Arménia | H158: 27.1036 | I158: 1.812530593e-06 | K158: 155 | L158: Barbados | M158: 899.4474 | N158: 3.222296701e-05 | O158: 878.8074
A159: 156 | B159: Kosovo | C159: 471.1818 | D159: 3.63572328e-05 | F159: 156 | G159: Catar | H159: 21.4768 | I159: 1.436243046e-06 | K159: 156 | L159: Trindade e Tobago | M159: 876.838 | N159: 3.141297862e-05 | O159: 876.1904
A160: 157 | B160: Polinésia Francesa | C160: 366.6458 | D160: 2.829104755e-05 | F160: 157 | G160: Sudão | H160: 20.4826 | I160: 1.369756752e-06 | K160: 157 | L160: Barém | M160: 719.1302 | N160: 2.576305041e-05 | O160: 709.9274
A161: 158 | B161: Antígua e Barbuda | C161: 363.7054 | D161: 2.806416101e-05 | F161: 158 | G161: Macau | H161: 19.6762 | I161: 1.315829427e-06 | K161: 158 | L161: Aruba | M161: 695.0452 | N161: 2.490019822e-05 | O161: 618.9416
A162: 159 | B162: Haiti | C162: 328.5232 | D162: 2.534943935e-05 | F162: 159 | G162: Quirguizistão | H162: 17.4758 | I162: 1.168679516e-06 | K162: 159 | L162: Burundi | M162: 677.2152 | N162: 2.426143324e-05 | O162: 676.9872
A163: 160 | B163: Comores | C163: 311.607 | D163: 2.404415502e-05 | F163: 160 | G163: Cazaquistão | H163: 17.064 | I163: 1.141140735e-06 | K163: 160 | L163: Chade | M163: 676.014 | N163: 2.42183999e-05 | O163: -675.7868
A164: 161 | B164: Madagáscar | C164: 309.9952 | D164: 2.391978564e-05 | F164: 161 | G164: Salomão, Ilhas | H164: 16.0532 | I164: 1.07354433e-06 | K164: 161 | L164: Niger | M164: 655.4318 | N164: 2.348103654e-05 | O164: 648.8982
A165: 162 | B165: Nova Caledónia | C165: 302.6442 | D165: 2.33525693e-05 | F165: 162 | G165: Santa Helena | H165: 15.7338 | I165: 1.052184722e-06 | K165: 162 | L165: Faroé, Ilhas | M165: 598.4668 | N165: 2.14402487e-05 | O165: -596.7676
A166: 163 | B166: Libéria | C166: 295.8354 | D166: 2.282719008e-05 | F166: 163 | G166: Marshall, Ilhas | H166: 13.4098 | I166: 8.96769165e-07 | K166: 163 | L166: São Martinho (parte holandesa) | M166: 597.7772 | N166: 2.141554358e-05 | O166: 597.7716
A167: 164 | B167: Somália | C167: 292.9902 | D167: 2.260764934e-05 | F167: 164 | G167: Iraque | H167: 13.1736 | I167: 8.809734874e-07 | K167: 164 | L167: Usbequistão | M167: 531.501 | N167: 1.904117927e-05 | O167: -85.337
A168: 165 | B168: Bahamas | C168: 280.4744 | D168: 2.164190776e-05 | F168: 165 | G168: Curaçau | H168: 12.9632 | I168: 8.669031633e-07 | K168: 165 | L168: Ceuta e Melilha | M168: 507.8786 | N168: 1.819489986e-05 | O168: 507.8786
A169: 166 | B169: Usbequistão | C169: 223.082 | D169: 1.721340724e-05 | F169: 166 | G169: Jamaica | H169: 11.163 | I169: 7.465162932e-07 | K169: 166 | L169: Curaçau | M169: 492.6028 | N169: 1.764763984e-05 | O169: 466.6764
A170: 167 | B170: São Marino | C170: 219.9688 | D170: 1.697318715e-05 | F170: 167 | G170: Nepal | H170: 11.0964 | I170: 7.420624739e-07 | K170: 167 | L170: Gronelândia | M170: 481.9304 | N170: 1.726529798e-05 | O170: -480.7792
A171: 168 | B171: Bonaire, Santo Eustáquio e Saba | C171: 206.5448 | D171: 1.593736723e-05 | F171: 168 | G171: Barbados | H171: 10.32 | I171: 6.901413729e-07 | K171: 168 | L171: Kosovo | M171: 479.738 | N171: 1.718675461e-05 | O171: 462.6256
A172: 169 | B172: Guiana | C172: 139.5802 | D172: 1.077025858e-05 | F172: 169 | G172: Antígua e Barbuda | H172: 9.2324 | I172: 6.174090321e-07 | K172: 169 | L172: Antígua e Barbuda | M172: 372.9378 | N172: 1.336060611e-05 | O172: 354.473
A173: 170 | B173: Zâmbia | C173: 138.1944 | D173: 1.066332777e-05 | F173: 170 | G173: Kosovo | H173: 8.5562 | I173: 5.721887224e-07 | K173: 170 | L173: Polinésia Francesa | M173: 367.1436 | N173: 1.315302719e-05 | O173: 366.148
A174: 171 | B174: Maldivas | C174: 129.0678 | D174: 9.959102945e-06 | F174: 171 | G174: Jibuti | H174: 7.3022 | I174: 4.883285207e-07 | K174: 171 | L174: Zâmbia | M174: 337.5936 | N174: 1.209438977e-05 | O174: -61.2048
A175: 172 | B175: Santa Lúcia | C175: 120.252 | D175: 9.278860005e-06 | F175: 172 | G175: Líbia, Jamahira Árabe da | H175: 6.02 | I175: 4.025824675e-07 | K175: 172 | L175: Libéria | M175: 334.663 | N175: 1.198940017e-05 | O175: 257.0078
A176: 173 | B176: Liechtenstein | C176: 119.4194 | D176: 9.214615095e-06 | F176: 173 | G176: Guiné Equatorial | H176: 5.9864 | I176: 4.003354956e-07 | K176: 173 | L176: Haiti | M176: 328.8052 | N176: 1.177954276e-05 | O176: 328.2412
A177: 174 | B177: Afeganistão | C177: 109.4574 | D177: 8.445929308e-06 | F177: 174 | G177: Barém | H177: 4.6014 | I177: 3.077147784e-07 | K177: 174 | L177: Comores | M177: 311.607 | N177: 1.11634122e-05 | O177: 311.607
A178: 175 | B178: Quirguizistão | C178: 109.2342 | D178: 8.428706795e-06 | F178: 175 | G178: São Cristovão e Nevis | H178: 4.4456 | I178: 2.972957837e-07 | K178: 175 | L178: Nova Caledónia | M178: 303.3516 | N178: 1.086766007e-05 | O178: 301.9368
A179: 176 | B179: Virgens Britânicas, Ilhas | C179: 102.589 | D179: 7.915951244e-06 | F179: 176 | G179: Afeganistão | H179: 4.3746 | I179: 2.92547718e-07 | K179: 176 | L179: Somália | M179: 292.9902 | N179: 1.049645988e-05 | O179: 292.9902
A180: 177 | B180: Botswana | C180: 98.1832 | D180: 7.575991814e-06 | F180: 177 | G180: Niger | H180: 3.2668 | I180: 2.184645191e-07 | K180: 177 | L180: Bahamas | M180: 280.4744 | N180: 1.004807767e-05 | O180: 280.4744
A181: 178 | B181: Jibuti | C181: 96.957 | D181: 7.481376023e-06 | F181: 178 | G181: Liechtenstein | H181: 1.8556 | I181: 1.240916988e-07 | K181: 178 | L181: São Marino | M181: 252.739 | N181: 9.05444883e-06 | O181: 187.1986
A182: 179 | B182: Centro-Africana, República | C182: 96.3624 | D182: 7.43549562e-06 | F182: 179 | G182: Lesoto | H182: 1.7136 | I182: 1.145955675e-07 | K182: 179 | L182: Maldivas | M182: 235.2806 | N182: 8.428996527e-06 | O182: 22.855
A183: 180 | B183: Nepal | C183: 77.231 | D183: 5.959282482e-06 | F183: 180 | G183: Butão | H183: 1.2178 | I183: 8.143935697e-08 | K183: 180 | L183: Bonaire, Santo Eustáquio e Saba | M183: 206.5448 | N183: 7.399528061e-06 | O183: 206.5448
A184: 181 | B184: Zimbabwe | C184: 64.9592 | D184: 5.012368383e-06 | F184: 181 | G184: Bermudas | H184: 0.8214 | I184: 5.493043835e-08 | K184: 181 | L184: Fiji, Ilhas | M184: 135.9458 | N184: 4.870298172e-06 | O184: -111.7334
A185: 182 | B185: Caimão, Ilhas | C185: 51.6906 | D185: 3.988539409e-06 | F185: 182 | G185: Nova Caledónia | H185: 0.7074 | I185: 4.730678364e-08 | K185: 182 | L185: Botswana | M185: 128.2116 | N185: 4.593218188e-06 | O185: 68.1548
A186: 183 | B186: Mongólia | C186: 37.8358 | D186: 2.919478191e-06 | F186: 183 | G186: Ruanda | H186: 0.67 | I186: 4.480568991e-08 | K186: 183 | L186: Quirguizistão | M186: 126.71 | N186: 4.539422927e-06 | O186: 91.7584
A187: 184 | B187: Turcas e Caicos, Ilhas | C187: 19.071 | D187: 1.471552566e-06 | F187: 184 | G187: Polinésia Francesa | H187: 0.4978 | I187: 3.328995886e-08 | K187: 184 | L187: Liechtenstein | M187: 121.275 | N187: 4.344712458e-06 | O187: 117.5638
A188: 185 | B188: Laos, República Democrática Popular do | C188: 15.8498 | D188: 1.222998996e-06 | F188: 185 | G188: Território Palestiniano Ocupado | H188: 0.4852 | I188: 3.244734439e-08 | K188: 185 | L188: Santa Lúcia | M188: 120.2746 | N188: 4.308872834e-06 | O188: 120.2294
A189: 186 | B189: Fiji, Ilhas | C189: 12.1062 | D189: 9.341361058e-07 | F189: 186 | G189: São Bartolomeu | H189: 0.3556 | I189: 2.378045273e-08 | K189: 186 | L189: Afeganistão | M189: 113.832 | N189: 4.078064799e-06 | O189: 105.0828
A190: 187 | B190: Anguila | C190: 10.0614 | D190: 7.763556702e-07 | F190: 187 | G190: Montenegro | H190: 0.3524 | I190: 2.356645541e-08 | K190: 187 | L190: Jibuti | M190: 104.2592 | N190: 3.73511643e-06 | O190: 89.6548
A191: 188 | B191: Malavi | C191: 9.1292 | D191: 7.044254462e-07 | F191: 188 | G191: Micronésia, Estados Federados da | H191: 0.3438 | I191: 2.29913376e-08 | K191: 188 | L191: Virgens Britânicas, Ilhas | M191: 102.596 | N191: 3.675531802e-06 | O191: 102.582
A192: 189 | B192: Brunei Darussalam | C192: 7.7238 | D192: 5.959822615e-07 | F192: 189 | G192: Trindade e Tobago | H192: 0.3238 | I192: 2.165385432e-08 | K192: 189 | L192: Nepal | M192: 88.3274 | N192: 3.164355021e-06 | O192: 66.1346
A193: 190 | B193: São Vicente e Granadinas | C193: 7.6034 | D193: 5.866919815e-07 | F193: 190 | G193: Haiti | H193: 0.282 | I193: 1.885851426e-08 | K193: 190 | L193: Tajiquistão | M193: 59.4122 | N193: 2.128459497e-06 | O193: -59.4122
A194: 191 | B194: Guam | C194: 6.6636 | D194: 5.141753279e-07 | F194: 191 | G194: Oceano Indico, Território Britânico do | H194: 0.128 | I194: 8.559892998e-09 | K194: 191 | L194: Caimão, Ilhas | M194: 51.6906 | N194: 1.851830911e-06 | O194: 51.6906
A195: 192 | B195: Territórios Franceses do Sul | C195: 6.3102 | D195: 4.8690635e-07 | F195: 192 | G195: Burundi | H195: 0.114 | I195: 7.623654701e-09 | K195: 192 | L195: Falkland Ilhas (Malvinas) | M195: 38.0622 | N195: 1.363589483e-06 | O195: -38.0622
A196: 193 | B196: Menores distantes dos Estados Unidos, lhas | C196: 4.5544 | D196: 3.514256728e-07 | F196: 193 | G196: Nauru | H196: 0.0694 | I196: 4.641066985e-09 | K196: 193 | L196: Mongólia | M196: 37.85 | N196: 1.355987355e-06 | O196: 37.8216
A197: 194 | B197: Sudão do Sul | C197: 3.771 | D197: 2.909771237e-07 | F197: 194 | G197: Vanuatu | H197: 0.065 | I197: 4.346820663e-09 | K197: 194 | L197: São Pedro e Miquelon | M197: 29.2314 | N197: 1.047223482e-06 | O197: -28.5998
A198: 195 | B198: Melilha | C198: 3.6164 | D198: 2.790479104e-07 | F198: 195 | G198: Santa Lúcia | H198: 0.0226 | I198: 1.511356107e-09 | K198: 195 | L198: Turcas e Caicos, Ilhas | M198: 19.071 | N198: 6.832241705e-07 | O198: 19.071
A199: 196 | B199: Marianas do Norte, Ilhas | C199: 2.9244 | D199: 2.256519492e-07 | F199: 196 | G199: São Vicente e Granadinas | H199: 0.0144 | I199: 9.629879622e-10 | K199: 196 | L199: Salomão, Ilhas | M199: 16.0532 | N199: 5.751106001e-07 | O199: -16.0532
A200: 197 | B200: Papuásia-Nova Guiné | C200: 2.8856 | D200: 2.226580716e-07 | F200: 197 | G200: Mongólia | H200: 0.0142 | I200: 9.496131294e-10 | K200: 197 | L200: Santa Helena | M200: 15.7338 | N200: 5.636680014e-07 | O200: -15.7338
... 58 more rows

Sheet 2AA
A1: Ranking dos parceiros comerciais de Portugal por país (média 2018-2022 em milhares de euros) produtos agrícolas e agroalimentares
A2: Exportações | F2: Importações | K2: Trocas comerciais (total e saldo)
A3: P | B3: País | C3: média quinquénio | D3: % do Total | F3: P | G3: País | H3: média quinquénio | I3: % do Total | K3: P | L3: País | M3: Total (exp+imp) | N3: % do Total | O3: Saldo (exp-imp)
A4: 1 | B4: Espanha | C4: 2415706.759 | D4: 0.3417342339 | F4: 1 | G4: Espanha | H4: 4700233.367 | I4: 0.4607579981 | K4: 1 | L4: Espanha | M4: 7115940.126 | N4: 0.4120392909 | O4: -2284526.609
A5: 2 | B5: França | C5: 675806.7388 | D5: 0.09560195886 | F5: 2 | G5: França | H5: 803086.6822 | I5: 0.07872558298 | K5: 2 | L5: França | M5: 1478893.421 | N5: 0.08563340693 | O5: -127279.9434
A6: 3 | B6: Itália | C6: 450048.5236 | D6: 0.06366542085 | F6: 3 | G6: Alemanha | H6: 693242.9014 | I6: 0.06795773454 | K6: 3 | L6: Alemanha | M6: 953060.8432 | N6: 0.05518575298 | O6: -433424.9596
A7: 4 | B7: Brasil | C7: 371201.5514 | D7: 0.05251145543 | F7: 4 | G7: Países Baixos | H7: 600479.2596 | I7: 0.05886423076 | K7: 4 | L7: Países Baixos | M7: 932127.81 | N7: 0.05397365282 | O7: -268830.7092
A8: 5 | B8: Países Baixos | C8: 331648.5504 | D8: 0.0469161511 | F8: 5 | G8: Brasil | H8: 551829.2644 | I8: 0.05409513258 | K8: 5 | L8: Brasil | M8: 923030.8158 | N8: 0.05344690316 | O8: -180627.713
A9: 6 | B9: Angola | C9: 270788.7526 | D9: 0.03830671359 | F9: 6 | G9: Itália | H9: 327446.3636 | I9: 0.03209915746 | K9: 6 | L9: Itália | M9: 777494.8872 | N9: 0.04501983383 | O9: 122602.16 | P9: Nota: Nesta listagem, o Reino Unido passa a ser constituído por três componentes: Reino Unido [até 2020] ; Reino Unido (sem Irlanda do Norte) pós-2020 e Reino Unido (Irlanda do Norte) pós-2020. Estas componentes são calculadas igualmente como média do quinquénio, embora a primeira corresponda apenas a 2018-2020 e as duas últimas a 2021-2022.
A10: 7 | B10: Alemanha | C10: 259817.9418 | D10: 0.03675474475 | F10: 7 | G10: Bélgica | H10: 257333.6916 | I10: 0.02522609992 | K10: 7 | L10: Bélgica | M10: 424096.2578 | N10: 0.02455674419 | O10: -90571.1254
A11: 8 | B11: Reino Unido | C11: 202835.6198 | D11: 0.02869382838 | F11: 8 | G11: Estados Unidos | H11: 216724.4778 | I11: 0.02124522949 | K11: 8 | L11: Estados Unidos | M11: 400307.8654 | N11: 0.02317930816 | O11: -33141.0902
A12: 9 | B12: Estados Unidos | C12: 183583.3876 | D12: 0.02597034102 | F12: 9 | G12: Ucrânia | H12: 191922.8274 | I12: 0.01881395472 | K12: 9 | L12: Polónia | M12: 317334.5188 | N12: 0.01837484405 | O12: -48783.4444
A13: 10 | B13: Israel | C13: 169488.4306 | D13: 0.02397641965 | F13: 10 | G13: Polónia | H13: 183058.9816 | I13: 0.017945043 | K13: 10 | L13: Reino Unido | M13: 313115.4092 | N13: 0.01813054198 | O13: 92555.8304
A14: 11 | B14: Bélgica | C14: 166762.5662 | D14: 0.02359080944 | F14: 11 | G14: Roménia | H14: 135395.1758 | I14: 0.01327261974 | K14: 11 | L14: Angola | M14: 277910.725 | N14: 0.01609206036 | O14: 263666.7802
A15: 12 | B15: Reino Unido (sem Irlanda do Norte) pós 2020 | C15: 153037.8236 | D15: 0.02164925988 | F15: 12 | G15: África do Sul | H15: 112521.5396 | I15: 0.01103034579 | K15: 12 | L15: Reino Unido (sem Irlanda do Norte) pós 2020 | M15: 202616.3834 | N15: 0.01173223909 | O15: 103459.2638
A16: 13 | B16: Polónia | C16: 134275.5372 | D16: 0.01899508195 | F16: 13 | G16: Reino Unido | H16: 110279.7894 | I16: 0.01081058982 | K16: 13 | L16: Ucrânia | M16: 198678.0056 | N16: 0.01150419243 | O16: -185167.6492
A17: 14 | B17: Suíça | C17: 91992.068 | D17: 0.01301351614 | F17: 14 | G17: Irlanda | H17: 108062.8466 | I17: 0.01059326569 | K17: 14 | L17: Canadá | M17: 175329.8698 | N17: 0.01015224889 | O17: -30892.3678
A18: 15 | B18: Cabo Verde | C18: 85414.0192 | D18: 0.0120829626 | F18: 15 | G18: Canadá | H18: 103111.1188 | I18: 0.01010785401 | K18: 15 | L18: Israel | M18: 174655.5912 | N18: 0.01011320566 | O18: 164321.27
A19: 16 | B19: Canadá | C19: 72218.751 | D19: 0.01021631432 | F19: 16 | G19: Argentina | H19: 72787.4116 | I19: 0.007135258919 | K19: 16 | L19: Roménia | M19: 151197.393 | N19: 0.008754889093 | O19: -119592.9586
A20: 17 | B20: China, República Popular da | C20: 72213.4462 | D20: 0.01021556388 | F20: 17 | G20: Dinamarca | H20: 70233.1534 | I20: 0.006884868183 | K20: 17 | L20: Irlanda | M20: 134807.959 | N20: 0.007805880158 | O20: -81317.7342
A21: 18 | B21: Japão | C21: 54923.0146 | D21: 0.007769599622 | F21: 18 | G21: Costa Rica | H21: 69966.4334 | I21: 0.006858721955 | K21: 18 | L21: África do Sul | M21: 134356.7194 | N21: 0.007779751714 | O21: -90686.3598
A22: 19 | B22: Suécia | C22: 50793.0088 | D22: 0.007185354716 | F22: 19 | G22: Reino Unido (sem Irlanda do Norte) pós 2020 | H22: 49578.5598 | I22: 0.004860124206 | K22: 19 | L22: Dinamarca | M22: 117665.3674 | N22: 0.006813260608 | O22: -22800.9394
A23: 20 | B23: Rússia, Federação da | C23: 48391.7838 | D23: 0.006845669122 | F23: 20 | G23: China, República Popular da | H23: 45047.8158 | I23: 0.004415981039 | K23: 20 | L23: China, República Popular da | M23: 117261.262 | N23: 0.006789861408 | O23: 27165.6304
A24: 21 | B24: Dinamarca | C24: 47432.214 | D24: 0.006709925059 | F24: 21 | G24: Bulgária | H24: 43907.4694 | I24: 0.004304194307 | K24: 21 | L24: Suíça | M24: 94990.5356 | N24: 0.005500303858 | O24: 88993.6004
A25: 22 | B25: Luxemburgo | C25: 45125.6972 | D25: 0.006383637214 | F25: 22 | G25: Cuba | H25: 35799.7426 | I25: 0.00350940399 | K25: 22 | L25: Cabo Verde | M25: 85541.4296 | N25: 0.004953165621 | O25: 85286.6088
A26: 23 | B26: Marrocos | C26: 40786.9258 | D26: 0.005769859604 | F26: 23 | G26: Grécia | H26: 30645.8102 | I26: 0.003004170443 | K26: 23 | L26: Argentina | M26: 73024.74 | N26: 0.004228402931 | O26: -72550.0832
A27: 24 | B27: Guiné-Bissau | C27: 30105.237 | D27: 0.004258790959 | F27: 24 | G27: Vietname | H27: 28845.3448 | I27: 0.002827673072 | K27: 24 | L27: Costa Rica | M27: 71166.1566 | N27: 0.004120784068 | O27: -68766.7102
A28: 25 | B28: Irlanda | C28: 26745.1124 | D28: 0.00378345611 | F28: 25 | G28: Colômbia | H28: 28227.4602 | I28: 0.002767102617 | K28: 25 | L28: Japão | M28: 68496.2538 | N28: 0.003966186807 | O28: 41349.7754
A29: 26 | B29: São Tomé e Príncipe | C29: 25259.196 | D29: 0.003573253237 | F29: 26 | G29: Guiana | H29: 28025.2924 | I29: 0.002747284361 | K29: 26 | L29: Suécia | M29: 64449.5152 | N29: 0.003731865653 | O29: 37136.5024
A30: 27 | B30: Arábia Saudita | C30: 25195.0996 | D30: 0.003564185938 | F30: 27 | G30: Chile | H30: 24583.4362 | I30: 0.002409883503 | K30: 27 | L30: Rússia, Federação da | M30: 60550.976 | N30: 0.003506125793 | O30: 36232.5916
A31: 28 | B31: Moçambique | C31: 25036.1622 | D31: 0.003541702104 | F31: 28 | G31: Áustria | H31: 23718.0114 | I31: 0.002325046992 | K31: 28 | L31: Luxemburgo | M31: 53191.4828 | N31: 0.003079983877 | O31: 37059.9116
A32: 29 | B32: Grécia | C32: 22444.1484 | D32: 0.003175026866 | F32: 29 | G32: Uruguai | H32: 22544.1794 | I32: 0.002209977709 | K32: 29 | L32: Grécia | M32: 53089.9586 | N32: 0.003074105249 | O32: -8201.6618
A33: 30 | B33: África do Sul | C33: 21835.1798 | D33: 0.003088880062 | F33: 30 | G33: Checa, República | H33: 21986.3926 | I33: 0.002155298567 | K33: 30 | L33: Bulgária | M33: 52078.8802 | N33: 0.003015560065 | O33: -35736.0586
A34: 31 | B34: Finlândia | C34: 19871.7108 | D34: 0.002811120945 | F34: 31 | G34: Costa do Marfim | H34: 21706.691 | I34: 0.002127879769 | K34: 31 | L34: Marrocos | M34: 50674.6404 | N34: 0.002934249379 | O34: 30899.2112
A35: 32 | B35: Checa, República | C35: 18184.9724 | D35: 0.002572509097 | F35: 32 | G35: Índia | H35: 20830.7032 | I35: 0.00204200778 | K35: 32 | L35: Checa, República | M35: 40171.365 | N35: 0.002326070829 | O35: -3801.4202
A36: 33 | B36: Jordânia | C36: 17519.4376 | D36: 0.002478360242 | F36: 33 | G36: Paraguai | H36: 18542.9402 | I36: 0.001817741235 | K36: 33 | L36: Cuba | M36: 38669.2808 | N36: 0.00223909459 | O36: -32930.2044
A37: 34 | B37: Noruega | C37: 16995.9884 | D37: 0.002404311308 | F37: 34 | G37: Turquia | H37: 17991.0046 | I37: 0.001763635678 | K37: 34 | L37: Áustria | M37: 38078.486 | N37: 0.002204885383 | O37: -9357.5368
A38: 35 | B38: Roménia | C38: 15802.2172 | D38: 0.002235436304 | F38: 35 | G38: Hungria | H38: 16792.9934 | I38: 0.001646196139 | K38: 35 | L38: Moçambique | M38: 35149.7218 | N38: 0.002035299088 | O38: 14922.6026
A39: 36 | B39: Austrália | C39: 14444.222 | D39: 0.002043329606 | F39: 36 | G39: Uganda | H39: 16711.9036 | I39: 0.001638247007 | K39: 36 | L39: Colômbia | M39: 34588.8908 | N39: 0.002002824895 | O39: -21866.0296
A40: 37 | B40: Áustria | C40: 14360.4746 | D40: 0.002031482409 | F40: 37 | G40: Suécia | H40: 13656.5064 | I40: 0.001338730241 | K40: 37 | L40: Vietname | M40: 30879.9888 | N40: 0.001788065732 | O40: -26810.7008
A41: 38 | B41: Coreia, República da | C41: 13720.4568 | D41: 0.001940943277 | F41: 38 | G41: Japão | H41: 13573.2392 | I41: 0.001330567662 | K41: 38 | L41: Guiné-Bissau | M41: 30466.6832 | N41: 0.001764133807 | O41: 29743.7908
A42: 39 | B42: Iraque | C42: 12397.914 | D42: 0.001753851798 | F42: 39 | G42: Suazilândia | H42: 13238.5804 | I42: 0.001297761478 | K42: 39 | L42: Chile | M42: 30213.2108 | N42: 0.001749456816 | O42: -18953.6616
A43: 40 | B43: Emirados Árabes Unidos | C43: 11828.644 | D43: 0.001673320895 | F43: 40 | G43: Indonésia | H43: 13212.7406 | I43: 0.001295228435 | K43: 40 | L43: Guiana | M43: 28043.5358 | N43: 0.001623824597 | O43: -28007.049
A44: 41 | B44: Argélia | C44: 11256.5744 | D44: 0.001592393951 | F44: 41 | G44: México | H44: 13063.7214 | I44: 0.001280620269 | K44: 41 | L44: Hungria | M44: 28003.0576 | N44: 0.001621480759 | O44: -5582.9292
A45: 42 | B45: Macau | C45: 11226.3746 | D45: 0.001588121783 | F45: 42 | G45: Austrália | H45: 12930.0706 | I45: 0.001267518648 | K45: 42 | L45: Turquia | M45: 27957.3216 | N45: 0.001618832475 | O45: -8024.6876
A46: 43 | B46: Hungria | C46: 11210.0642 | D46: 0.001585814457 | F46: 43 | G46: Rússia, Federação da | H46: 12159.1922 | I46: 0.001191950403 | K46: 43 | L46: Finlândia | M46: 27396.6714 | N46: 0.001586368752 | O46: 12346.7502
A47: 44 | B47: Nigéria | C47: 10936.4444 | D47: 0.001547107254 | F47: 44 | G47: Moldava, República de | H47: 11903.439 | I47: 0.001166879237 | K47: 44 | L47: Austrália | M47: 27374.2926 | N47: 0.001585072937 | O47: 1514.1514
A48: 45 | B48: Turquia | C48: 9966.317 | D48: 0.001409869676 | F48: 45 | G48: Lituânia | H48: 11893.779 | I48: 0.001165932279 | K48: 45 | L48: Costa do Marfim | M48: 27312.2412 | N48: 0.001581479931 | O48: -16101.1408
A49: 46 | B49: Território Palestiniano Ocupado | C49: 9369.3582 | D49: 0.001325421819 | F49: 46 | G49: Peru | H49: 11310.0138 | I49: 0.001108706507 | K49: 46 | L49: São Tomé e Príncipe | M49: 26312.808 | N49: 0.001523609046 | O49: 24205.584
A50: 47 | B50: Eslováquia | C50: 9079.0046 | D50: 0.001284347395 | F50: 47 | G50: Paquistão | H50: 10304.445 | I50: 0.001010131855 | K50: 47 | L50: Arábia Saudita | M50: 25220.0634 | N50: 0.001460335087 | O50: 25170.1358
A51: 48 | B51: Senegal | C51: 8493.732 | D51: 0.001201552708 | F51: 48 | G51: Tailândia | H51: 10200.8142 | I51: 0.0009999730572 | K51: 48 | L51: Uruguai | M51: 24295.8202 | N51: 0.001406817982 | O51: -20792.5386
A52: 49 | B52: Bulgária | C52: 8171.4108 | D52: 0.001155956036 | F52: 49 | G52: Moçambique | H52: 10113.5596 | I52: 0.0009914195979 | K52: 49 | L52: Índia | M52: 23845.568 | N52: 0.001380746712 | O52: -17815.8384
A53: 50 | B53: Líbia, Jamahira Árabe da | C53: 7994.4952 | D53: 0.001130928944 | F53: 50 | G53: Marrocos | H53: 9887.7146 | I53: 0.000969280295 | K53: 50 | L53: Paraguai | M53: 19187.5668 | N53: 0.001111031189 | O53: -17898.3136
A54: 51 | B54: Gibraltar | C54: 7555.2434 | D54: 0.001068790865 | F54: 51 | G54: Egito | H54: 9790.5476 | I54: 0.0009597551355 | K54: 51 | L54: México | M54: 18719.3066 | N54: 0.001083917189 | O54: -7408.1362
A55: 52 | B55: Kuwait | C55: 7350.4748 | D55: 0.00103982359 | F55: 52 | G55: Sérvia | H55: 8809.786 | I55: 0.0008636123026 | K55: 52 | L55: Noruega | M55: 18007.7536 | N55: 0.001042715635 | O55: 15984.2232
A56: 53 | B56: Ucrânia | C56: 6755.1782 | D56: 0.0009556108741 | F56: 53 | G56: Equador | H56: 8208.356 | I56: 0.0008046548719 | K56: 53 | L56: Jordânia | M56: 17549.35 | N56: 0.001016172368 | O56: 17489.5252
A57: 54 | B57: Colômbia | C57: 6361.4306 | D57: 0.0008999099766 | F57: 54 | G57: Luxemburgo | H57: 8065.7856 | I57: 0.000790678874 | K57: 54 | L57: Uganda | M57: 17196.9522 | N57: 0.0009957672303 | O57: -16226.855
A58: 55 | B58: Letónia | C58: 5847.3278 | D58: 0.0008271832163 | F58: 55 | G58: Nova Zelânda | H58: 7880.7508 | I58: 0.0007725401439 | K58: 55 | L58: Lituânia | M58: 16927.7228 | N58: 0.0009801778508 | O58: -6859.8352
A59: 56 | B59: HongKong | C59: 5831.0346 | D59: 0.0008248783238 | F59: 56 | G59: Finlândia | H59: 7524.9606 | I59: 0.0007376624757 | K59: 56 | L59: Suazilândia | M59: 15229.1586 | N59: 0.0008818246921 | O59: -11248.0022
A60: 57 | B60: Maurícias | C60: 5663.2906 | D60: 0.0008011486774 | F60: 57 | G60: Letónia | H60: 7523.6884 | I60: 0.0007375377635 | K60: 57 | L60: Coreia, República da | M60: 14661.023 | N60: 0.0008489275365 | O60: 12779.8906
A61: 58 | B61: México | C61: 5655.5852 | D61: 0.0008000586448 | F61: 58 | G61: Malásia | H61: 7403.8212 | I61: 0.0007257873318 | K61: 58 | L61: Indonésia | M61: 14350.1382 | N61: 0.000830926155 | O61: -12075.343
A62: 59 | B62: Chile | C62: 5629.7746 | D62: 0.0007964073881 | F62: 59 | G62: Angola | H62: 7121.9724 | I62: 0.0006981580464 | K62: 59 | L62: Letónia | M62: 13371.0162 | N62: 0.0007742313645 | O62: -1676.3606
A63: 60 | B63: Costa do Marfim | C63: 5605.5502 | D63: 0.0007929805207 | F63: 60 | G63: Camarões | H63: 6330.963 | I63: 0.0006206163843 | K63: 60 | L63: Tailândia | M63: 13287.6996 | N63: 0.0007694070248 | O63: -7113.9288
A64: 61 | B64: Andorra | C64: 5268.3636 | D64: 0.0007452809379 | F64: 61 | G64: Honduras | H64: 6193.8364 | I64: 0.0006071740352 | K64: 61 | L64: Peru | M64: 13096.7276 | N64: 0.0007583490386 | O64: -9523.3
A65: 62 | B65: Lituânia | C65: 5033.9438 | D65: 0.0007121191022 | F65: 62 | G65: Etiópia | H65: 5332.904 | I65: 0.0005227779089 | K65: 62 | L65: Eslováquia | M65: 12639.492 | N65: 0.0007318734038 | O65: 5518.5172
A66: 63 | B66: Malta | C66: 4911.2352 | D66: 0.0006947603192 | F66: 63 | G66: Israel | H66: 5167.1606 | I66: 0.0005065302907 | K66: 63 | L66: Iraque | M66: 12410.178 | N66: 0.0007185952738 | O66: 12385.65
A67: 64 | B67: Estónia | C67: 4891.9612 | D67: 0.0006920337525 | F67: 64 | G67: Belize | H67: 5153.7922 | I67: 0.0005052198032 | K67: 64 | L67: Emirados Árabes Unidos | M67: 12284.869 | N67: 0.0007113394185 | O67: 11372.419
A68: 65 | B68: Síria, República Árabe da | C68: 4399.3294 | D68: 0.000622344354 | F68: 65 | G68: Camboja | H68: 4964.3942 | I68: 0.0004866533541 | K68: 65 | L68: Moldava, República de | M68: 12104.827 | N68: 0.0007009143198 | O68: -11702.051
A69: 66 | B69: Chipre | C69: 4051.8682 | D69: 0.0005731912908 | F69: 66 | G69: Zimbabwe | H69: 4709.0808 | I69: 0.0004616253009 | K69: 66 | L69: Argélia | M69: 11803.9212 | N69: 0.0006834907595 | O69: 10709.2276
A70: 67 | B70: Omã | C70: 3805.6814 | D70: 0.0005383648545 | F70: 67 | G70: Guatemala | H70: 4635.2426 | I70: 0.0004543870345 | K70: 67 | L70: Sérvia | M70: 11344.2962 | N70: 0.0006568767695 | O70: -6275.2758
A71: 68 | B71: Eslovénia | C71: 3315.0192 | D71: 0.0004689540826 | F71: 68 | G71: Suriname | H71: 4613.819 | I71: 0.0004522869058 | K71: 68 | L71: Egito | M71: 11329.12 | N71: 0.0006559980113 | O71: -8251.9752
A72: 69 | B72: Mali | C72: 3288.1148 | D72: 0.0004651480931 | F72: 69 | G72: Macedónia, Antiga República jugoslava da | H72: 4601.7574 | I72: 0.0004511045222 | K72: 69 | L72: Macau | M72: 11244.0184 | N72: 0.0006510703135 | O72: 11208.7308
A73: 70 | B73: Tailândia | C73: 3086.8854 | D73: 0.0004366814861 | F73: 70 | G73: Tanzânia, República Unida da | H73: 4539.7292 | I73: 0.0004450239753 | K73: 70 | L73: Nigéria | M73: 11134.6158 | N73: 0.0006447354977 | O73: 10738.273
A74: 71 | B74: Índia | C74: 3014.8648 | D74: 0.0004264932029 | F74: 71 | G74: Eslovénia | H74: 4539.0796 | I74: 0.0004449602959 | K74: 71 | L74: Paquistão | M74: 10571.2956 | N74: 0.0006121171716 | O74: -10037.5944
A75: 72 | B75: Singapura | C75: 2938.7244 | D75: 0.0004157221186 | F75: 72 | G75: Filipinas | H75: 4493.8362 | I75: 0.0004405251419 | K75: 72 | L75: Nova Zelânda | M75: 10270.7832 | N75: 0.0005947163905 | O75: -5490.7184
A76: 73 | B76: Cuba | C76: 2869.5382 | D76: 0.0004059347994 | F76: 73 | G76: Tunísia | H76: 4123.8374 | I76: 0.0004042546224 | K76: 73 | L76: Território Palestiniano Ocupado | M76: 9369.8434 | N76: 0.000542548639 | O76: 9368.873
A77: 74 | B77: Gana | C77: 2746.7854 | D77: 0.0003885697637 | F77: 74 | G77: Estónia | H77: 4040.7446 | I77: 0.0003961091391 | K77: 74 | L77: Senegal | M77: 9057.1362 | N77: 0.0005244417338 | O77: 7930.3278
A78: 75 | B78: Taiwan | C78: 2744.6238 | D78: 0.0003882639763 | F78: 75 | G78: Mali | H78: 3761.0172 | I78: 0.000368687812 | K78: 75 | L78: Equador | M78: 9035.7916 | N78: 0.0005232058024 | O78: -7380.9204
A79: 76 | B79: Sérvia | C79: 2534.5102 | D79: 0.0003585405797 | F79: 76 | G79: Eslováquia | H79: 3560.4874 | I79: 0.0003490301265 | K79: 76 | L79: Estónia | M79: 8932.7058 | N79: 0.0005172367528 | O79: 851.2166
A80: 77 | B80: Líbano | C80: 2490.8708 | D80: 0.0003523671992 | F80: 77 | G80: Myanmar | H80: 3336.3804 | I80: 0.0003270611976 | K80: 77 | L80: Malásia | M80: 8922.5932 | N80: 0.0005166511958 | O80: -5885.0492
A81: 78 | B81: Timor-Leste | C81: 2471.9198 | D81: 0.0003496863252 | F81: 78 | G81: Quénia | H81: 3256.788 | I81: 0.0003192588542 | K81: 78 | L81: Camarões | M81: 8612.0928 | N81: 0.0004986720725 | O81: -4049.8332
A82: 79 | B82: Belarus | C82: 2455.9286 | D82: 0.0003474241547 | F82: 79 | G82: Malavi | H82: 3254.1854 | I82: 0.0003190037245 | K82: 79 | L82: Kuwait | M82: 8534.0068 | N82: 0.0004941506039 | O82: 6166.9428
A83: 80 | B83: Nova Zelânda | C83: 2390.0324 | D83: 0.0003381022503 | F83: 80 | G83: Nicarágua | H83: 3164.5168 | I83: 0.0003102136238 | K83: 80 | L83: Líbia, Jamahira Árabe da | M83: 8000.447 | N83: 0.0004632555151 | O83: 7988.5434
A84: 81 | B84: Filipinas | C84: 2342.9576 | D84: 0.0003314428863 | F84: 81 | G84: Chipre | H84: 3103.6452 | I84: 0.000304246457 | K84: 81 | L84: Eslovénia | M84: 7854.0988 | N84: 0.0004547814123 | O84: -1224.0604
A85: 82 | B85: Guiné | C85: 2294.4076 | D85: 0.0003245748354 | F85: 82 | G85: Sri Lanca | H85: 3086.3876 | I85: 0.0003025547161 | K85: 82 | L85: Gibraltar | M85: 7555.2434 | N85: 0.0004374765776 | O85: 7555.2434
A86: 83 | B86: Camarões | C86: 2281.1298 | D86: 0.0003226965118 | F86: 83 | G86: Suíça | H86: 2998.4676 | I86: 0.0002939360284 | K86: 83 | L86: Maurícias | M86: 7215.0914 | N86: 0.0004177805169 | O86: 4111.4898
A87: 84 | B87: Irão, República Islâmica do | C87: 2234.7082 | D87: 0.0003161295517 | F87: 84 | G87: Taiwan | H87: 2719.0514 | I87: 0.0002665452078 | K87: 84 | L87: Chipre | M87: 7155.5134 | N87: 0.00041433073 | O87: 948.223
A88: 85 | B88: Congo | C88: 2180.7492 | D88: 0.000308496325 | F88: 85 | G88: Reino Unido (Irlanda do Norte) pós-2020 | H88: 2486.6052 | I88: 0.0002437587976 | K88: 85 | L88: Mali | M88: 7049.132 | N88: 0.0004081708529 | O88: -472.9024
A89: 86 | B89: Seychelles | C89: 2103.9052 | D89: 0.0002976257069 | F89: 86 | G89: Dominicana, República | H89: 2224.7388 | I89: 0.0002180883619 | K89: 86 | L89: HongKong | M89: 7034.0506 | N89: 0.000407297584 | O89: 4628.0186
A90: 87 | B90: Gabão | C90: 2079.6516 | D90: 0.0002941947088 | F90: 87 | G90: Serra Leoa | H90: 1997.841 | I90: 0.0001958458544 | K90: 87 | L90: Honduras | M90: 7007.5386 | N90: 0.000405762441 | O90: -5380.1342
A91: 88 | B91: Venezuela | C91: 2058.4802 | D91: 0.0002911997293 | F91: 88 | G91: Benim | H91: 1817.5436 | I91: 0.0001781715258 | K91: 88 | L91: Filipinas | M91: 6836.7938 | N91: 0.0003958756847 | O91: -2150.8786
A92: 89 | B92: Vietname | C92: 2034.644 | D92: 0.000287827778 | F92: 89 | G92: Croácia | H92: 1794.8456 | I92: 0.0001759464692 | K92: 89 | L92: Etiópia | M92: 6077.3128 | N92: 0.0003518989216 | O92: -4588.4952
A93: 90 | B93: Suazilândia | C93: 1990.5782 | D93: 0.0002815940775 | F93: 90 | G93: Burquina Faso | H93: 1725.7566 | I93: 0.000169173761 | K93: 90 | L93: Taiwan | M93: 5463.6752 | N93: 0.0003163670317 | O93: 25.5724
A94: 91 | B94: Sudão | C94: 1865.0268 | D94: 0.0002638331422 | F94: 91 | G94: Gana | H94: 1658.8832 | I94: 0.0001626182452 | K94: 91 | L94: Malta | M94: 5451.155 | N94: 0.0003156420657 | O94: 4371.3154
A95: 92 | B95: Burquina Faso | C95: 1848.8938 | D95: 0.0002615509122 | F95: 92 | G95: Laos, República Democrática Popular do | H95: 1570.3752 | I95: 0.0001539419167 | K95: 92 | L95: Camboja | M95: 5365.826 | N95: 0.0003107012005 | O95: -4562.9624
A96: 93 | B96: Guiné Equatorial | C96: 1818.0792 | D96: 0.0002571917723 | F96: 93 | G96: Maurícias | H96: 1551.8008 | I96: 0.0001521210915 | K96: 93 | L96: Síria, República Árabe da | M96: 5349.1634 | N96: 0.0003097363743 | O96: 3449.4954
A97: 94 | B97: Peru | C97: 1786.7138 | D97: 0.0002527547143 | F97: 94 | G97: Madagáscar | H97: 1535.4408 | I97: 0.0001505173411 | K97: 94 | L97: Andorra | M97: 5273.09 | N97: 0.0003053314426 | O97: 5263.6372
A98: 95 | B98: Croácia | C98: 1762.667 | D98: 0.0002493529708 | F98: 95 | G98: Panamá | H98: 1513.6732 | I98: 0.0001483834905 | K98: 95 | L98: Belize | M98: 5155.9728 | N98: 0.000298549923 | O98: -5151.6116
A99: 96 | B99: Uruguai | C99: 1751.6408 | D99: 0.0002477931664 | F99: 96 | G99: Congo, República Democrática do | H99: 1226.6954 | I99: 0.0001202514158 | K99: 96 | L99: Guatemala | M99: 5127.1054 | N99: 0.0002968783936 | O99: -4143.3798
A100: 97 | B100: Dominicana, República | C100: 1708.9932 | D100: 0.0002417600894 | F100: 97 | G100: HongKong | H100: 1203.016 | I100: 0.0001179301538 | K100: 97 | L100: Tanzânia, República Unida da | M100: 4910.617 | N100: 0.0002843429133 | O100: -4168.8414
A101: 98 | B101: Benim | C101: 1572.4166 | D101: 0.0002224394912 | F101: 98 | G101: Kuwait | H101: 1183.532 | I101: 0.0001160201616 | K101: 98 | L101: Macedónia, Antiga República jugoslava da | M101: 4874.4688 | N101: 0.0002822497987 | O101: -4329.046
A102: 99 | B102: Bangladesh | C102: 1558.9346 | D102: 0.0002205322808 | F102: 99 | G102: Togo | H102: 1123.3282 | I102: 0.0001101184584 | K102: 99 | L102: Tunísia | M102: 4849.4484 | N102: 0.0002808010248 | O102: -3398.2264
A103: 100 | B103: Egito | C103: 1538.5724 | D103: 0.0002176517736 | F103: 100 | G103: Singapura | H103: 1066.466 | I103: 0.0001045443281 | K103: 100 | L103: Zimbabwe | M103: 4772.3634 | N103: 0.0002763375178 | O103: -4645.7982
A104: 101 | B104: Malásia | C104: 1518.772 | D104: 0.0002148507405 | F104: 101 | G104: São Tomé e Príncipe | H104: 1053.612 | I104: 0.0001032842665 | K104: 101 | L104: Suriname | M104: 4769.9158 | N104: 0.0002761957927 | O104: -4457.7222
A105: 102 | B105: Catar | C105: 1515.1716 | D105: 0.0002143414155 | F105: 102 | G105: Noruega | H105: 1011.7652 | I105: 9.918207707e-05 | K105: 102 | L105: Gana | M105: 4405.6686 | N105: 0.0002551045306 | O105: 1087.9022
A106: 103 | B106: Geórgia | C106: 1344.215 | D106: 0.0001901573035 | F106: 103 | G106: Síria, República Árabe da | H106: 949.834 | I106: 9.3111039e-05 | K106: 103 | L106: Omã | M106: 4283.851 | N106: 0.0002480508404 | O106: 3327.5118
A107: 104 | B107: Albânia | C107: 1266.1722 | D107: 0.0001791170991 | F107: 104 | G107: Coreia, República da | H107: 940.5662 | I107: 9.220252816e-05 | K107: 104 | L107: Singapura | M107: 4005.1904 | N107: 0.0002319153595 | O107: 1872.2584
A108: 105 | B108: Reino Unido (Irlanda do Norte) pós-2020 | C108: 1227.8066 | D108: 0.0001736897686 | F108: 105 | G108: El Salvador | H108: 728.093 | I108: 7.137404612e-05 | K108: 105 | L108: Dominicana, República | M108: 3933.732 | N108: 0.0002277776534 | O108: -515.7456
A109: 106 | B109: Costa Rica | C109: 1199.7232 | D109: 0.0001697169937 | F109: 106 | G109: Turquemenistão | H109: 720.6558 | I109: 7.06449867e-05 | K109: 106 | L109: Myanmar | M109: 3786.5898 | N109: 0.000219257575 | O109: -2886.171
A110: 107 | B110: Indonésia | C110: 1137.3976 | D110: 0.0001609001987 | F110: 107 | G110: Chade | H110: 675.9004 | I110: 6.625767082e-05 | K110: 107 | L110: Reino Unido (Irlanda do Norte) pós-2020 | M110: 3714.4118 | N110: 0.0002150782015 | O110: -1258.7986
A111: 108 | B111: Islândia | C111: 1133.5366 | D111: 0.0001603540083 | F111: 108 | G111: Timor-Leste | H111: 614.309 | I111: 6.021994291e-05 | K111: 108 | L111: Quénia | M111: 3707.2604 | N111: 0.0002146641089 | O111: -2806.3156
A112: 109 | B112: Congo, República Democrática do | C112: 1102.9278 | D112: 0.0001560239816 | F112: 109 | G112: Senegal | H112: 563.4042 | I112: 5.522980904e-05 | K112: 109 | L112: Nicarágua | M112: 3581.5684 | N112: 0.0002073860766 | O112: -2747.4652
A113: 110 | B113: Togo | C113: 886.836 | D113: 0.0001254548881 | F113: 110 | G113: Argélia | H113: 547.3468 | I113: 5.36557222e-05 | K113: 110 | L113: Burquina Faso | M113: 3574.6504 | N113: 0.0002069854987 | O113: 123.1372
A114: 111 | B114: Panamá | C114: 853.2114 | D114: 0.0001206982359 | F114: 111 | G114: Malta | H114: 539.9198 | I114: 5.292766268e-05 | K114: 111 | L114: Croácia | M114: 3557.5126 | N114: 0.0002059931566 | O114: -32.1786
A115: 112 | B115: Equador | C115: 827.4356 | D115: 0.000117051902 | F115: 112 | G115: Líbano | H115: 532.182 | I115: 5.216913582e-05 | K115: 112 | L115: Sri Lanca | M115: 3479.4264 | N115: 0.0002014716764 | O115: -2693.3488
A116: 113 | B116: Ruanda | C116: 825.8566 | D116: 0.0001168285312 | F116: 113 | G116: Omã | H116: 478.1696 | I116: 4.687436781e-05 | K116: 113 | L116: Benim | M116: 3389.9602 | N116: 0.0001962912521 | O116: -245.127
A117: 114 | B117: Honduras | C117: 813.7022 | D117: 0.0001151091278 | F117: 114 | G117: Emirados Árabes Unidos | H117: 456.225 | I117: 4.472316612e-05 | K117: 114 | L117: Malavi | M117: 3260.7888 | N117: 0.0001888117496 | O117: -3247.582
A118: 115 | B118: Bermudas | C118: 793.1712 | D118: 0.0001122047415 | F118: 115 | G118: Belarus | H118: 370.985 | I118: 3.636719553e-05 | K118: 115 | L118: Timor-Leste | M118: 3086.2288 | N118: 0.000178704079 | O118: 1857.6108
A119: 116 | B119: Etiópia | C119: 744.4088 | D119: 0.0001053066437 | F119: 116 | G119: Guiné-Bissau | H119: 361.4462 | I119: 3.54321189e-05 | K119: 116 | L119: Líbano | M119: 3023.0528 | N119: 0.0001750459546 | O119: 1958.6888
A120: 117 | B120: Tunísia | C120: 725.611 | D120: 0.0001026474419 | F120: 117 | G120: Usbequistão | H120: 308.3676 | I120: 3.022889013e-05 | K120: 117 | L120: Belarus | M120: 2826.9136 | N120: 0.0001636887684 | O120: 2084.9436
A121: 118 | B121: Burundi | C121: 677.0954 | D121: 9.578425733e-05 | F121: 118 | G121: Guiné | H121: 302.1342 | I121: 2.961783773e-05 | K121: 118 | L121: Guiné | M121: 2596.5418 | N121: 0.0001503493879 | O121: 1992.2734
A122: 119 | B122: Iémen | C122: 670.7886 | D122: 9.489207559e-05 | F122: 119 | G122: Geórgia | H122: 294.6596 | I122: 2.888511204e-05 | K122: 119 | L122: Serra Leoa | M122: 2499.2974 | N122: 0.0001447185769 | O122: -1496.3846
A123: 120 | B123: Paraguai | C123: 644.6266 | D123: 9.119110857e-05 | F123: 120 | G123: Bolívia | H123: 281.7088 | I123: 2.761556131e-05 | K123: 120 | L123: Irão, República Islâmica do | M123: 2440.2744 | N123: 0.0001413009266 | O123: 2029.142
A124: 121 | B124: Namíbia | C124: 633.7298 | D124: 8.964960955e-05 | F124: 121 | G124: Bangladesh | H124: 280.8088 | I124: 2.752733544e-05 | K124: 121 | L124: Congo | M124: 2380.0768 | N124: 0.0001378152626 | O124: 1981.4216
A125: 122 | B125: Azerbaijão | C125: 594.9756 | D125: 8.416730637e-05 | F125: 122 | G125: Irão, República Islâmica do | H125: 205.5662 | I125: 2.015139747e-05 | K125: 122 | L125: Panamá | M125: 2366.8846 | N125: 0.0001370513853 | O125: -660.4618
A126: 123 | B126: Arménia | C126: 559.6906 | D126: 7.917576822e-05 | F126: 123 | G126: Congo | H126: 199.3276 | I126: 1.953983532e-05 | K126: 123 | L126: Congo, República Democrática do | M126: 2329.6232 | N126: 0.0001348938123 | O126: -123.7676
A127: 124 | B127: Cazaquistão | C127: 531.8816 | D127: 7.524181089e-05 | F127: 124 | G127: Zâmbia | H127: 199.294 | I127: 1.953654155e-05 | K127: 124 | L127: Venezuela | M127: 2213.4414 | N127: 0.0001281664557 | O127: 1903.519
A128: 125 | B128: Aruba | C128: 522.985 | D128: 7.398326708e-05 | F128: 125 | G128: Nigéria | H128: 198.1714 | I128: 1.942649448e-05 | K128: 125 | L128: Seychelles | M128: 2103.9052 | N128: 0.000121823904 | O128: 2103.9052
A129: 126 | B129: Serra Leoa | C129: 501.4564 | D129: 7.093775686e-05 | F129: 126 | G129: Islândia | H129: 193.9226 | I129: 1.900998993e-05 | K129: 126 | L129: Gabão | M129: 2079.9016 | N129: 0.0001204340066 | O129: 2079.4016
A130: 127 | B130: Guatemala | C130: 491.8628 | D130: 6.958061302e-05 | F130: 127 | G130: Venezuela | H130: 154.9612 | I130: 1.519065262e-05 | K130: 127 | L130: Togo | M130: 2010.1642 | N130: 0.0001163959529 | O130: -236.4922
A131: 128 | B131: Uganda | C131: 485.0486 | D131: 6.861665272e-05 | F131: 128 | G131: Cabo Verde | H131: 127.4104 | I131: 1.248988215e-05 | K131: 128 | L131: Sudão | M131: 1881.5594 | N131: 0.0001089492586 | O131: 1848.4942
A132: 129 | B132: São Bartolomeu | C132: 472.0258 | D132: 6.677440239e-05 | F132: 129 | G132: Azerbaijão | H132: 124.836 | I132: 1.223751694e-05 | K132: 129 | L132: Bangladesh | M132: 1839.7434 | N132: 0.0001065279573 | O132: 1278.1258
A133: 130 | B133: Mauritânia | C133: 470.2498 | D133: 6.652316328e-05 | F133: 130 | G133: Albânia | H133: 104.1554 | I133: 1.021022359e-05 | K133: 130 | L133: Guiné Equatorial | M133: 1818.0792 | N133: 0.0001052735199 | O133: 1818.0792
A134: 131 | B134: Barém | C134: 469.46 | D134: 6.641143544e-05 | F134: 131 | G134: Namíbia | H134: 70.1862 | I134: 6.880265399e-06 | K134: 131 | L134: Madagáscar | M134: 1665.0982 | N134: 9.641535334e-05 | O134: -1405.7834
A135: 132 | B135: Gâmbia | C135: 455.249 | D135: 6.440109823e-05 | F135: 132 | G135: Tajiquistão | H135: 59.4122 | I135: 5.824103655e-06 | K135: 132 | L135: Geórgia | M135: 1638.8746 | N135: 9.489690977e-05 | O135: 1049.5554
A136: 133 | B136: Quénia | C136: 450.4724 | D136: 6.372538387e-05 | F136: 133 | G136: Iémen | H136: 45.76 | I136: 4.485795565e-06 | K136: 133 | L136: Laos, República Democrática Popular do | M136: 1584.7624 | N136: 9.176361296e-05 | O136: -1555.988
A137: 134 | B137: Myanmar | C137: 450.2094 | D137: 6.368817898e-05 | F137: 134 | G137: Libéria | H137: 38.8276 | I137: 3.806221064e-06 | K137: 134 | L137: Catar | M137: 1531.2412 | N137: 8.866453723e-05 | O137: 1499.102
A138: 135 | B138: Kosovo | C138: 418.4652 | D138: 5.919753465e-05 | F138: 135 | G138: Aruba | H138: 38.0318 | I138: 3.728209785e-06 | K138: 135 | L138: Albânia | M138: 1370.3276 | N138: 7.934704376e-05 | O138: 1162.0168
A139: 136 | B139: Nicarágua | C139: 417.0516 | D139: 5.89975619e-05 | F139: 136 | G139: São Marino | H139: 32.7702 | I139: 3.212421718e-06 | K139: 136 | L139: Islândia | M139: 1327.4592 | N139: 7.686480462e-05 | O139: 939.614
A140: 137 | B140: Camboja | C140: 401.4318 | D140: 5.678793097e-05 | F140: 137 | G140: Botswana | H140: 30.0284 | I140: 2.943646493e-06 | K140: 137 | L140: El Salvador | M140: 1020.6408 | N140: 5.90988828e-05 | O140: -435.5452
A141: 138 | B141: Sri Lanca | C141: 393.0388 | D141: 5.560062815e-05 | F141: 138 | G141: Jordânia | H141: 29.9124 | I141: 2.932275159e-06 | K141: 138 | L141: Ruanda | M141: 826.094 | N141: 4.783390247e-05 | O141: 825.6192
A142: 139 | B142: Bolívia | C142: 391.1324 | D142: 5.533094222e-05 | F142: 139 | G142: Bósnia-Herzegovina | H142: 27.8982 | I142: 2.734825652e-06 | K142: 139 | L142: Bermudas | M142: 793.8626 | N142: 4.596758502e-05 | O142: 792.4798
A143: 140 | B143: Tanzânia, República Unida da | C143: 370.8878 | D143: 5.246707107e-05 | F143: 140 | G143: Papuásia-Nova Guiné | H143: 25.837 | I143: 2.532768794e-06 | K143: 140 | L143: Turquemenistão | M143: 732.4956 | N143: 4.241420842e-05 | O143: -708.816
A144: 141 | B144: São Martinho (parte holandesa) | C144: 349.244 | D144: 4.940526426e-05 | F144: 141 | G144: Arábia Saudita | H144: 24.9638 | I144: 2.44717009e-06 | K144: 141 | L144: Azerbaijão | M144: 719.8116 | N144: 4.167975784e-05 | O144: 470.1396
A145: 142 | B145: Comores | C145: 311.607 | D145: 4.408100406e-05 | F145: 142 | G145: Macau | H145: 17.6438 | I145: 1.729599646e-06 | K145: 142 | L145: Iémen | M145: 716.5486 | N145: 4.149081805e-05 | O145: 625.0286
A146: 143 | B146: Libéria | C146: 294.774 | D146: 4.169974965e-05 | F146: 143 | G146: Quirguizistão | H146: 17.4758 | I146: 1.713130816e-06 | K146: 143 | L146: Namíbia | M146: 703.916 | N146: 4.075934372e-05 | O146: 563.5436
A147: 144 | B147: Somália | C147: 292.8146 | D147: 4.142256615e-05 | F147: 144 | G147: Sudão | H147: 16.5326 | I147: 1.6206701e-06 | K147: 144 | L147: Burundi | M147: 677.2094 | N147: 3.921293266e-05 | O147: 676.9814
A148: 145 | B148: El Salvador | C148: 292.5478 | D148: 4.13848237e-05 | F148: 145 | G148: Catar | H148: 16.0696 | I148: 1.575282789e-06 | K148: 145 | L148: Chade | M148: 675.9044 | N148: 3.913736832e-05 | O148: -675.8964
A149: 146 | B149: Jamaica | C149: 276.7996 | D149: 3.915702886e-05 | F149: 146 | G149: Arménia | H149: 15.3428 | I149: 1.504035494e-06 | K149: 146 | L149: Bolívia | M149: 672.8412 | N149: 3.89599977e-05 | O149: 109.4236
A150: 147 | B150: Macedónia, Antiga República jugoslava da | C150: 272.7114 | D150: 3.857869794e-05 | F150: 147 | G150: Curaçau | H150: 12.9632 | I150: 1.270766282e-06 | K150: 147 | L150: Arménia | M150: 575.0334 | N150: 3.32965638e-05 | O150: 544.3478
A151: 148 | B151: Paquistão | C151: 266.8506 | D151: 3.77496089e-05 | F151: 148 | G151: Iraque | H151: 12.264 | I151: 1.202224581e-06 | K151: 148 | L151: Aruba | M151: 561.0168 | N151: 3.248495074e-05 | O151: 484.9532
A152: 149 | B152: Antígua e Barbuda | C152: 264.4064 | D152: 3.740384392e-05 | F152: 149 | G152: Jamaica | H152: 11.1274 | I152: 1.090805104e-06 | K152: 149 | L152: Cazaquistão | M152: 538.873 | N152: 3.12027427e-05 | O152: 524.8902
A153: 150 | B153: Argentina | C153: 237.3284 | D153: 3.357329637e-05 | F153: 150 | G153: Kosovo | H153: 8.3722 | I153: 8.207162943e-07 | K153: 150 | L153: Barém | M153: 473.8092 | N153: 2.743530768e-05 | O153: 465.1108
A154: 151 | B154: Curaçau | C154: 224.0074 | D154: 3.168886164e-05 | F154: 151 | G154: Cazaquistão | H154: 6.9914 | I154: 6.853581974e-07 | K154: 151 | L154: São Bartolomeu | M154: 472.3088 | N154: 2.734842896e-05 | O154: 471.7428
A155: 152 | B155: Moldava, República de | C155: 201.388 | D155: 2.848904307e-05 | F155: 152 | G155: Líbia, Jamahira Árabe da | H155: 5.9518 | I155: 5.834475097e-07 | K155: 152 | L155: Mauritânia | M155: 471.8238 | N155: 2.732034567e-05 | O155: 468.6758
A156: 153 | B156: Haiti | C156: 195.7344 | D156: 2.768926526e-05 | F156: 153 | G156: Andorra | H156: 4.7264 | I156: 4.633230804e-07 | K156: 153 | L156: Gâmbia | M156: 455.249 | N156: 2.636060335e-05 | O156: 455.249
A157: 154 | B157: Ceuta e Melilha | C157: 191.5534 | D157: 2.709780654e-05 | F157: 154 | G157: São Cristovão e Nevis | H157: 4.4456 | I157: 4.357966076e-07 | K157: 154 | L157: Kosovo | M157: 426.8374 | N157: 2.471546648e-05 | O157: 410.093
A158: 155 | B158: Suriname | C158: 156.0968 | D158: 2.208199326e-05 | F158: 155 | G158: Afeganistão | H158: 4.3746 | I158: 4.288365664e-07 | K158: 155 | L158: São Martinho (parte holandesa) | M158: 349.244 | N158: 2.022252121e-05 | O158: 349.244
A159: 156 | B159: Nova Caledónia | C159: 140.1192 | D159: 1.98217467e-05 | F159: 156 | G159: Barém | H159: 4.3492 | I159: 4.263466362e-07 | K159: 156 | L159: Usbequistão | M159: 348.7024 | N159: 2.019116056e-05 | O159: -268.0328
A160: 157 | B160: Trindade e Tobago | C160: 140.025 | D160: 1.980842084e-05 | F160: 157 | G160: Nepal | H160: 2.446 | I160: 2.397783206e-07 | K160: 157 | L160: Zâmbia | M160: 336.52 | N160: 1.948575448e-05 | O160: -62.068
A161: 158 | B161: Zâmbia | C161: 137.226 | D161: 1.941246462e-05 | F161: 158 | G161: Liechtenstein | H161: 1.7982 | I161: 1.762752969e-07 | K161: 158 | L161: Libéria | M161: 333.6016 | N161: 1.931676831e-05 | O161: 255.9464
A162: 159 | B162: Polinésia Francesa | C162: 133.1554 | D162: 1.883662346e-05 | F162: 159 | G162: Lesoto | H162: 1.7136 | I162: 1.679820647e-07 | K162: 159 | L162: Comores | M162: 311.607 | N162: 1.80431995e-05 | O162: 311.607
A163: 160 | B163: Madagáscar | C163: 129.6574 | D163: 1.834178428e-05 | F163: 160 | G163: Mauritânia | H163: 1.574 | I163: 1.542972513e-07 | K163: 160 | L163: Somália | M163: 292.8146 | N163: 1.695504993e-05 | O163: 292.8146
A164: 161 | B164: Maldivas | C164: 127.1794 | D164: 1.799123783e-05 | F164: 161 | G164: Fiji, Ilhas | H164: 1.3818 | I164: 1.354561257e-07 | K164: 161 | L164: Jamaica | M164: 287.927 | N164: 1.667203979e-05 | O164: 265.6722
A165: 162 | B165: Niger | C165: 113.05 | D165: 1.599244404e-05 | F165: 162 | G165: Bermudas | H165: 0.6914 | I165: 6.777707722e-08 | K165: 162 | L165: Antígua e Barbuda | M165: 264.426 | N165: 1.531124484e-05 | O165: 264.3868
A166: 163 | B166: Liechtenstein | C166: 106.2456 | D166: 1.502987008e-05 | F166: 163 | G166: Território Palestiniano Ocupado | H166: 0.4852 | I166: 4.756354913e-08 | K166: 163 | L166: Curaçau | M166: 236.9706 | N166: 1.372147548e-05 | O166: 211.0442
A167: 164 | B167: Centro-Africana, República | C167: 83.0308 | D167: 1.174582417e-05 | F167: 164 | G167: Montenegro | H167: 0.3086 | I167: 3.025167201e-08 | K167: 164 | L167: Haiti | M167: 195.7358 | N167: 1.133382783e-05 | O167: 195.733
A168: 165 | B168: Jibuti | C168: 77.3086 | D168: 1.093634196e-05 | F168: 165 | G168: São Bartolomeu | H168: 0.283 | I168: 2.774213603e-08 | K168: 165 | L168: Ceuta e Melilha | M168: 191.5534 | N168: 1.109165138e-05 | O168: 191.5534
A169: 166 | B169: Nepal | C169: 76.6542 | D169: 1.084376828e-05 | F169: 166 | G169: Gabão | H169: 0.25 | I169: 2.450718731e-08 | K169: 166 | L169: Nova Caledónia | M169: 140.1192 | N169: 8.113420685e-06 | O169: 140.1192
A170: 167 | B170: Zimbabwe | C170: 63.2826 | D170: 8.952175488e-06 | F170: 167 | G170: Ruanda | H170: 0.2374 | I170: 2.327202507e-08 | K170: 167 | L170: Trindade e Tobago | M170: 140.0354 | N170: 8.108568354e-06 | O170: 140.0146
A171: 168 | B171: Caimão, Ilhas | C171: 51.4562 | D171: 7.279172037e-06 | F171: 168 | G171: Barbados | H171: 0.1378 | I171: 1.350836164e-08 | K171: 168 | L171: Polinésia Francesa | M171: 133.1554 | N171: 7.710190871e-06 | O171: 133.1554
A172: 169 | B172: Bósnia-Herzegovina | C172: 50.6168 | D172: 7.16042761e-06 | F172: 169 | G172: Oceano Indico, Território Britânico do | H172: 0.128 | I172: 1.25476799e-08 | K172: 169 | L172: Maldivas | M172: 127.183 | N172: 7.364366789e-06 | O172: 127.1758
A173: 170 | B173: Montenegro | C173: 46.101 | D173: 6.521606922e-06 | F173: 170 | G173: Niger | H173: 0.1252 | I173: 1.22731994e-08 | K173: 170 | L173: Niger | M173: 113.1752 | N173: 6.553263283e-06 | O173: 112.9248
A174: 171 | B174: Bahamas | C174: 42.9652 | D174: 6.078005807e-06 | F174: 171 | G174: Burundi | H174: 0.114 | I174: 1.117527741e-08 | K174: 171 | L174: Liechtenstein | M174: 108.0438 | N174: 6.256136217e-06 | O174: 104.4474
A175: 172 | B175: Usbequistão | C175: 40.3348 | D175: 5.705900325e-06 | F175: 172 | G175: Antígua e Barbuda | H175: 0.0196 | I175: 1.921363485e-09 | K175: 172 | L175: Centro-Africana, República | M175: 83.0308 | N175: 4.807790868e-06 | O175: 83.0308
A176: 173 | B176: Mongólia | C176: 30.8452 | D176: 4.363468684e-06 | F176: 173 | G176: São Vicente e Granadinas | H176: 0.0144 | I176: 1.411613989e-09 | K176: 173 | L176: Nepal | M176: 79.1002 | N176: 4.580194569e-06 | O176: 74.2082
A177: 174 | B177: Afeganistão | C177: 18.9718 | D177: 2.683816451e-06 | F177: 174 | G177: Mongólia | H177: 0.0112 | I177: 1.097921991e-09 | K177: 174 | L177: Bósnia-Herzegovina | M177: 78.515 | N177: 4.546309321e-06 | O177: 22.7186
A178: 175 | B178: Guiana | C178: 18.2434 | D178: 2.580774467e-06 | F178: 175 | G178: Trindade e Tobago | H178: 0.0104 | I178: 1.019498992e-09 | K178: 175 | L178: Jibuti | M178: 77.3086 | N178: 4.476454293e-06 | O178: 77.3086
A179: 176 | B179: Turcas e Caicos, Ilhas | C179: 18.0666 | D179: 2.555763728e-06 | F179: 176 | G179: Virgens Britânicas, Ilhas | H179: 0.007 | I179: 6.862012446e-10 | K179: 176 | L179: Tajiquistão | M179: 59.4122 | N179: 3.440186444e-06 | O179: -59.4122
A180: 177 | B180: Laos, República Democrática Popular do | C180: 14.3872 | D180: 2.035263077e-06 | F180: 177 | G180: Santa Lúcia | H180: 0.004 | I180: 3.921149969e-10 | K180: 177 | L180: Caimão, Ilhas | M180: 51.4562 | N180: 2.979504575e-06 | O180: 51.4562
A181: 178 | B181: Barbados | C181: 14.032 | D181: 1.985015256e-06 | F181: 178 | G181: Maldivas | H181: 0.0036 | I181: 3.529034972e-10 | K181: 178 | L181: Montenegro | M181: 46.4096 | N181: 2.687287742e-06 | O181: 45.7924
A182: 179 | B182: Turquemenistão | C182: 11.8398 | D182: 1.674899061e-06 | F182: 179 | G182: Haiti | H182: 0.0014 | I182: 1.372402489e-10 | K182: 179 | L182: Bahamas | M182: 42.9652 | N182: 2.487844224e-06 | O182: 42.9652
A183: 180 | B183: Virgens Britânicas, Ilhas | C183: 9.9272 | D183: 1.40433605e-06 | F183: 180 | G183: Anguila | H183: 0 | I183: 0 | K183: 180 | L183: São Marino | M183: 32.7902 | N183: 1.898674036e-06 | O183: -32.7502
A184: 181 | B184: Fiji, Ilhas | C184: 8.1268 | D184: 1.149645238e-06 | F184: 181 | G184: Antárctica | H184: 0 | I184: 0 | K184: 181 | L184: Mongólia | M184: 30.8564 | N184: 1.786699853e-06 | O184: 30.834
A185: 182 | B185: Santa Lúcia | C185: 7.138 | D185: 1.00976617e-06 | F185: 182 | G185: Antilhas Holandesas | H185: 0 | I185: 0 | K185: 182 | L185: Botswana | M185: 30.1228 | N185: 1.744221696e-06 | O185: -29.934
A186: 183 | B186: Brunei Darussalam | C186: 6.98 | D186: 9.874149436e-07 | F186: 183 | G186: Bahamas | H186: 0 | I186: 0 | K186: 183 | L186: Papuásia-Nova Guiné | M186: 28.7226 | N186: 1.663144929e-06 | O186: -22.9514
A187: 184 | B187: Malavi | C187: 6.6034 | D187: 9.341398049e-07 | F187: 184 | G187: Bonaire, Santo Eustáquio e Saba | H187: 0 | I187: 0 | K187: 184 | L187: Afeganistão | M187: 23.3464 | N187: 1.351843036e-06 | O187: 14.5972
A188: 185 | B188: Guam | C188: 6.5774 | D188: 9.30461755e-07 | F188: 185 | G188: Bouvet, Ilha | H188: 0 | I188: 0 | K188: 185 | L188: Quirguizistão | M188: 22.1324 | N188: 1.281547939e-06 | O188: -12.8192
A189: 186 | B189: São Vicente e Granadinas | C189: 5.6654 | D189: 8.014470804e-07 | F189: 186 | G189: Brunei Darussalam | H189: 0 | I189: 0 | K189: 186 | L189: Turcas e Caicos, Ilhas | M189: 18.0666 | N189: 1.046123059e-06 | O189: 18.0666
A190: 187 | B190: Quirguizistão | C190: 4.6566 | D190: 6.58738743e-07 | F190: 187 | G190: Butão | H190: 0 | I190: 0 | K190: 187 | L190: Barbados | M190: 14.1698 | N190: 8.204839053e-07 | O190: 13.8942
A191: 188 | B191: Menores distantes dos Estados Unidos, lhas | C191: 4.5542 | D191: 6.442528848e-07 | F191: 188 | G191: Caimão, Ilhas | H191: 0 | I191: 0 | K191: 188 | L191: Virgens Britânicas, Ilhas | M191: 9.9342 | N191: 5.752269765e-07 | O191: 9.9202
A192: 189 | B192: Sudão do Sul | C192: 3.771 | D192: 5.334587037e-07 | F192: 189 | G192: Centro-Africana, República | H192: 0 | I192: 0 | K192: 189 | L192: Fiji, Ilhas | M192: 9.5086 | N192: 5.505831601e-07 | O192: 6.745
A193: 190 | B193: Bonaire, Santo Eustáquio e Saba | C193: 3.1276 | D193: 4.424411142e-07 | F193: 190 | G193: Ceuta | H193: 0 | I193: 0 | K193: 190 | L193: Santa Lúcia | M193: 7.142 | N193: 4.135482541e-07 | O193: 7.134
A194: 191 | B194: Marianas do Norte, Ilhas | C194: 2.9244 | D194: 4.136957394e-07 | F194: 191 | G194: Ceuta e Melilha | H194: 0 | I194: 0 | K194: 191 | L194: Brunei Darussalam | M194: 6.98 | N194: 4.041678541e-07 | O194: 6.98
A195: 192 | B195: Papuásia-Nova Guiné | C195: 2.8856 | D195: 4.082069572e-07 | F195: 192 | G195: Christmas, Ilha | H195: 0 | I195: 0 | K195: 192 | L195: Guam | M195: 6.5774 | N195: 3.808558228e-07 | O195: 6.5774
A196: 193 | B196: Belize | C196: 2.1806 | D196: 3.084752186e-07 | F196: 193 | G196: Cocos (Keeling), Ilhas | H196: 0 | I196: 0 | K196: 193 | L196: São Vicente e Granadinas | M196: 5.6798 | N196: 3.288814581e-07 | O196: 5.651
A197: 194 | B197: Melilha | C197: 1.3464 | D197: 1.904664011e-07 | F197: 194 | G197: Comores | H197: 0 | I197: 0 | K197: 194 | L197: Menores distantes dos Estados Unidos, lhas | M197: 4.5542 | N197: 2.637050489e-07 | O197: 4.5542
A198: 195 | B198: Granada | C198: 0.6866 | D198: 9.712881092e-08 | F198: 195 | G198: Cook, Ilhas | H198: 0 | I198: 0 | K198: 195 | L198: São Cristovão e Nevis | M198: 4.4456 | N198: 2.574167066e-07 | O198: -4.4456
A199: 196 | B199: Virgens dos Estados Unidos, Ilhas | C199: 0.295 | D199: 4.173172039e-08 | F199: 196 | G199: Coreia, República Popular Democrática da | H199: 0 | I199: 0 | K199: 196 | L199: Sudão do Sul | M199: 3.771 | N199: 2.183548679e-07 | O199: 3.771
A200: 197 | B200: Botswana | C200: 0.0944 | D200: 1.335415053e-08 | F200: 197 | G200: Domínica | H200: 0 | I200: 0 | K200: 197 | L200: Bonaire, Santo Eustáquio e Saba | M200: 3.1276 | N200: 1.810996247e-07 | O200: 3.1276
... 58 more rows

Sheet 2A
A1: Parceiros comerciais de Portugal - União Europeia vs. Países Terceiros (média 2018-2022 em milhões de euros) produtos agrícolas e agroalimentares, do mar e da floresta
A2: Exportações | F2: Importações | K2: Trocas comerciais (total e saldo)
A3: P | B3: Grupo de Países | C3: média quinquénio | D3: % do Total | F3: P | G3: Grupo de Países | H3: média quinquénio | I3: % do Total | K3: P | L3: Grupo de Países | M3: média quinquénio | N3: % do Total | O3: Saldo (exp-imp)
A4: 1 | B4: União Europeia | C4: 8689.586002 | D4: 0.6705040416 | F4: 1 | G4: União Europeia | H4: 11670.31785 | I4: 0.7804427503 | K4: 1 | L4: União Europeia | M4: 20359.90385 | N4: 0.7293995292 | O4: -2980.731848
A5: 2 | B5: Países Terceiros | C5: 4270.778311 | D5: 0.3295409146 | F5: 2 | G5: Países Terceiros | H5: 3283.140101 | I5: 0.2195572497 | K5: 2 | L5: Países Terceiros | M5: 7553.918411 | N5: 0.2706213434 | O5: 987.6382102
B6: Outros | C6: 0 | D6: -4.495620481e-05 | G6: Outros | H6: 0 | I6: 0 | L6: Outros | M6: 0 | N6: -2.087262559e-05 | O6: 0
B7: Total | C7: 12959.78169 | D7: 1 | G7: Total | H7: 14953.45795 | I7: 1 | L7: Total | M7: 27913.23964 | N7: 1 | O7: -1993.67626
F27: valores em milhões de euros
A28: Nota: Outros = Países não determinados, abastecimentos de bordo, etc.
A29: Fonte: GPP a partir de dados INE/Comércio Internacional (2022 provisórios) | M29: 2023-08-10

Sheet 3
A1: Principais produtos agrícolas e agroalimentares, do mar e da floresta transacionados entre Portugal e Espanha em 2018-2022 (NC a 2 e 4 dígitos) em milhões de euros
AC4: P | AE4: Cód.NC | AF4: Descritivo | AG4: Média export quinquénio | AH4: % do total | AI4: % acumulada | AN4: P | AO4: NC | AP4: Exportações | AQ4: 2018 | AR4: 2019 | AS4: 2020 | AT4: 2021 | AU4: 2022 | AV4: média quinquénio
AC5: 1 | AD5: º | AE5: 48 | AF5: Papel e cartão | AG5: 526.7877728 | AH5: 0.1269750356 | AN5: 1º | AO5: 48 | AP5: Papel e cartão | AQ5: 473.94157 | AR5: 484.128927 | AS5: 446.064082 | AT5: 527.432986 | AU5: 702.371299 | AV5: 526.7877728
AC6: 2 | AD6: º | AE6: 03 | AF6: Peixes e crustáceos | AG6: 493.8443474 | AH6: 0.1190344705 | AN6: 2º | AO6: 03 | AP6: Peixes e crustáceos | AQ6: 514.332416 | AR6: 512.776817 | AS6: 377.42161 | AT6: 500.08574 | AU6: 564.605154 | AV6: 493.8443474
AC7: 3 | AD7: º | AE7: 15 | AF7: Gorduras e óleos animais ou vegetais | AG7: 398.5717468 | AH7: 0.09607030451 | AI7: 0.3420798106 | AN7: 3º | AO7: 15 | AP7: Gorduras e óleos animais ou vegetais | AQ7: 277.288393 | AR7: 240.090797 | AS7: 284.799966 | AT7: 459.856761 | AU7: 730.822817 | AV7: 398.5717468
AC8: 4 | AD8: º | AE8: 08 | AF8: Frutas | AG8: 329.0237238 | AH8: 0.07930669845 | AO8: - | AP8: Outros | AQ8: 2356.752767 | AR8: 2382.484314 | AS8: 2462.89151 | AT8: 2862.221101 | AU8: 3583.384667 | AV8: 2729.546872
AC9: 5 | AD9: º | AE9: 44 | AF9: Madeira e suas obras | AG9: 311.5833876 | AH9: 0.07510294236 | AP9: Total | AQ9: 3622.315146 | AR9: 3619.480855 | AS9: 3571.177168 | AT9: 4349.596588 | AU9: 5581.183937 | AV9: 4148.750739
AC10: 6 | AD10: º | AE10: 24 | AF10: Tabaco | AG10: 280.5643548 | AH10: 0.06762622593
AC11: 7 | AD11: º | AE11: 45 | AF11: Cortiça e suas obras | AG11: 163.9948534 | AH11: 0.03952873135
AC12: 8 | AD12: º | AE12: 04 | AF12: Leite e laticínios; ovos; mel, etc. | AG12: 161.388952 | AH12: 0.03890061422
AC13: 9 | AD13: º | AE13: 47 | AF13: Pastas de madeira | AG13: 160.5592698 | AH13: 0.0387006306
AC14: 10 | AD14: º | AE14: 22 | AF14: Bebidas, líquidos alcoólicos e vinagres | AG14: 160.2837906 | AH14: 0.03863423008 | AI14: 0.7198798836
AE15: - | AF15: Outros | AG15: 1162.14854 | AH15: 0.2801201164
AE16: Total | AG16: 4148.750739 | AH16: 1
AC38: P | AE38: Cód.NC | AF38: Descritivo | AG38: Média import quinquénio | AH38: % do total | AI38: % acumulada | AN38: P | AO38: NC | AP38: Importações | AQ38: 2018 | AR38: 2019 | AS38: 2020 | AT38: 2021 | AU38: 2022 | AV38: média quinquénio
AC39: 1 | AD39: º | AE39: 02 | AF39: Carnes e miudezas | AG39: 796.2855892 | AH39: 0.1155077758 | AN39: 1º | AO39: 02 | AP39: Carnes e miudezas | AQ39: 766.786067 | AR39: 796.742517 | AS39: 689.780047 | AT39: 744.773988 | AU39: 983.345327 | AV39: 796.2855892
AC40: 2 | AD40: º | AE40: 03 | AF40: Peixes e crustáceos | AG40: 744.246611 | AH40: 0.1079590939 | AN40: 2º | AO40: 03 | AP40: Peixes e crustáceos | AQ40: 715.795873 | AR40: 713.496617 | AS40: 637.213952 | AT40: 761.470764 | AU40: 893.255849 | AV40: 744.246611
AC41: 3 | AD41: º | AE41: 48 | AF41: Papel e cartão | AG41: 707.082224 | AH41: 0.1025680938 | AI41: 0.3260349634 | AN41: 3º | AO41: 48 | AP41: Papel e cartão | AQ41: 641.152119 | AR41: 638.451426 | AS41: 569.692829 | AT41: 737.541004 | AU41: 948.573742 | AV41: 707.082224
AC42: 4 | AD42: º | AE42: 15 | AF42: Gorduras e óleos animais ou vegetais | AG42: 610.6898522 | AH42: 0.08858558723 | AO42: - | AP42: Outros | AQ42: 4094.737216 | AR42: 4219.686335 | AS42: 4208.243748 | AT42: 4735.06945 | AU42: 5973.108213 | AV42: 4646.168992
AC43: 5 | AD43: º | AE43: 08 | AF43: Frutas | AG43: 430.1406758 | AH43: 0.06239544381 | AP43: Total | AQ43: 6218.471275 | AR43: 6368.376895 | AS43: 6104.930576 | AT43: 6978.855206 | AU43: 8798.283131 | AV43: 6893.783417
AC44: 6 | AD44: º | AE44: 44 | AF44: Madeira e suas obras | AG44: 416.7379108 | AH44: 0.06045126248
AC45: 7 | AD45: º | AE45: 19a | AF45: Preparações à base de cereais (exc. NC 19022010) (a) | AG45: 362.1374772 | AH45: 0.05253102039
AC46: 8 | AD46: º | AE46: 04 | AF46: Leite e laticínios; ovos; mel, etc. | AG46: 326.4081576 | AH46: 0.04734818863
AC47: 9 | AD47: º | AE47: 22 | AF47: Bebidas, líquidos alcoólicos e vinagres | AG47: 318.1700662 | AH47: 0.0461531857
AC48: 10 | AD48: º | AE48: 07 | AF48: Produtos hortícolas | AG48: 278.441289 | AH48: 0.04039019972 | AI48: 0.7238898514
AE49: - | AF49: Outros | AG49: 1903.443564 | AH49: 0.2761101486
AE50: Total | AG50: 6893.783417 | AH50: 1
AC62: DESAGREGAÇÃO A 4 DÍGITOS | AN62: DESAGREGAÇÃO A 4 DÍGITOS
AC64: P | AE64: Cód.NC | AF64: Descritivo | AG64: Média export quinquénio | AH64: % do total | AI64: % acumulada | AN64: P | AO64: NC | AP64: Exportações | AQ64: 2018 | AR64: 2019 | AS64: 2020 | AT64: 2021 | AU64: 2022 | AV64: média quinquénio
AC65: 1 | AD65: º | AE65: 2402 | AF65: Charutos, cigarrilhas e cigarros | AG65: 270.1126016 | AH65: 0.06510697282 | AN65: 1º | AO65: 2402 | AP65: Charutos, cigarrilhas e cigarros | AQ65: 290.845853 | AR65: 269.479649 | AS65: 265.046721 | AT65: 262.484784 | AU65: 262.706001 | AV65: 270.1126016
AC66: 2 | AD66: º | AE66: 1509 | AF66: Azeite (processos mecânicos ou físicos) | AG66: 239.9381106 | AH66: 0.05783382172 | AN66: 2º | AO66: 1509 | AP66: Azeite (processos mecânicos ou físicos) | AQ66: 192.725627 | AR66: 163.007234 | AS66: 170.890027 | AT66: 268.279089 | AU66: 404.788576 | AV66: 239.9381106
AC67: 3 | AD67: º | AE67: 4703 | AF67: Pastas químicas de madeira, à soda ou ao sulfato | AG67: 125.9696686 | AH67: 0.03036327717 | AI67: 0.1533040717 | AN67: 3º | AO67: 4703 | AP67: Pastas químicas de madeira, à soda ou ao sulfato | AQ67: 102.319516 | AR67: 99.087087 | AS67: 92.318582 | AT67: 134.741909 | AU67: 201.381249 | AV67: 125.9696686
AC68: 4 | AD68: º | AE68: 0303 | AF68: Peixes congelados | AG68: 125.6579788 | AH68: 0.03028814858 | AN68: - | AO68: - | AP68: Outros | AQ68: 3036.42415 | AR68: 3087.906885 | AS68: 3042.921838 | AT68: 3684.090806 | AU68: 4712.308111 | AV68: 3512.730358
AC69: 5 | AD69: º | AE69: 0307 | AF69: Moluscos | AG69: 122.8469778 | AH69: 0.02961059498 | AP69: Total | AQ69: 3622.315146 | AR69: 3619.480855 | AS69: 3571.177168 | AT69: 4349.596588 | AU69: 5581.183937 | AV69: 4148.750739
AC70: 6 | AD70: º | AE70: 0302 | AF70: Peixes frescos ou refrigerados | AG70: 122.0593576 | AH70: 0.02942074983
AC71: 7 | AD71: º | AE71: 4818 | AF71: Papel para toucador, etc., pasta de celulose, etc. | AG71: 121.3677846 | AH71: 0.02925405556
AC72: 8 | AD72: º | AE72: 4802 | AF72: Papel e cartão p/ escrita, etc. | AG72: 119.9203168 | AH72: 0.02890516311
AC73: 9 | AD73: º | AE73: 0805 | AF73: Citrinos, frescos ou secos | AG73: 105.98326 | AH73: 0.02554582492
AC74: 10 | AD74: º | AE74: 1905 | AF74: Produtos de padaria, pastelaria, etc. | AG74: 93.8031134 | AH74: 0.02260996606 | AI74: 0.3489385748
AE75: - | AF75: Outros | AG75: 2701.091569 | AH75: 0.6510614252
AE76: Total | AG76: 4148.750739 | AH76: 1
AC89: DESAGREGAÇÃO A 4 DÍGITOS | AN89: DESAGREGAÇÃO A 4 DÍGITOS
G91: média 2018-2022 em milhões de euros | I91: Cód. NC | J91: Descritivo | K91: Export | L91: Import | M91: Saldo | AC91: P | AE91: Cód.NC | AF91: Descritivo | AG91: Média import quinquénio | AH91: % do total | AI91: % acumulada | AN91: P | AO91: NC | AP91: Importações | AQ91: 2018 | AR91: 2019 | AS91: 2020 | AT91: 2021 | AU91: 2022 | AV91: média quinquénio
I92: 2402 | J92: Charutos, cigarrilhas e cigarros | K92: 270.1126016 | L92: 4.1936798 | M92: 265.9189218 | AC92: 1 | AD92: º | AE92: 1509 | AF92: Azeite (processos mecânicos ou físicos) | AG92: 333.6251784 | AH92: 0.04839507687 | AN92: 1º | AO92: 1509 | AP92: Azeite (processos mecânicos ou físicos) | AQ92: 313.877988 | AR92: 286.911488 | AS92: 292.560149 | AT92: 364.194282 | AU92: 410.581985 | AV92: 333.6251784
I93: 4703 | J93: Pastas químicas de madeira, à soda ou ao sulfato | K93: 125.9696686 | L93: 15.8107396 | M93: 110.158929 | AC93: 2 | AD93: º | AE93: 0201 | AF93: Carnes de bovino, frescas ou refrigeradas | AG93: 283.6737394 | AH93: 0.04114920969 | AN93: 2º | AO93: 0201 | AP93: Carnes de bovino, frescas ou refrigeradas | AQ93: 279.354523 | AR93: 280.283335 | AS93: 239.468109 | AT93: 260.599842 | AU93: 358.662888 | AV93: 283.6737394
I94: 4802 | J94: Papel e cartão p/ escrita, etc. | K94: 119.9203168 | L94: 33.4978528 | M94: 86.422464 | AC94: 3 | AD94: º | AE94: 0203 | AF94: Carnes de suíno | AG94: 272.628713 | AH94: 0.03954703775 | AI94: 0.1290913243 | AN94: 3º | AO94: 0203 | AP94: Carnes de suíno | AQ94: 265.889212 | AR94: 275.50726 | AS94: 247.065489 | AT94: 263.624299 | AU94: 311.057305 | AV94: 272.628713
I95: 0805 | J95: Citrinos, frescos ou secos | K95: 105.98326 | L95: 47.1109272 | M95: 58.8723328 | AC95: 4 | AD95: º | AE95: 1905 | AF95: Produtos de padaria, pastelaria, etc. | AG95: 257.2403582 | AH95: 0.03731483028 | AN95: - | AO95: - | AP95: Outros | AQ95: 5359.349552 | AR95: 5525.674812 | AS95: 5325.836829 | AT95: 6090.436783 | AU95: 7717.980953 | AV95: 6003.855786
I96: 4818 | J96: Papel para toucador, etc., pasta de celulose, etc. | K96: 121.3677846 | L96: 65.3299882 | M96: 56.0377964 | AC96: 5 | AD96: º | AE96: 2309 | AF96: Preparações p/ alimentação animal | AG96: 196.4191208 | AH96: 0.02849220942 | AP96: Total | AQ96: 6218.471275 | AR96: 6368.376895 | AS96: 6104.930576 | AT96: 6978.855206 | AU96: 8798.283131 | AV96: 6893.783417
I97: 1701 | J97: Açúcares (cana/beterraba); sacarose pura | K97: 80.8719732 | L97: 30.518929 | M97: 50.3530442 | AC97: 6 | AD97: º | AE97: 4805 | AF97: Papéis e cartões, não revestidos | AG97: 193.2171462 | AH97: 0.02802773666
I98: 4503 | J98: Obras de cortiça natural | K98: 54.5995784 | L98: 4.7824854 | M98: 49.817093 | AC98: 7 | AD98: º | AE98: 0307 | AF98: Moluscos | AG98: 184.97666 | AH98: 0.02683238634
I99: 1212 | J99: Alfarroba, algas, beterraba sacarina, etc. | K99: 44.352301 | L99: 2.5765946 | M99: 41.7757064 | AC99: 8 | AD99: º | AE99: 0302 | AF99: Peixes frescos ou refrigerados | AG99: 180.0119728 | AH99: 0.02611221762
I100: 4504 | J100: Cortiça aglomerada e suas obras | K100: 54.6841372 | L100: 14.3349434 | M100: 40.3491938 | AC100: 9 | AD100: º | AE100: 0303 | AF100: Peixes congelados | AG100: 173.773731 | AH100: 0.02520730932
I101: 4407 | J101: Madeira serrada, etc. | K101: 48.6386638 | L101: 19.817568 | M101: 28.8210958 | AC101: 10 | AD101: º | AE101: 2204 | AF101: Vinhos de uvas frescas | AG101: 129.4732064 | AH101: 0.01878115377 | AI101: 0.3198591677
I102: - | J102: Outros | K102: 2570.852835 | L102: 4668.55491 | M102: -2097.702075 | AE102: - | AF102: Outros | AG102: 4688.74359 | AH102: 0.6801408323
I103: 4403 | J103: Madeira em bruto | K103: 25.8495826 | L103: 112.5438422 | M103: -86.6942596 | AE103: Total | AG103: 6893.783417 | AH103: 1
I104: 0406 | J104: Queijos e requeijão | K104: 10.3478886 | L104: 97.1219062 | M104: -86.7740176
I105: 1509 | J105: Azeite (processos mecânicos ou físicos) | K105: 239.9381106 | L105: 333.6251784 | M105: -93.6870678
I106: 4811 | J106: Papel, cartão, pasta de celulose, etc. | K106: 5.73475 | L106: 111.311588 | M106: -105.576838
I107: 2204 | J107: Vinhos de uvas frescas | K107: 19.091776 | L107: 129.4732064 | M107: -110.3814304
I108: 2309 | J108: Preparações p/ alimentação animal | K108: 58.9476524 | L108: 196.4191208 | M108: -137.4714684
I109: 4805 | J109: Papéis e cartões, não revestidos | K109: 46.0625456 | L109: 193.2171462 | M109: -147.1546006
I110: 1905 | J110: Produtos de padaria, pastelaria, etc. | K110: 93.8031134 | L110: 257.2403582 | M110: -163.4372448
I111: 0203 | J111: Carnes de suíno | K111: 25.697985 | L111: 272.628713 | M111: -246.930728
I112: 0201 | J112: Carnes de bovino, frescas ou refrigeradas | K112: 25.9242148 | L112: 283.6737394 | M112: -257.7495246
I113: Total | K113: 4148.750739 | L113: 6893.783417 | M113: -2745.032678
A116: Fonte: GPP a partir de dados INE/Comércio Internacional (2022 definitivos) | Y116: 2023-10-31T11:29:41.030

Sheet 3A
A1: Principais produtos agrícolas e agroalimentares transacionados entre Portugal e Espanha em 2018-2022 (NC a 2 e 4 dígitos) em milhões de euros
AC4: P | AE4: Cód.NC | AF4: Descritivo | AG4: Média export quinquénio | AH4: % do total | AI4: % acumulada | AN4: P | AO4: NC | AP4: Exportações | AQ4: 2018 | AR4: 2019 | AS4: 2020 | AT4: 2021 | AU4: 2022 | AV4: média quinquénio
AC5: 1 | AD5: º | AE5: 15 | AF5: Gorduras e óleos animais ou vegetais | AG5: 398.5717468 | AH5: 0.1649917753 | AN5: 1º | AO5: 15 | AP5: Gorduras e óleos animais ou vegetais | AQ5: 277.288393 | AR5: 240.090797 | AS5: 284.799966 | AT5: 459.856761 | AU5: 730.822817 | AV5: 398.5717468
AC6: 2 | AD6: º | AE6: 08 | AF6: Frutas | AG6: 329.0237238 | AH6: 0.1362018476 | AN6: 2º | AO6: 08 | AP6: Frutas | AQ6: 240.030466 | AR6: 267.848484 | AS6: 337.095346 | AT6: 359.761809 | AU6: 440.382514 | AV6: 329.0237238
AC7: 3 | AD7: º | AE7: 24 | AF7: Tabaco | AG7: 280.5643548 | AH7: 0.116141727 | AI7: 0.4173353499 | AN7: 3º | AO7: 24 | AP7: Tabaco | AQ7: 301.660106 | AR7: 280.476981 | AS7: 275.90606 | AT7: 271.664861 | AU7: 273.113766 | AV7: 280.5643548
AC8: 4 | AD8: º | AE8: 04 | AF8: Leite e laticínios; ovos; mel, etc. | AG8: 161.388952 | AH8: 0.06680817174 | AO8: - | AP8: Outros | AQ8: 1202.29418 | AR8: 1217.413006 | AS8: 1277.001059 | AT8: 1466.153457 | AU8: 1874.872964 | AV8: 1407.546933
AC9: 5 | AD9: º | AE9: 22 | AF9: Bebidas, líquidos alcoólicos e vinagres | AG9: 160.2837906 | AH9: 0.06635068186 | AP9: Total | AQ9: 2021.273145 | AR9: 2005.829268 | AS9: 2174.802431 | AT9: 2557.436888 | AU9: 3319.192061 | AV9: 2415.706759
AC10: 6 | AD10: º | AE10: 19a | AF10: Preparações à base de cereais (exc. NC 19022010) (a) | AG10: 135.2256612 | AH10: 0.05597768054
AC11: 7 | AD11: º | AE11: 07 | AF11: Produtos hortícolas | AG11: 130.7318586 | AH11: 0.05411743712
AC12: 8 | AD12: º | AE12: 23a | AF12: Resíduos indústrias alimentares; alimentos p/ animais (exc. NC 230120) (a) | AG12: 113.8731388 | AH12: 0.04713864313
AC13: 9 | AD13: º | AE13: 01 | AF13: Animais vivos | AG13: 95.7915872 | AH13: 0.03965364871
AC14: 10 | AD14: º | AE14: 20 | AF14: Preparações de produtos vegetais | AG14: 91.978184 | AH14: 0.03807506175 | AI14: 0.7854566748
AE15: - | AF15: Outros | AG15: 518.2737608 | AH15: 0.2145433252
AE16: Total | AG16: 2415.706759 | AH16: 1
AC38: P | AE38: Cód.NC | AF38: Descritivo | AG38: Média import quinquénio | AH38: % do total | AI38: % acumulada | AN38: P | AO38: NC | AP38: Importações | AQ38: 2018 | AR38: 2019 | AS38: 2020 | AT38: 2021 | AU38: 2022 | AV38: média quinquénio
AC39: 1 | AD39: º | AE39: 02 | AF39: Carnes e miudezas | AG39: 796.2855892 | AH39: 0.1694140539 | AN39: 1º | AO39: 02 | AP39: Carnes e miudezas | AQ39: 766.786067 | AR39: 796.742517 | AS39: 689.780047 | AT39: 744.773988 | AU39: 983.345327 | AV39: 796.2855892
AC40: 2 | AD40: º | AE40: 15 | AF40: Gorduras e óleos animais ou vegetais | AG40: 610.6898522 | AH40: 0.1299275599 | AN40: 2º | AO40: 15 | AP40: Gorduras e óleos animais ou vegetais | AQ40: 507.611597 | AR40: 524.424095 | AS40: 476.950971 | AT40: 655.803241 | AU40: 888.659357 | AV40: 610.6898522
AC41: 3 | AD41: º | AE41: 08 | AF41: Frutas | AG41: 430.1406758 | AH41: 0.09151474878 | AI41: 0.3908563626 | AN41: 3º | AO41: 08 | AP41: Frutas | AQ41: 417.925241 | AR41: 397.487768 | AS41: 435.114764 | AT41: 440.386199 | AU41: 459.789407 | AV41: 430.1406758
AC42: 4 | AD42: º | AE42: 19a | AF42: Preparações à base de cereais (exc. NC 19022010) (a) | AG42: 362.1374772 | AH42: 0.0770467015 | AO42: - | AP42: Outros | AQ42: 2495.148565 | AR42: 2617.582793 | AS42: 2623.411174 | AT42: 2894.026701 | AU42: 3685.417017 | AV42: 2863.11725
AC43: 5 | AD43: º | AE43: 04 | AF43: Leite e laticínios; ovos; mel, etc. | AG43: 326.4081576 | AH43: 0.06944509604 | AP43: Total | AQ43: 4187.47147 | AR43: 4336.237173 | AS43: 4225.256956 | AT43: 4734.990129 | AU43: 6017.211108 | AV43: 4700.233367
AC44: 6 | AD44: º | AE44: 22 | AF44: Bebidas, líquidos alcoólicos e vinagres | AG44: 318.1700662 | AH44: 0.06769239766
AC45: 7 | AD45: º | AE45: 07 | AF45: Produtos hortícolas | AG45: 278.441289 | AH45: 0.05923988603
AC46: 8 | AD46: º | AE46: 23a | AF46: Resíduos indústrias alimentares; alimentos p/ animais (exc. NC 230120) (a) | AG46: 231.062355 | AH46: 0.04915976228
AC47: 9 | AD47: º | AE47: 20 | AF47: Preparações de produtos vegetais | AG47: 216.7346486 | AH47: 0.04611146547
AC48: 10 | AD48: º | AE48: 21 | AF48: Preparações alimentícias diversas | AG48: 202.2136632 | AH48: 0.0430220475 | AI48: 0.8025737191
AE49: - | AF49: Outros | AG49: 927.9495932 | AH49: 0.1974262809
AE50: Total | AG50: 4700.233367 | AH50: 1
AC62: DESAGREGAÇÃO A 4 DÍGITOS | AN62: DESAGREGAÇÃO A 4 DÍGITOS
AC64: P | AE64: Cód.NC | AF64: Descritivo | AG64: Média export quinquénio | AH64: % do total | AI64: % acumulada | AN64: P | AO64: NC | AP64: Exportações | AQ64: 2018 | AR64: 2019 | AS64: 2020 | AT64: 2021 | AU64: 2022 | AV64: média quinquénio
AC65: 1 | AD65: º | AE65: 2402 | AF65: Charutos, cigarrilhas e cigarros | AG65: 270.1126016 | AH65: 0.111815145 | AN65: 1º | AO65: 2402 | AP65: Charutos, cigarrilhas e cigarros | AQ65: 290.845853 | AR65: 269.479649 | AS65: 265.046721 | AT65: 262.484784 | AU65: 262.706001 | AV65: 270.1126016
AC66: 2 | AD66: º | AE66: 1509 | AF66: Azeite (processos mecânicos ou físicos) | AG66: 239.9381106 | AH66: 0.09932418732 | AN66: 2º | AO66: 1509 | AP66: Azeite (processos mecânicos ou físicos) | AQ66: 192.725627 | AR66: 163.007234 | AS66: 170.890027 | AT66: 268.279089 | AU66: 404.788576 | AV66: 239.9381106
AC67: 3 | AD67: º | AE67: 0805 | AF67: Citrinos, frescos ou secos | AG67: 105.98326 | AH67: 0.0438725684 | AI67: 0.2550119008 | AN67: 3º | AO67: 0805 | AP67: Citrinos, frescos ou secos | AQ67: 97.135515 | AR67: 74.605993 | AS67: 126.726086 | AT67: 95.150267 | AU67: 136.298439 | AV67: 105.98326
AC68: 4 | AD68: º | AE68: 1905 | AF68: Produtos de padaria, pastelaria, etc. | AG68: 93.8031134 | AH68: 0.03883050501 | AN68: - | AO68: - | AP68: Outros | AQ68: 1440.56615 | AR68: 1498.736392 | AS68: 1612.139597 | AT68: 1931.522748 | AU68: 2515.399045 | AV68: 1799.672786
AC69: 5 | AD69: º | AE69: 1701 | AF69: Açúcares (cana/beterraba); sacarose pura | AG69: 80.8719732 | AH69: 0.03347756217 | AP69: Total | AQ69: 2021.273145 | AR69: 2005.829268 | AS69: 2174.802431 | AT69: 2557.436888 | AU69: 3319.192061 | AV69: 2415.706759
AC70: 6 | AD70: º | AE70: 0810 | AF70: Outras frutas frescas | AG70: 69.8341984 | AH70: 0.02890839219
AC71: 7 | AD71: º | AE71: 2202 | AF71: Águas com açúcar ou outros produtos; outras bebidas | AG71: 61.564537 | AH71: 0.0254851036
AC72: 8 | AD72: º | AE72: 2309 | AF72: Preparações p/ alimentação animal | AG72: 58.9476524 | AH72: 0.02440182451
AC73: 9 | AD73: º | AE73: 0103 | AF73: Suínos vivos | AG73: 49.906712 | AH73: 0.02065925917
AC74: 10 | AD74: º | AE74: 0702 | AF74: Tomates, frescos ou refrigerados | AG74: 49.2550124 | AH74: 0.02038948321 | AI74: 0.4471640306
AE75: - | AF75: Outros | AG75: 1335.489588 | AH75: 0.5528359694
AE76: Total | AG76: 2415.706759 | AH76: 1
AC89: DESAGREGAÇÃO A 4 DÍGITOS | AN89: DESAGREGAÇÃO A 4 DÍGITOS
G91: média 2018-2022 em milhões de euros | I91: Cód. NC | J91: Descritivo | K91: Export | L91: Import | M91: Saldo | AC91: P | AE91: Cód.NC | AF91: Descritivo | AG91: Média import quinquénio | AH91: % do total | AI91: % acumulada | AN91: P | AO91: NC | AP91: Importações | AQ91: 2018 | AR91: 2019 | AS91: 2020 | AT91: 2021 | AU91: 2022 | AV91: média quinquénio
I92: 2402 | J92: Charutos, cigarrilhas e cigarros | K92: 270.1126016 | L92: 4.1936798 | M92: 265.9189218 | AC92: 1 | AD92: º | AE92: 1509 | AF92: Azeite (processos mecânicos ou físicos) | AG92: 333.6251784 | AH92: 0.07098055614 | AN92: 1º | AO92: 1509 | AP92: Azeite (processos mecânicos ou físicos) | AQ92: 313.877988 | AR92: 286.911488 | AS92: 292.560149 | AT92: 364.194282 | AU92: 410.581985 | AV92: 333.6251784
I93: 0805 | J93: Citrinos, frescos ou secos | K93: 105.98326 | L93: 47.1109272 | M93: 58.8723328 | AC93: 2 | AD93: º | AE93: 0201 | AF93: Carnes de bovino, frescas ou refrigeradas | AG93: 283.6737394 | AH93: 0.06035311808 | AN93: 2º | AO93: 0201 | AP93: Carnes de bovino, frescas ou refrigeradas | AQ93: 279.354523 | AR93: 280.283335 | AS93: 239.468109 | AT93: 260.599842 | AU93: 358.662888 | AV93: 283.6737394
I94: 1701 | J94: Açúcares (cana/beterraba); sacarose pura | K94: 80.8719732 | L94: 30.518929 | M94: 50.3530442 | AC94: 3 | AD94: º | AE94: 0203 | AF94: Carnes de suíno | AG94: 272.628713 | AH94: 0.05800322914 | AI94: 0.1893369034 | AN94: 3º | AO94: 0203 | AP94: Carnes de suíno | AQ94: 265.889212 | AR94: 275.50726 | AS94: 247.065489 | AT94: 263.624299 | AU94: 311.057305 | AV94: 272.628713
I95: 1212 | J95: Alfarroba, algas, beterraba sacarina, etc. | K95: 44.352301 | L95: 2.5765946 | M95: 41.7757064 | AC95: 4 | AD95: º | AE95: 1905 | AF95: Produtos de padaria, pastelaria, etc. | AG95: 257.2403582 | AH95: 0.05472927366 | AN95: - | AO95: - | AP95: Outros | AQ95: 3328.349747 | AR95: 3493.53509 | AS95: 3446.163209 | AT95: 3846.571706 | AU95: 4936.90893 | AV95: 3810.305736
I96: 1507 | J96: Óleo de soja e suas frações | K96: 29.405532 | L96: 4.6864858 | M96: 24.7190462 | AC96: 5 | AD96: º | AE96: 2309 | AF96: Preparações p/ alimentação animal | AG96: 196.4191208 | AH96: 0.04178922735 | AP96: Total | AQ96: 4187.47147 | AR96: 4336.237173 | AS96: 4225.256956 | AT96: 4734.990129 | AU96: 6017.211108 | AV96: 4700.233367
I97: 1005 | J97: Milho | K97: 38.552973 | L97: 18.2451982 | M97: 20.3077748 | AC97: 6 | AD97: º | AE97: 2204 | AF97: Vinhos de uvas frescas | AG97: 129.4732064 | AH97: 0.02754612299
I98: 0702 | J98: Tomates, frescos ou refrigerados | K98: 49.2550124 | L98: 31.8181242 | M98: 17.4368882 | AC98: 7 | AD98: º | AE98: 0103 | AF98: Suínos vivos | AG98: 128.24855 | AH98: 0.02728557073
I99: 0802 | J99: Frutas de casca rija | K99: 48.6637618 | L99: 31.980158 | M99: 16.6836038 | AC99: 8 | AD99: º | AE99: 0403 | AF99: Leitelho, leite coalhado, iogurte, etc. | AG99: 114.8569582 | AH99: 0.02443643735
I100: 2304 | J100: Bagaços e outros resíduos sólidos de soja | K100: 22.7622596 | L100: 7.7750196 | M100: 14.98724 | AC100: 9 | AD100: º | AE100: 0207 | AF100: Carnes e miudezas de aves de capoeira | AG100: 105.0500206 | AH100: 0.02234995848
I101: 0102 | J101: Bovinos vivos | K101: 17.9003862 | L101: 3.3829378 | M101: 14.5174484 | AC101: 10 | AD101: º | AE101: 1518 | AF101: Gorduras e óleos, animais ou vegetais, processados de outras formas | AG101: 103.0188964 | AH101: 0.02191782585 | AI101: 0.4093913198
I102: - | J102: Outros | K102: 1167.504449 | L102: 2624.837215 | M102: -1457.332766 | AE102: - | AF102: Outros | AG102: 2775.998626 | AH102: 0.5906086802
I103: 0207 | J103: Carnes e miudezas de aves de capoeira | K103: 20.472978 | L103: 105.0500206 | M103: -84.5770426 | AE103: Total | AG103: 4700.233367 | AH103: 1
I104: 1518 | J104: Gorduras e óleos, animais ou vegetais, processados de outras formas | K104: 17.6276696 | L104: 103.0188964 | M104: -85.3912268
I105: 0403 | J105: Leitelho, leite coalhado, iogurte, etc. | K105: 28.49086 | L105: 114.8569582 | M105: -86.3660982
I106: 0406 | J106: Queijos e requeijão | K106: 10.3478886 | L106: 97.1219062 | M106: -86.7740176
I107: 1509 | J107: Azeite (processos mecânicos ou físicos) | K107: 239.9381106 | L107: 333.6251784 | M107: -93.6870678
I108: 2204 | J108: Vinhos de uvas frescas | K108: 19.091776 | L108: 129.4732064 | M108: -110.3814304
I109: 2309 | J109: Preparações p/ alimentação animal | K109: 58.9476524 | L109: 196.4191208 | M109: -137.4714684
I110: 1905 | J110: Produtos de padaria, pastelaria, etc. | K110: 93.8031134 | L110: 257.2403582 | M110: -163.4372448
I111: 0203 | J111: Carnes de suíno | K111: 25.697985 | L111: 272.628713 | M111: -246.930728
I112: 0201 | J112: Carnes de bovino, frescas ou refrigeradas | K112: 25.9242148 | L112: 283.6737394 | M112: -257.7495246
I113: Total | K113: 2415.706759 | L113: 4700.233367 | M113: -2284.526609
A116: Fonte: GPP a partir de dados INE/Comércio Internacional (2022 definitivos) | Y116: 2023-10-31T11:29:41.030

Sheet 4A
A1: Evolução da balança comercial Portugal-Espanha 2018-2022 por produto em euros (NC 2 dígitos)
A3: =+aux!A31 -> Evolução da balança comercial Portugal-Espanha para Gorduras e óleos animais ou vegetais
A5: Selecione o produto:
Q7: Para obter uma maior desagregação deste produto, clique no botão respetivo:
A20: =+aux!A43 -> Evolução da balança comercial Portugal-Espanha para Carnes e miudezas
A22: Selecione o produto:
A38: Fonte: GPP a partir de dados INE/Comércio Internacional (2022 definitivos) | N38: 2023-10-31T11:29:41.030

Sheet 5.2
A1: Trocas comerciais Portugal-Espanha 2018-2022 em milhares de euros (NC 2 dígitos) | C1: Produtos agrícolas e agroalimentares, do mar e da floresta
A2: Cód. NC | B2: Descritivo | C2: Importações | K2: Exportações | S2: Saldo quinquénio (exp-imp) | T2: Evolução das importações | U2: =+"Variação das Importações " & INDEX(K3:N3,1,aux!AL1) & "-"& '5.2'!O3 &"" -> Variação das Importações 2018-2022 | Z2: Evolução das exportações | AA2: ="Variação das Exportações " & INDEX(K3:N3,1,aux!AL1) & "-"& '5.2'!O3 &"" -> Variação das Exportações 2018-2022
C3: 2018 | D3: 2019 | E3: 2020 | F3: 2021 | G3: 2022 | H3: média quinquénio | I3: % Subtot | J3: % Total | K3: 2018 | L3: 2019 | M3: 2020 | N3: 2021 | O3: 2022 | P3: média quinquénio | Q3: % Subtot | R3: % Total | U3: variação total em valor | V3: % no subtotal de variação | W3: % no total de variação | X3: taxa de variação média anual | Y3: taxa de variação total | AA3: variação total em valor | AB3: % no subtotal de variação | AC3: % no total de variação | AD3: taxa de variação média anual | AE3: taxa de variação total
A4: 01 | B4: Animais vivos | C4: 163286.097 | D4: 180765.239 | E4: 174172.861 | F4: 153158.297 | G4: 201792.647 | H4: 174635.0282 | I4: 0.03715454416 | J4: 0.02533224757 | K4: 81974.849 | L4: 84006.341 | M4: 107532.487 | N4: 92764.442 | O4: 112679.817 | P4: 95791.5872 | Q4: 0.03965364871 | R4: 0.02308926065 | S4: -78843.441 | U4: =G4-INDEX($C4:$G4,1,aux!$AL$1) -> 38506.55 | V4: =IF($U$37<>0,U4/$U$37, "n.d.") -> 0.02104482474 | W4: =IF($U$53<>0,U4/$U$53, "n.d.") -> 0.01492610785 | X4: =+IF(INDEX($C4:$G4,1,aux!$AL$1)>0,(G4/INDEX($C4:$G4,1,aux!$AL$1))^(1/($G$3-INDEX($C$3:$G$3,1,aux!$AL$1)))-1,"n.d.") -> 0.05436026899 | Y4: =IF(INDEX($C4:$G4,1,aux!$AL$1)>0,(G4-INDEX($C4:$G4,1,aux!$AL$1))/INDEX($C4:$G4,1,aux!$AL$1),"n.d.") -> 0.2358225881 | AA4: =O4-INDEX($K4:$O4,1,aux!$AL$1) -> 30704.968 | AB4: =IF($AA$37<>0,AA4/$AA$37, "n.d.") -> 0.0236570772 | AC4: =IF($AA$53<>0,AA4/$AA$53, "n.d.") -> 0.0156748467 | AD4: =+IF(INDEX($K4:$O4,1,aux!$AL$1)>0,(O4/INDEX($K4:$O4,1,aux!$AL$1))^(1/($O$3-INDEX($K$3:$O$3,1,aux!$AL$1)))-1,"n.d.") -> 0.08278287111 | AE4: =IF(INDEX($K4:$O4,1,aux!$AL$1)>0,(O4-INDEX($K4:$O4,1,aux!$AL$1))/INDEX($K4:$O4,1,aux!$AL$1),"n.d.") -> 0.3745657159
A5: 02 | B5: Carnes e miudezas | C5: 766786.067 | D5: 796742.517 | E5: 689780.047 | F5: 744773.988 | G5: 983345.327 | H5: 796285.5892 | I5: 0.1694140539 | J5: 0.1155077758 | K5: 85091.031 | L5: 77694.977 | M5: 73766.867 | N5: 91625.958 | O5: 115057.352 | P5: 88647.237 | Q5: 0.03669619116 | R5: 0.0213672121 | S5: -707638.3522 | U5: =G5-INDEX($C5:$G5,1,aux!$AL$1) -> 216559.26 | V5: 0.1183552324 | W5: 0.0839438192 | X5: =+IF(INDEX($C5:$G5,1,aux!$AL$1)>0,(G5/INDEX($C5:$G5,1,aux!$AL$1))^(1/($G$3-INDEX($C$3:$G$3,1,aux!$AL$1)))-1,"n.d.") -> 0.06416252596 | Y5: =IF(INDEX($C5:$G5,1,aux!$AL$1)>0,(G5-INDEX($C5:$G5,1,aux!$AL$1))/INDEX($C5:$G5,1,aux!$AL$1),"n.d.") -> 0.2824246153 | AA5: =O5-INDEX($K5:$O5,1,aux!$AL$1) -> 29966.321 | AB5: 0.02308797617 | AC5: 0.01529776835 | AD5: =+IF(INDEX($K5:$O5,1,aux!$AL$1)>0,(O5/INDEX($K5:$O5,1,aux!$AL$1))^(1/($O$3-INDEX($K$3:$O$3,1,aux!$AL$1)))-1,"n.d.") -> 0.07834479704 | AE5: =IF(INDEX($K5:$O5,1,aux!$AL$1)>0,(O5-INDEX($K5:$O5,1,aux!$AL$1))/INDEX($K5:$O5,1,aux!$AL$1),"n.d.") -> 0.3521677978
A6: 04 | B6: Leite e laticínios; ovos; mel, etc. | C6: 298405.914 | D6: 312685.359 | E6: 293976.848 | F6: 316904.886 | G6: 410067.781 | H6: 326408.1576 | I6: 0.06944509604 | J6: 0.04734818863 | K6: 124756.671 | L6: 138614.767 | M6: 139318.912 | N6: 171433.715 | O6: 232820.695 | P6: 161388.952 | Q6: 0.06680817174 | R6: 0.03890061422 | S6: -165019.2056 | U6: =G6-INDEX($C6:$G6,1,aux!$AL$1) -> 111661.867 | V6: 0.06102609611 | W6: 0.04328294978 | X6: =+IF(INDEX($C6:$G6,1,aux!$AL$1)>0,(G6/INDEX($C6:$G6,1,aux!$AL$1))^(1/($G$3-INDEX($C$3:$G$3,1,aux!$AL$1)))-1,"n.d.") -> 0.08270976953 | Y6: =IF(INDEX($C6:$G6,1,aux!$AL$1)>0,(G6-INDEX($C6:$G6,1,aux!$AL$1))/INDEX($C6:$G6,1,aux!$AL$1),"n.d.") -> 0.374194551 | AA6: =O6-INDEX($K6:$O6,1,aux!$AL$1) -> 108064.024 | AB6: 0.08325945686 | AC6: 0.05516654535 | AD6: =+IF(INDEX($K6:$O6,1,aux!$AL$1)>0,(O6/INDEX($K6:$O6,1,aux!$AL$1))^(1/($O$3-INDEX($K$3:$O$3,1,aux!$AL$1)))-1,"n.d.") -> 0.1687979762 | AE6: =IF(INDEX($K6:$O6,1,aux!$AL$1)>0,(O6-INDEX($K6:$O6,1,aux!$AL$1))/INDEX($K6:$O6,1,aux!$AL$1),"n.d.") -> 0.8661983614
A7: 05a | B7: Outros produtos de origem animal (exc. NC 0508, 051191) (a) | C7: 11245.315 | D7: 11853.207 | E7: 13497.047 | F7: 14141.794 | G7: 20174.252 | H7: 14182.323 | I7: 0.003017365712 | J7: 0.00205726263 | K7: 11436.388 | L7: 9192.931 | M7: 10103.105 | N7: 11220.497 | O7: 14319.025 | P7: 11254.3892 | Q7: 0.004658839141 | R7: 0.002712717613 | S7: -2927.9338 | U7: =G7-INDEX($C7:$G7,1,aux!$AL$1) -> 8928.937 | V7: 0.00487989483 | W7: 0.003461080691 | X7: =+IF(INDEX($C7:$G7,1,aux!$AL$1)>0,(G7/INDEX($C7:$G7,1,aux!$AL$1))^(1/($G$3-INDEX($C$3:$G$3,1,aux!$AL$1)))-1,"n.d.") -> 0.157327983 | Y7: =IF(INDEX($C7:$G7,1,aux!$AL$1)>0,(G7-INDEX($C7:$G7,1,aux!$AL$1))/INDEX($C7:$G7,1,aux!$AL$1),"n.d.") -> 0.7940139516 | AA7: =O7-INDEX($K7:$O7,1,aux!$AL$1) -> 2882.637 | AB7: 0.002220968478 | AC7: 0.001471582483 | AD7: =+IF(INDEX($K7:$O7,1,aux!$AL$1)>0,(O7/INDEX($K7:$O7,1,aux!$AL$1))^(1/($O$3-INDEX($K$3:$O$3,1,aux!$AL$1)))-1,"n.d.") -> 0.05780628129 | AE7: =IF(INDEX($K7:$O7,1,aux!$AL$1)>0,(O7-INDEX($K7:$O7,1,aux!$AL$1))/INDEX($K7:$O7,1,aux!$AL$1),"n.d.") -> 0.2520583422
A8: 06 | B8: Plantas vivas e produtos de floricultura | C8: 47970.522 | D8: 49866.133 | E8: 56072.84 | F8: 63808.402 | G8: 88086.476 | H8: 61160.8746 | I8: 0.01301230595 | J8: 0.008871888034 | K8: 16231.131 | L8: 16676.29 | M8: 26816.717 | N8: 25587.467 | O8: 24629.919 | P8: 21988.3048 | Q8: 0.009102224317 | R8: 0.005299982135 | S8: -39172.5698 | U8: =G8-INDEX($C8:$G8,1,aux!$AL$1) -> 40115.954 | V8: 0.02192440562 | W8: 0.01554995335 | X8: =+IF(INDEX($C8:$G8,1,aux!$AL$1)>0,(G8/INDEX($C8:$G8,1,aux!$AL$1))^(1/($G$3-INDEX($C$3:$G$3,1,aux!$AL$1)))-1,"n.d.") -> 0.1640823324 | Y8: =IF(INDEX($C8:$G8,1,aux!$AL$1)>0,(G8-INDEX($C8:$G8,1,aux!$AL$1))/INDEX($C8:$G8,1,aux!$AL$1),"n.d.") -> 0.8362626114 | AA8: =O8-INDEX($K8:$O8,1,aux!$AL$1) -> 8398.788 | AB8: 0.006470965094 | AC8: 0.004287570479 | AD8: =+IF(INDEX($K8:$O8,1,aux!$AL$1)>0,(O8/INDEX($K8:$O8,1,aux!$AL$1))^(1/($O$3-INDEX($K$3:$O$3,1,aux!$AL$1)))-1,"n.d.") -> 0.1098864521 | AE8: =IF(INDEX($K8:$O8,1,aux!$AL$1)>0,(O8-INDEX($K8:$O8,1,aux!$AL$1))/INDEX($K8:$O8,1,aux!$AL$1),"n.d.") -> 0.5174493386
A9: 07 | B9: Produtos hortícolas | C9: 250019.782 | D9: 256812.47 | E9: 265514.48 | F9: 277516.48 | G9: 342343.233 | H9: 278441.289 | I9: 0.05923988603 | J9: 0.04039019972 | K9: 112873.713 | L9: 123245.702 | M9: 111505.193 | N9: 134149.038 | O9: 171885.647 | P9: 130731.8586 | Q9: 0.05411743712 | R9: 0.03151113837 | S9: -147709.4304 | U9: =G9-INDEX($C9:$G9,1,aux!$AL$1) -> 92323.451 | V9: 0.05045715198 | W9: 0.03578689306 | X9: =+IF(INDEX($C9:$G9,1,aux!$AL$1)>0,(G9/INDEX($C9:$G9,1,aux!$AL$1))^(1/($G$3-INDEX($C$3:$G$3,1,aux!$AL$1)))-1,"n.d.") -> 0.08173739656 | Y9: =IF(INDEX($C9:$G9,1,aux!$AL$1)>0,(G9-INDEX($C9:$G9,1,aux!$AL$1))/INDEX($C9:$G9,1,aux!$AL$1),"n.d.") -> 0.3692645848 | AA9: =O9-INDEX($K9:$O9,1,aux!$AL$1) -> 59011.934 | AB9: 0.04546657982 | AC9: 0.03012551646 | AD9: =+IF(INDEX($K9:$O9,1,aux!$AL$1)>0,(O9/INDEX($K9:$O9,1,aux!$AL$1))^(1/($O$3-INDEX($K$3:$O$3,1,aux!$AL$1)))-1,"n.d.") -> 0.110866066 | AE9: =IF(INDEX($K9:$O9,1,aux!$AL$1)>0,(O9-INDEX($K9:$O9,1,aux!$AL$1))/INDEX($K9:$O9,1,aux!$AL$1),"n.d.") -> 0.5228137928
A10: 08 | B10: Frutas | C10: 417925.241 | D10: 397487.768 | E10: 435114.764 | F10: 440386.199 | G10: 459789.407 | H10: 430140.6758 | I10: 0.09151474878 | J10: 0.06239544381 | K10: 240030.466 | L10: 267848.484 | M10: 337095.346 | N10: 359761.809 | O10: 440382.514 | P10: 329023.7238 | Q10: 0.1362018476 | R10: 0.07930669845 | S10: -101116.952 | U10: =G10-INDEX($C10:$G10,1,aux!$AL$1) -> 41864.166 | V10: 0.02287984866 | W10: 0.01622760431 | X10: =+IF(INDEX($C10:$G10,1,aux!$AL$1)>0,(G10/INDEX($C10:$G10,1,aux!$AL$1))^(1/($G$3-INDEX($C$3:$G$3,1,aux!$AL$1)))-1,"n.d.") -> 0.02415358593 | Y10: =IF(INDEX($C10:$G10,1,aux!$AL$1)>0,(G10-INDEX($C10:$G10,1,aux!$AL$1))/INDEX($C10:$G10,1,aux!$AL$1),"n.d.") -> 0.1001714228 | AA10: =O10-INDEX($K10:$O10,1,aux!$AL$1) -> 200352.048 | AB10: 0.1543640712 | AC10: 0.102279463 | AD10: =+IF(INDEX($K10:$O10,1,aux!$AL$1)>0,(O10/INDEX($K10:$O10,1,aux!$AL$1))^(1/($O$3-INDEX($K$3:$O$3,1,aux!$AL$1)))-1,"n.d.") -> 0.1638336894 | AE10: =IF(INDEX($K10:$O10,1,aux!$AL$1)>0,(O10-INDEX($K10:$O10,1,aux!$AL$1))/INDEX($K10:$O10,1,aux!$AL$1),"n.d.") -> 0.8346942425
A11: 09 | B11: Café, chá, mate e especiarias | C11: 60146.83 | D11: 63010.02 | E11: 74716.097 | F11: 98414.902 | G11: 110337.295 | H11: 81325.0288 | I11: 0.01730233851 | J11: 0.01179686449 | K11: 28169.176 | L11: 30814.158 | M11: 27584.698 | N11: 36023.861 | O11: 37528.669 | P11: 32024.1124 | Q11: 0.01325662243 | R11: 0.007718977209 | S11: -49300.9164 | U11: =G11-INDEX($C11:$G11,1,aux!$AL$1) -> 50190.465 | V11: 0.02743038625 | W11: 0.01945508735 | X11: =+IF(INDEX($C11:$G11,1,aux!$AL$1)>0,(G11/INDEX($C11:$G11,1,aux!$AL$1))^(1/($G$3-INDEX($C$3:$G$3,1,aux!$AL$1)))-1,"n.d.") -> 0.1637974396 | Y11: =IF(INDEX($C11:$G11,1,aux!$AL$1)>0,(G11-INDEX($C11:$G11,1,aux!$AL$1))/INDEX($C11:$G11,1,aux!$AL$1),"n.d.") -> 0.8344656734 | AA11: =O11-INDEX($K11:$O11,1,aux!$AL$1) -> 9359.493 | AB11: 0.007211153859 | AC11: 0.004778009146 | AD11: =+IF(INDEX($K11:$O11,1,aux!$AL$1)>0,(O11/INDEX($K11:$O11,1,aux!$AL$1))^(1/($O$3-INDEX($K$3:$O$3,1,aux!$AL$1)))-1,"n.d.") -> 0.07435362779 | AE11: =IF(INDEX($K11:$O11,1,aux!$AL$1)>0,(O11-INDEX($K11:$O11,1,aux!$AL$1))/INDEX($K11:$O11,1,aux!$AL$1),"n.d.") -> 0.3322600917
A12: 10 | B12: Cereais | C12: 98433.416 | D12: 95859.352 | E12: 86111.456 | F12: 118503.287 | G12: 148291.572 | H12: 109439.8166 | I12: 0.02328391126 | J12: 0.01587514576 | K12: 65313.019 | L12: 51031.089 | M12: 39595.512 | N12: 33283.514 | O12: 98121.125 | P12: 57468.8518 | Q12: 0.02378966387 | R12: 0.01385208595 | S12: -51970.9648 | U12: =G12-INDEX($C12:$G12,1,aux!$AL$1) -> 49858.156 | V12: 0.02724877079 | W12: 0.01932627602 | X12: =+IF(INDEX($C12:$G12,1,aux!$AL$1)>0,(G12/INDEX($C12:$G12,1,aux!$AL$1))^(1/($G$3-INDEX($C$3:$G$3,1,aux!$AL$1)))-1,"n.d.") -> 0.1078819277 | Y12: =IF(INDEX($C12:$G12,1,aux!$AL$1)>0,(G12-INDEX($C12:$G12,1,aux!$AL$1))/INDEX($C12:$G12,1,aux!$AL$1),"n.d.") -> 0.5065165675 | AA12: =O12-INDEX($K12:$O12,1,aux!$AL$1) -> 32808.106 | AB12: 0.02527746964 | AC12: 0.01674849594 | AD12: =+IF(INDEX($K12:$O12,1,aux!$AL$1)>0,(O12/INDEX($K12:$O12,1,aux!$AL$1))^(1/($O$3-INDEX($K$3:$O$3,1,aux!$AL$1)))-1,"n.d.") -> 0.107109787 | AE12: =IF(INDEX($K12:$O12,1,aux!$AL$1)>0,(O12-INDEX($K12:$O12,1,aux!$AL$1))/INDEX($K12:$O12,1,aux!$AL$1),"n.d.") -> 0.5023210763
A13: 11 | B13: Produtos da indústria de moagem e outros | C13: 66082.798 | D13: 73263.634 | E13: 72590.448 | F13: 81592.839 | G13: 129270.017 | H13: 84559.9472 | I13: 0.01799058485 | J13: 0.01226611602 | K13: 21305.244 | L13: 25348.252 | M13: 25349.815 | N13: 25658.765 | O13: 53206.571 | P13: 30173.7294 | Q13: 0.01249064246 | R13: 0.007272967527 | S13: -54386.2178 | U13: =G13-INDEX($C13:$G13,1,aux!$AL$1) -> 63187.219 | V13: 0.0345334482 | W13: 0.02449295628 | X13: =+IF(INDEX($C13:$G13,1,aux!$AL$1)>0,(G13/INDEX($C13:$G13,1,aux!$AL$1))^(1/($G$3-INDEX($C$3:$G$3,1,aux!$AL$1)))-1,"n.d.") -> 0.1826394059 | Y13: =IF(INDEX($C13:$G13,1,aux!$AL$1)>0,(G13-INDEX($C13:$G13,1,aux!$AL$1))/INDEX($C13:$G13,1,aux!$AL$1),"n.d.") -> 0.9561825606 | AA13: =O13-INDEX($K13:$O13,1,aux!$AL$1) -> 31901.327 | AB13: 0.02457882893 | AC13: 0.01628558643 | AD13: =+IF(INDEX($K13:$O13,1,aux!$AL$1)>0,(O13/INDEX($K13:$O13,1,aux!$AL$1))^(1/($O$3-INDEX($K$3:$O$3,1,aux!$AL$1)))-1,"n.d.") -> 0.2570996041 | AE13: =IF(INDEX($K13:$O13,1,aux!$AL$1)>0,(O13-INDEX($K13:$O13,1,aux!$AL$1))/INDEX($K13:$O13,1,aux!$AL$1),"n.d.") -> 1.49734624
A14: 12 | B14: Sementes e frutos oleaginosos | C14: 82730.059 | D14: 78337.978 | E14: 84776.999 | F14: 98676.673 | G14: 103512.008 | H14: 89606.7434 | I14: 0.01906431796 | J14: 0.01299819533 | K14: 65496.367 | L14: 51254.218 | M14: 63423.357 | N14: 77201.857 | O14: 113584.019 | P14: 74191.9636 | Q14: 0.03071232191 | R14: 0.01788296484 | S14: -15414.7798 | U14: =G14-INDEX($C14:$G14,1,aux!$AL$1) -> 20781.949 | V14: 0.01135787222 | W14: 0.00805560644 | X14: =+IF(INDEX($C14:$G14,1,aux!$AL$1)>0,(G14/INDEX($C14:$G14,1,aux!$AL$1))^(1/($G$3-INDEX($C$3:$G$3,1,aux!$AL$1)))-1,"n.d.") -> 0.05762534528 | Y14: =IF(INDEX($C14:$G14,1,aux!$AL$1)>0,(G14-INDEX($C14:$G14,1,aux!$AL$1))/INDEX($C14:$G14,1,aux!$AL$1),"n.d.") -> 0.251201912 | AA14: =O14-INDEX($K14:$O14,1,aux!$AL$1) -> 48087.652 | AB14: 0.03704981213 | AC14: 0.02454868454 | AD14: =+IF(INDEX($K14:$O14,1,aux!$AL$1)>0,(O14/INDEX($K14:$O14,1,aux!$AL$1))^(1/($O$3-INDEX($K$3:$O$3,1,aux!$AL$1)))-1,"n.d.") -> 0.1475589518 | AE14: =IF(INDEX($K14:$O14,1,aux!$AL$1)>0,(O14-INDEX($K14:$O14,1,aux!$AL$1))/INDEX($K14:$O14,1,aux!$AL$1),"n.d.") -> 0.734203349
A15: 13a | B15: Sucos e extratos vegetais (exc. NC 1301) (a) | C15: 3698.258 | D15: 5384.595 | E15: 5035.69 | F15: 6512.085 | G15: 7351.05 | H15: 5596.3356 | I15: 0.001190650583 | J15: 0.00081179452 | K15: 804.603 | L15: 2530.35 | M15: 3642.898 | N15: 867.929 | O15: 2265.177 | P15: 2022.1914 | Q15: 0.0008371013546 | R15: 0.0004874217632 | S15: -3574.1442 | U15: =G15-INDEX($C15:$G15,1,aux!$AL$1) -> 3652.792 | V15: 0.001996345231 | W15: 0.001415914107 | X15: =+IF(INDEX($C15:$G15,1,aux!$AL$1)>0,(G15/INDEX($C15:$G15,1,aux!$AL$1))^(1/($G$3-INDEX($C$3:$G$3,1,aux!$AL$1)))-1,"n.d.") -> 0.1873753887 | Y15: =IF(INDEX($C15:$G15,1,aux!$AL$1)>0,(G15-INDEX($C15:$G15,1,aux!$AL$1))/INDEX($C15:$G15,1,aux!$AL$1),"n.d.") -> 0.9877061038 | AA15: =O15-INDEX($K15:$O15,1,aux!$AL$1) -> 1460.574 | AB15: 0.001125319912 | AC15: 0.0007456211497 | AD15: =+IF(INDEX($K15:$O15,1,aux!$AL$1)>0,(O15/INDEX($K15:$O15,1,aux!$AL$1))^(1/($O$3-INDEX($K$3:$O$3,1,aux!$AL$1)))-1,"n.d.") -> 0.2953291052 | AE15: =IF(INDEX($K15:$O15,1,aux!$AL$1)>0,(O15-INDEX($K15:$O15,1,aux!$AL$1))/INDEX($K15:$O15,1,aux!$AL$1),"n.d.") -> 1.815272874
A16: 14 | B16: Matérias para entrançar e outros | C16: 3220.925 | D16: 2538.981 | E16: 2969.989 | F16: 4277.126 | G16: 5643.071 | H16: 3730.0184 | I16: 0.0007935815328 | J16: 0.0005410698559 | K16: 906.287 | L16: 735.76 | M16: 643.969 | N16: 683.534 | O16: 601.407 | P16: 714.1914 | Q16: 0.000295644907 | R16: 0.0001721461339 | S16: -3015.827 | U16: =G16-INDEX($C16:$G16,1,aux!$AL$1) -> 2422.146 | V16: 0.001323765387 | W16: 0.0009388847463 | X16: =+IF(INDEX($C16:$G16,1,aux!$AL$1)>0,(G16/INDEX($C16:$G16,1,aux!$AL$1))^(1/($G$3-INDEX($C$3:$G$3,1,aux!$AL$1)))-1,"n.d.") -> 0.1504923243 | Y16: =IF(INDEX($C16:$G16,1,aux!$AL$1)>0,(G16-INDEX($C16:$G16,1,aux!$AL$1))/INDEX($C16:$G16,1,aux!$AL$1),"n.d.") -> 0.7520032289 | AA16: =O16-INDEX($K16:$O16,1,aux!$AL$1) -> -304.88 | AB16: -0.0002348991114 | AC16: -0.0001556408481 | AD16: =+IF(INDEX($K16:$O16,1,aux!$AL$1)>0,(O16/INDEX($K16:$O16,1,aux!$AL$1))^(1/($O$3-INDEX($K$3:$O$3,1,aux!$AL$1)))-1,"n.d.") -> -0.09744083193 | AE16: =IF(INDEX($K16:$O16,1,aux!$AL$1)>0,(O16-INDEX($K16:$O16,1,aux!$AL$1))/INDEX($K16:$O16,1,aux!$AL$1),"n.d.") -> -0.3364055757
A17: 15 | B17: Gorduras e óleos animais ou vegetais | C17: 507611.597 | D17: 524424.095 | E17: 476950.971 | F17: 655803.241 | G17: 888659.357 | H17: 610689.8522 | I17: 0.1299275599 | J17: 0.08858558723 | K17: 277288.393 | L17: 240090.797 | M17: 284799.966 | N17: 459856.761 | O17: 730822.817 | P17: 398571.7468 | Q17: 0.1649917753 | R17: 0.09607030451 | S17: -212118.1054 | U17: =G17-INDEX($C17:$G17,1,aux!$AL$1) -> 381047.76 | V17: 0.2082524486 | W17: 0.1477037014 | X17: =+IF(INDEX($C17:$G17,1,aux!$AL$1)>0,(G17/INDEX($C17:$G17,1,aux!$AL$1))^(1/($G$3-INDEX($C$3:$G$3,1,aux!$AL$1)))-1,"n.d.") -> 0.1502730524 | Y17: =IF(INDEX($C17:$G17,1,aux!$AL$1)>0,(G17-INDEX($C17:$G17,1,aux!$AL$1))/INDEX($C17:$G17,1,aux!$AL$1),"n.d.") -> 0.7506679561 | AA17: =O17-INDEX($K17:$O17,1,aux!$AL$1) -> 453534.424 | AB17: 0.3494320164 | AC17: 0.2315287405 | AD17: =+IF(INDEX($K17:$O17,1,aux!$AL$1)>0,(O17/INDEX($K17:$O17,1,aux!$AL$1))^(1/($O$3-INDEX($K$3:$O$3,1,aux!$AL$1)))-1,"n.d.") -> 0.2741486599 | AE17: =IF(INDEX($K17:$O17,1,aux!$AL$1)>0,(O17-INDEX($K17:$O17,1,aux!$AL$1))/INDEX($K17:$O17,1,aux!$AL$1),"n.d.") -> 1.635605512
A18: 16a | B18: Preparações de carnes (exc. NC 1604-05) (a) | C18: 75654.557 | D18: 87161.941 | E18: 95670.956 | F18: 108318.74 | G18: 145227.265 | H18: 102406.6918 | I18: 0.02178757602 | J18: 0.01485493315 | K18: 5651.314 | L18: 7182.815 | M18: 5755.256 | N18: 8798.277 | O18: 12081.643 | P18: 7893.861 | Q18: 0.003267723192 | R18: 0.001902707947 | S18: -94512.8308 | U18: =G18-INDEX($C18:$G18,1,aux!$AL$1) -> 69572.708 | V18: 0.03802328296 | W18: 0.02696813252 | X18: =+IF(INDEX($C18:$G18,1,aux!$AL$1)>0,(G18/INDEX($C18:$G18,1,aux!$AL$1))^(1/($G$3-INDEX($C$3:$G$3,1,aux!$AL$1)))-1,"n.d.") -> 0.177072644 | Y18: =IF(INDEX($C18:$G18,1,aux!$AL$1)>0,(G18-INDEX($C18:$G18,1,aux!$AL$1))/INDEX($C18:$G18,1,aux!$AL$1),"n.d.") -> 0.9196102754 | AA18: =O18-INDEX($K18:$O18,1,aux!$AL$1) -> 6430.329 | AB18: 0.004954337995 | AC18: 0.003282674689 | AD18: =+IF(INDEX($K18:$O18,1,aux!$AL$1)>0,(O18/INDEX($K18:$O18,1,aux!$AL$1))^(1/($O$3-INDEX($K$3:$O$3,1,aux!$AL$1)))-1,"n.d.") -> 0.2091888673 | AE18: =IF(INDEX($K18:$O18,1,aux!$AL$1)>0,(O18-INDEX($K18:$O18,1,aux!$AL$1))/INDEX($K18:$O18,1,aux!$AL$1),"n.d.") -> 1.137846703
A19: 17 | B19: Açúcares e produtos de confeitaria | C19: 66171.983 | D19: 63055.202 | E19: 53475.3 | F19: 60871.84 | G19: 83322.731 | H19: 65379.4112 | I19: 0.01390982236 | J19: 0.009483821473 | K19: 75836.93 | L19: 65163.637 | M19: 70556.11 | N19: 85348.472 | O19: 133714.533 | P19: 86123.9364 | Q19: 0.03565165188 | R19: 0.02075900478 | S19: 20744.5252 | U19: =G19-INDEX($C19:$G19,1,aux!$AL$1) -> 17150.748 | V19: 0.009373327026 | W19: 0.006648061548 | X19: =+IF(INDEX($C19:$G19,1,aux!$AL$1)>0,(G19/INDEX($C19:$G19,1,aux!$AL$1))^(1/($G$3-INDEX($C$3:$G$3,1,aux!$AL$1)))-1,"n.d.") -> 0.05930820611 | Y19: =IF(INDEX($C19:$G19,1,aux!$AL$1)>0,(G19-INDEX($C19:$G19,1,aux!$AL$1))/INDEX($C19:$G19,1,aux!$AL$1),"n.d.") -> 0.2591844346 | AA19: =O19-INDEX($K19:$O19,1,aux!$AL$1) -> 57877.603 | AB19: 0.04459261845 | AC19: 0.02954644194 | AD19: =+IF(INDEX($K19:$O19,1,aux!$AL$1)>0,(O19/INDEX($K19:$O19,1,aux!$AL$1))^(1/($O$3-INDEX($K$3:$O$3,1,aux!$AL$1)))-1,"n.d.") -> 0.152323628 | AE19: =IF(INDEX($K19:$O19,1,aux!$AL$1)>0,(O19-INDEX($K19:$O19,1,aux!$AL$1))/INDEX($K19:$O19,1,aux!$AL$1),"n.d.") -> 0.7631849417
A20: 18 | B20: Cacau e suas preparações | C20: 52185.782 | D20: 60776.324 | E20: 66728.965 | F20: 69096.022 | G20: 89860.817 | H20: 67729.582 | I20: 0.01440983388 | J20: 0.009824733083 | K20: 9785.39 | L20: 12492.071 | M20: 11599.317 | N20: 15952.634 | O20: 24950.316 | P20: 14955.9456 | Q20: 0.006191126281 | R20: 0.003604927493 | S20: -52773.6364 | U20: =G20-INDEX($C20:$G20,1,aux!$AL$1) -> 37675.035 | V20: 0.0205903803 | W20: 0.01460379171 | X20: =+IF(INDEX($C20:$G20,1,aux!$AL$1)>0,(G20/INDEX($C20:$G20,1,aux!$AL$1))^(1/($G$3-INDEX($C$3:$G$3,1,aux!$AL$1)))-1,"n.d.") -> 0.1455249211 | Y20: =IF(INDEX($C20:$G20,1,aux!$AL$1)>0,(G20-INDEX($C20:$G20,1,aux!$AL$1))/INDEX($C20:$G20,1,aux!$AL$1),"n.d.") -> 0.7219406044 | AA20: =O20-INDEX($K20:$O20,1,aux!$AL$1) -> 15164.926 | AB20: 0.01168403189 | AC20: 0.007741675231 | AD20: =+IF(INDEX($K20:$O20,1,aux!$AL$1)>0,(O20/INDEX($K20:$O20,1,aux!$AL$1))^(1/($O$3-INDEX($K$3:$O$3,1,aux!$AL$1)))-1,"n.d.") -> 0.2636432382 | AE20: =IF(INDEX($K20:$O20,1,aux!$AL$1)>0,(O20-INDEX($K20:$O20,1,aux!$AL$1))/INDEX($K20:$O20,1,aux!$AL$1),"n.d.") -> 1.549751824
A21: 19a | B21: Preparações à base de cereais (exc. NC 19022010) (a) | C21: 315938.996 | D21: 330351.508 | E21: 336220.855 | F21: 364496.177 | G21: 463679.85 | H21: 362137.4772 | I21: 0.0770467015 | J21: 0.05253102039 | K21: 128634.895 | L21: 131830.11 | M21: 126015.563 | N21: 132190.195 | O21: 157457.543 | P21: 135225.6612 | Q21: 0.05597768054 | R21: 0.03259430843 | S21: -226911.816 | U21: =G21-INDEX($C21:$G21,1,aux!$AL$1) -> 147740.854 | V21: 0.08074419493 | W21: 0.05726807312 | X21: =+IF(INDEX($C21:$G21,1,aux!$AL$1)>0,(G21/INDEX($C21:$G21,1,aux!$AL$1))^(1/($G$3-INDEX($C$3:$G$3,1,aux!$AL$1)))-1,"n.d.") -> 0.1006614286 | Y21: =IF(INDEX($C21:$G21,1,aux!$AL$1)>0,(G21-INDEX($C21:$G21,1,aux!$AL$1))/INDEX($C21:$G21,1,aux!$AL$1),"n.d.") -> 0.4676246233 | AA21: =O21-INDEX($K21:$O21,1,aux!$AL$1) -> 28822.648 | AB21: 0.02220681712 | AC21: 0.01471392476 | AD21: =+IF(INDEX($K21:$O21,1,aux!$AL$1)>0,(O21/INDEX($K21:$O21,1,aux!$AL$1))^(1/($O$3-INDEX($K$3:$O$3,1,aux!$AL$1)))-1,"n.d.") -> 0.05184359926 | AE21: =IF(INDEX($K21:$O21,1,aux!$AL$1)>0,(O21-INDEX($K21:$O21,1,aux!$AL$1))/INDEX($K21:$O21,1,aux!$AL$1),"n.d.") -> 0.2240655461
A22: 20 | B22: Preparações de produtos vegetais | C22: 182552.324 | D22: 198334.701 | E22: 197534.409 | F22: 221727.852 | G22: 283523.957 | H22: 216734.6486 | I22: 0.04611146547 | J22: 0.03143914386 | K22: 80815.632 | L22: 86543.882 | M22: 87890.583 | N22: 91726.892 | O22: 112913.931 | P22: 91978.184 | Q22: 0.03807506175 | R22: 0.02217009162 | S22: -124756.4646 | U22: =G22-INDEX($C22:$G22,1,aux!$AL$1) -> 100971.633 | V22: 0.05518360695 | W22: 0.03913914604 | X22: =+IF(INDEX($C22:$G22,1,aux!$AL$1)>0,(G22/INDEX($C22:$G22,1,aux!$AL$1))^(1/($G$3-INDEX($C$3:$G$3,1,aux!$AL$1)))-1,"n.d.") -> 0.116350571 | Y22: =IF(INDEX($C22:$G22,1,aux!$AL$1)>0,(G22-INDEX($C22:$G22,1,aux!$AL$1))/INDEX($C22:$G22,1,aux!$AL$1),"n.d.") -> 0.5531106413 | AA22: =O22-INDEX($K22:$O22,1,aux!$AL$1) -> 32098.299 | AB22: 0.02473058879 | AC22: 0.01638614038 | AD22: =+IF(INDEX($K22:$O22,1,aux!$AL$1)>0,(O22/INDEX($K22:$O22,1,aux!$AL$1))^(1/($O$3-INDEX($K$3:$O$3,1,aux!$AL$1)))-1,"n.d.") -> 0.08720899889 | AE22: =IF(INDEX($K22:$O22,1,aux!$AL$1)>0,(O22-INDEX($K22:$O22,1,aux!$AL$1))/INDEX($K22:$O22,1,aux!$AL$1),"n.d.") -> 0.3971793353
A23: 21 | B23: Preparações alimentícias diversas | C23: 167041.058 | D23: 179076.318 | E23: 183619.279 | F23: 210591.126 | G23: 270740.535 | H23: 202213.6632 | I23: 0.0430220475 | J23: 0.02933275547 | K23: 58714.701 | L23: 60135.471 | M23: 56950.495 | N23: 72383.55 | O23: 84012.503 | P23: 66439.344 | Q23: 0.02750306665 | R23: 0.01601430122 | S23: -135774.3192 | U23: =G23-INDEX($C23:$G23,1,aux!$AL$1) -> 103699.477 | V23: 0.05667444419 | W23: 0.04019652703 | X23: =+IF(INDEX($C23:$G23,1,aux!$AL$1)>0,(G23/INDEX($C23:$G23,1,aux!$AL$1))^(1/($G$3-INDEX($C$3:$G$3,1,aux!$AL$1)))-1,"n.d.") -> 0.1283205882 | Y23: =IF(INDEX($C23:$G23,1,aux!$AL$1)>0,(G23-INDEX($C23:$G23,1,aux!$AL$1))/INDEX($C23:$G23,1,aux!$AL$1),"n.d.") -> 0.6208023239 | AA23: =O23-INDEX($K23:$O23,1,aux!$AL$1) -> 25297.802 | AB23: 0.01949104962 | AC23: 0.0129144954 | AD23: =+IF(INDEX($K23:$O23,1,aux!$AL$1)>0,(O23/INDEX($K23:$O23,1,aux!$AL$1))^(1/($O$3-INDEX($K$3:$O$3,1,aux!$AL$1)))-1,"n.d.") -> 0.09370265801 | AE23: =IF(INDEX($K23:$O23,1,aux!$AL$1)>0,(O23-INDEX($K23:$O23,1,aux!$AL$1))/INDEX($K23:$O23,1,aux!$AL$1),"n.d.") -> 0.4308597603
A24: 22 | B24: Bebidas, líquidos alcoólicos e vinagres | C24: 287992.77 | D24: 309703.91 | E24: 306236.156 | F24: 306568.504 | G24: 380348.991 | H24: 318170.0662 | I24: 0.06769239766 | J24: 0.0461531857 | K24: 115831.356 | L24: 136618.365 | M24: 166367.851 | N24: 194762.879 | O24: 187838.502 | P24: 160283.7906 | Q24: 0.06635068186 | R24: 0.03863423008 | S24: -157886.2756 | U24: =G24-INDEX($C24:$G24,1,aux!$AL$1) -> 92356.221 | V24: 0.05047506163 | W24: 0.03579959553 | X24: =+IF(INDEX($C24:$G24,1,aux!$AL$1)>0,(G24/INDEX($C24:$G24,1,aux!$AL$1))^(1/($G$3-INDEX($C$3:$G$3,1,aux!$AL$1)))-1,"n.d.") -> 0.07201329352 | Y24: =IF(INDEX($C24:$G24,1,aux!$AL$1)>0,(G24-INDEX($C24:$G24,1,aux!$AL$1))/INDEX($C24:$G24,1,aux!$AL$1),"n.d.") -> 0.3206893736 | AA24: =O24-INDEX($K24:$O24,1,aux!$AL$1) -> 72007.146 | AB24: 0.05547892485 | AC24: 0.03675955548 | AD24: =+IF(INDEX($K24:$O24,1,aux!$AL$1)>0,(O24/INDEX($K24:$O24,1,aux!$AL$1))^(1/($O$3-INDEX($K$3:$O$3,1,aux!$AL$1)))-1,"n.d.") -> 0.128468963 | AE24: =IF(INDEX($K24:$O24,1,aux!$AL$1)>0,(O24-INDEX($K24:$O24,1,aux!$AL$1))/INDEX($K24:$O24,1,aux!$AL$1),"n.d.") -> 0.6216550379
A25: 23a | B25: Resíduos indústrias alimentares; alimentos p/ animais (exc. NC 230120) (a) | C25: 206259.68 | D25: 197211.08 | E25: 206091.317 | F25: 244807.607 | G25: 300942.091 | H25: 231062.355 | I25: 0.04915976228 | J25: 0.03351749555 | K25: 85722.575 | L25: 85845.271 | M25: 103548.661 | N25: 138250.073 | O25: 155999.114 | P25: 113873.1388 | Q25: 0.04713864313 | R25: 0.02744757301 | S25: -117189.2162 | U25: =G25-INDEX($C25:$G25,1,aux!$AL$1) -> 94682.411 | V25: 0.05174638459 | W25: 0.03670128532 | X25: =+IF(INDEX($C25:$G25,1,aux!$AL$1)>0,(G25/INDEX($C25:$G25,1,aux!$AL$1))^(1/($G$3-INDEX($C$3:$G$3,1,aux!$AL$1)))-1,"n.d.") -> 0.09904923586 | Y25: =IF(INDEX($C25:$G25,1,aux!$AL$1)>0,(G25-INDEX($C25:$G25,1,aux!$AL$1))/INDEX($C25:$G25,1,aux!$AL$1),"n.d.") -> 0.4590446907 | AA25: =O25-INDEX($K25:$O25,1,aux!$AL$1) -> 70276.539 | AB25: 0.05414555419 | AC25: 0.03587608283 | AD25: =+IF(INDEX($K25:$O25,1,aux!$AL$1)>0,(O25/INDEX($K25:$O25,1,aux!$AL$1))^(1/($O$3-INDEX($K$3:$O$3,1,aux!$AL$1)))-1,"n.d.") -> 0.1614666146 | AE25: =IF(INDEX($K25:$O25,1,aux!$AL$1)>0,(O25-INDEX($K25:$O25,1,aux!$AL$1))/INDEX($K25:$O25,1,aux!$AL$1),"n.d.") -> 0.8198136722
A26: 24 | B26: Tabaco | C26: 4602.492 | D26: 7416.861 | E26: 1665.727 | F26: 4640.563 | G26: 11797.834 | H26: 6024.6954 | I26: 0.001281786441 | J26: 0.0008739316332 | K26: 301660.106 | L26: 280476.981 | M26: 275906.06 | N26: 271664.861 | O26: 273113.766 | P26: 280564.3548 | Q26: 0.116141727 | R26: 0.06762622593 | S26: 274539.6594 | U26: =G26-INDEX($C26:$G26,1,aux!$AL$1) -> 7195.342 | V26: 0.00393244036 | W26: 0.00278909564 | X26: =+IF(INDEX($C26:$G26,1,aux!$AL$1)>0,(G26/INDEX($C26:$G26,1,aux!$AL$1))^(1/($G$3-INDEX($C$3:$G$3,1,aux!$AL$1)))-1,"n.d.") -> 0.2653256436 | Y26: =IF(INDEX($C26:$G26,1,aux!$AL$1)>0,(G26-INDEX($C26:$G26,1,aux!$AL$1))/INDEX($C26:$G26,1,aux!$AL$1),"n.d.") -> 1.56335785 | AA26: =O26-INDEX($K26:$O26,1,aux!$AL$1) -> -28546.34 | AB26: -0.02199393171 | AC26: -0.01457286988 | AD26: =+IF(INDEX($K26:$O26,1,aux!$AL$1)>0,(O26/INDEX($K26:$O26,1,aux!$AL$1))^(1/($O$3-INDEX($K$3:$O$3,1,aux!$AL$1)))-1,"n.d.") -> -0.02454682224 | AE26: =IF(INDEX($K26:$O26,1,aux!$AL$1)>0,(O26-INDEX($K26:$O26,1,aux!$AL$1))/INDEX($K26:$O26,1,aux!$AL$1),"n.d.") -> -0.09463080942
A27: 29 | B27: Manitol e sorbitol (NC 290543; 290544) | C27: 1849.239 | D27: 1264.376 | E27: 1362.644 | F27: 1951.756 | G27: 3329.339 | H27: 1951.4708 | I27: 0.0004151859381 | J27: 0.0002830768944 | K27: 81.224 | L27: 58.02 | M27: 70.697 | N27: 229.211 | O27: 129.55 | P27: 113.7404 | Q27: 4.70836949e-05 | R27: 2.741557812e-05 | S27: -1837.7304 | U27: =G27-INDEX($C27:$G27,1,aux!$AL$1) -> 1480.1 | V27: 0.0008089129017 | W27: 0.0005737240088 | X27: =+IF(INDEX($C27:$G27,1,aux!$AL$1)>0,(G27/INDEX($C27:$G27,1,aux!$AL$1))^(1/($G$3-INDEX($C$3:$G$3,1,aux!$AL$1)))-1,"n.d.") -> 0.1583538422 | Y27: =IF(INDEX($C27:$G27,1,aux!$AL$1)>0,(G27-INDEX($C27:$G27,1,aux!$AL$1))/INDEX($C27:$G27,1,aux!$AL$1),"n.d.") -> 0.8003832928 | AA27: =O27-INDEX($K27:$O27,1,aux!$AL$1) -> 48.326 | AB27: 3.723345072e-05 | AC27: 2.467036088e-05 | AD27: =+IF(INDEX($K27:$O27,1,aux!$AL$1)>0,(O27/INDEX($K27:$O27,1,aux!$AL$1))^(1/($O$3-INDEX($K$3:$O$3,1,aux!$AL$1)))-1,"n.d.") -> 0.123798016 | AE27: =IF(INDEX($K27:$O27,1,aux!$AL$1)>0,(O27-INDEX($K27:$O27,1,aux!$AL$1))/INDEX($K27:$O27,1,aux!$AL$1),"n.d.") -> 0.5949719295
A28: 33 | B28: Óleos essenciais e resinóides (NC 3301) | C28: 10831.679 | D28: 13080.29 | E28: 13464.287 | F28: 15528.437 | G28: 19181.632 | H28: 14417.265 | I28: 0.00306735089 | J28: 0.0020913429 | K28: 494.254 | L28: 548.088 | M28: 747.912 | N28: 588.994 | O28: 946.899 | P28: 665.2294 | Q28: 0.0002753767185 | R28: 0.000160344509 | S28: -13752.0356 | U28: =G28-INDEX($C28:$G28,1,aux!$AL$1) -> 8349.953 | V28: 0.004563465111 | W28: 0.003236651921 | X28: =+IF(INDEX($C28:$G28,1,aux!$AL$1)>0,(G28/INDEX($C28:$G28,1,aux!$AL$1))^(1/($G$3-INDEX($C$3:$G$3,1,aux!$AL$1)))-1,"n.d.") -> 0.1535792708 | Y28: =IF(INDEX($C28:$G28,1,aux!$AL$1)>0,(G28-INDEX($C28:$G28,1,aux!$AL$1))/INDEX($C28:$G28,1,aux!$AL$1),"n.d.") -> 0.770882612 | AA28: =O28-INDEX($K28:$O28,1,aux!$AL$1) -> 452.645 | AB28: 0.0003487467471 | AC28: 0.0002310746907 | AD28: =+IF(INDEX($K28:$O28,1,aux!$AL$1)>0,(O28/INDEX($K28:$O28,1,aux!$AL$1))^(1/($O$3-INDEX($K$3:$O$3,1,aux!$AL$1)))-1,"n.d.") -> 0.1764903419 | AE28: =IF(INDEX($K28:$O28,1,aux!$AL$1)>0,(O28-INDEX($K28:$O28,1,aux!$AL$1))/INDEX($K28:$O28,1,aux!$AL$1),"n.d.") -> 0.9158145407
A29: 35 | B29: Caseínas, albuminas, gelatinas, peptonas, dextrinas (NC 3501 a 3505) | C29: 8992.62 | D29: 10384.542 | E29: 9762.857 | F29: 11092.528 | G29: 20507.988 | H29: 12148.107 | I29: 0.002584575286 | J29: 0.001762182863 | K29: 1472.014 | L29: 2490.883 | M29: 3593.87 | N29: 4788.396 | O29: 6111.711 | P29: 3691.3748 | Q29: 0.00152807239 | R29: 0.0008897557439 | S29: -8456.7322 | U29: =G29-INDEX($C29:$G29,1,aux!$AL$1) -> 11515.368 | V29: 0.006293446215 | W29: 0.004463646437 | X29: =+IF(INDEX($C29:$G29,1,aux!$AL$1)>0,(G29/INDEX($C29:$G29,1,aux!$AL$1))^(1/($G$3-INDEX($C$3:$G$3,1,aux!$AL$1)))-1,"n.d.") -> 0.2288792276 | Y29: =IF(INDEX($C29:$G29,1,aux!$AL$1)>0,(G29-INDEX($C29:$G29,1,aux!$AL$1))/INDEX($C29:$G29,1,aux!$AL$1),"n.d.") -> 1.280535372 | AA29: =O29-INDEX($K29:$O29,1,aux!$AL$1) -> 4639.697 | AB29: 0.003574720225 | AC29: 0.002368559355 | AD29: =+IF(INDEX($K29:$O29,1,aux!$AL$1)>0,(O29/INDEX($K29:$O29,1,aux!$AL$1))^(1/($O$3-INDEX($K$3:$O$3,1,aux!$AL$1)))-1,"n.d.") -> 0.4274559571 | AE29: =IF(INDEX($K29:$O29,1,aux!$AL$1)>0,(O29-INDEX($K29:$O29,1,aux!$AL$1))/INDEX($K29:$O29,1,aux!$AL$1),"n.d.") -> 3.151938093
A30: 38a | B30: Agentes de acabamento, ácidos gordos, sorbitol (NC 380910, 382311-12-13-19-70, 382460) (a) | C30: 3801.204 | D30: 8331.624 | E30: 8324.482 | F30: 14457.574 | G30: 20143.578 | H30: 11011.6924 | I30: 0.002342796951 | J30: 0.001597336576 | K30: 1994.824 | L30: 1200.61 | M30: 406.796 | N30: 722.965 | O30: 1086.607 | P30: 1082.3604 | Q30: 0.0004480512364 | R30: 0.0002608882693 | S30: -9929.332 | U30: =G30-INDEX($C30:$G30,1,aux!$AL$1) -> 16342.374 | V30: 0.008931529744 | W30: 0.006334715441 | X30: =+IF(INDEX($C30:$G30,1,aux!$AL$1)>0,(G30/INDEX($C30:$G30,1,aux!$AL$1))^(1/($G$3-INDEX($C$3:$G$3,1,aux!$AL$1)))-1,"n.d.") -> 0.5172385169 | Y30: =IF(INDEX($C30:$G30,1,aux!$AL$1)>0,(G30-INDEX($C30:$G30,1,aux!$AL$1))/INDEX($C30:$G30,1,aux!$AL$1),"n.d.") -> 4.299262549 | AA30: =O30-INDEX($K30:$O30,1,aux!$AL$1) -> -908.217 | AB30: -0.0006997486428 | AC30: -0.0004636436111 | AD30: =+IF(INDEX($K30:$O30,1,aux!$AL$1)>0,(O30/INDEX($K30:$O30,1,aux!$AL$1))^(1/($O$3-INDEX($K$3:$O$3,1,aux!$AL$1)))-1,"n.d.") -> -0.1409034431 | AE30: =IF(INDEX($K30:$O30,1,aux!$AL$1)>0,(O30-INDEX($K30:$O30,1,aux!$AL$1))/INDEX($K30:$O30,1,aux!$AL$1),"n.d.") -> -0.4552867822
A31: 41 | B31: Couro e peles em bruto (NC 4101 a 4103) | C31: 15657.694 | D31: 12615.068 | E31: 8376.842 | F31: 14954.905 | G31: 11762.562 | H31: 12673.4142 | I31: 0.002696337226 | J31: 0.001838382994 | K31: 13085.06 | L31: 8878.896 | M31: 6001.646 | N31: 10966.947 | O31: 11248.93 | P31: 10036.2958 | Q31: 0.004154600207 | R31: 0.002419112748 | S31: -2637.1184 | U31: =G31-INDEX($C31:$G31,1,aux!$AL$1) -> -3895.132 | V31: -0.002128790304 | W31: -0.00150985119 | X31: =+IF(INDEX($C31:$G31,1,aux!$AL$1)>0,(G31/INDEX($C31:$G31,1,aux!$AL$1))^(1/($G$3-INDEX($C$3:$G$3,1,aux!$AL$1)))-1,"n.d.") -> -0.06901318353 | Y31: =IF(INDEX($C31:$G31,1,aux!$AL$1)>0,(G31-INDEX($C31:$G31,1,aux!$AL$1))/INDEX($C31:$G31,1,aux!$AL$1),"n.d.") -> -0.248767922 | AA31: =O31-INDEX($K31:$O31,1,aux!$AL$1) -> -1836.13 | AB31: -0.001414672348 | AC31: -0.000937342005 | AD31: =+IF(INDEX($K31:$O31,1,aux!$AL$1)>0,(O31/INDEX($K31:$O31,1,aux!$AL$1))^(1/($O$3-INDEX($K$3:$O$3,1,aux!$AL$1)))-1,"n.d.") -> -0.0370940419 | AE31: =IF(INDEX($K31:$O31,1,aux!$AL$1)>0,(O31-INDEX($K31:$O31,1,aux!$AL$1))/INDEX($K31:$O31,1,aux!$AL$1),"n.d.") -> -0.1403226275
A32: 43 | B32: Peles com pelo em bruto (NC 4301) | C32: 57.079 | D32: 39.916 | E32: 116.635 | F32: 175.537 | G32: 1169.358 | H32: 311.705 | I32: 6.631691996e-05 | J32: 4.521537466e-05 | K32: 0 | L32: 0 | M32: 0 | N32: 0 | O32: 0 | P32: 0 | Q32: 0 | R32: 0 | S32: -311.705 | U32: =G32-INDEX($C32:$G32,1,aux!$AL$1) -> 1112.279 | V32: 0.0006078892193 | W32: 0.0004311473325 | X32: =+IF(INDEX($C32:$G32,1,aux!$AL$1)>0,(G32/INDEX($C32:$G32,1,aux!$AL$1))^(1/($G$3-INDEX($C$3:$G$3,1,aux!$AL$1)))-1,"n.d.") -> 1.127491256 | Y32: =IF(INDEX($C32:$G32,1,aux!$AL$1)>0,(G32-INDEX($C32:$G32,1,aux!$AL$1))/INDEX($C32:$G32,1,aux!$AL$1),"n.d.") -> 19.48665884 | AA32: =O32-INDEX($K32:$O32,1,aux!$AL$1) -> 0 | AB32: 0 | AC32: 0 | AD32: =+IF(INDEX($K32:$O32,1,aux!$AL$1)>0,(O32/INDEX($K32:$O32,1,aux!$AL$1))^(1/($O$3-INDEX($K$3:$O$3,1,aux!$AL$1)))-1,"n.d.") -> n.d. | AE32: =IF(INDEX($K32:$O32,1,aux!$AL$1)>0,(O32-INDEX($K32:$O32,1,aux!$AL$1))/INDEX($K32:$O32,1,aux!$AL$1),"n.d.") -> n.d.
A33: 50 | B33: Seda crua (NC 5001-5003) | C33: 131.333 | D33: 0 | E33: 0.132 | F33: 0.031 | G33: 0.785 | H33: 26.4562 | I33: 5.628699244e-06 | J33: 3.837689466e-06 | K33: 0 | L33: 0 | M33: 0 | N33: 0 | O33: 0 | P33: 0 | Q33: 0 | R33: 0 | S33: -26.4562 | U33: =G33-INDEX($C33:$G33,1,aux!$AL$1) -> -130.548 | V33: -7.134785589e-05 | W33: -5.060369023e-05 | X33: =+IF(INDEX($C33:$G33,1,aux!$AL$1)>0,(G33/INDEX($C33:$G33,1,aux!$AL$1))^(1/($G$3-INDEX($C$3:$G$3,1,aux!$AL$1)))-1,"n.d.") -> -0.7219493287 | Y33: =IF(INDEX($C33:$G33,1,aux!$AL$1)>0,(G33-INDEX($C33:$G33,1,aux!$AL$1))/INDEX($C33:$G33,1,aux!$AL$1),"n.d.") -> -0.9940228275 | AA33: =O33-INDEX($K33:$O33,1,aux!$AL$1) -> 0 | AB33: 0 | AC33: 0 | AD33: =+IF(INDEX($K33:$O33,1,aux!$AL$1)>0,(O33/INDEX($K33:$O33,1,aux!$AL$1))^(1/($O$3-INDEX($K$3:$O$3,1,aux!$AL$1)))-1,"n.d.") -> n.d. | AE33: =IF(INDEX($K33:$O33,1,aux!$AL$1)>0,(O33-INDEX($K33:$O33,1,aux!$AL$1))/INDEX($K33:$O33,1,aux!$AL$1),"n.d.") -> n.d.
A34: 51 | B34: Lã não cardada (NC 5101-5103) | C34: 2742.528 | D34: 2213.86 | E34: 1502.589 | F34: 1991.213 | G34: 2633.096 | H34: 2216.6572 | I34: 0.000471605775 | J34: 0.0003215443634 | K34: 4156.722 | L34: 2308.039 | M34: 2051.998 | N34: 2975.623 | O34: 2793.213 | P34: 2857.119 | Q34: 0.001182725921 | R34: 0.0006886697177 | S34: 640.4618 | U34: =G34-INDEX($C34:$G34,1,aux!$AL$1) -> -109.432 | V34: -5.980741616e-05 | W34: -4.241859721e-05 | X34: =+IF(INDEX($C34:$G34,1,aux!$AL$1)>0,(G34/INDEX($C34:$G34,1,aux!$AL$1))^(1/($G$3-INDEX($C$3:$G$3,1,aux!$AL$1)))-1,"n.d.") -> -0.01012830539 | Y34: =IF(INDEX($C34:$G34,1,aux!$AL$1)>0,(G34-INDEX($C34:$G34,1,aux!$AL$1))/INDEX($C34:$G34,1,aux!$AL$1),"n.d.") -> -0.03990187156 | AA34: =O34-INDEX($K34:$O34,1,aux!$AL$1) -> -1363.509 | AB34: -0.001050534809 | AC34: -0.0006960695919 | AD34: =+IF(INDEX($K34:$O34,1,aux!$AL$1)>0,(O34/INDEX($K34:$O34,1,aux!$AL$1))^(1/($O$3-INDEX($K$3:$O$3,1,aux!$AL$1)))-1,"n.d.") -> -0.0946046313 | AE34: =IF(INDEX($K34:$O34,1,aux!$AL$1)>0,(O34-INDEX($K34:$O34,1,aux!$AL$1))/INDEX($K34:$O34,1,aux!$AL$1),"n.d.") -> -0.328025064
A35: 52 | B35: Algodão (NC 5201-5203) | C35: 7444.185 | D35: 6176.682 | E35: 3822.112 | F35: 9245.452 | G35: 10257.638 | H35: 7389.2138 | I35: 0.00157209509 | J35: 0.001071866253 | K35: 5658.552 | L35: 4971.262 | M35: 6160.774 | N35: 5961.561 | O35: 6888.546 | P35: 5928.139 | Q35: 0.002453997771 | R35: 0.001428897365 | S35: -1461.0748 | U35: =G35-INDEX($C35:$G35,1,aux!$AL$1) -> 2813.453 | V35: 0.001537624775 | W35: 0.001090565187 | X35: =+IF(INDEX($C35:$G35,1,aux!$AL$1)>0,(G35/INDEX($C35:$G35,1,aux!$AL$1))^(1/($G$3-INDEX($C$3:$G$3,1,aux!$AL$1)))-1,"n.d.") -> 0.08344670398 | Y35: =IF(INDEX($C35:$G35,1,aux!$AL$1)>0,(G35-INDEX($C35:$G35,1,aux!$AL$1))/INDEX($C35:$G35,1,aux!$AL$1),"n.d.") -> 0.3779396939 | AA35: =O35-INDEX($K35:$O35,1,aux!$AL$1) -> 1229.994 | AB35: 0.000947666287 | AC35: 0.000627910356 | AD35: =+IF(INDEX($K35:$O35,1,aux!$AL$1)>0,(O35/INDEX($K35:$O35,1,aux!$AL$1))^(1/($O$3-INDEX($K$3:$O$3,1,aux!$AL$1)))-1,"n.d.") -> 0.05040205541 | AE35: =IF(INDEX($K35:$O35,1,aux!$AL$1)>0,(O35-INDEX($K35:$O35,1,aux!$AL$1))/INDEX($K35:$O35,1,aux!$AL$1),"n.d.") -> 0.2173690372
A36: 53 | B36: Linho e cânhamo em bruto (NC 5301-5302) | C36: 1.446 | D36: 11.622 | E36: 0.875 | F36: 4.066 | G36: 117.568 | H36: 27.1154 | I36: 5.768947599e-06 | J36: 3.933311849e-06 | K36: 0.258 | L36: 0.751 | M36: 0 | N36: 6.211 | O36: 0 | P36: 1.444 | Q36: 5.977546715e-07 | R36: 3.480565816e-07 | S36: -25.6714 | U36: =G36-INDEX($C36:$G36,1,aux!$AL$1) -> 116.122 | V36: 6.346367406e-05 | W36: =IF($U$53<>0,U36/$U$53, "n.d.") -> 4.501180957e-05 | X36: =+IF(INDEX($C36:$G36,1,aux!$AL$1)>0,(G36/INDEX($C36:$G36,1,aux!$AL$1))^(1/($G$3-INDEX($C$3:$G$3,1,aux!$AL$1)))-1,"n.d.") -> 2.002826289 | Y36: =IF(INDEX($C36:$G36,1,aux!$AL$1)>0,(G36-INDEX($C36:$G36,1,aux!$AL$1))/INDEX($C36:$G36,1,aux!$AL$1),"n.d.") -> 80.30567082 | AA36: =O36-INDEX($K36:$O36,1,aux!$AL$1) -> -0.258 | AB36: -1.987797518e-07 | AC36: =IF($AA$53<>0,AA36/$AA$53, "n.d.") -> -1.317086684e-07 | AD36: =+IF(INDEX($K36:$O36,1,aux!$AL$1)>0,(O36/INDEX($K36:$O36,1,aux!$AL$1))^(1/($O$3-INDEX($K$3:$O$3,1,aux!$AL$1)))-1,"n.d.") -> -1 | AE36: =IF(INDEX($K36:$O36,1,aux!$AL$1)>0,(O36-INDEX($K36:$O36,1,aux!$AL$1))/INDEX($K36:$O36,1,aux!$AL$1),"n.d.") -> -1
A37: Subtotal Agrícola e Agroalimentar | C37: 4187471.47 | D37: 4336237.173 | E37: 4225256.956 | F37: 4734990.129 | G37: 6017211.108 | H37: 4700233.367 | I37: 1 | J37: 0.6818075189 | K37: 2021273.145 | L37: 2005829.268 | M37: 2174802.431 | N37: 2557436.888 | O37: 3319192.061 | P37: 2415706.759 | Q37: 1 | R37: 0.582273294 | S37: -2284526.609 | U37: =G37-INDEX($C37:$G37,1,aux!$AL$1) -> 1829739.638 | V37: 1 | W37: 0.7092531317 | X37: =+IF(INDEX($C37:$G37,1,aux!$AL$1)>0,(G37/INDEX($C37:$G37,1,aux!$AL$1))^(1/($G$3-INDEX($C$3:$G$3,1,aux!$AL$1)))-1,"n.d.") -> 0.09486569111 | Y37: =IF(INDEX($C37:$G37,1,aux!$AL$1)>0,(G37-INDEX($C37:$G37,1,aux!$AL$1))/INDEX($C37:$G37,1,aux!$AL$1),"n.d.") -> 0.4369557264 | AA37: =O37-INDEX($K37:$O37,1,aux!$AL$1) -> 1297918.916 | AB37: 1 | AC37: 0.6625859384 | AD37: =+IF(INDEX($K37:$O37,1,aux!$AL$1)>0,(O37/INDEX($K37:$O37,1,aux!$AL$1))^(1/($O$3-INDEX($K$3:$O$3,1,aux!$AL$1)))-1,"n.d.") -> 0.1320141208 | AE37: =IF(INDEX($K37:$O37,1,aux!$AL$1)>0,(O37-INDEX($K37:$O37,1,aux!$AL$1))/INDEX($K37:$O37,1,aux!$AL$1),"n.d.") -> 0.6421294021
A38: 03 | B38: Peixes e crustáceos | C38: 715795.873 | D38: 713496.617 | E38: 637213.952 | F38: 761470.764 | G38: 893255.849 | H38: 744246.611 | I38: 0.8392156573 | J38: 0.1079590939 | K38: 514332.416 | L38: 512776.817 | M38: 377421.61 | N38: 500085.74 | O38: 564605.154 | P38: 493844.3474 | Q38: 0.8964474692 | R38: 0.1190344705 | S38: -250402.2636 | U38: =G38-INDEX($C38:$G38,1,aux!$AL$1) -> 177459.976 | V38: =IF($U$44<>0,U38/$U$44, "n.d.") -> 0.7568904099 | W38: 0.06878795273 | X38: =+IF(INDEX($C38:$G38,1,aux!$AL$1)>0,(G38/INDEX($C38:$G38,1,aux!$AL$1))^(1/($G$3-INDEX($C$3:$G$3,1,aux!$AL$1)))-1,"n.d.") -> 0.05693108177 | Y38: =IF(INDEX($C38:$G38,1,aux!$AL$1)>0,(G38-INDEX($C38:$G38,1,aux!$AL$1))/INDEX($C38:$G38,1,aux!$AL$1),"n.d.") -> 0.2479198088 | AA38: =O38-INDEX($K38:$O38,1,aux!$AL$1) -> 50272.738 | AB38: =IF($AA$44<>0,AA38/$AA$44, "n.d.") -> 0.5652267134 | AC38: 0.02566416813 | AD38: =+IF(INDEX($K38:$O38,1,aux!$AL$1)>0,(O38/INDEX($K38:$O38,1,aux!$AL$1))^(1/($O$3-INDEX($K$3:$O$3,1,aux!$AL$1)))-1,"n.d.") -> 0.02358811684 | AE38: =IF(INDEX($K38:$O38,1,aux!$AL$1)>0,(O38-INDEX($K38:$O38,1,aux!$AL$1))/INDEX($K38:$O38,1,aux!$AL$1),"n.d.") -> 0.09774367012
A39: 05p | B39: Outros produtos de pescado (NC 0508, 051191) (p) | C39: 1934.113 | D39: 1714.026 | E39: 3108.91 | F39: 3135.077 | G39: 2402.214 | H39: 2458.868 | I39: 0.002772630059 | J39: 0.0003566790326 | K39: 801.472 | L39: 1071.021 | M39: 2139.343 | N39: 2437.901 | O39: 3107.249 | P39: 1911.3972 | Q39: 0.003469650289 | R39: 0.0004607163265 | S39: -547.4708 | U39: =G39-INDEX($C39:$G39,1,aux!$AL$1) -> 468.101 | V39: 0.001996513049 | W39: 0.000181447728 | X39: =+IF(INDEX($C39:$G39,1,aux!$AL$1)>0,(G39/INDEX($C39:$G39,1,aux!$AL$1))^(1/($G$3-INDEX($C$3:$G$3,1,aux!$AL$1)))-1,"n.d.") -> 0.05568040972 | Y39: =IF(INDEX($C39:$G39,1,aux!$AL$1)>0,(G39-INDEX($C39:$G39,1,aux!$AL$1))/INDEX($C39:$G39,1,aux!$AL$1),"n.d.") -> 0.2420236046 | AA39: =O39-INDEX($K39:$O39,1,aux!$AL$1) -> 2305.777 | AB39: 0.02592432414 | AC39: 0.001177096195 | AD39: =+IF(INDEX($K39:$O39,1,aux!$AL$1)>0,(O39/INDEX($K39:$O39,1,aux!$AL$1))^(1/($O$3-INDEX($K$3:$O$3,1,aux!$AL$1)))-1,"n.d.") -> 0.4032075914 | AE39: =IF(INDEX($K39:$O39,1,aux!$AL$1)>0,(O39-INDEX($K39:$O39,1,aux!$AL$1))/INDEX($K39:$O39,1,aux!$AL$1),"n.d.") -> 2.876927703
A40: 16p | B40: Preparações e conservas de peixes ou crustáceos (NC 1604-05) (p) | C40: 106104.98 | D40: 109837.287 | E40: 119776.3 | F40: 117548.85 | G40: 148544.211 | H40: 120362.3256 | I40: 0.1357210724 | J40: 0.01745954555 | K40: 49237.925 | L40: 36359.821 | M40: 41225.248 | N40: 46653.975 | O40: 82090.376 | P40: 51113.469 | Q40: 0.09278336417 | R40: 0.01232020727 | S40: -69248.8566 | U40: =G40-INDEX($C40:$G40,1,aux!$AL$1) -> 42439.231 | V40: 0.181008967 | W40: 0.01645051398 | X40: =+IF(INDEX($C40:$G40,1,aux!$AL$1)>0,(G40/INDEX($C40:$G40,1,aux!$AL$1))^(1/($G$3-INDEX($C$3:$G$3,1,aux!$AL$1)))-1,"n.d.") -> 0.08775225144 | Y40: =IF(INDEX($C40:$G40,1,aux!$AL$1)>0,(G40-INDEX($C40:$G40,1,aux!$AL$1))/INDEX($C40:$G40,1,aux!$AL$1),"n.d.") -> 0.3999739786 | AA40: =O40-INDEX($K40:$O40,1,aux!$AL$1) -> 32852.451 | AB40: 0.3693668506 | AC40: 0.01677113401 | AD40: =+IF(INDEX($K40:$O40,1,aux!$AL$1)>0,(O40/INDEX($K40:$O40,1,aux!$AL$1))^(1/($O$3-INDEX($K$3:$O$3,1,aux!$AL$1)))-1,"n.d.") -> 0.1363133934 | AE40: =IF(INDEX($K40:$O40,1,aux!$AL$1)>0,(O40-INDEX($K40:$O40,1,aux!$AL$1))/INDEX($K40:$O40,1,aux!$AL$1),"n.d.") -> 0.6672184297
A41: 19p | B41: Massas recheadas com pescado (NC 19022010) (p) | C41: 360.8 | D41: 6600.502 | E41: 7865.79 | F41: 5328.287 | G41: 5350.981 | H41: 5101.272 | I41: 0.005752216095 | J41: 0.000739981472 | K41: 203.546 | L41: 505.931 | M41: 341.635 | N41: 411.991 | O41: 1647.868 | P41: 622.1942 | Q41: 0.001129433634 | R41: 0.0001499714587 | S41: -4479.0778 | U41: =G41-INDEX($C41:$G41,1,aux!$AL$1) -> 4990.181 | V41: 0.02128378594 | W41: 0.001934319741 | X41: =+IF(INDEX($C41:$G41,1,aux!$AL$1)>0,(G41/INDEX($C41:$G41,1,aux!$AL$1))^(1/($G$3-INDEX($C$3:$G$3,1,aux!$AL$1)))-1,"n.d.") -> 0.9624189095 | Y41: =IF(INDEX($C41:$G41,1,aux!$AL$1)>0,(G41-INDEX($C41:$G41,1,aux!$AL$1))/INDEX($C41:$G41,1,aux!$AL$1),"n.d.") -> 13.8308786 | AA41: =O41-INDEX($K41:$O41,1,aux!$AL$1) -> 1444.322 | AB41: 0.01623880874 | AC41: 0.0007373245246 | AD41: =+IF(INDEX($K41:$O41,1,aux!$AL$1)>0,(O41/INDEX($K41:$O41,1,aux!$AL$1))^(1/($O$3-INDEX($K$3:$O$3,1,aux!$AL$1)))-1,"n.d.") -> 0.6868053198 | AE41: =IF(INDEX($K41:$O41,1,aux!$AL$1)>0,(O41-INDEX($K41:$O41,1,aux!$AL$1))/INDEX($K41:$O41,1,aux!$AL$1),"n.d.") -> 7.09580144
A42: 23p | B42: Farinhas de pescado (NC 230120) (p) | C42: 5813.75 | D42: 8049.321 | E42: 4299.901 | F42: 2988.708 | G42: 6543.272 | H42: 5538.9904 | I42: 0.006245789232 | J42: 0.000803476127 | K42: 1449.088 | L42: 3246.579 | M42: 2839.278 | N42: 2369.108 | O42: 2351.863 | P42: 2451.1832 | Q42: 0.004449493019 | R42: 0.0005908244082 | S42: -3087.8072 | U42: =G42-INDEX($C42:$G42,1,aux!$AL$1) -> 729.522 | V42: 0.003111508398 | W42: 0.0002827810867 | X42: =+IF(INDEX($C42:$G42,1,aux!$AL$1)>0,(G42/INDEX($C42:$G42,1,aux!$AL$1))^(1/($G$3-INDEX($C$3:$G$3,1,aux!$AL$1)))-1,"n.d.") -> 0.02999390645 | Y42: =IF(INDEX($C42:$G42,1,aux!$AL$1)>0,(G42-INDEX($C42:$G42,1,aux!$AL$1))/INDEX($C42:$G42,1,aux!$AL$1),"n.d.") -> 0.1254821759 | AA42: =O42-INDEX($K42:$O42,1,aux!$AL$1) -> 902.775 | AB42: 0.01015008465 | AC42: 0.0004608654771 | AD42: =+IF(INDEX($K42:$O42,1,aux!$AL$1)>0,(O42/INDEX($K42:$O42,1,aux!$AL$1))^(1/($O$3-INDEX($K$3:$O$3,1,aux!$AL$1)))-1,"n.d.") -> 0.1287020529 | AE42: =IF(INDEX($K42:$O42,1,aux!$AL$1)>0,(O42-INDEX($K42:$O42,1,aux!$AL$1))/INDEX($K42:$O42,1,aux!$AL$1),"n.d.") -> 0.6229952908
A43: 25 | B43: Sal e cloreto de sódio puro; água do mar (NC 2501) | C43: 6951.483 | D43: 7728.352 | E43: 6970.593 | F43: 8665.219 | G43: 15323.746 | H43: 9127.8786 | I43: 0.0102926349 | J43: 0.001324073886 | K43: 535.348 | L43: 402.165 | M43: 968.227 | N43: 1133.649 | O43: 1699.893 | P43: 947.8564 | Q43: 0.001720589646 | R43: 0.0002284679075 | S43: -8180.0222 | U43: =G43-INDEX($C43:$G43,1,aux!$AL$1) -> 8372.263 | V43: 0.03570881568 | W43: 0.003245299839 | X43: =+IF(INDEX($C43:$G43,1,aux!$AL$1)>0,(G43/INDEX($C43:$G43,1,aux!$AL$1))^(1/($G$3-INDEX($C$3:$G$3,1,aux!$AL$1)))-1,"n.d.") -> 0.2184897211 | Y43: =IF(INDEX($C43:$G43,1,aux!$AL$1)>0,(G43-INDEX($C43:$G43,1,aux!$AL$1))/INDEX($C43:$G43,1,aux!$AL$1),"n.d.") -> 1.204385165 | AA43: =O43-INDEX($K43:$O43,1,aux!$AL$1) -> 1164.545 | AB43: 0.01309321849 | AC43: 0.0005944987257 | AD43: =+IF(INDEX($K43:$O43,1,aux!$AL$1)>0,(O43/INDEX($K43:$O43,1,aux!$AL$1))^(1/($O$3-INDEX($K$3:$O$3,1,aux!$AL$1)))-1,"n.d.") -> 0.3348926759 | AE43: =IF(INDEX($K43:$O43,1,aux!$AL$1)>0,(O43-INDEX($K43:$O43,1,aux!$AL$1))/INDEX($K43:$O43,1,aux!$AL$1),"n.d.") -> 2.175304662
A44: Subtotal Mar | C44: 836960.999 | D44: 847426.105 | E44: 779235.446 | F44: 899136.905 | G44: 1071420.273 | H44: 886835.9456 | I44: 1 | J44: 0.1286428499 | K44: 566559.795 | L44: 554362.334 | M44: 424935.341 | N44: 553092.364 | O44: 655502.403 | P44: 550890.4474 | Q44: 1 | R44: 0.1327846579 | S44: -335945.4982 | U44: =G44-INDEX($C44:$G44,1,aux!$AL$1) -> 234459.274 | V44: 1 | W44: 0.0908823151 | X44: =+IF(INDEX($C44:$G44,1,aux!$AL$1)>0,(G44/INDEX($C44:$G44,1,aux!$AL$1))^(1/($G$3-INDEX($C$3:$G$3,1,aux!$AL$1)))-1,"n.d.") -> 0.06368653016 | Y44: =IF(INDEX($C44:$G44,1,aux!$AL$1)>0,(G44-INDEX($C44:$G44,1,aux!$AL$1))/INDEX($C44:$G44,1,aux!$AL$1),"n.d.") -> 0.28013166 | AA44: =O44-INDEX($K44:$O44,1,aux!$AL$1) -> 88942.608 | AB44: 1 | AC44: 0.04540508706 | AD44: =+IF(INDEX($K44:$O44,1,aux!$AL$1)>0,(O44/INDEX($K44:$O44,1,aux!$AL$1))^(1/($O$3-INDEX($K$3:$O$3,1,aux!$AL$1)))-1,"n.d.") -> 0.03712746176 | AE44: =IF(INDEX($K44:$O44,1,aux!$AL$1)>0,(O44-INDEX($K44:$O44,1,aux!$AL$1))/INDEX($K44:$O44,1,aux!$AL$1),"n.d.") -> 0.1569871508
A45: 13f | B45: Gomas e resinas (NC 1301) (f) | C45: 2437.211 | D45: 931.186 | E45: 862.786 | F45: 663.938 | G45: 458.892 | H45: 1070.8026 | I45: 0.000819462036 | J45: 0.0001553287267 | K45: 41.736 | L45: 61.847 | M45: 75.03 | N45: 165.759 | O45: 766.284 | P45: 222.1312 | Q45: 0.0001879038499 | R45: 5.354170785e-05 | S45: -848.6714 | U45: =G45-INDEX($C45:$G45,1,aux!$AL$1) -> -1978.319 | V45: =IF($U$52<>0,U45/$U$52, "n.d.") -> -0.003836829589 | W45: -0.0007668462316 | X45: =+IF(INDEX($C45:$G45,1,aux!$AL$1)>0,(G45/INDEX($C45:$G45,1,aux!$AL$1))^(1/($G$3-INDEX($C$3:$G$3,1,aux!$AL$1)))-1,"n.d.") -> -0.3412747071 | Y45: =IF(INDEX($C45:$G45,1,aux!$AL$1)>0,(G45-INDEX($C45:$G45,1,aux!$AL$1))/INDEX($C45:$G45,1,aux!$AL$1),"n.d.") -> -0.8117142915 | AA45: =O45-INDEX($K45:$O45,1,aux!$AL$1) -> 724.548 | AB45: =IF($AA$52<>0,AA45/$AA$52, "n.d.") -> 0.001266676215 | AC45: 0.0003698808227 | AD45: =+IF(INDEX($K45:$O45,1,aux!$AL$1)>0,(O45/INDEX($K45:$O45,1,aux!$AL$1))^(1/($O$3-INDEX($K$3:$O$3,1,aux!$AL$1)))-1,"n.d.") -> 1.069997083 | AE45: =IF(INDEX($K45:$O45,1,aux!$AL$1)>0,(O45-INDEX($K45:$O45,1,aux!$AL$1))/INDEX($K45:$O45,1,aux!$AL$1),"n.d.") -> 17.36026452
A46: 38f | B46: Tall oil, essências e colofónias (NC 3803,3805,3806) (f) | C46: 6262.384 | D46: 6319.548 | E46: 3260.775 | F46: 3314.861 | G46: 3355.055 | H46: 4502.5246 | I46: 0.003445684551 | J46: 0.0006531282357 | K46: 15792.048 | L46: 10818.327 | M46: 13850.65 | N46: 24640.516 | O46: 28499.553 | P46: 18720.2188 | Q46: 0.01583569163 | R46: 0.004512254406 | S46: 14217.6942 | U46: =G46-INDEX($C46:$G46,1,aux!$AL$1) -> -2907.329 | V46: -0.00563858808 | W46: -0.001126953887 | X46: =+IF(INDEX($C46:$G46,1,aux!$AL$1)>0,(G46/INDEX($C46:$G46,1,aux!$AL$1))^(1/($G$3-INDEX($C$3:$G$3,1,aux!$AL$1)))-1,"n.d.") -> -0.144460654 | Y46: =IF(INDEX($C46:$G46,1,aux!$AL$1)>0,(G46-INDEX($C46:$G46,1,aux!$AL$1))/INDEX($C46:$G46,1,aux!$AL$1),"n.d.") -> -0.464252751 | AA46: =O46-INDEX($K46:$O46,1,aux!$AL$1) -> 12707.505 | AB46: 0.02221563559 | AC46: 0.006487164969 | AD46: =+IF(INDEX($K46:$O46,1,aux!$AL$1)>0,(O46/INDEX($K46:$O46,1,aux!$AL$1))^(1/($O$3-INDEX($K$3:$O$3,1,aux!$AL$1)))-1,"n.d.") -> 0.1590439337 | AE46: =IF(INDEX($K46:$O46,1,aux!$AL$1)>0,(O46-INDEX($K46:$O46,1,aux!$AL$1))/INDEX($K46:$O46,1,aux!$AL$1),"n.d.") -> 0.8046774554
A47: 44 | B47: Madeira e suas obras | C47: 353250.532 | D47: 373913.453 | E47: 384396.683 | F47: 434466.014 | G47: 537662.872 | H47: 416737.9108 | I47: 0.3189204965 | J47: 0.06045126248 | K47: 248418.853 | L47: 278366.83 | M47: 253767.078 | N47: 339251.823 | O47: 438112.354 | P47: 311583.3876 | Q47: 0.2635726908 | R47: 0.07510294236 | S47: -105154.5232 | U47: =G47-INDEX($C47:$G47,1,aux!$AL$1) -> 184412.34 | V47: 0.357656537 | W47: 0.07148286398 | X47: =+IF(INDEX($C47:$G47,1,aux!$AL$1)>0,(G47/INDEX($C47:$G47,1,aux!$AL$1))^(1/($G$3-INDEX($C$3:$G$3,1,aux!$AL$1)))-1,"n.d.") -> 0.1107256618 | Y47: =IF(INDEX($C47:$G47,1,aux!$AL$1)>0,(G47-INDEX($C47:$G47,1,aux!$AL$1))/INDEX($C47:$G47,1,aux!$AL$1),"n.d.") -> 0.5220440546 | AA47: =O47-INDEX($K47:$O47,1,aux!$AL$1) -> 189693.501 | AB47: 0.3316277816 | AC47: 0.09683828844 | AD47: =+IF(INDEX($K47:$O47,1,aux!$AL$1)>0,(O47/INDEX($K47:$O47,1,aux!$AL$1))^(1/($O$3-INDEX($K$3:$O$3,1,aux!$AL$1)))-1,"n.d.") -> 0.1523920057 | AE47: =IF(INDEX($K47:$O47,1,aux!$AL$1)>0,(O47-INDEX($K47:$O47,1,aux!$AL$1))/INDEX($K47:$O47,1,aux!$AL$1),"n.d.") -> 0.7636034814
A48: 45 | B48: Cortiça e suas obras | C48: 155372.84 | D48: 137614.162 | E48: 122690.68 | F48: 148560.221 | G48: 195141.833 | H48: 151875.9472 | I48: 0.1162273727 | J48: 0.02203085563 | K48: 164047.589 | L48: 160609.32 | M48: 139666.325 | N48: 164206.743 | O48: 191444.29 | P48: 163994.8534 | Q48: 0.1387255114 | R48: 0.03952873135 | S48: 12118.9062 | U48: =G48-INDEX($C48:$G48,1,aux!$AL$1) -> 39768.993 | V48: 0.07712954739 | W48: 0.01541546253 | X48: =+IF(INDEX($C48:$G48,1,aux!$AL$1)>0,(G48/INDEX($C48:$G48,1,aux!$AL$1))^(1/($G$3-INDEX($C$3:$G$3,1,aux!$AL$1)))-1,"n.d.") -> 0.05862907835 | Y48: =IF(INDEX($C48:$G48,1,aux!$AL$1)>0,(G48-INDEX($C48:$G48,1,aux!$AL$1))/INDEX($C48:$G48,1,aux!$AL$1),"n.d.") -> 0.255958461 | AA48: =O48-INDEX($K48:$O48,1,aux!$AL$1) -> 27396.701 | AB48: 0.04789572193 | AC48: 0.01398598065 | AD48: =+IF(INDEX($K48:$O48,1,aux!$AL$1)>0,(O48/INDEX($K48:$O48,1,aux!$AL$1))^(1/($O$3-INDEX($K$3:$O$3,1,aux!$AL$1)))-1,"n.d.") -> 0.03936512755 | AE48: =IF(INDEX($K48:$O48,1,aux!$AL$1)>0,(O48-INDEX($K48:$O48,1,aux!$AL$1))/INDEX($K48:$O48,1,aux!$AL$1),"n.d.") -> 0.167004594
A49: 46 | B49: Obras de espartaria ou de cestaria | C49: 3172.817 | D49: 3654.062 | E49: 3996.113 | F49: 4246.06 | G49: 6354.241 | H49: 4284.6586 | I49: 0.00327895642 | J49: 0.00062152498 | K49: 303.199 | L49: 310.687 | M49: 284.225 | N49: 195.294 | O49: 336.091 | P49: 285.8992 | Q49: 0.0002418460818 | R49: 6.891211789e-05 | S49: -3998.7594 | U49: =G49-INDEX($C49:$G49,1,aux!$AL$1) -> 3181.424 | V49: 0.006170178691 | W49: 0.001233200007 | X49: =+IF(INDEX($C49:$G49,1,aux!$AL$1)>0,(G49/INDEX($C49:$G49,1,aux!$AL$1))^(1/($G$3-INDEX($C$3:$G$3,1,aux!$AL$1)))-1,"n.d.") -> 0.18961016 | Y49: =IF(INDEX($C49:$G49,1,aux!$AL$1)>0,(G49-INDEX($C49:$G49,1,aux!$AL$1))/INDEX($C49:$G49,1,aux!$AL$1),"n.d.") -> 1.002712731 | AA49: =O49-INDEX($K49:$O49,1,aux!$AL$1) -> 32.892 | AB49: 5.750276596e-05 | AC49: 1.679132372e-05 | AD49: =+IF(INDEX($K49:$O49,1,aux!$AL$1)>0,(O49/INDEX($K49:$O49,1,aux!$AL$1))^(1/($O$3-INDEX($K$3:$O$3,1,aux!$AL$1)))-1,"n.d.") -> 0.02608249731 | AE49: =IF(INDEX($K49:$O49,1,aux!$AL$1)>0,(O49-INDEX($K49:$O49,1,aux!$AL$1))/INDEX($K49:$O49,1,aux!$AL$1),"n.d.") -> 0.1084832074
A50: 47 | B50: Pastas de madeira | C50: 32390.903 | D50: 23829.78 | E50: 15538.308 | F50: 15936.074 | G50: 18105.115 | H50: 21160.036 | I50: 0.01619331722 | J50: 0.003069437306 | K50: 131937.211 | L50: 124993.315 | M50: 117732.006 | N50: 183174.215 | O50: 244959.602 | P50: 160559.2698 | Q50: 0.1358193038 | R50: 0.0387006306 | S50: 139399.2338 | U50: =G50-INDEX($C50:$G50,1,aux!$AL$1) -> -14285.788 | V50: -0.02770641848 | W50: -0.005537530951 | X50: =+IF(INDEX($C50:$G50,1,aux!$AL$1)>0,(G50/INDEX($C50:$G50,1,aux!$AL$1))^(1/($G$3-INDEX($C$3:$G$3,1,aux!$AL$1)))-1,"n.d.") -> -0.1353416137 | Y50: =IF(INDEX($C50:$G50,1,aux!$AL$1)>0,(G50-INDEX($C50:$G50,1,aux!$AL$1))/INDEX($C50:$G50,1,aux!$AL$1),"n.d.") -> -0.4410432151 | AA50: =O50-INDEX($K50:$O50,1,aux!$AL$1) -> 113022.391 | AB50: 0.1975890824 | AC50: 0.05769778533 | AD50: =+IF(INDEX($K50:$O50,1,aux!$AL$1)>0,(O50/INDEX($K50:$O50,1,aux!$AL$1))^(1/($O$3-INDEX($K$3:$O$3,1,aux!$AL$1)))-1,"n.d.") -> 0.1672981362 | AE50: =IF(INDEX($K50:$O50,1,aux!$AL$1)>0,(O50-INDEX($K50:$O50,1,aux!$AL$1))/INDEX($K50:$O50,1,aux!$AL$1),"n.d.") -> 0.8566377153
A51: 48 | B51: Papel e cartão | C51: 641152.119 | D51: 638451.426 | E51: 569692.829 | F51: 737541.004 | G51: 948573.742 | H51: 707082.224 | I51: 0.5411147105 | J51: 0.1025680938 | K51: 473941.57 | L51: 484128.927 | M51: 446064.082 | N51: 527432.986 | O51: 702371.299 | P51: 526787.7728 | Q51: 0.4456170524 | R51: 0.1269750356 | S51: -180294.4512 | U51: =G51-INDEX($C51:$G51,1,aux!$AL$1) -> 307421.623 | V51: 0.596225573 | W51: 0.1191643578 | X51: =+IF(INDEX($C51:$G51,1,aux!$AL$1)>0,(G51/INDEX($C51:$G51,1,aux!$AL$1))^(1/($G$3-INDEX($C$3:$G$3,1,aux!$AL$1)))-1,"n.d.") -> 0.1028780776 | Y51: =IF(INDEX($C51:$G51,1,aux!$AL$1)>0,(G51-INDEX($C51:$G51,1,aux!$AL$1))/INDEX($C51:$G51,1,aux!$AL$1),"n.d.") -> 0.4794831272 | AA51: =O51-INDEX($K51:$O51,1,aux!$AL$1) -> 228429.729 | AB51: 0.3993475995 | AC51: 0.116613083 | AD51: =+IF(INDEX($K51:$O51,1,aux!$AL$1)>0,(O51/INDEX($K51:$O51,1,aux!$AL$1))^(1/($O$3-INDEX($K$3:$O$3,1,aux!$AL$1)))-1,"n.d.") -> 0.1033428588 | AE51: =IF(INDEX($K51:$O51,1,aux!$AL$1)>0,(O51-INDEX($K51:$O51,1,aux!$AL$1))/INDEX($K51:$O51,1,aux!$AL$1),"n.d.") -> 0.481978673
A52: Subtotal Florestas | C52: 1194038.806 | D52: 1184713.617 | E52: 1100438.174 | F52: 1344728.172 | G52: 1709651.75 | H52: 1306714.104 | I52: 1 | J52: 0.1895496311 | K52: 1034482.206 | L52: 1059289.253 | M52: 971439.396 | N52: 1239067.336 | O52: 1606489.473 | P52: 1182153.533 | Q52: 1 | R52: 0.2849420482 | S52: -124560.571 | U52: =G52-INDEX($C52:$G52,1,aux!$AL$1) -> 515612.944 | V52: 1 | W52: 0.1998645532 | X52: =+IF(INDEX($C52:$G52,1,aux!$AL$1)>0,(G52/INDEX($C52:$G52,1,aux!$AL$1))^(1/($G$3-INDEX($C$3:$G$3,1,aux!$AL$1)))-1,"n.d.") -> 0.0938866028 | Y52: =IF(INDEX($C52:$G52,1,aux!$AL$1)>0,(G52-INDEX($C52:$G52,1,aux!$AL$1))/INDEX($C52:$G52,1,aux!$AL$1),"n.d.") -> 0.4318226019 | AA52: =O52-INDEX($K52:$O52,1,aux!$AL$1) -> 572007.267 | AB52: 1 | AC52: 0.2920089746 | AD52: =+IF(INDEX($K52:$O52,1,aux!$AL$1)>0,(O52/INDEX($K52:$O52,1,aux!$AL$1))^(1/($O$3-INDEX($K$3:$O$3,1,aux!$AL$1)))-1,"n.d.") -> 0.1163200236 | AE52: =IF(INDEX($K52:$O52,1,aux!$AL$1)>0,(O52-INDEX($K52:$O52,1,aux!$AL$1))/INDEX($K52:$O52,1,aux!$AL$1),"n.d.") -> 0.5529406535
B53: TOTAL | C53: 6218471.275 | D53: 6368376.895 | E53: 6104930.576 | F53: 6978855.206 | G53: 8798283.131 | H53: 6893783.417 | J53: 1 | K53: 3622315.146 | L53: 3619480.855 | M53: 3571177.168 | N53: 4349596.588 | O53: 5581183.937 | P53: 4148750.739 | R53: 1 | S53: -2745032.678 | U53: =G53-INDEX($C53:$G53,1,aux!$AL$1) -> 2579811.856 | W53: 1 | X53: =+IF(INDEX($C53:$G53,1,aux!$AL$1)>0,(G53/INDEX($C53:$G53,1,aux!$AL$1))^(1/($G$3-INDEX($C$3:$G$3,1,aux!$AL$1)))-1,"n.d.") -> 0.09063285178 | Y53: =IF(INDEX($C53:$G53,1,aux!$AL$1)>0,(G53-INDEX($C53:$G53,1,aux!$AL$1))/INDEX($C53:$G53,1,aux!$AL$1),"n.d.") -> 0.4148627117 | AA53: =O53-INDEX($K53:$O53,1,aux!$AL$1) -> 1958868.791 | AC53: 1 | AD53: =+IF(INDEX($K53:$O53,1,aux!$AL$1)>0,(O53/INDEX($K53:$O53,1,aux!$AL$1))^(1/($O$3-INDEX($K$3:$O$3,1,aux!$AL$1)))-1,"n.d.") -> 0.1141278384 | AE53: =IF(INDEX($K53:$O53,1,aux!$AL$1)>0,(O53-INDEX($K53:$O53,1,aux!$AL$1))/INDEX($K53:$O53,1,aux!$AL$1),"n.d.") -> 0.5407781245
B54: a - agrícola e agroalimentar; p - pescas; f - florestas
A55: Fonte: GPP a partir de dados INE/Comércio Internacional (2022 definitivos) | S55: 2023-10-31T11:29:41.030

Sheet 5.2_var
A1: ="Principais contributos por produto para a variação das trocas comerciais PT-Espanha_x000D_ no período " & INDEX('5.2'!K3:N3,1,aux!AL1) & "-2022 (NC 2 dígitos - milhares de euros) Produtos agrícolas e agroalimentares, do mar e da floresta" -> Principais contributos por produto para a variação das trocas comerciais PT-Espanha no período 2018-2022 (NC 2 dígitos - milhares de euros) Produtos agrícolas e agroalimentares, do mar e da floresta
E5: aumento das importações | J5: aumento das exportações
E17: redução das importações | J17: redução das exportações
A28: Fonte: GPP a partir de dados INE/Comércio Internacional (2022 definitivos) | F28: a - agrícola e agroalimentar; p - mar; f - florestas | H28: ='3'!Y116 -> 2023-10-31T11:29:41.030
A29: Cód. NC | B29: Descritivo | C29: ="Variação das Importações " & INDEX('5.2'!K3:N3,1,aux!AL1) & "-"& '5.2'!O3 &"" -> Variação das Importações 2018-2022 | F29: Cód. NC | G29: Descritivo | H29: ="Variação das Exportações " & INDEX('5.2'!K3:N3,1,aux!AL1) & "-"& '5.2'!O3 &"" -> Variação das Exportações 2018-2022
C30: variação total em valor | D30: % do aumento/ redução total | H30: variação total em valor | I30: % do aumento/ redução total
A31: =IF(C31>0,aux!AU6,"") -> 15 | B31: =IF(C31>0,aux!AV6,"") -> Gorduras e óleos animais ou vegetais | C31: =IF(aux!AW6>0,aux!AW6,0) -> 381047.76 | D31: =IF(SUM($C$31:$C$41)<>0,C31/SUM($C$31:$C$41),0) -> 0.1463812631 | F31: =IF(H31>0,aux!AZ6,"") -> 15 | G31: =IF(H31>0,aux!BA6,"") -> Gorduras e óleos animais ou vegetais | H31: =IF(aux!BB6>0,aux!BB6,0) -> 453534.424 | I31: =IF(SUM($H$31:$H$41)<>0,H31/SUM($H$31:$H$41),0) -> 0.22769757
A32: =IF(C32>0,aux!AU7,"") -> 48 | B32: =IF(C32>0,aux!AV7,"") -> Papel e cartão | C32: =IF(aux!AW7>0,aux!AW7,0) -> 307421.623 | D32: =IF(SUM($C$31:$C$41)<>0,C32/SUM($C$31:$C$41),0) -> 0.1180974413 | F32: =IF(H32>0,aux!AZ7,"") -> 48 | G32: =IF(H32>0,aux!BA7,"") -> Papel e cartão | H32: =IF(aux!BB7>0,aux!BB7,0) -> 228429.729 | I32: =IF(SUM($H$31:$H$41)<>0,H32/SUM($H$31:$H$41),0) -> 0.1146834539
A33: =IF(C33>0,aux!AU8,"") -> 02 | B33: =IF(C33>0,aux!AV8,"") -> Carnes e miudezas | C33: =IF(aux!AW8>0,aux!AW8,0) -> 216559.26 | D33: 0.08319224345 | F33: =IF(H33>0,aux!AZ8,"") -> 08 | G33: =IF(H33>0,aux!BA8,"") -> Frutas | H33: =IF(aux!BB8>0,aux!BB8,0) -> 200352.048 | I33: 0.1005870163
A34: =IF(C34>0,aux!AU9,"") -> 44 | B34: =IF(C34>0,aux!AV9,"") -> Madeira e suas obras | C34: =IF(aux!AW9>0,aux!AW9,0) -> 184412.34 | D34: 0.07084285514 | F34: =IF(H34>0,aux!AZ9,"") -> 44 | G34: =IF(H34>0,aux!BA9,"") -> Madeira e suas obras | H34: =IF(aux!BB9>0,aux!BB9,0) -> 189693.501 | I34: 0.09523587835
A35: =IF(C35>0,aux!AU10,"") -> 03 | B35: =IF(C35>0,aux!AV10,"") -> Peixes e crustáceos | C35: =IF(aux!AW10>0,aux!AW10,0) -> 177459.976 | D35: 0.06817207228 | F35: =IF(H35>0,aux!AZ10,"") -> 47 | G35: =IF(H35>0,aux!BA10,"") -> Pastas de madeira | H35: =IF(aux!BB10>0,aux!BB10,0) -> 113022.391 | I35: 0.05674304403
A36: =IF(C36>0,aux!AU11,"") -> 19a | B36: =IF(C36>0,aux!AV11,"") -> Preparações à base de cereais (exc. NC 19022010) (a) | C36: =IF(aux!AW11>0,aux!AW11,0) -> 147740.854 | D36: 0.05675533382 | F36: =IF(H36>0,aux!AZ11,"") -> 04 | G36: =IF(H36>0,aux!BA11,"") -> Leite e laticínios; ovos; mel, etc. | H36: =IF(aux!BB11>0,aux!BB11,0) -> 108064.024 | I36: 0.05425368918
A37: =IF(C37>0,aux!AU12,"") -> 04 | B37: =IF(C37>0,aux!AV12,"") -> Leite e laticínios; ovos; mel, etc. | C37: =IF(aux!AW12>0,aux!AW12,0) -> 111661.867 | D37: 0.04289542375 | F37: =IF(H37>0,aux!AZ12,"") -> 22 | G37: =IF(H37>0,aux!BA12,"") -> Bebidas, líquidos alcoólicos e vinagres | H37: =IF(aux!BB12>0,aux!BB12,0) -> 72007.146 | I37: 0.03615128489
A38: =IF(C38>0,aux!AU13,"") -> 21 | B38: =IF(C38>0,aux!AV13,"") -> Preparações alimentícias diversas | C38: =IF(aux!AW13>0,aux!AW13,0) -> 103699.477 | D38: 0.03983663472 | F38: =IF(H38>0,aux!AZ13,"") -> 23a | G38: =IF(H38>0,aux!BA13,"") -> Resíduos indústrias alimentares; alimentos p/ animais (exc. NC 230120) (a) | H38: =IF(aux!BB13>0,aux!BB13,0) -> 70276.539 | I38: 0.03528243131
A39: =IF(C39>0,aux!AU14,"") -> 20 | B39: =IF(C39>0,aux!AV14,"") -> Preparações de produtos vegetais | C39: =IF(aux!AW14>0,aux!AW14,0) -> 100971.633 | D39: 0.03878872081 | F39: =IF(H39>0,aux!AZ14,"") -> 07 | G39: =IF(H39>0,aux!BA14,"") -> Produtos hortícolas | H39: =IF(aux!BB14>0,aux!BB14,0) -> 59011.934 | I39: 0.02962702116
A40: =IF(C40>0,aux!AU15,"") -> 23a | B40: =IF(C40>0,aux!AV15,"") -> Resíduos indústrias alimentares; alimentos p/ animais (exc. NC 230120) (a) | C40: =IF(aux!AW15>0,aux!AW15,0) -> 94682.411 | D40: 0.03637268703 | F40: =IF(H40>0,aux!AZ15,"") -> 17 | G40: =IF(H40>0,aux!BA15,"") -> Açúcares e produtos de confeitaria | H40: =IF(aux!BB15>0,aux!BB15,0) -> 57877.603 | I40: 0.02905752875
B41: Outros contributos para o aumento das importações | C41: =SUMIF(aux!AW16:AW51,">0") -> 777461.203 | D41: 0.2986653246 | G41: Outros contributos para o aumento das exportações | H41: =SUMIF(aux!BB16:BB51,">0") -> 439558.786 | I41: 0.2206810821
B42: Outros contributos para a redução das importações | C42: =SUMIF(aux!AW6:AW41,"<0") -> 0 | D42: =IF(SUM($C$42:$C$52)<>0,C42/SUM($C$42:$C$52),0) -> 0 | G42: Outros contributos para a redução das exportações | H42: =SUMIF(aux!BB6:BB41,"<0") -> 0 | I42: =IF(SUM($H$42:$H$52)<>0,H42/SUM($H$42:$H$52),0) -> 0
A43: =IF(C43<>0,aux!AU42,"") ->  | B43: =IF(C43<0,aux!AV42,"") ->  | C43: =IF(aux!AW42<0,aux!AW42,0) -> 0 | D43: =IF(SUM($C$42:$C$52)<>0,C43/SUM($C$42:$C$52),0) -> 0 | F43: =IF(H43<>0,aux!AZ42,"") ->  | G43: =IF(H43<>0,aux!BA42,"") ->  | H43: =IF(aux!BB42<0,aux!BB42,0) -> 0 | I43: =IF(SUM($H$42:$H$52)<>0,H43/SUM($H$42:$H$52),0) -> 0
A44: =IF(C44<>0,aux!AU43,"") ->  | B44: =IF(C44<0,aux!AV43,"") ->  | C44: =IF(aux!AW43<0,aux!AW43,0) -> 0 | D44: 0 | F44: =IF(H44<>0,aux!AZ43,"") ->  | G44: =IF(H44<>0,aux!BA43,"") ->  | H44: =IF(aux!BB43<0,aux!BB43,0) -> 0 | I44: 0
A45: =IF(C45<>0,aux!AU44,"") ->  | B45: =IF(C45<0,aux!AV44,"") ->  | C45: =IF(aux!AW44<0,aux!AW44,0) -> 0 | D45: 0 | F45: =IF(H45<>0,aux!AZ44,"") ->  | G45: =IF(H45<>0,aux!BA44,"") ->  | H45: =IF(aux!BB44<0,aux!BB44,0) -> 0 | I45: 0
A46: =IF(C46<>0,aux!AU45,"") ->  | B46: =IF(C46<0,aux!AV45,"") ->  | C46: =IF(aux!AW45<0,aux!AW45,0) -> 0 | D46: 0 | F46: =IF(H46<>0,aux!AZ45,"") ->  | G46: =IF(H46<>0,aux!BA45,"") ->  | H46: =IF(aux!BB45<0,aux!BB45,0) -> 0 | I46: 0
A47: =IF(C47<>0,aux!AU46,"") -> 51 | B47: =IF(C47<0,aux!AV46,"") -> Lã não cardada (NC 5101-5103) | C47: =IF(aux!AW46<0,aux!AW46,0) -> -109.432 | D47: 0.004695332831 | F47: =IF(H47<>0,aux!AZ46,"") -> 53 | G47: =IF(H47<>0,aux!BA46,"") -> Linho e cânhamo em bruto (NC 5301-5302) | H47: =IF(aux!BB46<0,aux!BB46,0) -> -0.258 | I47: 7.827828074e-06
A48: =IF(C48<>0,aux!AU47,"") -> 50 | B48: =IF(C48<0,aux!AV47,"") -> Seda crua (NC 5001-5003) | C48: =IF(aux!AW47<0,aux!AW47,0) -> -130.548 | D48: 0.005601344309 | F48: =IF(H48<>0,aux!AZ47,"") -> 14 | G48: =IF(H48<>0,aux!BA47,"") -> Matérias para entrançar e outros | H48: =IF(aux!BB47<0,aux!BB47,0) -> -304.88 | I48: 0.009250186912
A49: =IF(C49<>0,aux!AU48,"") -> 13f | B49: =IF(C49<0,aux!AV48,"") -> Gomas e resinas (NC 1301) (f) | C49: =IF(aux!AW48<0,aux!AW48,0) -> -1978.319 | D49: 0.08488254031 | F49: =IF(H49<>0,aux!AZ48,"") -> 38a | G49: =IF(H49<>0,aux!BA48,"") -> Agentes de acabamento, ácidos gordos, sorbitol (NC 380910, 382311-12-13-19-70, 382460) (a) | H49: =IF(aux!BB48<0,aux!BB48,0) -> -908.217 | I49: 0.02755568423
A50: =IF(C50<>0,aux!AU49,"") -> 38f | B50: =IF(C50<0,aux!AV49,"") -> Tall oil, essências e colofónias (NC 3803,3805,3806) (f) | C50: =IF(aux!AW49<0,aux!AW49,0) -> -2907.329 | D50: 0.1247430121 | F50: =IF(H50<>0,aux!AZ49,"") -> 51 | G50: =IF(H50<>0,aux!BA49,"") -> Lã não cardada (NC 5101-5103) | H50: =IF(aux!BB49<0,aux!BB49,0) -> -1363.509 | I50: 0.04136943422
A51: =IF(C51<>0,aux!AU50,"") -> 41 | B51: =IF(C51<0,aux!AV50,"") -> Couro e peles em bruto (NC 4101 a 4103) | C51: =IF(aux!AW50<0,aux!AW50,0) -> -3895.132 | D51: 0.1671260798 | F51: =IF(H51<>0,aux!AZ50,"") -> 41 | G51: =IF(H51<>0,aux!BA50,"") -> Couro e peles em bruto (NC 4101 a 4103) | H51: =IF(aux!BB50<0,aux!BB50,0) -> -1836.13 | I51: 0.05570895334
A52: =IF(C52<>0,aux!AU51,"") -> 47 | B52: =IF(C52<0,aux!AV51,"") -> Pastas de madeira | C52: =IF(aux!AW51<0,aux!AW51,0) -> -14285.788 | D52: 0.6129516907 | F52: =IF(H52<>0,aux!AZ51,"") -> 24 | G52: =IF(H52<>0,aux!BA51,"") -> Tabaco | H52: =IF(aux!BB51<0,aux!BB51,0) -> -28546.34 | I52: 0.8661079135
A53: TOTAL | C53: =SUM(C31:C52) -> 2579811.856 | F53: TOTAL | H53: =SUM(H31:H52) -> 1958868.791

Sheet 5.2A
A1: Trocas comerciais Portugal-Espanha 2018-2022 em milhares de euros (NC 4 dígitos) | G1: Produtos agrícolas e agroalimentares, do mar e da floresta
A2: Cód. NC | B2: Descritivo | C2: Importações | K2: Exportações | S2: Saldo quinquénio (exp-imp) | T2: Evolução das importações | U2: =+"Variação das Importações " & INDEX(K3:N3,1,aux!AL1) & "-"& '5.2'!O3 &"" -> Variação das Importações 2018-2022 | Z2: Evolução das exportações | AA2: ="Variação das Exportações " & INDEX(K3:N3,1,aux!AL1) & "-"& '5.2'!O3 &"" -> Variação das Exportações 2018-2022
C3: 2018 | D3: 2019 | E3: 2020 | F3: 2021 | G3: 2022 | H3: média quinquénio | I3: % Subtot | J3: % Total | K3: 2018 | L3: 2019 | M3: 2020 | N3: 2021 | O3: 2022 | P3: média quinquénio | Q3: % Subtot | R3: % Total | U3: variação total em valor | V3: % no subtotal de variação | W3: % no total de variação | X3: taxa de variação média anual | Y3: taxa de variação total | AA3: variação total em valor | AB3: % no subtotal de variação | AC3: % no total de variação | AD3: taxa de variação média anual | AE3: taxa de variação total | AX3: filtro
A4: 0101 | B4: Equídeos vivos | C4: 0 | D4: 545.377 | E4: 0 | F4: 59.118 | G4: 0 | H4: 120.899 | I4: 2.572191433e-05 | J4: 1.753739459e-05 | K4: 0 | L4: 224.129 | M4: 112.435 | N4: 9.95 | O4: 476.605 | P4: 164.6238 | Q4: 6.814726142e-05 | R4: 3.968033038e-05 | S4: 43.7248 | U4: =G4-INDEX($C4:$G4,1,aux!$AL$1) -> 0 | V4: =IF($U$237<>0,U4/$U$237, "n.d.") -> 0 | W4: =IF($U$322<>0,U4/$U$322, "n.d.") -> 0 | X4: =+IF(INDEX($C4:$G4,1,aux!$AL$1)>0,(G4/INDEX($C4:$G4,1,aux!$AL$1))^(1/($G$3-INDEX($C$3:$G$3,1,aux!$AL$1)))-1,"n.d.") -> n.d. | Y4: =IF(INDEX($C4:$G4,1,aux!$AL$1)>0,(G4-INDEX($C4:$G4,1,aux!$AL$1))/INDEX($C4:$G4,1,aux!$AL$1),"n.d.") -> n.d. | AA4: =O4-INDEX($K4:$O4,1,aux!$AL$1) -> 476.605 | AB4: =IF($AA$237<>0,AA4/$AA$237, "n.d.") -> 0.0003672070683 | AC4: =IF($AA$322<>0,AA4/$AA$322, "n.d.") -> 0.0002433062399 | AD4: =+IF(INDEX($K4:$O4,1,aux!$AL$1)>0,(O4/INDEX($K4:$O4,1,aux!$AL$1))^(1/($O$3-INDEX($K$3:$O$3,1,aux!$AL$1)))-1,"n.d.") -> n.d. | AE4: =IF(INDEX($K4:$O4,1,aux!$AL$1)>0,(O4-INDEX($K4:$O4,1,aux!$AL$1))/INDEX($K4:$O4,1,aux!$AL$1),"n.d.") -> n.d. | AX4: =+LEFT(A4,2) -> 01
A5: 0102 | B5: Bovinos vivos | C5: 1667.034 | D5: 1293.169 | E5: 6353.44 | F5: 2995.011 | G5: 4606.035 | H5: 3382.9378 | I5: 0.0007197382631 | J5: 0.0004907229594 | K5: 27871.761 | L5: 16123.568 | M5: 15915.908 | N5: 12182.508 | O5: 17408.186 | P5: 17900.3862 | Q5: 0.007409999635 | R5: 0.004314644896 | S5: 14517.4484 | U5: =G5-INDEX($C5:$G5,1,aux!$AL$1) -> 2939.001 | V5: 0.001606240002 | W5: 0.001139230752 | X5: =+IF(INDEX($C5:$G5,1,aux!$AL$1)>0,(G5/INDEX($C5:$G5,1,aux!$AL$1))^(1/($G$3-INDEX($C$3:$G$3,1,aux!$AL$1)))-1,"n.d.") -> 0.2892753936 | Y5: =IF(INDEX($C5:$G5,1,aux!$AL$1)>0,(G5-INDEX($C5:$G5,1,aux!$AL$1))/INDEX($C5:$G5,1,aux!$AL$1),"n.d.") -> 1.763012032 | AA5: =O5-INDEX($K5:$O5,1,aux!$AL$1) -> -10463.575 | AB5: -0.008061809464 | AC5: -0.005341641588 | AD5: =+IF(INDEX($K5:$O5,1,aux!$AL$1)>0,(O5/INDEX($K5:$O5,1,aux!$AL$1))^(1/($O$3-INDEX($K$3:$O$3,1,aux!$AL$1)))-1,"n.d.") -> -0.1110091781 | AE5: =IF(INDEX($K5:$O5,1,aux!$AL$1)>0,(O5-INDEX($K5:$O5,1,aux!$AL$1))/INDEX($K5:$O5,1,aux!$AL$1),"n.d.") -> -0.3754185105 | AX5: 01
A6: 0103 | B6: Suínos vivos | C6: 124962.486 | D6: 139572.496 | E6: 127465.33 | F6: 100726.843 | G6: 148515.595 | H6: 128248.55 | I6: 0.02728557073 | J6: 0.01860350728 | K6: 27543.823 | L6: 41427.316 | M6: 63989.936 | N6: 55879.847 | O6: 60692.638 | P6: 49906.712 | Q6: 0.02065925917 | R6: 0.01202933489 | S6: -78341.838 | U6: =G6-INDEX($C6:$G6,1,aux!$AL$1) -> 23553.109 | V6: 0.01287238278 | W6: 0.009129777796 | X6: =+IF(INDEX($C6:$G6,1,aux!$AL$1)>0,(G6/INDEX($C6:$G6,1,aux!$AL$1))^(1/($G$3-INDEX($C$3:$G$3,1,aux!$AL$1)))-1,"n.d.") -> 0.04411443688 | Y6: =IF(INDEX($C6:$G6,1,aux!$AL$1)>0,(G6-INDEX($C6:$G6,1,aux!$AL$1))/INDEX($C6:$G6,1,aux!$AL$1),"n.d.") -> 0.1884814375 | AA6: =O6-INDEX($K6:$O6,1,aux!$AL$1) -> 33148.815 | AB6: 0.02553997372 | AC6: 0.01692242745 | AD6: =+IF(INDEX($K6:$O6,1,aux!$AL$1)>0,(O6/INDEX($K6:$O6,1,aux!$AL$1))^(1/($O$3-INDEX($K$3:$O$3,1,aux!$AL$1)))-1,"n.d.") -> 0.2183664991 | AE6: =IF(INDEX($K6:$O6,1,aux!$AL$1)>0,(O6-INDEX($K6:$O6,1,aux!$AL$1))/INDEX($K6:$O6,1,aux!$AL$1),"n.d.") -> 1.203493611 | AX6: 01
A7: 0104 | B7: Ovinos ou caprinos vivos | C7: 16724.356 | D7: 18183.748 | E7: 16960.901 | F7: 22131.906 | G7: 20893.57 | H7: 18978.8962 | I7: 0.004037862531 | J7: 0.002753045034 | K7: 3158.265 | L7: 4987.942 | M7: 7346.251 | N7: 1633.293 | O7: 1042.271 | P7: 3633.6044 | Q7: 0.001504157898 | R7: 0.0008758309739 | S7: -15345.2918 | U7: =G7-INDEX($C7:$G7,1,aux!$AL$1) -> 4169.214 | V7: 0.0022785832 | W7: 0.001616092271 | X7: =+IF(INDEX($C7:$G7,1,aux!$AL$1)>0,(G7/INDEX($C7:$G7,1,aux!$AL$1))^(1/($G$3-INDEX($C$3:$G$3,1,aux!$AL$1)))-1,"n.d.") -> 0.05722107578 | Y7: =IF(INDEX($C7:$G7,1,aux!$AL$1)>0,(G7-INDEX($C7:$G7,1,aux!$AL$1))/INDEX($C7:$G7,1,aux!$AL$1),"n.d.") -> 0.2492899577 | AA7: =O7-INDEX($K7:$O7,1,aux!$AL$1) -> -2115.994 | AB7: -0.001630297528 | AC7: -0.001080212217 | AD7: =+IF(INDEX($K7:$O7,1,aux!$AL$1)>0,(O7/INDEX($K7:$O7,1,aux!$AL$1))^(1/($O$3-INDEX($K$3:$O$3,1,aux!$AL$1)))-1,"n.d.") -> -0.2420631514 | AE7: =IF(INDEX($K7:$O7,1,aux!$AL$1)>0,(O7-INDEX($K7:$O7,1,aux!$AL$1))/INDEX($K7:$O7,1,aux!$AL$1),"n.d.") -> -0.6699862108 | AX7: 01
A8: 0105 | B8: Aves de capoeira vivas | C8: 17162.663 | D8: 17425.743 | E8: 19169.617 | F8: 18400.373 | G8: 23428.005 | H8: 19117.2802 | I8: 0.004067304473 | J8: 0.002773118772 | K8: 18116.811 | L8: 15538.749 | M8: 11972.989 | N8: 14893.477 | O8: 21913.653 | P8: 16487.1358 | Q8: 0.006824973992 | R8: 0.003974000088 | S8: -2630.1444 | U8: =G8-INDEX($C8:$G8,1,aux!$AL$1) -> 6265.342 | V8: 0.003424171325 | W8: 0.002428604235 | X8: =+IF(INDEX($C8:$G8,1,aux!$AL$1)>0,(G8/INDEX($C8:$G8,1,aux!$AL$1))^(1/($G$3-INDEX($C$3:$G$3,1,aux!$AL$1)))-1,"n.d.") -> 0.08090532977 | Y8: =IF(INDEX($C8:$G8,1,aux!$AL$1)>0,(G8-INDEX($C8:$G8,1,aux!$AL$1))/INDEX($C8:$G8,1,aux!$AL$1),"n.d.") -> 0.3650565183 | AA8: =O8-INDEX($K8:$O8,1,aux!$AL$1) -> 3796.842 | AB8: 0.002925330661 | AC8: 0.001938282961 | AD8: =+IF(INDEX($K8:$O8,1,aux!$AL$1)>0,(O8/INDEX($K8:$O8,1,aux!$AL$1))^(1/($O$3-INDEX($K$3:$O$3,1,aux!$AL$1)))-1,"n.d.") -> 0.04871687583 | AE8: =IF(INDEX($K8:$O8,1,aux!$AL$1)>0,(O8-INDEX($K8:$O8,1,aux!$AL$1))/INDEX($K8:$O8,1,aux!$AL$1),"n.d.") -> 0.2095756256 | AX8: 01
A9: 0106 | B9: Outros animais vivos | C9: 2769.558 | D9: 3744.706 | E9: 4223.573 | F9: 8845.046 | G9: 4349.442 | H9: 4786.465 | I9: 0.001018346245 | J9: 0.0006943161267 | K9: 5284.189 | L9: 5704.637 | M9: 8194.968 | N9: 8165.367 | O9: 11146.464 | P9: 7699.125 | Q9: 0.003187110759 | R9: 0.00185576948 | S9: 2912.66 | U9: =G9-INDEX($C9:$G9,1,aux!$AL$1) -> 1579.884 | V9: 0.0008634474366 | W9: 0.0006124027984 | X9: =+IF(INDEX($C9:$G9,1,aux!$AL$1)>0,(G9/INDEX($C9:$G9,1,aux!$AL$1))^(1/($G$3-INDEX($C$3:$G$3,1,aux!$AL$1)))-1,"n.d.") -> 0.1194527559 | Y9: =IF(INDEX($C9:$G9,1,aux!$AL$1)>0,(G9-INDEX($C9:$G9,1,aux!$AL$1))/INDEX($C9:$G9,1,aux!$AL$1),"n.d.") -> 0.5704462589 | AA9: =O9-INDEX($K9:$O9,1,aux!$AL$1) -> 5862.275 | AB9: 0.00451667275 | AC9: 0.002992683853 | AD9: =+IF(INDEX($K9:$O9,1,aux!$AL$1)>0,(O9/INDEX($K9:$O9,1,aux!$AL$1))^(1/($O$3-INDEX($K$3:$O$3,1,aux!$AL$1)))-1,"n.d.") -> 0.2051460836 | AE9: =IF(INDEX($K9:$O9,1,aux!$AL$1)>0,(O9-INDEX($K9:$O9,1,aux!$AL$1))/INDEX($K9:$O9,1,aux!$AL$1),"n.d.") -> 1.109399191 | AX9: 01
A10: 01SS | B10: Animais vivos | C10: 0 | D10: 0 | E10: 0 | F10: 0 | G10: 0 | H10: 0 | I10: 0 | J10: 0 | K10: 0 | L10: 0 | M10: 0 | N10: 0 | O10: 0 | P10: 0 | Q10: 0 | R10: 0 | S10: 0 | U10: =G10-INDEX($C10:$G10,1,aux!$AL$1) -> 0 | V10: 0 | W10: 0 | X10: =+IF(INDEX($C10:$G10,1,aux!$AL$1)>0,(G10/INDEX($C10:$G10,1,aux!$AL$1))^(1/($G$3-INDEX($C$3:$G$3,1,aux!$AL$1)))-1,"n.d.") -> n.d. | Y10: =IF(INDEX($C10:$G10,1,aux!$AL$1)>0,(G10-INDEX($C10:$G10,1,aux!$AL$1))/INDEX($C10:$G10,1,aux!$AL$1),"n.d.") -> n.d. | AA10: =O10-INDEX($K10:$O10,1,aux!$AL$1) -> 0 | AB10: 0 | AC10: 0 | AD10: =+IF(INDEX($K10:$O10,1,aux!$AL$1)>0,(O10/INDEX($K10:$O10,1,aux!$AL$1))^(1/($O$3-INDEX($K$3:$O$3,1,aux!$AL$1)))-1,"n.d.") -> n.d. | AE10: =IF(INDEX($K10:$O10,1,aux!$AL$1)>0,(O10-INDEX($K10:$O10,1,aux!$AL$1))/INDEX($K10:$O10,1,aux!$AL$1),"n.d.") -> n.d. | AX10: 01
A11: 0201 | B11: Carnes de bovino, frescas ou refrigeradas | C11: 279354.523 | D11: 280283.335 | E11: 239468.109 | F11: 260599.842 | G11: 358662.888 | H11: 283673.7394 | I11: 0.06035311808 | J11: 0.04114920969 | K11: 19216.653 | L11: 19492.683 | M11: 23009.643 | N11: 27825.789 | O11: 40076.306 | P11: 25924.2148 | Q11: 0.01073152389 | R11: 0.006248679767 | S11: -257749.5246 | U11: =G11-INDEX($C11:$G11,1,aux!$AL$1) -> 79308.365 | V11: 0.04334407112 | W11: 0.03074191818 | X11: =+IF(INDEX($C11:$G11,1,aux!$AL$1)>0,(G11/INDEX($C11:$G11,1,aux!$AL$1))^(1/($G$3-INDEX($C$3:$G$3,1,aux!$AL$1)))-1,"n.d.") -> 0.06446817947 | Y11: =IF(INDEX($C11:$G11,1,aux!$AL$1)>0,(G11-INDEX($C11:$G11,1,aux!$AL$1))/INDEX($C11:$G11,1,aux!$AL$1),"n.d.") -> 0.2838986251 | AA11: =O11-INDEX($K11:$O11,1,aux!$AL$1) -> 20859.653 | AB11: 0.01607161491 | AC11: 0.01064882604 | AD11: =+IF(INDEX($K11:$O11,1,aux!$AL$1)>0,(O11/INDEX($K11:$O11,1,aux!$AL$1))^(1/($O$3-INDEX($K$3:$O$3,1,aux!$AL$1)))-1,"n.d.") -> 0.2017177722 | AE11: =IF(INDEX($K11:$O11,1,aux!$AL$1)>0,(O11-INDEX($K11:$O11,1,aux!$AL$1))/INDEX($K11:$O11,1,aux!$AL$1),"n.d.") -> 1.08549876 | AX11: 02
A12: 0202 | B12: Carnes de bovino, congeladas | C12: 34627.133 | D12: 38854.2 | E12: 33607.61 | F12: 38434.151 | G12: 51930.917 | H12: 39490.8022 | I12: 0.008401881165 | J12: 0.005728465751 | K12: 1645.715 | L12: 5067.457 | M12: 1746.147 | N12: 1451.166 | O12: 2002.351 | P12: 2382.5672 | Q12: 0.0009862816302 | R12: 0.0005742854536 | S12: -37108.235 | U12: =G12-INDEX($C12:$G12,1,aux!$AL$1) -> 17303.784 | V12: 0.009456965155 | W12: 0.006707382153 | X12: =+IF(INDEX($C12:$G12,1,aux!$AL$1)>0,(G12/INDEX($C12:$G12,1,aux!$AL$1))^(1/($G$3-INDEX($C$3:$G$3,1,aux!$AL$1)))-1,"n.d.") -> 0.106629808 | Y12: =IF(INDEX($C12:$G12,1,aux!$AL$1)>0,(G12-INDEX($C12:$G12,1,aux!$AL$1))/INDEX($C12:$G12,1,aux!$AL$1),"n.d.") -> 0.4997174903 | AA12: =O12-INDEX($K12:$O12,1,aux!$AL$1) -> 356.636 | AB12: 0.0002747752541 | AC12: 0.0001820622196 | AD12: =+IF(INDEX($K12:$O12,1,aux!$AL$1)>0,(O12/INDEX($K12:$O12,1,aux!$AL$1))^(1/($O$3-INDEX($K$3:$O$3,1,aux!$AL$1)))-1,"n.d.") -> 0.05025896017 | AE12: =IF(INDEX($K12:$O12,1,aux!$AL$1)>0,(O12-INDEX($K12:$O12,1,aux!$AL$1))/INDEX($K12:$O12,1,aux!$AL$1),"n.d.") -> 0.2167058087 | AX12: 02
A13: 0203 | B13: Carnes de suíno | C13: 265889.212 | D13: 275507.26 | E13: 247065.489 | F13: 263624.299 | G13: 311057.305 | H13: 272628.713 | I13: 0.05800322914 | J13: 0.03954703775 | K13: 25602.62 | L13: 23225.136 | M13: 23966.401 | N13: 26280.429 | O13: 29415.339 | P13: 25697.985 | Q13: 0.01063787436 | R13: 0.006194150147 | S13: -246930.728 | U13: =G13-INDEX($C13:$G13,1,aux!$AL$1) -> 45168.093 | V13: 0.02468553015 | W13: 0.01750828957 | X13: =+IF(INDEX($C13:$G13,1,aux!$AL$1)>0,(G13/INDEX($C13:$G13,1,aux!$AL$1))^(1/($G$3-INDEX($C$3:$G$3,1,aux!$AL$1)))-1,"n.d.") -> 0.04000379009 | Y13: =IF(INDEX($C13:$G13,1,aux!$AL$1)>0,(G13-INDEX($C13:$G13,1,aux!$AL$1))/INDEX($C13:$G13,1,aux!$AL$1),"n.d.") -> 0.1698756135 | AA13: =O13-INDEX($K13:$O13,1,aux!$AL$1) -> 3812.719 | AB13: 0.00293756332 | AC13: 0.001946388149 | AD13: =+IF(INDEX($K13:$O13,1,aux!$AL$1)>0,(O13/INDEX($K13:$O13,1,aux!$AL$1))^(1/($O$3-INDEX($K$3:$O$3,1,aux!$AL$1)))-1,"n.d.") -> 0.03531465576 | AE13: =IF(INDEX($K13:$O13,1,aux!$AL$1)>0,(O13-INDEX($K13:$O13,1,aux!$AL$1))/INDEX($K13:$O13,1,aux!$AL$1),"n.d.") -> 0.148919095 | AX13: 02
A14: 0204 | B14: Carnes de ovino ou caprino | C14: 16611.514 | D14: 14774.245 | E14: 14184.609 | F14: 17991.954 | G14: 25873.985 | H14: 17887.2614 | I14: 0.003805611339 | J14: 0.002594694425 | K14: 986.964 | L14: 475.508 | M14: 1414.873 | N14: 398.846 | O14: 1721.203 | P14: 999.4788 | Q14: 0.0004137417741 | R14: 0.0002409107857 | S14: -16887.7826 | U14: =G14-INDEX($C14:$G14,1,aux!$AL$1) -> 9262.471 | V14: 0.005062179781 | W14: 0.003590366863 | X14: =+IF(INDEX($C14:$G14,1,aux!$AL$1)>0,(G14/INDEX($C14:$G14,1,aux!$AL$1))^(1/($G$3-INDEX($C$3:$G$3,1,aux!$AL$1)))-1,"n.d.") -> 0.1171552386 | Y14: =IF(INDEX($C14:$G14,1,aux!$AL$1)>0,(G14-INDEX($C14:$G14,1,aux!$AL$1))/INDEX($C14:$G14,1,aux!$AL$1),"n.d.") -> 0.5575934259 | AA14: =O14-INDEX($K14:$O14,1,aux!$AL$1) -> 734.239 | AB14: 0.0005657048302 | AC14: 0.0003748280658 | AD14: =+IF(INDEX($K14:$O14,1,aux!$AL$1)>0,(O14/INDEX($K14:$O14,1,aux!$AL$1))^(1/($O$3-INDEX($K$3:$O$3,1,aux!$AL$1)))-1,"n.d.") -> 0.149165808 | AE14: =IF(INDEX($K14:$O14,1,aux!$AL$1)>0,(O14-INDEX($K14:$O14,1,aux!$AL$1))/INDEX($K14:$O14,1,aux!$AL$1),"n.d.") -> 0.7439369622 | AX14: 02
A15: 0205 | B15: Carnes de equídeo | C15: 11.93 | D15: 6.257 | E15: 3.96 | F15: 8.254 | G15: 18.019 | H15: 9.684 | I15: 2.060323232e-06 | J15: 1.404743871e-06 | K15: 0 | L15: 0 | M15: 0 | N15: 0 | O15: 0 | P15: 0 | Q15: 0 | R15: 0 | S15: -9.684 | U15: =G15-INDEX($C15:$G15,1,aux!$AL$1) -> 6.089 | V15: 3.327795864e-06 | W15: 2.360249638e-06 | X15: =+IF(INDEX($C15:$G15,1,aux!$AL$1)>0,(G15/INDEX($C15:$G15,1,aux!$AL$1))^(1/($G$3-INDEX($C$3:$G$3,1,aux!$AL$1)))-1,"n.d.") -> 0.1085940936 | Y15: =IF(INDEX($C15:$G15,1,aux!$AL$1)>0,(G15-INDEX($C15:$G15,1,aux!$AL$1))/INDEX($C15:$G15,1,aux!$AL$1),"n.d.") -> 0.5103939648 | AA15: =O15-INDEX($K15:$O15,1,aux!$AL$1) -> 0 | AB15: 0 | AC15: 0 | AD15: =+IF(INDEX($K15:$O15,1,aux!$AL$1)>0,(O15/INDEX($K15:$O15,1,aux!$AL$1))^(1/($O$3-INDEX($K$3:$O$3,1,aux!$AL$1)))-1,"n.d.") -> n.d. | AE15: =IF(INDEX($K15:$O15,1,aux!$AL$1)>0,(O15-INDEX($K15:$O15,1,aux!$AL$1))/INDEX($K15:$O15,1,aux!$AL$1),"n.d.") -> n.d. | AX15: 02
A16: 0206 | B16: Miudezas de bovino, suíno, ovino, caprino,equídeo | C16: 7937.386 | D16: 8359.867 | E16: 5490.805 | F16: 5455.633 | G16: 6920.22 | H16: 6832.7822 | I16: 0.001453711266 | J16: 0.0009911512717 | K16: 3971.431 | L16: 4483.821 | M16: 4497.334 | N16: 5169.478 | O16: 6336.254 | P16: 4891.6636 | Q16: 0.002024940975 | R16: 0.001179069052 | S16: -1941.1186 | U16: =G16-INDEX($C16:$G16,1,aux!$AL$1) -> -1017.166 | V16: -0.0005559075067 | W16: -0.00039427914 | X16: =+IF(INDEX($C16:$G16,1,aux!$AL$1)>0,(G16/INDEX($C16:$G16,1,aux!$AL$1))^(1/($G$3-INDEX($C$3:$G$3,1,aux!$AL$1)))-1,"n.d.") -> -0.0337030692 | Y16: =IF(INDEX($C16:$G16,1,aux!$AL$1)>0,(G16-INDEX($C16:$G16,1,aux!$AL$1))/INDEX($C16:$G16,1,aux!$AL$1),"n.d.") -> -0.1281487381 | AA16: =O16-INDEX($K16:$O16,1,aux!$AL$1) -> 2364.823 | AB16: 0.001822011353 | AC16: 0.001207239102 | AD16: =+IF(INDEX($K16:$O16,1,aux!$AL$1)>0,(O16/INDEX($K16:$O16,1,aux!$AL$1))^(1/($O$3-INDEX($K$3:$O$3,1,aux!$AL$1)))-1,"n.d.") -> 0.1238837431 | AE16: =IF(INDEX($K16:$O16,1,aux!$AL$1)>0,(O16-INDEX($K16:$O16,1,aux!$AL$1))/INDEX($K16:$O16,1,aux!$AL$1),"n.d.") -> 0.5954586646 | AX16: 02
A17: 0207 | B17: Carnes e miudezas de aves de capoeira | C17: 103850.849 | D17: 112559.378 | E17: 83699.745 | F17: 86650.922 | G17: 138489.209 | H17: 105050.0206 | I17: 0.02234995848 | J17: 0.01523836974 | K17: 24366.685 | L17: 16011.463 | M17: 11851.181 | N17: 23455.977 | O17: 26679.584 | P17: 20472.978 | Q17: 0.008474943379 | R17: 0.004934733198 | S17: -84577.0426 | U17: =G17-INDEX($C17:$G17,1,aux!$AL$1) -> 34638.36 | V17: 0.01893075893 | W17: 0.01342670006 | X17: =+IF(INDEX($C17:$G17,1,aux!$AL$1)>0,(G17/INDEX($C17:$G17,1,aux!$AL$1))^(1/($G$3-INDEX($C$3:$G$3,1,aux!$AL$1)))-1,"n.d.") -> 0.07461146777 | Y17: =IF(INDEX($C17:$G17,1,aux!$AL$1)>0,(G17-INDEX($C17:$G17,1,aux!$AL$1))/INDEX($C17:$G17,1,aux!$AL$1),"n.d.") -> 0.3335394976 | AA17: =O17-INDEX($K17:$O17,1,aux!$AL$1) -> 2312.899 | AB17: 0.001782005772 | AC17: 0.001180731967 | AD17: =+IF(INDEX($K17:$O17,1,aux!$AL$1)>0,(O17/INDEX($K17:$O17,1,aux!$AL$1))^(1/($O$3-INDEX($K$3:$O$3,1,aux!$AL$1)))-1,"n.d.") -> 0.02292937717 | AE17: =IF(INDEX($K17:$O17,1,aux!$AL$1)>0,(O17-INDEX($K17:$O17,1,aux!$AL$1))/INDEX($K17:$O17,1,aux!$AL$1),"n.d.") -> 0.09492054418 | AX17: 02
A18: 0208 | B18: Outras carnes e miudezas | C18: 13176.42 | D18: 10946.528 | E18: 9295.945 | F18: 8859.858 | G18: 12006.628 | H18: 10857.0758 | I18: 0.002309901435 | J18: 0.001574908166 | K18: 1475.708 | L18: 2979.948 | M18: 1452.19 | N18: 419.67 | O18: 908.136 | P18: 1447.1304 | Q18: 0.0005990505242 | R18: 0.000348811122 | S18: -9409.9454 | U18: =G18-INDEX($C18:$G18,1,aux!$AL$1) -> -1169.792 | V18: -0.0006393215601 | W18: -0.0004534408187 | X18: =+IF(INDEX($C18:$G18,1,aux!$AL$1)>0,(G18/INDEX($C18:$G18,1,aux!$AL$1))^(1/($G$3-INDEX($C$3:$G$3,1,aux!$AL$1)))-1,"n.d.") -> -0.0229744829 | Y18: =IF(INDEX($C18:$G18,1,aux!$AL$1)>0,(G18-INDEX($C18:$G18,1,aux!$AL$1))/INDEX($C18:$G18,1,aux!$AL$1),"n.d.") -> -0.08877919799 | AA18: =O18-INDEX($K18:$O18,1,aux!$AL$1) -> -567.572 | AB18: -0.000437293881 | AC18: -0.0002897447765 | AD18: =+IF(INDEX($K18:$O18,1,aux!$AL$1)>0,(O18/INDEX($K18:$O18,1,aux!$AL$1))^(1/($O$3-INDEX($K$3:$O$3,1,aux!$AL$1)))-1,"n.d.") -> -0.1142980209 | AE18: =IF(INDEX($K18:$O18,1,aux!$AL$1)>0,(O18-INDEX($K18:$O18,1,aux!$AL$1))/INDEX($K18:$O18,1,aux!$AL$1),"n.d.") -> -0.3846099635 | AX18: 02
A19: 0209 | B19: Toucinho, gorduras de porco e de aves | C19: 6246.641 | D19: 8411.395 | E19: 12719.644 | F19: 16212.739 | G19: 18306.104 | H19: 12379.3046 | I19: 0.002633763823 | J19: 0.001795719977 | K19: 810.167 | L19: 862.687 | M19: 1118.304 | N19: 758.118 | O19: 1650.5 | P19: 1039.9552 | Q19: 0.0004304972846 | R19: 0.000250667072 | S19: -11339.3494 | U19: =G19-INDEX($C19:$G19,1,aux!$AL$1) -> 12059.463 | V19: 0.006590808195 | W19: 0.004674551352 | X19: =+IF(INDEX($C19:$G19,1,aux!$AL$1)>0,(G19/INDEX($C19:$G19,1,aux!$AL$1))^(1/($G$3-INDEX($C$3:$G$3,1,aux!$AL$1)))-1,"n.d.") -> 0.3083903866 | Y19: =IF(INDEX($C19:$G19,1,aux!$AL$1)>0,(G19-INDEX($C19:$G19,1,aux!$AL$1))/INDEX($C19:$G19,1,aux!$AL$1),"n.d.") -> 1.930551636 | AA19: =O19-INDEX($K19:$O19,1,aux!$AL$1) -> 840.333 | AB19: 0.0006474464542 | AC19: 0.0004289889164 | AD19: =+IF(INDEX($K19:$O19,1,aux!$AL$1)>0,(O19/INDEX($K19:$O19,1,aux!$AL$1))^(1/($O$3-INDEX($K$3:$O$3,1,aux!$AL$1)))-1,"n.d.") -> 0.1947037994 | AE19: =IF(INDEX($K19:$O19,1,aux!$AL$1)>0,(O19-INDEX($K19:$O19,1,aux!$AL$1))/INDEX($K19:$O19,1,aux!$AL$1),"n.d.") -> 1.037234299 | AX19: 02
A20: 0210 | B20: Carnes e miudezas processadas; farinhas de carnes | C20: 39080.459 | D20: 47040.052 | E20: 44244.131 | F20: 46936.336 | G20: 60080.052 | H20: 47476.206 | I20: 0.01010081889 | J20: 0.006886814269 | K20: 7015.088 | L20: 5096.274 | M20: 4710.794 | N20: 5866.485 | O20: 6267.679 | P20: 5791.264 | Q20: 0.002397337334 | R20: 0.001395905506 | S20: -41684.942 | U20: =G20-INDEX($C20:$G20,1,aux!$AL$1) -> 20999.593 | V20: 0.01147682029 | W20: 0.008139970731 | X20: =+IF(INDEX($C20:$G20,1,aux!$AL$1)>0,(G20/INDEX($C20:$G20,1,aux!$AL$1))^(1/($G$3-INDEX($C$3:$G$3,1,aux!$AL$1)))-1,"n.d.") -> 0.1135062551 | Y20: =IF(INDEX($C20:$G20,1,aux!$AL$1)>0,(G20-INDEX($C20:$G20,1,aux!$AL$1))/INDEX($C20:$G20,1,aux!$AL$1),"n.d.") -> 0.5373425374 | AA20: =O20-INDEX($K20:$O20,1,aux!$AL$1) -> -747.409 | AB20: -0.0005758518431 | AC20: -0.0003815513338 | AD20: =+IF(INDEX($K20:$O20,1,aux!$AL$1)>0,(O20/INDEX($K20:$O20,1,aux!$AL$1))^(1/($O$3-INDEX($K$3:$O$3,1,aux!$AL$1)))-1,"n.d.") -> -0.02777137069 | AE20: =IF(INDEX($K20:$O20,1,aux!$AL$1)>0,(O20-INDEX($K20:$O20,1,aux!$AL$1))/INDEX($K20:$O20,1,aux!$AL$1),"n.d.") -> -0.1065430683 | AX20: 02
A21: 02SS | B21: Carnes e miudezas, comestíveis | C21: 0 | D21: 0 | E21: 0 | F21: 0 | G21: 0 | H21: 0 | I21: 0 | J21: 0 | K21: 0 | L21: 0 | M21: 0 | N21: 0 | O21: 0 | P21: 0 | Q21: 0 | R21: 0 | S21: 0 | U21: =G21-INDEX($C21:$G21,1,aux!$AL$1) -> 0 | V21: 0 | W21: 0 | X21: =+IF(INDEX($C21:$G21,1,aux!$AL$1)>0,(G21/INDEX($C21:$G21,1,aux!$AL$1))^(1/($G$3-INDEX($C$3:$G$3,1,aux!$AL$1)))-1,"n.d.") -> n.d. | Y21: =IF(INDEX($C21:$G21,1,aux!$AL$1)>0,(G21-INDEX($C21:$G21,1,aux!$AL$1))/INDEX($C21:$G21,1,aux!$AL$1),"n.d.") -> n.d. | AA21: =O21-INDEX($K21:$O21,1,aux!$AL$1) -> 0 | AB21: 0 | AC21: 0 | AD21: =+IF(INDEX($K21:$O21,1,aux!$AL$1)>0,(O21/INDEX($K21:$O21,1,aux!$AL$1))^(1/($O$3-INDEX($K$3:$O$3,1,aux!$AL$1)))-1,"n.d.") -> n.d. | AE21: =IF(INDEX($K21:$O21,1,aux!$AL$1)>0,(O21-INDEX($K21:$O21,1,aux!$AL$1))/INDEX($K21:$O21,1,aux!$AL$1),"n.d.") -> n.d. | AX21: 02
A22: 0401 | B22: Leite e nata, não concentrados | C22: 34744.142 | D22: 40096.014 | E22: 43199.209 | F22: 44989.222 | G22: 59780.816 | H22: 44561.8806 | I22: 0.009480780446 | J22: 0.006464067393 | K22: 27642.125 | L22: 30240.945 | M22: 32286.234 | N22: 41843.549 | O22: 58448.232 | P22: 38092.217 | Q22: 0.01576856001 | R22: 0.009181611381 | S22: -6469.6636 | U22: =G22-INDEX($C22:$G22,1,aux!$AL$1) -> 25036.674 | V22: 0.01368318939 | W22: 0.009704844926 | X22: =+IF(INDEX($C22:$G22,1,aux!$AL$1)>0,(G22/INDEX($C22:$G22,1,aux!$AL$1))^(1/($G$3-INDEX($C$3:$G$3,1,aux!$AL$1)))-1,"n.d.") -> 0.1453021128 | Y22: =IF(INDEX($C22:$G22,1,aux!$AL$1)>0,(G22-INDEX($C22:$G22,1,aux!$AL$1))/INDEX($C22:$G22,1,aux!$AL$1),"n.d.") -> 0.7206013031 | AA22: =O22-INDEX($K22:$O22,1,aux!$AL$1) -> 30806.107 | AB22: 0.02373500118 | AC22: 0.01572647803 | AD22: =+IF(INDEX($K22:$O22,1,aux!$AL$1)>0,(O22/INDEX($K22:$O22,1,aux!$AL$1))^(1/($O$3-INDEX($K$3:$O$3,1,aux!$AL$1)))-1,"n.d.") -> 0.2058686041 | AE22: =IF(INDEX($K22:$O22,1,aux!$AL$1)>0,(O22-INDEX($K22:$O22,1,aux!$AL$1))/INDEX($K22:$O22,1,aux!$AL$1),"n.d.") -> 1.114462329 | AX22: 04
A23: 0402 | B23: Leite e nata, concentrados | C23: 19788.421 | D23: 20095.976 | E23: 18889.672 | F23: 23282.471 | G23: 31990.578 | H23: 22809.4236 | I23: 0.004852827896 | J23: 0.003308694547 | K23: 15642.736 | L23: 22731.896 | M23: 27881.251 | N23: 34653.137 | O23: 25478.964 | P23: 25277.5968 | Q23: 0.0104638515 | R23: 0.006092821283 | S23: 2468.1732 | U23: =G23-INDEX($C23:$G23,1,aux!$AL$1) -> 12202.157 | V23: 0.006668794153 | W23: 0.004729863138 | X23: =+IF(INDEX($C23:$G23,1,aux!$AL$1)>0,(G23/INDEX($C23:$G23,1,aux!$AL$1))^(1/($G$3-INDEX($C$3:$G$3,1,aux!$AL$1)))-1,"n.d.") -> 0.1275939483 | Y23: =IF(INDEX($C23:$G23,1,aux!$AL$1)>0,(G23-INDEX($C23:$G23,1,aux!$AL$1))/INDEX($C23:$G23,1,aux!$AL$1),"n.d.") -> 0.6166311602 | AA23: =O23-INDEX($K23:$O23,1,aux!$AL$1) -> 9836.228 | AB23: 0.007578461088 | AC23: 0.005021381751 | AD23: =+IF(INDEX($K23:$O23,1,aux!$AL$1)>0,(O23/INDEX($K23:$O23,1,aux!$AL$1))^(1/($O$3-INDEX($K$3:$O$3,1,aux!$AL$1)))-1,"n.d.") -> 0.1297107524 | AE23: =IF(INDEX($K23:$O23,1,aux!$AL$1)>0,(O23-INDEX($K23:$O23,1,aux!$AL$1))/INDEX($K23:$O23,1,aux!$AL$1),"n.d.") -> 0.6288048331 | AX23: 04
A24: 0403 | B24: Leitelho, leite coalhado, iogurte, etc. | C24: 108799.993 | D24: 111700.891 | E24: 113738.304 | F24: 109678.087 | G24: 130367.516 | H24: 114856.9582 | I24: 0.02443643735 | J24: 0.01666094672 | K24: 22039.005 | L24: 23961.018 | M24: 26746.742 | N24: 29144.073 | O24: 40563.462 | P24: 28490.86 | Q24: 0.011794006 | R24: 0.006867334722 | S24: -86366.0982 | U24: =G24-INDEX($C24:$G24,1,aux!$AL$1) -> 21567.523 | V24: 0.01178720871 | W24: 0.008360114692 | X24: =+IF(INDEX($C24:$G24,1,aux!$AL$1)>0,(G24/INDEX($C24:$G24,1,aux!$AL$1))^(1/($G$3-INDEX($C$3:$G$3,1,aux!$AL$1)))-1,"n.d.") -> 0.04624918044 | Y24: =IF(INDEX($C24:$G24,1,aux!$AL$1)>0,(G24-INDEX($C24:$G24,1,aux!$AL$1))/INDEX($C24:$G24,1,aux!$AL$1),"n.d.") -> 0.1982309227 | AA24: =O24-INDEX($K24:$O24,1,aux!$AL$1) -> 18524.457 | AB24: 0.0142724301 | AC24: 0.009456711488 | AD24: =+IF(INDEX($K24:$O24,1,aux!$AL$1)>0,(O24/INDEX($K24:$O24,1,aux!$AL$1))^(1/($O$3-INDEX($K$3:$O$3,1,aux!$AL$1)))-1,"n.d.") -> 0.1647581491 | AE24: =IF(INDEX($K24:$O24,1,aux!$AL$1)>0,(O24-INDEX($K24:$O24,1,aux!$AL$1))/INDEX($K24:$O24,1,aux!$AL$1),"n.d.") -> 0.8405305503 | AX24: 04
A25: 0404 | B25: Soro de leite e outros produtos do leite | C25: 5971.954 | D25: 4905.079 | E25: 5169.45 | F25: 4143.619 | G25: 5658.386 | H25: 5169.6976 | I25: 0.001099881048 | J25: 0.0007499071682 | K25: 6419.916 | L25: 8132.772 | M25: 7369.632 | N25: 8637.232 | O25: 11845.946 | P25: 8481.0996 | Q25: 0.003510815032 | R25: 0.002044253833 | S25: 3311.402 | U25: =G25-INDEX($C25:$G25,1,aux!$AL$1) -> -313.568 | V25: -0.0001713730159 | W25: -0.0001215468482 | X25: =+IF(INDEX($C25:$G25,1,aux!$AL$1)>0,(G25/INDEX($C25:$G25,1,aux!$AL$1))^(1/($G$3-INDEX($C$3:$G$3,1,aux!$AL$1)))-1,"n.d.") -> -0.01339337095 | Y25: =IF(INDEX($C25:$G25,1,aux!$AL$1)>0,(G25-INDEX($C25:$G25,1,aux!$AL$1))/INDEX($C25:$G25,1,aux!$AL$1),"n.d.") -> -0.05250676747 | AA25: =O25-INDEX($K25:$O25,1,aux!$AL$1) -> 5426.03 | AB25: 0.004180561615 | AC25: 0.002769981341 | AD25: =+IF(INDEX($K25:$O25,1,aux!$AL$1)>0,(O25/INDEX($K25:$O25,1,aux!$AL$1))^(1/($O$3-INDEX($K$3:$O$3,1,aux!$AL$1)))-1,"n.d.") -> 0.1654941573 | AE25: =IF(INDEX($K25:$O25,1,aux!$AL$1)>0,(O25-INDEX($K25:$O25,1,aux!$AL$1))/INDEX($K25:$O25,1,aux!$AL$1),"n.d.") -> 0.845187071 | AX25: 04
A26: 0405 | B26: Manteiga | C26: 8092.468 | D26: 6049.845 | E26: 5284.523 | F26: 8122.815 | G26: 11962.465 | H26: 7902.4232 | I26: 0.001681283158 | J26: 0.001146311499 | K26: 13779.607 | L26: 10117.083 | M26: 5594.756 | N26: 9364.193 | O26: 8646.979 | P26: 9500.5236 | Q26: 0.003932813271 | R26: 0.002289972138 | S26: 1598.1004 | U26: =G26-INDEX($C26:$G26,1,aux!$AL$1) -> 3869.997 | V26: 0.002115053377 | W26: 0.001500108231 | X26: =+IF(INDEX($C26:$G26,1,aux!$AL$1)>0,(G26/INDEX($C26:$G26,1,aux!$AL$1))^(1/($G$3-INDEX($C$3:$G$3,1,aux!$AL$1)))-1,"n.d.") -> 0.1026429939 | Y26: =IF(INDEX($C26:$G26,1,aux!$AL$1)>0,(G26-INDEX($C26:$G26,1,aux!$AL$1))/INDEX($C26:$G26,1,aux!$AL$1),"n.d.") -> 0.4782220949 | AA26: =O26-INDEX($K26:$O26,1,aux!$AL$1) -> -5132.628 | AB26: -0.003954505891 | AC26: -0.002620199997 | AD26: =+IF(INDEX($K26:$O26,1,aux!$AL$1)>0,(O26/INDEX($K26:$O26,1,aux!$AL$1))^(1/($O$3-INDEX($K$3:$O$3,1,aux!$AL$1)))-1,"n.d.") -> -0.1099653937 | AE26: =IF(INDEX($K26:$O26,1,aux!$AL$1)>0,(O26-INDEX($K26:$O26,1,aux!$AL$1))/INDEX($K26:$O26,1,aux!$AL$1),"n.d.") -> -0.3724799989 | AX26: 04
A27: 0406 | B27: Queijos e requeijão | C27: 86287.252 | D27: 94406.922 | E27: 82615.949 | F27: 97822.84 | G27: 124476.568 | H27: 97121.9062 | I27: 0.02066320938 | J27: 0.01408833152 | K27: 6683.722 | L27: 6530.077 | M27: 7466.092 | N27: 7360.618 | O27: 23698.934 | P27: 10347.8886 | Q27: 0.004283586393 | R27: 0.002494217959 | S27: -86774.0176 | U27: =G27-INDEX($C27:$G27,1,aux!$AL$1) -> 38189.316 | V27: 0.02087144816 | W27: 0.01480313997 | X27: =+IF(INDEX($C27:$G27,1,aux!$AL$1)>0,(G27/INDEX($C27:$G27,1,aux!$AL$1))^(1/($G$3-INDEX($C$3:$G$3,1,aux!$AL$1)))-1,"n.d.") -> 0.09593612296 | Y27: =IF(INDEX($C27:$G27,1,aux!$AL$1)>0,(G27-INDEX($C27:$G27,1,aux!$AL$1))/INDEX($C27:$G27,1,aux!$AL$1),"n.d.") -> 0.4425835232 | AA27: =O27-INDEX($K27:$O27,1,aux!$AL$1) -> 17015.212 | AB27: 0.01310961092 | AC27: 0.008686243856 | AD27: =+IF(INDEX($K27:$O27,1,aux!$AL$1)>0,(O27/INDEX($K27:$O27,1,aux!$AL$1))^(1/($O$3-INDEX($K$3:$O$3,1,aux!$AL$1)))-1,"n.d.") -> 0.3722322077 | AE27: =IF(INDEX($K27:$O27,1,aux!$AL$1)>0,(O27-INDEX($K27:$O27,1,aux!$AL$1))/INDEX($K27:$O27,1,aux!$AL$1),"n.d.") -> 2.545768959 | AX27: 04
A28: 0407 | B28: Ovos de aves, com cascas | C28: 12751.478 | D28: 13171.675 | E28: 9703.842 | F28: 9829.137 | G28: 14918.297 | H28: 12074.8858 | I28: 0.002568997081 | J28: 0.001751561526 | K28: 13693.964 | L28: 15474.338 | M28: 12859.983 | N28: 15375.386 | O28: 23197.207 | P28: 16120.1756 | Q28: 0.006673068055 | R28: 0.003885549317 | S28: 4045.2898 | U28: =G28-INDEX($C28:$G28,1,aux!$AL$1) -> 2166.819 | V28: 0.001184222583 | W28: 0.0008399135755 | X28: =+IF(INDEX($C28:$G28,1,aux!$AL$1)>0,(G28/INDEX($C28:$G28,1,aux!$AL$1))^(1/($G$3-INDEX($C$3:$G$3,1,aux!$AL$1)))-1,"n.d.") -> 0.04001518596 | Y28: =IF(INDEX($C28:$G28,1,aux!$AL$1)>0,(G28-INDEX($C28:$G28,1,aux!$AL$1))/INDEX($C28:$G28,1,aux!$AL$1),"n.d.") -> 0.16992689 | AA28: =O28-INDEX($K28:$O28,1,aux!$AL$1) -> 9503.243 | AB28: 0.007321908081 | AC28: 0.004851393337 | AD28: =+IF(INDEX($K28:$O28,1,aux!$AL$1)>0,(O28/INDEX($K28:$O28,1,aux!$AL$1))^(1/($O$3-INDEX($K$3:$O$3,1,aux!$AL$1)))-1,"n.d.") -> 0.1408449624 | AE28: =IF(INDEX($K28:$O28,1,aux!$AL$1)>0,(O28-INDEX($K28:$O28,1,aux!$AL$1))/INDEX($K28:$O28,1,aux!$AL$1),"n.d.") -> 0.6939731257 | AX28: 04
A29: 0408 | B29: Ovos de aves, sem casca | C29: 15945.885 | D29: 16964.246 | E29: 10407.511 | F29: 13915.751 | G29: 22935.079 | H29: 16033.6944 | I29: 0.003411254963 | J29: 0.002325819283 | K29: 13616.282 | L29: 13916.598 | M29: 9630.408 | N29: 11657.807 | O29: 18275.325 | P29: 13419.284 | Q29: 0.005555013642 | R29: 0.003234536092 | S29: -2614.4104 | U29: =G29-INDEX($C29:$G29,1,aux!$AL$1) -> 6989.194 | V29: 0.00381977515 | W29: 0.002709187487 | X29: =+IF(INDEX($C29:$G29,1,aux!$AL$1)>0,(G29/INDEX($C29:$G29,1,aux!$AL$1))^(1/($G$3-INDEX($C$3:$G$3,1,aux!$AL$1)))-1,"n.d.") -> 0.09512300751 | Y29: =IF(INDEX($C29:$G29,1,aux!$AL$1)>0,(G29-INDEX($C29:$G29,1,aux!$AL$1))/INDEX($C29:$G29,1,aux!$AL$1),"n.d.") -> 0.4383070617 | AA29: =O29-INDEX($K29:$O29,1,aux!$AL$1) -> 4659.043 | AB29: 0.003589625625 | AC29: 0.002378435463 | AD29: =+IF(INDEX($K29:$O29,1,aux!$AL$1)>0,(O29/INDEX($K29:$O29,1,aux!$AL$1))^(1/($O$3-INDEX($K$3:$O$3,1,aux!$AL$1)))-1,"n.d.") -> 0.07634535991 | AE29: =IF(INDEX($K29:$O29,1,aux!$AL$1)>0,(O29-INDEX($K29:$O29,1,aux!$AL$1))/INDEX($K29:$O29,1,aux!$AL$1),"n.d.") -> 0.3421670468 | AX29: 04
A30: 0409 | B30: Mel natural | C30: 5513.131 | D30: 4736.548 | E30: 4631.204 | F30: 4668.626 | G30: 7414.606 | H30: 5392.823 | I30: 0.00114735218 | J30: 0.0007822733431 | K30: 5191.984 | L30: 7504.768 | M30: 9476.875 | N30: 13393.014 | O30: 22634.71 | P30: 11640.2702 | Q30: 0.004818577486 | R30: 0.002805728985 | S30: 6247.4472 | U30: =G30-INDEX($C30:$G30,1,aux!$AL$1) -> 1901.475 | V30: 0.001039205229 | W30: 0.0007370595633 | X30: =+IF(INDEX($C30:$G30,1,aux!$AL$1)>0,(G30/INDEX($C30:$G30,1,aux!$AL$1))^(1/($G$3-INDEX($C$3:$G$3,1,aux!$AL$1)))-1,"n.d.") -> 0.07689272123 | Y30: =IF(INDEX($C30:$G30,1,aux!$AL$1)>0,(G30-INDEX($C30:$G30,1,aux!$AL$1))/INDEX($C30:$G30,1,aux!$AL$1),"n.d.") -> 0.3448992959 | AA30: =O30-INDEX($K30:$O30,1,aux!$AL$1) -> 17442.726 | AB30: 0.01343899514 | AC30: 0.008904489203 | AD30: =+IF(INDEX($K30:$O30,1,aux!$AL$1)>0,(O30/INDEX($K30:$O30,1,aux!$AL$1))^(1/($O$3-INDEX($K$3:$O$3,1,aux!$AL$1)))-1,"n.d.") -> 0.444975213 | AE30: =IF(INDEX($K30:$O30,1,aux!$AL$1)>0,(O30-INDEX($K30:$O30,1,aux!$AL$1))/INDEX($K30:$O30,1,aux!$AL$1),"n.d.") -> 3.359549259 | AX30: 04
A31: 0410 | B31: Outros produtos comestíveis de origem animal | C31: 511.19 | D31: 558.163 | E31: 337.184 | F31: 452.318 | G31: 563.47 | H31: 484.465 | I31: 0.0001030725418 | J31: 7.027563396e-05 | K31: 47.33 | L31: 5.272 | M31: 6.939 | N31: 4.706 | O31: 30.936 | P31: 19.0366 | Q31: 7.880343892e-06 | R31: 4.588513796e-06 | S31: -465.4284 | U31: =G31-INDEX($C31:$G31,1,aux!$AL$1) -> 52.28 | V31: 2.857237113e-05 | W31: 2.02650437e-05 | X31: =+IF(INDEX($C31:$G31,1,aux!$AL$1)>0,(G31/INDEX($C31:$G31,1,aux!$AL$1))^(1/($G$3-INDEX($C$3:$G$3,1,aux!$AL$1)))-1,"n.d.") -> 0.02464190244 | Y31: =IF(INDEX($C31:$G31,1,aux!$AL$1)>0,(G31-INDEX($C31:$G31,1,aux!$AL$1))/INDEX($C31:$G31,1,aux!$AL$1),"n.d.") -> 0.1022711712 | AA31: =O31-INDEX($K31:$O31,1,aux!$AL$1) -> -16.394 | AB31: -1.263098935e-05 | AC31: -8.369115928e-06 | AD31: =+IF(INDEX($K31:$O31,1,aux!$AL$1)>0,(O31/INDEX($K31:$O31,1,aux!$AL$1))^(1/($O$3-INDEX($K$3:$O$3,1,aux!$AL$1)))-1,"n.d.") -> -0.1008504865 | AE31: =IF(INDEX($K31:$O31,1,aux!$AL$1)>0,(O31-INDEX($K31:$O31,1,aux!$AL$1))/INDEX($K31:$O31,1,aux!$AL$1),"n.d.") -> -0.3463765054 | AX31: 04
A32: 04SS | B32: Leite e lacticínios; ovos de aves; mel natural; etc. | C32: 0 | D32: 0 | E32: 0 | F32: 0 | G32: 0 | H32: 0 | I32: 0 | J32: 0 | K32: 0 | L32: 0 | M32: 0 | N32: 0 | O32: 0 | P32: 0 | Q32: 0 | R32: 0 | S32: 0 | U32: =G32-INDEX($C32:$G32,1,aux!$AL$1) -> 0 | V32: 0 | W32: 0 | X32: =+IF(INDEX($C32:$G32,1,aux!$AL$1)>0,(G32/INDEX($C32:$G32,1,aux!$AL$1))^(1/($G$3-INDEX($C$3:$G$3,1,aux!$AL$1)))-1,"n.d.") -> n.d. | Y32: =IF(INDEX($C32:$G32,1,aux!$AL$1)>0,(G32-INDEX($C32:$G32,1,aux!$AL$1))/INDEX($C32:$G32,1,aux!$AL$1),"n.d.") -> n.d. | AA32: =O32-INDEX($K32:$O32,1,aux!$AL$1) -> 0 | AB32: 0 | AC32: 0 | AD32: =+IF(INDEX($K32:$O32,1,aux!$AL$1)>0,(O32/INDEX($K32:$O32,1,aux!$AL$1))^(1/($O$3-INDEX($K$3:$O$3,1,aux!$AL$1)))-1,"n.d.") -> n.d. | AE32: =IF(INDEX($K32:$O32,1,aux!$AL$1)>0,(O32-INDEX($K32:$O32,1,aux!$AL$1))/INDEX($K32:$O32,1,aux!$AL$1),"n.d.") -> n.d. | AX32: 04
A33: 0501 | B33: Cabelos em bruto | C33: 0 | D33: 1.674 | E33: 0.529 | F33: 0 | G33: 0 | H33: 0.4406 | I33: 9.374002642e-08 | J33: 6.391265483e-08 | K33: 0.102 | L33: 0 | M33: 0 | N33: 0 | O33: 0 | P33: 0.0204 | Q33: 8.444733587e-09 | R33: 4.917142842e-09 | S33: -0.4202 | U33: =G33-INDEX($C33:$G33,1,aux!$AL$1) -> 0 | V33: 0 | W33: 0 | X33: =+IF(INDEX($C33:$G33,1,aux!$AL$1)>0,(G33/INDEX($C33:$G33,1,aux!$AL$1))^(1/($G$3-INDEX($C$3:$G$3,1,aux!$AL$1)))-1,"n.d.") -> n.d. | Y33: =IF(INDEX($C33:$G33,1,aux!$AL$1)>0,(G33-INDEX($C33:$G33,1,aux!$AL$1))/INDEX($C33:$G33,1,aux!$AL$1),"n.d.") -> n.d. | AA33: =O33-INDEX($K33:$O33,1,aux!$AL$1) -> -0.102 | AB33: -7.858734374e-08 | AC33: -5.20708689e-08 | AD33: =+IF(INDEX($K33:$O33,1,aux!$AL$1)>0,(O33/INDEX($K33:$O33,1,aux!$AL$1))^(1/($O$3-INDEX($K$3:$O$3,1,aux!$AL$1)))-1,"n.d.") -> -1 | AE33: =IF(INDEX($K33:$O33,1,aux!$AL$1)>0,(O33-INDEX($K33:$O33,1,aux!$AL$1))/INDEX($K33:$O33,1,aux!$AL$1),"n.d.") -> -1 | AX33: 05
A34: 0502 | B34: Cerdas de porco ou de javali, etc. | C34: 42.118 | D34: 199.665 | E34: 526.103 | F34: 1400.931 | G34: 4338.119 | H34: 1301.3872 | I34: 0.0002768771459 | J34: 0.0001887769199 | K34: 0 | L34: 0 | M34: 0 | N34: 0 | O34: 0 | P34: 0 | Q34: 0 | R34: 0 | S34: -1301.3872 | U34: =G34-INDEX($C34:$G34,1,aux!$AL$1) -> 4296.001 | V34: 0.002347875572 | W34: 0.001665238103 | X34: =+IF(INDEX($C34:$G34,1,aux!$AL$1)>0,(G34/INDEX($C34:$G34,1,aux!$AL$1))^(1/($G$3-INDEX($C$3:$G$3,1,aux!$AL$1)))-1,"n.d.") -> 2.185726075 | Y34: =IF(INDEX($C34:$G34,1,aux!$AL$1)>0,(G34-INDEX($C34:$G34,1,aux!$AL$1))/INDEX($C34:$G34,1,aux!$AL$1),"n.d.") -> 101.999169 | AA34: =O34-INDEX($K34:$O34,1,aux!$AL$1) -> 0 | AB34: 0 | AC34: 0 | AD34: =+IF(INDEX($K34:$O34,1,aux!$AL$1)>0,(O34/INDEX($K34:$O34,1,aux!$AL$1))^(1/($O$3-INDEX($K$3:$O$3,1,aux!$AL$1)))-1,"n.d.") -> n.d. | AE34: =IF(INDEX($K34:$O34,1,aux!$AL$1)>0,(O34-INDEX($K34:$O34,1,aux!$AL$1))/INDEX($K34:$O34,1,aux!$AL$1),"n.d.") -> n.d. | AX34: 05
A35: 0504 | B35: Tripas de animais (excepto peixes) | C35: 5461.1 | D35: 7007.934 | E35: 7454.637 | F35: 6135.816 | G35: 6788.287 | H35: 6569.5548 | I35: 0.001397708217 | J35: 0.0009529679717 | K35: 6521.27 | L35: 6974.623 | M35: 6676.846 | N35: 7076.16 | O35: 8183.862 | P35: 7086.5522 | Q35: 0.002933531636 | R35: 0.001708117129 | S35: 516.9974 | U35: =G35-INDEX($C35:$G35,1,aux!$AL$1) -> 1327.187 | V35: 0.0007253419954 | W35: 0.0005144510817 | X35: =+IF(INDEX($C35:$G35,1,aux!$AL$1)>0,(G35/INDEX($C35:$G35,1,aux!$AL$1))^(1/($G$3-INDEX($C$3:$G$3,1,aux!$AL$1)))-1,"n.d.") -> 0.0558932573 | Y35: =IF(INDEX($C35:$G35,1,aux!$AL$1)>0,(G35-INDEX($C35:$G35,1,aux!$AL$1))/INDEX($C35:$G35,1,aux!$AL$1),"n.d.") -> 0.2430255809 | AA35: =O35-INDEX($K35:$O35,1,aux!$AL$1) -> 1662.592 | AB35: 0.001280967539 | AC35: 0.000848751079 | AD35: =+IF(INDEX($K35:$O35,1,aux!$AL$1)>0,(O35/INDEX($K35:$O35,1,aux!$AL$1))^(1/($O$3-INDEX($K$3:$O$3,1,aux!$AL$1)))-1,"n.d.") -> 0.05841632299 | AE35: =IF(INDEX($K35:$O35,1,aux!$AL$1)>0,(O35-INDEX($K35:$O35,1,aux!$AL$1))/INDEX($K35:$O35,1,aux!$AL$1),"n.d.") -> 0.2549491127 | AX35: 05
A36: 0505 | B36: Peles e outras partes de aves | C36: 114.542 | D36: 0.001 | E36: 2.717 | F36: 3.594 | G36: 71.478 | H36: 38.4664 | I36: 8.183934072e-06 | J36: 5.579867785e-06 | K36: 207.175 | L36: 135.853 | M36: 114.445 | N36: 60.942 | O36: 46.476 | P36: 112.9782 | Q36: 4.676817648e-05 | R36: 2.723186017e-05 | S36: 74.5118 | U36: =G36-INDEX($C36:$G36,1,aux!$AL$1) -> -43.064 | V36: -2.353558895e-05 | W36: -1.669269017e-05 | X36: =+IF(INDEX($C36:$G36,1,aux!$AL$1)>0,(G36/INDEX($C36:$G36,1,aux!$AL$1))^(1/($G$3-INDEX($C$3:$G$3,1,aux!$AL$1)))-1,"n.d.") -> -0.1112043763 | Y36: =IF(INDEX($C36:$G36,1,aux!$AL$1)>0,(G36-INDEX($C36:$G36,1,aux!$AL$1))/INDEX($C36:$G36,1,aux!$AL$1),"n.d.") -> -0.3759668942 | AA36: =O36-INDEX($K36:$O36,1,aux!$AL$1) -> -160.699 | AB36: -0.0001238128191 | AC36: -8.203663295e-05 | AD36: =+IF(INDEX($K36:$O36,1,aux!$AL$1)>0,(O36/INDEX($K36:$O36,1,aux!$AL$1))^(1/($O$3-INDEX($K$3:$O$3,1,aux!$AL$1)))-1,"n.d.") -> -0.3117870366 | AE36: =IF(INDEX($K36:$O36,1,aux!$AL$1)>0,(O36-INDEX($K36:$O36,1,aux!$AL$1))/INDEX($K36:$O36,1,aux!$AL$1),"n.d.") -> -0.7756679136 | AX36: 05
A37: 0506 | B37: Ossos e núcleos córneos, em bruto | C37: 234.203 | D37: 314.113 | E37: 294.248 | F37: 221.309 | G37: 401.911 | H37: 293.1568 | I37: 6.237069037e-05 | J37: 4.252480565e-05 | K37: 313.199 | L37: 232.129 | M37: 235.314 | N37: 538.38 | O37: 794.436 | P37: 422.6916 | Q37: 0.0001749763702 | R37: 0.0001018840674 | S37: 129.5348 | U37: =G37-INDEX($C37:$G37,1,aux!$AL$1) -> 167.708 | V37: 9.165675625e-05 | W37: 6.500784141e-05 | X37: =+IF(INDEX($C37:$G37,1,aux!$AL$1)>0,(G37/INDEX($C37:$G37,1,aux!$AL$1))^(1/($G$3-INDEX($C$3:$G$3,1,aux!$AL$1)))-1,"n.d.") -> 0.1445489195 | Y37: =IF(INDEX($C37:$G37,1,aux!$AL$1)>0,(G37-INDEX($C37:$G37,1,aux!$AL$1))/INDEX($C37:$G37,1,aux!$AL$1),"n.d.") -> 0.7160796403 | AA37: =O37-INDEX($K37:$O37,1,aux!$AL$1) -> 481.237 | AB37: 0.0003707758582 | AC37: 0.0002456708699 | AD37: =+IF(INDEX($K37:$O37,1,aux!$AL$1)>0,(O37/INDEX($K37:$O37,1,aux!$AL$1))^(1/($O$3-INDEX($K$3:$O$3,1,aux!$AL$1)))-1,"n.d.") -> 0.2620008207 | AE37: =IF(INDEX($K37:$O37,1,aux!$AL$1)>0,(O37-INDEX($K37:$O37,1,aux!$AL$1))/INDEX($K37:$O37,1,aux!$AL$1),"n.d.") -> 1.536521509 | AX37: 05
A38: 0507 | B38: Marfim, carapaças de tartaruga, etc. | C38: 0.73 | D38: 0 | E38: 0 | F38: 1.579 | G38: 44.807 | H38: 9.4232 | I38: 2.004836625e-06 | J38: 1.366912685e-06 | K38: 0 | L38: 0 | M38: 0 | N38: 0 | O38: 0 | P38: 0 | Q38: 0 | R38: 0 | S38: -9.4232 | U38: =G38-INDEX($C38:$G38,1,aux!$AL$1) -> 44.077 | V38: 2.408921963e-05 | W38: 1.708535446e-05 | X38: =+IF(INDEX($C38:$G38,1,aux!$AL$1)>0,(G38/INDEX($C38:$G38,1,aux!$AL$1))^(1/($G$3-INDEX($C$3:$G$3,1,aux!$AL$1)))-1,"n.d.") -> 1.799018389 | Y38: =IF(INDEX($C38:$G38,1,aux!$AL$1)>0,(G38-INDEX($C38:$G38,1,aux!$AL$1))/INDEX($C38:$G38,1,aux!$AL$1),"n.d.") -> 60.37945205 | AA38: =O38-INDEX($K38:$O38,1,aux!$AL$1) -> 0 | AB38: 0 | AC38: 0 | AD38: =+IF(INDEX($K38:$O38,1,aux!$AL$1)>0,(O38/INDEX($K38:$O38,1,aux!$AL$1))^(1/($O$3-INDEX($K$3:$O$3,1,aux!$AL$1)))-1,"n.d.") -> n.d. | AE38: =IF(INDEX($K38:$O38,1,aux!$AL$1)>0,(O38-INDEX($K38:$O38,1,aux!$AL$1))/INDEX($K38:$O38,1,aux!$AL$1),"n.d.") -> n.d. | AX38: 05
A39: 0510 | B39: Âmbar-cinzento, castóreo, algália e almíscar, etc. | C39: 0 | D39: 0 | E39: 0 | F39: 0 | G39: 0 | H39: 0 | I39: 0 | J39: 0 | K39: 10.77 | L39: 14.289 | M39: 172.469 | N39: 3.481 | O39: 3.424 | P39: 40.8866 | Q39: 1.69253159e-05 | R39: 9.855159438e-06 | S39: 40.8866 | U39: =G39-INDEX($C39:$G39,1,aux!$AL$1) -> 0 | V39: 0 | W39: 0 | X39: =+IF(INDEX($C39:$G39,1,aux!$AL$1)>0,(G39/INDEX($C39:$G39,1,aux!$AL$1))^(1/($G$3-INDEX($C$3:$G$3,1,aux!$AL$1)))-1,"n.d.") -> n.d. | Y39: =IF(INDEX($C39:$G39,1,aux!$AL$1)>0,(G39-INDEX($C39:$G39,1,aux!$AL$1))/INDEX($C39:$G39,1,aux!$AL$1),"n.d.") -> n.d. | AA39: =O39-INDEX($K39:$O39,1,aux!$AL$1) -> -7.346 | AB39: -5.659829678e-06 | AC39: -3.750123558e-06 | AD39: =+IF(INDEX($K39:$O39,1,aux!$AL$1)>0,(O39/INDEX($K39:$O39,1,aux!$AL$1))^(1/($O$3-INDEX($K$3:$O$3,1,aux!$AL$1)))-1,"n.d.") -> -0.2491044801 | AE39: =IF(INDEX($K39:$O39,1,aux!$AL$1)>0,(O39-INDEX($K39:$O39,1,aux!$AL$1))/INDEX($K39:$O39,1,aux!$AL$1),"n.d.") -> -0.6820798514 | AX39: 05
A40: 0511 | B40: Outros produtos de origem animal (exc. NC 0511 91) (a) | C40: 5392.622 | D40: 4329.82 | E40: 5218.813 | F40: 6378.565 | G40: 8529.65 | H40: 5969.894 | I40: 0.001270127148 | J40: 0.0008659822392 | K40: 4383.872 | L40: 1836.037 | M40: 2904.031 | N40: 3541.534 | O40: 5290.827 | P40: 3591.2602 | Q40: 0.001486629198 | R40: 0.0008656244798 | S40: -2378.6338 | U40: =G40-INDEX($C40:$G40,1,aux!$AL$1) -> 3137.028 | V40: 0.001714466875 | W40: 0.001215991001 | X40: =+IF(INDEX($C40:$G40,1,aux!$AL$1)>0,(G40/INDEX($C40:$G40,1,aux!$AL$1))^(1/($G$3-INDEX($C$3:$G$3,1,aux!$AL$1)))-1,"n.d.") -> 0.1214574696 | Y40: =IF(INDEX($C40:$G40,1,aux!$AL$1)>0,(G40-INDEX($C40:$G40,1,aux!$AL$1))/INDEX($C40:$G40,1,aux!$AL$1),"n.d.") -> 0.5817259211 | AA40: =O40-INDEX($K40:$O40,1,aux!$AL$1) -> 906.955 | AB40: 0.0006987763171 | AC40: 0.0004629993618 | AD40: =+IF(INDEX($K40:$O40,1,aux!$AL$1)>0,(O40/INDEX($K40:$O40,1,aux!$AL$1))^(1/($O$3-INDEX($K$3:$O$3,1,aux!$AL$1)))-1,"n.d.") -> 0.04813307055 | AE40: =IF(INDEX($K40:$O40,1,aux!$AL$1)>0,(O40-INDEX($K40:$O40,1,aux!$AL$1))/INDEX($K40:$O40,1,aux!$AL$1),"n.d.") -> 0.206884462 | AX40: 05
A41: 05SS | B41: Outros produtos de origem animal | C41: 0 | D41: 0 | E41: 0 | F41: 0 | G41: 0 | H41: 0 | I41: 0 | J41: 0 | K41: 0 | L41: 0 | M41: 0 | N41: 0 | O41: 0 | P41: 0 | Q41: 0 | R41: 0 | S41: 0 | U41: =G41-INDEX($C41:$G41,1,aux!$AL$1) -> 0 | V41: 0 | W41: 0 | X41: =+IF(INDEX($C41:$G41,1,aux!$AL$1)>0,(G41/INDEX($C41:$G41,1,aux!$AL$1))^(1/($G$3-INDEX($C$3:$G$3,1,aux!$AL$1)))-1,"n.d.") -> n.d. | Y41: =IF(INDEX($C41:$G41,1,aux!$AL$1)>0,(G41-INDEX($C41:$G41,1,aux!$AL$1))/INDEX($C41:$G41,1,aux!$AL$1),"n.d.") -> n.d. | AA41: =O41-INDEX($K41:$O41,1,aux!$AL$1) -> 0 | AB41: 0 | AC41: 0 | AD41: =+IF(INDEX($K41:$O41,1,aux!$AL$1)>0,(O41/INDEX($K41:$O41,1,aux!$AL$1))^(1/($O$3-INDEX($K$3:$O$3,1,aux!$AL$1)))-1,"n.d.") -> n.d. | AE41: =IF(INDEX($K41:$O41,1,aux!$AL$1)>0,(O41-INDEX($K41:$O41,1,aux!$AL$1))/INDEX($K41:$O41,1,aux!$AL$1),"n.d.") -> n.d. | AX41: 05
A42: 0601 | B42: Bolbos, tubérculos, raízes, etc. | C42: 301.082 | D42: 686.311 | E42: 1383.868 | F42: 1210.757 | G42: 1988.163 | H42: 1114.0362 | I42: 0.0002370172102 | J42: 0.000161600116 | K42: 664.941 | L42: 1099.776 | M42: 997.557 | N42: 2410.295 | O42: 2007.536 | P42: 1436.021 | Q42: 0.0005944517044 | R42: 0.000346133352 | S42: 321.9848 | U42: =G42-INDEX($C42:$G42,1,aux!$AL$1) -> 1687.081 | V42: 0.0009220333675 | W42: 0.0006539550534 | X42: =+IF(INDEX($C42:$G42,1,aux!$AL$1)>0,(G42/INDEX($C42:$G42,1,aux!$AL$1))^(1/($G$3-INDEX($C$3:$G$3,1,aux!$AL$1)))-1,"n.d.") -> 0.6030305488 | Y42: =IF(INDEX($C42:$G42,1,aux!$AL$1)>0,(G42-INDEX($C42:$G42,1,aux!$AL$1))/INDEX($C42:$G42,1,aux!$AL$1),"n.d.") -> 5.60339376 | AA42: =O42-INDEX($K42:$O42,1,aux!$AL$1) -> 1342.595 | AB42: 0.001034421321 | AC42: 0.0006853930218 | AD42: =+IF(INDEX($K42:$O42,1,aux!$AL$1)>0,(O42/INDEX($K42:$O42,1,aux!$AL$1))^(1/($O$3-INDEX($K$3:$O$3,1,aux!$AL$1)))-1,"n.d.") -> 0.3181658541 | AE42: =IF(INDEX($K42:$O42,1,aux!$AL$1)>0,(O42-INDEX($K42:$O42,1,aux!$AL$1))/INDEX($K42:$O42,1,aux!$AL$1),"n.d.") -> 2.01911899 | AX42: 06
A43: 0602 | B43: Plantas vivas | C43: 39546.351 | D43: 40085.442 | E43: 46070.47 | F43: 50635.011 | G43: 67864.182 | H43: 48840.2912 | I43: 0.01039103538 | J43: 0.00708468605 | K43: 9626.621 | L43: 9387.353 | M43: 9635.375 | N43: 9772.39 | O43: 10485.712 | P43: 9781.4902 | Q43: 0.004049121511 | R43: 0.00235769532 | S43: -39058.801 | U43: =G43-INDEX($C43:$G43,1,aux!$AL$1) -> 28317.831 | V43: 0.01547642649 | W43: 0.01097670395 | X43: =+IF(INDEX($C43:$G43,1,aux!$AL$1)>0,(G43/INDEX($C43:$G43,1,aux!$AL$1))^(1/($G$3-INDEX($C$3:$G$3,1,aux!$AL$1)))-1,"n.d.") -> 0.1445467869 | Y43: =IF(INDEX($C43:$G43,1,aux!$AL$1)>0,(G43-INDEX($C43:$G43,1,aux!$AL$1))/INDEX($C43:$G43,1,aux!$AL$1),"n.d.") -> 0.7160668503 | AA43: =O43-INDEX($K43:$O43,1,aux!$AL$1) -> 859.091 | AB43: 0.0006618988208 | AC43: 0.0004385648513 | AD43: =+IF(INDEX($K43:$O43,1,aux!$AL$1)>0,(O43/INDEX($K43:$O43,1,aux!$AL$1))^(1/($O$3-INDEX($K$3:$O$3,1,aux!$AL$1)))-1,"n.d.") -> 0.02160030241 | AE43: =IF(INDEX($K43:$O43,1,aux!$AL$1)>0,(O43-INDEX($K43:$O43,1,aux!$AL$1))/INDEX($K43:$O43,1,aux!$AL$1),"n.d.") -> 0.08924117819 | AX43: 06
A44: 0603 | B44: Flores e seus botões | C44: 6819.504 | D44: 7595.112 | E44: 6803.436 | F44: 10172.475 | G44: 13927.444 | H44: 9063.5942 | I44: 0.001928328551 | J44: 0.001314748905 | K44: 1203.235 | L44: 568.775 | M44: 868.238 | N44: 1457.738 | O44: 2246.49 | P44: 1268.8952 | Q44: 0.0005252687212 | R44: 0.0003058499485 | S44: -7794.699 | U44: =G44-INDEX($C44:$G44,1,aux!$AL$1) -> 7107.94 | V44: 0.003884672908 | W44: 0.002755216425 | X44: =+IF(INDEX($C44:$G44,1,aux!$AL$1)>0,(G44/INDEX($C44:$G44,1,aux!$AL$1))^(1/($G$3-INDEX($C$3:$G$3,1,aux!$AL$1)))-1,"n.d.") -> 0.1954451602 | Y44: =IF(INDEX($C44:$G44,1,aux!$AL$1)>0,(G44-INDEX($C44:$G44,1,aux!$AL$1))/INDEX($C44:$G44,1,aux!$AL$1),"n.d.") -> 1.042295745 | AA44: =O44-INDEX($K44:$O44,1,aux!$AL$1) -> 1043.255 | AB44: 0.0008037905813 | AC44: 0.0005325803366 | AD44: =+IF(INDEX($K44:$O44,1,aux!$AL$1)>0,(O44/INDEX($K44:$O44,1,aux!$AL$1))^(1/($O$3-INDEX($K$3:$O$3,1,aux!$AL$1)))-1,"n.d.") -> 0.1689300098 | AE44: =IF(INDEX($K44:$O44,1,aux!$AL$1)>0,(O44-INDEX($K44:$O44,1,aux!$AL$1))/INDEX($K44:$O44,1,aux!$AL$1),"n.d.") -> 0.8670417666 | AX44: 06
A45: 0604 | B45: Folhagem, folhas, ramos e outras partes de plantas | C45: 1303.585 | D45: 1499.268 | E45: 1815.066 | F45: 1790.159 | G45: 4306.687 | H45: 2142.953 | I45: 0.000455924809 | J45: 0.0003108529628 | K45: 4736.334 | L45: 5620.386 | M45: 15315.547 | N45: 11947.044 | O45: 9890.181 | P45: 9501.8984 | Q45: 0.00393338238 | R45: 0.002290303515 | S45: 7358.9454 | U45: =G45-INDEX($C45:$G45,1,aux!$AL$1) -> 3003.102 | V45: 0.001641272855 | W45: 0.001164077913 | X45: =+IF(INDEX($C45:$G45,1,aux!$AL$1)>0,(G45/INDEX($C45:$G45,1,aux!$AL$1))^(1/($G$3-INDEX($C$3:$G$3,1,aux!$AL$1)))-1,"n.d.") -> 0.3481896499 | Y45: =IF(INDEX($C45:$G45,1,aux!$AL$1)>0,(G45-INDEX($C45:$G45,1,aux!$AL$1))/INDEX($C45:$G45,1,aux!$AL$1),"n.d.") -> 2.303725495 | AA45: =O45-INDEX($K45:$O45,1,aux!$AL$1) -> 5153.847 | AB45: 0.00397085437 | AC45: 0.002631032269 | AD45: =+IF(INDEX($K45:$O45,1,aux!$AL$1)>0,(O45/INDEX($K45:$O45,1,aux!$AL$1))^(1/($O$3-INDEX($K$3:$O$3,1,aux!$AL$1)))-1,"n.d.") -> 0.2020996751 | AE45: =IF(INDEX($K45:$O45,1,aux!$AL$1)>0,(O45-INDEX($K45:$O45,1,aux!$AL$1))/INDEX($K45:$O45,1,aux!$AL$1),"n.d.") -> 1.088151089 | AX45: 06
A46: 06SS | B46: Plantas vivas e produtos de floricultura | C46: 0 | D46: 0 | E46: 0 | F46: 0 | G46: 0 | H46: 0 | I46: 0 | J46: 0 | K46: 0 | L46: 0 | M46: 0 | N46: 0 | O46: 0 | P46: 0 | Q46: 0 | R46: 0 | S46: 0 | U46: =G46-INDEX($C46:$G46,1,aux!$AL$1) -> 0 | V46: 0 | W46: 0 | X46: =+IF(INDEX($C46:$G46,1,aux!$AL$1)>0,(G46/INDEX($C46:$G46,1,aux!$AL$1))^(1/($G$3-INDEX($C$3:$G$3,1,aux!$AL$1)))-1,"n.d.") -> n.d. | Y46: =IF(INDEX($C46:$G46,1,aux!$AL$1)>0,(G46-INDEX($C46:$G46,1,aux!$AL$1))/INDEX($C46:$G46,1,aux!$AL$1),"n.d.") -> n.d. | AA46: =O46-INDEX($K46:$O46,1,aux!$AL$1) -> 0 | AB46: 0 | AC46: 0 | AD46: =+IF(INDEX($K46:$O46,1,aux!$AL$1)>0,(O46/INDEX($K46:$O46,1,aux!$AL$1))^(1/($O$3-INDEX($K$3:$O$3,1,aux!$AL$1)))-1,"n.d.") -> n.d. | AE46: =IF(INDEX($K46:$O46,1,aux!$AL$1)>0,(O46-INDEX($K46:$O46,1,aux!$AL$1))/INDEX($K46:$O46,1,aux!$AL$1),"n.d.") -> n.d. | AX46: 06
A47: 0701 | B47: Batatas, frescas ou refrigeradas | C47: 44823.948 | D47: 42633.161 | E47: 34056.462 | F47: 33569.246 | G47: 50864.402 | H47: 41189.4438 | I47: 0.008763276327 | J47: 0.00597486769 | K47: 7445.844 | L47: 13407.857 | M47: 8771.45 | N47: 9845.344 | O47: 14707.941 | P47: 10835.6872 | Q47: 0.004485514296 | R47: 0.002611795184 | S47: -30353.7566 | U47: =G47-INDEX($C47:$G47,1,aux!$AL$1) -> 6040.454 | V47: 0.003301264221 | W47: 0.002341431987 | X47: =+IF(INDEX($C47:$G47,1,aux!$AL$1)>0,(G47/INDEX($C47:$G47,1,aux!$AL$1))^(1/($G$3-INDEX($C$3:$G$3,1,aux!$AL$1)))-1,"n.d.") -> 0.03210993686 | Y47: =IF(INDEX($C47:$G47,1,aux!$AL$1)>0,(G47-INDEX($C47:$G47,1,aux!$AL$1))/INDEX($C47:$G47,1,aux!$AL$1),"n.d.") -> 0.1347595263 | AA47: =O47-INDEX($K47:$O47,1,aux!$AL$1) -> 7262.097 | AB47: 0.005595185424 | AC47: 0.003707291184 | AD47: =+IF(INDEX($K47:$O47,1,aux!$AL$1)>0,(O47/INDEX($K47:$O47,1,aux!$AL$1))^(1/($O$3-INDEX($K$3:$O$3,1,aux!$AL$1)))-1,"n.d.") -> 0.185521642 | AE47: =IF(INDEX($K47:$O47,1,aux!$AL$1)>0,(O47-INDEX($K47:$O47,1,aux!$AL$1))/INDEX($K47:$O47,1,aux!$AL$1),"n.d.") -> 0.9753222066 | AX47: 07
A48: 0702 | B48: Tomates, frescos ou refrigerados | C48: 28271.222 | D48: 31138.838 | E48: 27683.214 | F48: 31140.47 | G48: 40856.877 | H48: 31818.1242 | I48: 0.006769477537 | J48: 0.004615480684 | K48: 41248.496 | L48: 46682.727 | M48: 41485.27 | N48: 48059.454 | O48: 68799.115 | P48: 49255.0124 | Q48: 0.02038948321 | R48: 0.01187225155 | S48: 17436.8882 | U48: =G48-INDEX($C48:$G48,1,aux!$AL$1) -> 12585.655 | V48: 0.006878385721 | W48: 0.004878516614 | X48: =+IF(INDEX($C48:$G48,1,aux!$AL$1)>0,(G48/INDEX($C48:$G48,1,aux!$AL$1))^(1/($G$3-INDEX($C$3:$G$3,1,aux!$AL$1)))-1,"n.d.") -> 0.09642807263 | Y48: =IF(INDEX($C48:$G48,1,aux!$AL$1)>0,(G48-INDEX($C48:$G48,1,aux!$AL$1))/INDEX($C48:$G48,1,aux!$AL$1),"n.d.") -> 0.4451754862 | AA48: =O48-INDEX($K48:$O48,1,aux!$AL$1) -> 27550.619 | AB48: 0.02122676437 | AC48: 0.01406455559 | AD48: =+IF(INDEX($K48:$O48,1,aux!$AL$1)>0,(O48/INDEX($K48:$O48,1,aux!$AL$1))^(1/($O$3-INDEX($K$3:$O$3,1,aux!$AL$1)))-1,"n.d.") -> 0.1364325998 | AE48: =IF(INDEX($K48:$O48,1,aux!$AL$1)>0,(O48-INDEX($K48:$O48,1,aux!$AL$1))/INDEX($K48:$O48,1,aux!$AL$1),"n.d.") -> 0.6679181466 | AX48: 07
A49: 0703 | B49: Cebolas, alhos, etc., frescos ou refrigerados | C49: 33107.526 | D49: 37424.973 | E49: 40356.606 | F49: 41721.948 | G49: 44543.829 | H49: 39430.9764 | I49: 0.008389152904 | J49: 0.005719787527 | K49: 4545.593 | L49: 7049.358 | M49: 6439.209 | N49: 7358.258 | O49: 5356.801 | P49: 6149.8438 | Q49: 0.002545774142 | R49: 0.001482336295 | S49: -33281.1326 | U49: =G49-INDEX($C49:$G49,1,aux!$AL$1) -> 11436.303 | V49: 0.00625023515 | W49: 0.004432998854 | X49: =+IF(INDEX($C49:$G49,1,aux!$AL$1)>0,(G49/INDEX($C49:$G49,1,aux!$AL$1))^(1/($G$3-INDEX($C$3:$G$3,1,aux!$AL$1)))-1,"n.d.") -> 0.07699876279 | Y49: =IF(INDEX($C49:$G49,1,aux!$AL$1)>0,(G49-INDEX($C49:$G49,1,aux!$AL$1))/INDEX($C49:$G49,1,aux!$AL$1),"n.d.") -> 0.3454291027 | AA49: =O49-INDEX($K49:$O49,1,aux!$AL$1) -> 811.208 | AB49: 0.0006250066857 | AC49: 0.0004141206413 | AD49: =+IF(INDEX($K49:$O49,1,aux!$AL$1)>0,(O49/INDEX($K49:$O49,1,aux!$AL$1))^(1/($O$3-INDEX($K$3:$O$3,1,aux!$AL$1)))-1,"n.d.") -> 0.04190648549 | AE49: =IF(INDEX($K49:$O49,1,aux!$AL$1)>0,(O49-INDEX($K49:$O49,1,aux!$AL$1))/INDEX($K49:$O49,1,aux!$AL$1),"n.d.") -> 0.1784603241 | AX49: 07
A50: 0704 | B50: Couves, frescas ou refrigeradas | C50: 15647.896 | D50: 15651.252 | E50: 18148.188 | F50: 18575.11 | G50: 18681.217 | H50: 17340.7326 | I50: 0.003689334389 | J50: 0.002515415927 | K50: 3586.88 | L50: 3634.828 | M50: 3995.864 | N50: 3128.718 | O50: 4552.243 | P50: 3779.7066 | Q50: 0.001564638004 | R50: 0.0009110469242 | S50: -13561.026 | U50: =G50-INDEX($C50:$G50,1,aux!$AL$1) -> 3033.321 | V50: 0.00165778832 | W50: 0.001175791557 | X50: =+IF(INDEX($C50:$G50,1,aux!$AL$1)>0,(G50/INDEX($C50:$G50,1,aux!$AL$1))^(1/($G$3-INDEX($C$3:$G$3,1,aux!$AL$1)))-1,"n.d.") -> 0.04529122247 | Y50: =IF(INDEX($C50:$G50,1,aux!$AL$1)>0,(G50-INDEX($C50:$G50,1,aux!$AL$1))/INDEX($C50:$G50,1,aux!$AL$1),"n.d.") -> 0.1938484893 | AA50: =O50-INDEX($K50:$O50,1,aux!$AL$1) -> 965.363 | AB50: 0.0007437775874 | AC50: 0.0004928165707 | AD50: =+IF(INDEX($K50:$O50,1,aux!$AL$1)>0,(O50/INDEX($K50:$O50,1,aux!$AL$1))^(1/($O$3-INDEX($K$3:$O$3,1,aux!$AL$1)))-1,"n.d.") -> 0.06139526856 | AE50: =IF(INDEX($K50:$O50,1,aux!$AL$1)>0,(O50-INDEX($K50:$O50,1,aux!$AL$1))/INDEX($K50:$O50,1,aux!$AL$1),"n.d.") -> 0.2691372446 | AX50: 07
A51: 0705 | B51: Alfaces, frescas ou refrigeradas | C51: 5995.987 | D51: 5559.692 | E51: 5060.887 | F51: 6488.808 | G51: 8430.994 | H51: 6307.2736 | I51: 0.001341906477 | J51: 0.0009149219259 | K51: 5020.163 | L51: 5636.049 | M51: 4786.302 | N51: 5175.691 | O51: 7362.273 | P51: 5596.0956 | Q51: 0.002316545905 | R51: 0.001348862815 | S51: -711.178 | U51: =G51-INDEX($C51:$G51,1,aux!$AL$1) -> 2435.007 | V51: 0.001330794256 | W51: 0.0009438699936 | X51: =+IF(INDEX($C51:$G51,1,aux!$AL$1)>0,(G51/INDEX($C51:$G51,1,aux!$AL$1))^(1/($G$3-INDEX($C$3:$G$3,1,aux!$AL$1)))-1,"n.d.") -> 0.0889414377 | Y51: =IF(INDEX($C51:$G51,1,aux!$AL$1)>0,(G51-INDEX($C51:$G51,1,aux!$AL$1))/INDEX($C51:$G51,1,aux!$AL$1),"n.d.") -> 0.4061061173 | AA51: =O51-INDEX($K51:$O51,1,aux!$AL$1) -> 2342.11 | AB51: 0.0018045118 | AC51: 0.001195644145 | AD51: =+IF(INDEX($K51:$O51,1,aux!$AL$1)>0,(O51/INDEX($K51:$O51,1,aux!$AL$1))^(1/($O$3-INDEX($K$3:$O$3,1,aux!$AL$1)))-1,"n.d.") -> 0.1004581337 | AE51: =IF(INDEX($K51:$O51,1,aux!$AL$1)>0,(O51-INDEX($K51:$O51,1,aux!$AL$1))/INDEX($K51:$O51,1,aux!$AL$1),"n.d.") -> 0.4665406283 | AX51: 07
A52: 0706 | B52: Cenouras, nabos, beterrabas, etc., frescos ou refrigerados | C52: 8655.92 | D52: 7774.53 | E52: 7387.05 | F52: 6677.168 | G52: 11438.037 | H52: 8386.541 | I52: 0.001784281831 | J52: 0.001216536768 | K52: 1101.923 | L52: 1391.549 | M52: 1076.282 | N52: 1700.409 | O52: 1254.571 | P52: 1304.9468 | Q52: 0.0005401925525 | R52: 0.0003145396969 | S52: -7081.5942 | U52: =G52-INDEX($C52:$G52,1,aux!$AL$1) -> 2782.117 | V52: 0.001520498842 | W52: 0.001078418565 | X52: =+IF(INDEX($C52:$G52,1,aux!$AL$1)>0,(G52/INDEX($C52:$G52,1,aux!$AL$1))^(1/($G$3-INDEX($C$3:$G$3,1,aux!$AL$1)))-1,"n.d.") -> 0.07215991407 | Y52: =IF(INDEX($C52:$G52,1,aux!$AL$1)>0,(G52-INDEX($C52:$G52,1,aux!$AL$1))/INDEX($C52:$G52,1,aux!$AL$1),"n.d.") -> 0.3214120509 | AA52: =O52-INDEX($K52:$O52,1,aux!$AL$1) -> 152.648 | AB52: 0.0001176098122 | AC52: 7.79266078e-05 | AD52: =+IF(INDEX($K52:$O52,1,aux!$AL$1)>0,(O52/INDEX($K52:$O52,1,aux!$AL$1))^(1/($O$3-INDEX($K$3:$O$3,1,aux!$AL$1)))-1,"n.d.") -> 0.03296593367 | AE52: =IF(INDEX($K52:$O52,1,aux!$AL$1)>0,(O52-INDEX($K52:$O52,1,aux!$AL$1))/INDEX($K52:$O52,1,aux!$AL$1),"n.d.") -> 0.1385287357 | AX52: 07
A53: 0707 | B53: Pepinos e pepininhos, frescos ou refrigerados | C53: 3091.156 | D53: 4044.578 | E53: 2736.32 | F53: 3693.201 | G53: 5865.029 | H53: 3886.0568 | I53: 0.000826779544 | J53: 0.0005637045096 | K53: 144.993 | L53: 153.961 | M53: 357.271 | N53: 125.889 | O53: 468.213 | P53: 250.0654 | Q53: 0.000103516455 | R53: 6.027486724e-05 | S53: -3635.9914 | U53: =G53-INDEX($C53:$G53,1,aux!$AL$1) -> 2773.873 | V53: 0.001515993283 | W53: 0.001075222983 | X53: =+IF(INDEX($C53:$G53,1,aux!$AL$1)>0,(G53/INDEX($C53:$G53,1,aux!$AL$1))^(1/($G$3-INDEX($C$3:$G$3,1,aux!$AL$1)))-1,"n.d.") -> 0.1736465061 | Y53: =IF(INDEX($C53:$G53,1,aux!$AL$1)>0,(G53-INDEX($C53:$G53,1,aux!$AL$1))/INDEX($C53:$G53,1,aux!$AL$1),"n.d.") -> 0.8973578169 | AA53: =O53-INDEX($K53:$O53,1,aux!$AL$1) -> 323.22 | AB53: 0.000249029424 | AC53: 0.0001650033946 | AD53: =+IF(INDEX($K53:$O53,1,aux!$AL$1)>0,(O53/INDEX($K53:$O53,1,aux!$AL$1))^(1/($O$3-INDEX($K$3:$O$3,1,aux!$AL$1)))-1,"n.d.") -> 0.3405225006 | AE53: =IF(INDEX($K53:$O53,1,aux!$AL$1)>0,(O53-INDEX($K53:$O53,1,aux!$AL$1))/INDEX($K53:$O53,1,aux!$AL$1),"n.d.") -> 2.229211065 | AX53: 07
A54: 0708 | B54: Tomates preparados ou conservados | C54: 11385.395 | D54: 11845.768 | E54: 13591.173 | F54: 11083.216 | G54: 13377.219 | H54: 12256.5542 | I54: 0.002607648013 | J54: 0.001777914022 | K54: 330.344 | L54: 662.226 | M54: 1134.269 | N54: 899.767 | O54: 1385.294 | P54: 882.38 | Q54: 0.0003652678442 | R54: 0.0002126857108 | S54: -11374.1742 | U54: =G54-INDEX($C54:$G54,1,aux!$AL$1) -> 1991.824 | V54: 0.001088583293 | W54: 0.0007720811095 | X54: =+IF(INDEX($C54:$G54,1,aux!$AL$1)>0,(G54/INDEX($C54:$G54,1,aux!$AL$1))^(1/($G$3-INDEX($C$3:$G$3,1,aux!$AL$1)))-1,"n.d.") -> 0.04112873629 | Y54: =IF(INDEX($C54:$G54,1,aux!$AL$1)>0,(G54-INDEX($C54:$G54,1,aux!$AL$1))/INDEX($C54:$G54,1,aux!$AL$1),"n.d.") -> 0.1749455333 | AA54: =O54-INDEX($K54:$O54,1,aux!$AL$1) -> 1054.95 | AB54: 0.0008128011596 | AC54: 0.000538550619 | AD54: =+IF(INDEX($K54:$O54,1,aux!$AL$1)>0,(O54/INDEX($K54:$O54,1,aux!$AL$1))^(1/($O$3-INDEX($K$3:$O$3,1,aux!$AL$1)))-1,"n.d.") -> 0.4310139997 | AE54: =IF(INDEX($K54:$O54,1,aux!$AL$1)>0,(O54-INDEX($K54:$O54,1,aux!$AL$1))/INDEX($K54:$O54,1,aux!$AL$1),"n.d.") -> 3.193489211 | AX54: 07
A55: 0709 | B55: Outros produtos hortícolas, frescos ou refrigerados | C55: 55069.157 | D55: 58764.096 | E55: 67626.644 | F55: 78736.463 | G55: 89840.309 | H55: 70007.3338 | I55: 0.01489443786 | J55: 0.01015513972 | K55: 36673.268 | L55: 31938.867 | M55: 28992.427 | N55: 42149.378 | O55: 51206.723 | P55: 38192.1326 | Q55: 0.01580992083 | R55: 0.009205694679 | S55: -31815.2012 | U55: =G55-INDEX($C55:$G55,1,aux!$AL$1) -> 34771.152 | V55: 0.01900333319 | W55: 0.01347817358 | X55: =+IF(INDEX($C55:$G55,1,aux!$AL$1)>0,(G55/INDEX($C55:$G55,1,aux!$AL$1))^(1/($G$3-INDEX($C$3:$G$3,1,aux!$AL$1)))-1,"n.d.") -> 0.1301620038 | Y55: =IF(INDEX($C55:$G55,1,aux!$AL$1)>0,(G55-INDEX($C55:$G55,1,aux!$AL$1))/INDEX($C55:$G55,1,aux!$AL$1),"n.d.") -> 0.6314088302 | AA55: =O55-INDEX($K55:$O55,1,aux!$AL$1) -> 14533.455 | AB55: 0.01119750612 | AC55: 0.007419310097 | AD55: =+IF(INDEX($K55:$O55,1,aux!$AL$1)>0,(O55/INDEX($K55:$O55,1,aux!$AL$1))^(1/($O$3-INDEX($K$3:$O$3,1,aux!$AL$1)))-1,"n.d.") -> 0.08703704075 | AE55: =IF(INDEX($K55:$O55,1,aux!$AL$1)>0,(O55-INDEX($K55:$O55,1,aux!$AL$1))/INDEX($K55:$O55,1,aux!$AL$1),"n.d.") -> 0.3962956069 | AX55: 07
A56: 0710 | B56: Produtos hortícolas congelados | C56: 28424.864 | D56: 30568.185 | E56: 33224.497 | F56: 33009.559 | G56: 41888.705 | H56: 33423.162 | I56: 0.007110957986 | J56: 0.004848304622 | K56: 3165.682 | L56: 3358.32 | M56: 2652.801 | N56: 3985.588 | O56: 5227.452 | P56: 3677.9686 | Q56: 0.001522522793 | R56: 0.0008865243616 | S56: -29745.1934 | U56: =G56-INDEX($C56:$G56,1,aux!$AL$1) -> 13463.841 | V56: 0.007358337066 | W56: 0.005218923608 | X56: =+IF(INDEX($C56:$G56,1,aux!$AL$1)>0,(G56/INDEX($C56:$G56,1,aux!$AL$1))^(1/($G$3-INDEX($C$3:$G$3,1,aux!$AL$1)))-1,"n.d.") -> 0.1017920508 | Y56: =IF(INDEX($C56:$G56,1,aux!$AL$1)>0,(G56-INDEX($C56:$G56,1,aux!$AL$1))/INDEX($C56:$G56,1,aux!$AL$1),"n.d.") -> 0.4736642188 | AA56: =O56-INDEX($K56:$O56,1,aux!$AL$1) -> 2061.77 | AB56: 0.001588519879 | AC56: 0.001052530935 | AD56: =+IF(INDEX($K56:$O56,1,aux!$AL$1)>0,(O56/INDEX($K56:$O56,1,aux!$AL$1))^(1/($O$3-INDEX($K$3:$O$3,1,aux!$AL$1)))-1,"n.d.") -> 0.1335891794 | AE56: =IF(INDEX($K56:$O56,1,aux!$AL$1)>0,(O56-INDEX($K56:$O56,1,aux!$AL$1))/INDEX($K56:$O56,1,aux!$AL$1),"n.d.") -> 0.6512877794 | AX56: 07
A57: 0711 | B57: Produtos hortícolas conservados transitoriamente | C57: 6611.984 | D57: 2487.369 | E57: 5858.005 | F57: 2353.148 | G57: 4491.849 | H57: 4360.471 | I57: 0.0009277137238 | J57: 0.0006325221923 | K57: 165.525 | L57: 38.691 | M57: 20.284 | N57: 22.977 | O57: 1321.013 | P57: 313.698 | Q57: 0.0001298576489 | R57: 7.561264095e-05 | S57: -4046.773 | U57: =G57-INDEX($C57:$G57,1,aux!$AL$1) -> -2120.135 | V57: -0.00115870857 | W57: -0.0008218176822 | X57: =+IF(INDEX($C57:$G57,1,aux!$AL$1)>0,(G57/INDEX($C57:$G57,1,aux!$AL$1))^(1/($G$3-INDEX($C$3:$G$3,1,aux!$AL$1)))-1,"n.d.") -> -0.09213068303 | Y57: =IF(INDEX($C57:$G57,1,aux!$AL$1)>0,(G57-INDEX($C57:$G57,1,aux!$AL$1))/INDEX($C57:$G57,1,aux!$AL$1),"n.d.") -> -0.3206503525 | AA57: =O57-INDEX($K57:$O57,1,aux!$AL$1) -> 1155.488 | AB57: 0.0008902620848 | AC57: 0.0005898751388 | AD57: =+IF(INDEX($K57:$O57,1,aux!$AL$1)>0,(O57/INDEX($K57:$O57,1,aux!$AL$1))^(1/($O$3-INDEX($K$3:$O$3,1,aux!$AL$1)))-1,"n.d.") -> 0.6807800081 | AE57: =IF(INDEX($K57:$O57,1,aux!$AL$1)>0,(O57-INDEX($K57:$O57,1,aux!$AL$1))/INDEX($K57:$O57,1,aux!$AL$1),"n.d.") -> 6.980746111 | AX57: 07
A58: 0712 | B58: Produtos hortícolas secos | C58: 2472.653 | D58: 2758.033 | E58: 2391.212 | F58: 2090.859 | G58: 3849.167 | H58: 2712.3848 | I58: 0.0005770744957 | J58: 0.0003934537301 | K58: 862.294 | L58: 1837.176 | M58: 2360.289 | N58: 1295.53 | O58: 1861.95 | P58: 1643.4478 | Q58: 0.0006803175899 | R58: 0.000396130764 | S58: -1068.937 | U58: =G58-INDEX($C58:$G58,1,aux!$AL$1) -> 1376.514 | V58: 0.0007523004757 | W58: 0.0005335714683 | X58: =+IF(INDEX($C58:$G58,1,aux!$AL$1)>0,(G58/INDEX($C58:$G58,1,aux!$AL$1))^(1/($G$3-INDEX($C$3:$G$3,1,aux!$AL$1)))-1,"n.d.") -> 0.1169941407 | Y58: =IF(INDEX($C58:$G58,1,aux!$AL$1)>0,(G58-INDEX($C58:$G58,1,aux!$AL$1))/INDEX($C58:$G58,1,aux!$AL$1),"n.d.") -> 0.5566951772 | AA58: =O58-INDEX($K58:$O58,1,aux!$AL$1) -> 999.656 | AB58: 0.0007701991147 | AC58: 0.0005103231031 | AD58: =+IF(INDEX($K58:$O58,1,aux!$AL$1)>0,(O58/INDEX($K58:$O58,1,aux!$AL$1))^(1/($O$3-INDEX($K$3:$O$3,1,aux!$AL$1)))-1,"n.d.") -> 0.2122108379 | AE58: =IF(INDEX($K58:$O58,1,aux!$AL$1)>0,(O58-INDEX($K58:$O58,1,aux!$AL$1))/INDEX($K58:$O58,1,aux!$AL$1),"n.d.") -> 1.159298337 | AX58: 07
A59: 0713 | B59: Legumes de vagem, secos, em grão | C59: 4900.137 | D59: 4759.385 | E59: 5468.505 | F59: 5719.979 | G59: 4812.714 | H59: 5132.144 | I59: 0.001091891317 | J59: 0.0007444597095 | K59: 5714.73 | L59: 3128.795 | M59: 4181.071 | N59: 5086.205 | O59: 5278.938 | P59: 4677.9478 | Q59: 0.001936471711 | R59: 0.001127555762 | S59: -454.1962 | U59: =G59-INDEX($C59:$G59,1,aux!$AL$1) -> -87.423 | V59: -4.777892886e-05 | W59: -3.388735492e-05 | X59: =+IF(INDEX($C59:$G59,1,aux!$AL$1)>0,(G59/INDEX($C59:$G59,1,aux!$AL$1))^(1/($G$3-INDEX($C$3:$G$3,1,aux!$AL$1)))-1,"n.d.") -> -0.004490387366 | Y59: =IF(INDEX($C59:$G59,1,aux!$AL$1)>0,(G59-INDEX($C59:$G59,1,aux!$AL$1))/INDEX($C59:$G59,1,aux!$AL$1),"n.d.") -> -0.01784092975 | AA59: =O59-INDEX($K59:$O59,1,aux!$AL$1) -> -435.792 | AB59: -0.0003357621147 | AC59: -0.0002224712559 | AD59: =+IF(INDEX($K59:$O59,1,aux!$AL$1)>0,(O59/INDEX($K59:$O59,1,aux!$AL$1))^(1/($O$3-INDEX($K$3:$O$3,1,aux!$AL$1)))-1,"n.d.") -> -0.01963519612 | AE59: =IF(INDEX($K59:$O59,1,aux!$AL$1)>0,(O59-INDEX($K59:$O59,1,aux!$AL$1))/INDEX($K59:$O59,1,aux!$AL$1),"n.d.") -> -0.07625767097 | AX59: 07
A60: 0714 | B60: Raízes de mandioca, de araruta, batata-doce, etc. | C60: 1561.937 | D60: 1402.61 | E60: 1925.717 | F60: 2657.305 | G60: 3402.885 | H60: 2190.0908 | I60: 0.0004659536302 | J60: 0.0003176906885 | K60: 2867.978 | L60: 4325.298 | M60: 5252.404 | N60: 5315.83 | O60: 3103.12 | P60: 4172.926 | Q60: 0.001727414135 | R60: 0.001005827118 | S60: 1982.8352 | U60: =G60-INDEX($C60:$G60,1,aux!$AL$1) -> 1840.948 | V60: 0.00100612566 | W60: 0.0007135977749 | X60: =+IF(INDEX($C60:$G60,1,aux!$AL$1)>0,(G60/INDEX($C60:$G60,1,aux!$AL$1))^(1/($G$3-INDEX($C$3:$G$3,1,aux!$AL$1)))-1,"n.d.") -> 0.214915128 | Y60: =IF(INDEX($C60:$G60,1,aux!$AL$1)>0,(G60-INDEX($C60:$G60,1,aux!$AL$1))/INDEX($C60:$G60,1,aux!$AL$1),"n.d.") -> 1.178631404 | AA60: =O60-INDEX($K60:$O60,1,aux!$AL$1) -> 235.142 | AB60: 0.0001811684822 | AC60: 0.0001200396888 | AD60: =+IF(INDEX($K60:$O60,1,aux!$AL$1)>0,(O60/INDEX($K60:$O60,1,aux!$AL$1))^(1/($O$3-INDEX($K$3:$O$3,1,aux!$AL$1)))-1,"n.d.") -> 0.01989553081 | AE60: =IF(INDEX($K60:$O60,1,aux!$AL$1)>0,(O60-INDEX($K60:$O60,1,aux!$AL$1))/INDEX($K60:$O60,1,aux!$AL$1),"n.d.") -> 0.08198877397 | AX60: 07
A61: 07SS | B61: Produtos hortícolas, plantas, raízes e tubérculos, comestíveis | C61: 0 | D61: 0 | E61: 0 | F61: 0 | G61: 0 | H61: 0 | I61: 0 | J61: 0 | K61: 0 | L61: 0 | M61: 0 | N61: 0 | O61: 0 | P61: 0 | Q61: 0 | R61: 0 | S61: 0 | U61: =G61-INDEX($C61:$G61,1,aux!$AL$1) -> 0 | V61: 0 | W61: 0 | X61: =+IF(INDEX($C61:$G61,1,aux!$AL$1)>0,(G61/INDEX($C61:$G61,1,aux!$AL$1))^(1/($G$3-INDEX($C$3:$G$3,1,aux!$AL$1)))-1,"n.d.") -> n.d. | Y61: =IF(INDEX($C61:$G61,1,aux!$AL$1)>0,(G61-INDEX($C61:$G61,1,aux!$AL$1))/INDEX($C61:$G61,1,aux!$AL$1),"n.d.") -> n.d. | AA61: =O61-INDEX($K61:$O61,1,aux!$AL$1) -> 0 | AB61: 0 | AC61: 0 | AD61: =+IF(INDEX($K61:$O61,1,aux!$AL$1)>0,(O61/INDEX($K61:$O61,1,aux!$AL$1))^(1/($O$3-INDEX($K$3:$O$3,1,aux!$AL$1)))-1,"n.d.") -> n.d. | AE61: =IF(INDEX($K61:$O61,1,aux!$AL$1)>0,(O61-INDEX($K61:$O61,1,aux!$AL$1))/INDEX($K61:$O61,1,aux!$AL$1),"n.d.") -> n.d. | AX61: 07
A62: 0801 | B62: Cocos, castanhas do brasil e castanha de cajú | C62: 3191.514 | D62: 2767.509 | E62: 2678.086 | F62: 4173.952 | G62: 4798.79 | H62: 3521.9702 | I62: 0.0007493181561 | J62: 0.0005108907529 | K62: 58.385 | L62: 377.35 | M62: 237.53 | N62: 685.709 | O62: 320.169 | P62: 335.8286 | Q62: 0.0001390187773 | R62: 8.094692141e-05 | S62: -3186.1416 | U62: =G62-INDEX($C62:$G62,1,aux!$AL$1) -> 1607.276 | V62: 0.0008784178725 | W62: 0.000623020627 | X62: =+IF(INDEX($C62:$G62,1,aux!$AL$1)>0,(G62/INDEX($C62:$G62,1,aux!$AL$1))^(1/($G$3-INDEX($C$3:$G$3,1,aux!$AL$1)))-1,"n.d.") -> 0.1073470368 | Y62: =IF(INDEX($C62:$G62,1,aux!$AL$1)>0,(G62-INDEX($C62:$G62,1,aux!$AL$1))/INDEX($C62:$G62,1,aux!$AL$1),"n.d.") -> 0.5036092588 | AA62: =O62-INDEX($K62:$O62,1,aux!$AL$1) -> 261.784 | AB62: 0.0002016951882 | AC62: 0.0001336403955 | AD62: =+IF(INDEX($K62:$O62,1,aux!$AL$1)>0,(O62/INDEX($K62:$O62,1,aux!$AL$1))^(1/($O$3-INDEX($K$3:$O$3,1,aux!$AL$1)))-1,"n.d.") -> 0.5302750546 | AE62: =IF(INDEX($K62:$O62,1,aux!$AL$1)>0,(O62-INDEX($K62:$O62,1,aux!$AL$1))/INDEX($K62:$O62,1,aux!$AL$1),"n.d.") -> 4.483754389 | AX62: 08
A63: 0802 | B63: Frutas de casca rija | C63: 32130.299 | D63: 36153.781 | E63: 29193.28 | F63: 30225.814 | G63: 32197.616 | H63: 31980.158 | I63: 0.006803951102 | J63: 0.00463898502 | K63: 19057.88 | L63: 46380.202 | M63: 41563.685 | N63: 71027.89 | O63: 65289.152 | P63: 48663.7618 | Q63: 0.02014473057 | R63: 0.01172973863 | S63: 16683.6038 | U63: =G63-INDEX($C63:$G63,1,aux!$AL$1) -> 67.317 | V63: 3.679048024e-05 | W63: 2.609376333e-05 | X63: =+IF(INDEX($C63:$G63,1,aux!$AL$1)>0,(G63/INDEX($C63:$G63,1,aux!$AL$1))^(1/($G$3-INDEX($C$3:$G$3,1,aux!$AL$1)))-1,"n.d.") -> 0.0005233702888 | Y63: =IF(INDEX($C63:$G63,1,aux!$AL$1)>0,(G63-INDEX($C63:$G63,1,aux!$AL$1))/INDEX($C63:$G63,1,aux!$AL$1),"n.d.") -> 0.002095125227 | AA63: =O63-INDEX($K63:$O63,1,aux!$AL$1) -> 46231.272 | AB63: 0.03561953788 | AC63: 0.02360100493 | AD63: =+IF(INDEX($K63:$O63,1,aux!$AL$1)>0,(O63/INDEX($K63:$O63,1,aux!$AL$1))^(1/($O$3-INDEX($K$3:$O$3,1,aux!$AL$1)))-1,"n.d.") -> 0.3604782715 | AE63: =IF(INDEX($K63:$O63,1,aux!$AL$1)>0,(O63-INDEX($K63:$O63,1,aux!$AL$1))/INDEX($K63:$O63,1,aux!$AL$1),"n.d.") -> 2.425834983 | AX63: 08
A64: 0803 | B64: Bananas, frescas ou secas | C64: 63227.198 | D64: 61957.935 | E64: 71342.549 | F64: 70325.595 | G64: 66367.442 | H64: 66644.1438 | I64: 0.01417890104 | J64: 0.009667281342 | K64: 9942.712 | L64: 16797.442 | M64: 22552.44 | N64: 23208.254 | O64: 33010.712 | P64: 21102.312 | Q64: 0.008735460927 | R64: 0.005086425608 | S64: -45541.8318 | U64: =G64-INDEX($C64:$G64,1,aux!$AL$1) -> 3140.244 | V64: 0.001716224503 | W64: 0.001217237603 | X64: =+IF(INDEX($C64:$G64,1,aux!$AL$1)>0,(G64/INDEX($C64:$G64,1,aux!$AL$1))^(1/($G$3-INDEX($C$3:$G$3,1,aux!$AL$1)))-1,"n.d.") -> 0.01219173265 | Y64: =IF(INDEX($C64:$G64,1,aux!$AL$1)>0,(G64-INDEX($C64:$G64,1,aux!$AL$1))/INDEX($C64:$G64,1,aux!$AL$1),"n.d.") -> 0.04966603138 | AA64: =O64-INDEX($K64:$O64,1,aux!$AL$1) -> 23068 | AB64: 0.01777306711 | AC64: 0.01177618435 | AD64: =+IF(INDEX($K64:$O64,1,aux!$AL$1)>0,(O64/INDEX($K64:$O64,1,aux!$AL$1))^(1/($O$3-INDEX($K$3:$O$3,1,aux!$AL$1)))-1,"n.d.") -> 0.3498562072 | AE64: =IF(INDEX($K64:$O64,1,aux!$AL$1)>0,(O64-INDEX($K64:$O64,1,aux!$AL$1))/INDEX($K64:$O64,1,aux!$AL$1),"n.d.") -> 2.320091339 | AX64: 08
A65: 0804 | B65: Tâmaras, figos, ananases, abacates, goiabas, mangas | C65: 44303.173 | D65: 50580.796 | E65: 54998.477 | F65: 57662.986 | G65: 53014.696 | H65: 52112.0256 | I65: 0.01108711452 | J65: 0.007559278041 | K65: 26762.154 | L65: 38820.477 | M65: 36210.058 | N65: 43361.888 | O65: 48190.071 | P65: 38668.9296 | Q65: 0.01600729454 | R65: 0.009320620118 | S65: -13443.096 | U65: =G65-INDEX($C65:$G65,1,aux!$AL$1) -> 8711.523 | V65: 0.00476107246 | W65: 0.003376805553 | X65: =+IF(INDEX($C65:$G65,1,aux!$AL$1)>0,(G65/INDEX($C65:$G65,1,aux!$AL$1))^(1/($G$3-INDEX($C$3:$G$3,1,aux!$AL$1)))-1,"n.d.") -> 0.04590047674 | Y65: =IF(INDEX($C65:$G65,1,aux!$AL$1)>0,(G65-INDEX($C65:$G65,1,aux!$AL$1))/INDEX($C65:$G65,1,aux!$AL$1),"n.d.") -> 0.1966342907 | AA65: =O65-INDEX($K65:$O65,1,aux!$AL$1) -> 21427.917 | AB65: 0.01650944195 | AC65: 0.01093892409 | AD65: =+IF(INDEX($K65:$O65,1,aux!$AL$1)>0,(O65/INDEX($K65:$O65,1,aux!$AL$1))^(1/($O$3-INDEX($K$3:$O$3,1,aux!$AL$1)))-1,"n.d.") -> 0.1584015372 | AE65: =IF(INDEX($K65:$O65,1,aux!$AL$1)>0,(O65-INDEX($K65:$O65,1,aux!$AL$1))/INDEX($K65:$O65,1,aux!$AL$1),"n.d.") -> 0.8006798332 | AX65: 08
A66: 0805 | B66: Citrinos, frescos ou secos | C66: 43069.489 | D66: 40578.705 | E66: 46935.185 | F66: 55947.534 | G66: 49023.723 | H66: 47110.9272 | I66: 0.01002310386 | J66: 0.006833827574 | K66: 97135.515 | L66: 74605.993 | M66: 126726.086 | N66: 95150.267 | O66: 136298.439 | P66: 105983.26 | Q66: 0.0438725684 | R66: 0.02554582492 | S66: 58872.3328 | U66: =G66-INDEX($C66:$G66,1,aux!$AL$1) -> 5954.234 | V66: 0.003254142762 | W66: 0.002308010945 | X66: =+IF(INDEX($C66:$G66,1,aux!$AL$1)>0,(G66/INDEX($C66:$G66,1,aux!$AL$1))^(1/($G$3-INDEX($C$3:$G$3,1,aux!$AL$1)))-1,"n.d.") -> 0.03290205782 | Y66: =IF(INDEX($C66:$G66,1,aux!$AL$1)>0,(G66-INDEX($C66:$G66,1,aux!$AL$1))/INDEX($C66:$G66,1,aux!$AL$1),"n.d.") -> 0.1382471475 | AA66: =O66-INDEX($K66:$O66,1,aux!$AL$1) -> 39162.924 | AB66: 0.03017362912 | AC66: 0.01999262236 | AD66: =+IF(INDEX($K66:$O66,1,aux!$AL$1)>0,(O66/INDEX($K66:$O66,1,aux!$AL$1))^(1/($O$3-INDEX($K$3:$O$3,1,aux!$AL$1)))-1,"n.d.") -> 0.08837412601 | AE66: =IF(INDEX($K66:$O66,1,aux!$AL$1)>0,(O66-INDEX($K66:$O66,1,aux!$AL$1))/INDEX($K66:$O66,1,aux!$AL$1),"n.d.") -> 0.4031782196 | AX66: 08
A67: 0806 | B67: Uvas, frescas ou secas | C67: 30488.147 | D67: 26928.628 | E67: 31606.741 | F67: 38173.409 | G67: 42719.847 | H67: 33983.3544 | I67: 0.007230141941 | J67: 0.004929565138 | K67: 1300.745 | L67: 2687.362 | M67: 3708.155 | N67: 2694.632 | O67: 3321.601 | P67: 2742.499 | Q67: 0.001135278109 | R67: 0.0006610421239 | S67: -31240.8554 | U67: =G67-INDEX($C67:$G67,1,aux!$AL$1) -> 12231.7 | V67: 0.006684940166 | W67: 0.004741314748 | X67: =+IF(INDEX($C67:$G67,1,aux!$AL$1)>0,(G67/INDEX($C67:$G67,1,aux!$AL$1))^(1/($G$3-INDEX($C$3:$G$3,1,aux!$AL$1)))-1,"n.d.") -> 0.08798940139 | Y67: =IF(INDEX($C67:$G67,1,aux!$AL$1)>0,(G67-INDEX($C67:$G67,1,aux!$AL$1))/INDEX($C67:$G67,1,aux!$AL$1),"n.d.") -> 0.4011952579 | AA67: =O67-INDEX($K67:$O67,1,aux!$AL$1) -> 2020.856 | AB67: 0.001556997109 | AC67: 0.001031644391 | AD67: =+IF(INDEX($K67:$O67,1,aux!$AL$1)>0,(O67/INDEX($K67:$O67,1,aux!$AL$1))^(1/($O$3-INDEX($K$3:$O$3,1,aux!$AL$1)))-1,"n.d.") -> 0.264121519 | AE67: =IF(INDEX($K67:$O67,1,aux!$AL$1)>0,(O67-INDEX($K67:$O67,1,aux!$AL$1))/INDEX($K67:$O67,1,aux!$AL$1),"n.d.") -> 1.553614275 | AX67: 08
A68: 0807 | B68: Melões, melancias e papaia, frescos | C68: 45727.305 | D68: 46373.028 | E68: 48152.633 | F68: 38096.968 | G68: 53699.192 | H68: 46409.8252 | I68: 0.009873940627 | J68: 0.006732126961 | K68: 4157.893 | L68: 4068.617 | M68: 5228.177 | N68: 4312.688 | O68: 8147.721 | P68: 5183.0192 | Q68: 0.00214554982 | R68: 0.001249296361 | S68: -41226.806 | U68: =G68-INDEX($C68:$G68,1,aux!$AL$1) -> 7971.887 | V68: =IF($U$237<>0,U68/$U$237, "n.d.") -> 0.004356842271 | W68: =IF($U$322<>0,U68/$U$322, "n.d.") -> 0.003090104025 | X68: =+IF(INDEX($C68:$G68,1,aux!$AL$1)>0,(G68/INDEX($C68:$G68,1,aux!$AL$1))^(1/($G$3-INDEX($C$3:$G$3,1,aux!$AL$1)))-1,"n.d.") -> 0.04099354406 | Y68: =IF(INDEX($C68:$G68,1,aux!$AL$1)>0,(G68-INDEX($C68:$G68,1,aux!$AL$1))/INDEX($C68:$G68,1,aux!$AL$1),"n.d.") -> 0.174335378 | AA68: =O68-INDEX($K68:$O68,1,aux!$AL$1) -> 3989.828 | AB68: =IF($AA$237<>0,AA68/$AA$237, "n.d.") -> 0.003074019456 | AC68: =IF($AA$322<>0,AA68/$AA$322, "n.d.") -> 0.002036802066 | AD68: =+IF(INDEX($K68:$O68,1,aux!$AL$1)>0,(O68/INDEX($K68:$O68,1,aux!$AL$1))^(1/($O$3-INDEX($K$3:$O$3,1,aux!$AL$1)))-1,"n.d.") -> 0.1831524573 | AE68: =IF(INDEX($K68:$O68,1,aux!$AL$1)>0,(O68-INDEX($K68:$O68,1,aux!$AL$1))/INDEX($K68:$O68,1,aux!$AL$1),"n.d.") -> 0.9595792869 | AX68: 08
A69: 0808 | B69: Maçãs, peras e marmelos, frescos | C69: 24358.542 | D69: 15903.215 | E69: 18933.914 | F69: 19771.467 | G69: 18623.902 | H69: 19518.208 | I69: 0.004152604025 | J69: 0.002831276647 | K69: 23258.475 | L69: 22260.257 | M69: 30341.492 | N69: 20227.118 | O69: 31933.079 | P69: 25604.0842 | Q69: 0.01059900342 | R69: 0.006171516635 | S69: 6085.8762 | U69: =G69-INDEX($C69:$G69,1,aux!$AL$1) -> -5734.64 | V69: -0.003134128966 | W69: -0.002222890784 | X69: =+IF(INDEX($C69:$G69,1,aux!$AL$1)>0,(G69/INDEX($C69:$G69,1,aux!$AL$1))^(1/($G$3-INDEX($C$3:$G$3,1,aux!$AL$1)))-1,"n.d.") -> -0.06490691157 | Y69: =IF(INDEX($C69:$G69,1,aux!$AL$1)>0,(G69-INDEX($C69:$G69,1,aux!$AL$1))/INDEX($C69:$G69,1,aux!$AL$1),"n.d.") -> -0.2354262418 | AA69: =O69-INDEX($K69:$O69,1,aux!$AL$1) -> 8674.604 | AB69: 0.006683471435 | AC69: 0.004428374192 | AD69: =+IF(INDEX($K69:$O69,1,aux!$AL$1)>0,(O69/INDEX($K69:$O69,1,aux!$AL$1))^(1/($O$3-INDEX($K$3:$O$3,1,aux!$AL$1)))-1,"n.d.") -> 0.08246755971 | AE69: =IF(INDEX($K69:$O69,1,aux!$AL$1)>0,(O69-INDEX($K69:$O69,1,aux!$AL$1))/INDEX($K69:$O69,1,aux!$AL$1),"n.d.") -> 0.3729652954 | AX69: 08
A70: 0809 | B70: Damascos, cerejas, pêssegos, etc., frescos | C70: 58264.498 | D70: 47950.166 | E70: 65422.721 | F70: 55968.881 | G70: 65413.152 | H70: 58603.8836 | I70: 0.01246829232 | J70: 0.008500975453 | K70: 2023.6 | L70: 1690.586 | M70: 3806.952 | N70: 6253.167 | O70: 7475.922 | P70: 4250.0454 | Q70: 0.001759338291 | R70: 0.001024415702 | S70: -54353.8382 | U70: =G70-INDEX($C70:$G70,1,aux!$AL$1) -> 7148.654 | V70: 0.003906924161 | W70: 0.002770998196 | X70: =+IF(INDEX($C70:$G70,1,aux!$AL$1)>0,(G70/INDEX($C70:$G70,1,aux!$AL$1))^(1/($G$3-INDEX($C$3:$G$3,1,aux!$AL$1)))-1,"n.d.") -> 0.02935520973 | Y70: =IF(INDEX($C70:$G70,1,aux!$AL$1)>0,(G70-INDEX($C70:$G70,1,aux!$AL$1))/INDEX($C70:$G70,1,aux!$AL$1),"n.d.") -> 0.1226931364 | AA70: =O70-INDEX($K70:$O70,1,aux!$AL$1) -> 5452.322 | AB70: 0.004200818659 | AC70: 0.002783403373 | AD70: =+IF(INDEX($K70:$O70,1,aux!$AL$1)>0,(O70/INDEX($K70:$O70,1,aux!$AL$1))^(1/($O$3-INDEX($K$3:$O$3,1,aux!$AL$1)))-1,"n.d.") -> 0.3863887408 | AE70: =IF(INDEX($K70:$O70,1,aux!$AL$1)>0,(O70-INDEX($K70:$O70,1,aux!$AL$1))/INDEX($K70:$O70,1,aux!$AL$1),"n.d.") -> 2.694367464 | AX70: 08
A71: 0810 | B71: Outras frutas frescas | C71: 62886.147 | D71: 59620.64 | E71: 57465.694 | F71: 60105.165 | G71: 63403.027 | H71: 60696.1346 | I71: 0.01291343001 | J71: 0.008804473673 | K71: 49830.733 | L71: 53030.054 | M71: 60858.51 | N71: 87243.223 | O71: 98208.472 | P71: 69834.1984 | Q71: 0.02890839219 | R71: 0.01683258475 | S71: 9138.0638 | U71: =G71-INDEX($C71:$G71,1,aux!$AL$1) -> 516.88 | V71: 0.0002824882783 | W71: 0.000200355696 | X71: =+IF(INDEX($C71:$G71,1,aux!$AL$1)>0,(G71/INDEX($C71:$G71,1,aux!$AL$1))^(1/($G$3-INDEX($C$3:$G$3,1,aux!$AL$1)))-1,"n.d.") -> 0.00204852131 | Y71: =IF(INDEX($C71:$G71,1,aux!$AL$1)>0,(G71-INDEX($C71:$G71,1,aux!$AL$1))/INDEX($C71:$G71,1,aux!$AL$1),"n.d.") -> 0.008219298282 | AA71: =O71-INDEX($K71:$O71,1,aux!$AL$1) -> 48377.739 | AB71: 0.03727331377 | AC71: 0.02469677358 | AD71: =+IF(INDEX($K71:$O71,1,aux!$AL$1)>0,(O71/INDEX($K71:$O71,1,aux!$AL$1))^(1/($O$3-INDEX($K$3:$O$3,1,aux!$AL$1)))-1,"n.d.") -> 0.1848487634 | AE71: =IF(INDEX($K71:$O71,1,aux!$AL$1)>0,(O71-INDEX($K71:$O71,1,aux!$AL$1))/INDEX($K71:$O71,1,aux!$AL$1),"n.d.") -> 0.9708414083 | AX71: 08
A72: 0811 | B72: Frutas não cozidas ou cozidas em água ou vapor, congeladas | C72: 3367.277 | D72: 3505.257 | E72: 3980.95 | F72: 5614.008 | G72: 5635.553 | H72: 4420.609 | I72: 0.0009405084077 | J72: 0.000641245704 | K72: 5739.38 | L72: 6291.887 | M72: 5151.19 | N72: 4795.437 | O72: 7355.315 | P72: 5866.6418 | Q72: 0.002428540542 | R72: 0.001414074301 | S72: 1446.0328 | U72: =G72-INDEX($C72:$G72,1,aux!$AL$1) -> 2268.276 | V72: 0.001239671455 | W72: 0.000879240862 | X72: =+IF(INDEX($C72:$G72,1,aux!$AL$1)>0,(G72/INDEX($C72:$G72,1,aux!$AL$1))^(1/($G$3-INDEX($C$3:$G$3,1,aux!$AL$1)))-1,"n.d.") -> 0.137403142 | Y72: =IF(INDEX($C72:$G72,1,aux!$AL$1)>0,(G72-INDEX($C72:$G72,1,aux!$AL$1))/INDEX($C72:$G72,1,aux!$AL$1),"n.d.") -> 0.6736232273 | AA72: =O72-INDEX($K72:$O72,1,aux!$AL$1) -> 1615.935 | AB72: 0.001245019993 | AC72: 0.0008249327405 | AD72: =+IF(INDEX($K72:$O72,1,aux!$AL$1)>0,(O72/INDEX($K72:$O72,1,aux!$AL$1))^(1/($O$3-INDEX($K$3:$O$3,1,aux!$AL$1)))-1,"n.d.") -> 0.06398149372 | AE72: =IF(INDEX($K72:$O72,1,aux!$AL$1)>0,(O72-INDEX($K72:$O72,1,aux!$AL$1))/INDEX($K72:$O72,1,aux!$AL$1),"n.d.") -> 0.2815521886 | AX72: 08
A73: 0812 | B73: Frutas conservadas transitoriamente | C73: 417.566 | D73: 204.707 | E73: 72.856 | F73: 176.807 | G73: 66.195 | H73: 187.6262 | I73: 3.991848603e-05 | J73: 2.721672392e-05 | K73: 0 | L73: 0 | M73: 0 | N73: 22.8 | O73: 0 | P73: 4.56 | Q73: 1.887646331e-06 | R73: 1.099126047e-06 | S73: -183.0662 | U73: =G73-INDEX($C73:$G73,1,aux!$AL$1) -> -351.371 | V73: -0.0001920333323 | W73: -0.0001362002423 | X73: =+IF(INDEX($C73:$G73,1,aux!$AL$1)>0,(G73/INDEX($C73:$G73,1,aux!$AL$1))^(1/($G$3-INDEX($C$3:$G$3,1,aux!$AL$1)))-1,"n.d.") -> -0.3690063129 | Y73: =IF(INDEX($C73:$G73,1,aux!$AL$1)>0,(G73-INDEX($C73:$G73,1,aux!$AL$1))/INDEX($C73:$G73,1,aux!$AL$1),"n.d.") -> -0.8414741622 | AA73: =O73-INDEX($K73:$O73,1,aux!$AL$1) -> 0 | AB73: 0 | AC73: 0 | AD73: =+IF(INDEX($K73:$O73,1,aux!$AL$1)>0,(O73/INDEX($K73:$O73,1,aux!$AL$1))^(1/($O$3-INDEX($K$3:$O$3,1,aux!$AL$1)))-1,"n.d.") -> n.d. | AE73: =IF(INDEX($K73:$O73,1,aux!$AL$1)>0,(O73-INDEX($K73:$O73,1,aux!$AL$1))/INDEX($K73:$O73,1,aux!$AL$1),"n.d.") -> n.d. | AX73: 08
A74: 0813 | B74: Outras frutas secas | C74: 6489.822 | D74: 4962.731 | E74: 4331.35 | F74: 4139.468 | G74: 4804.891 | H74: 4945.6524 | I74: 0.001052214223 | J74: 0.0007174075687 | K74: 736.944 | L74: 831.215 | M74: 615.711 | N74: 778.735 | O74: 831.824 | P74: 758.8858 | Q74: 0.0003141464904 | R74: 0.0001829191117 | S74: -4186.7666 | U74: =G74-INDEX($C74:$G74,1,aux!$AL$1) -> -1684.931 | V74: -0.0009208583369 | W74: -0.0006531216593 | X74: =+IF(INDEX($C74:$G74,1,aux!$AL$1)>0,(G74/INDEX($C74:$G74,1,aux!$AL$1))^(1/($G$3-INDEX($C$3:$G$3,1,aux!$AL$1)))-1,"n.d.") -> -0.07239583777 | Y74: =IF(INDEX($C74:$G74,1,aux!$AL$1)>0,(G74-INDEX($C74:$G74,1,aux!$AL$1))/INDEX($C74:$G74,1,aux!$AL$1),"n.d.") -> -0.2596266893 | AA74: =O74-INDEX($K74:$O74,1,aux!$AL$1) -> 94.88 | AB74: 7.310163896e-05 | AC74: 4.843611805e-05 | AD74: =+IF(INDEX($K74:$O74,1,aux!$AL$1)>0,(O74/INDEX($K74:$O74,1,aux!$AL$1))^(1/($O$3-INDEX($K$3:$O$3,1,aux!$AL$1)))-1,"n.d.") -> 0.03074026048 | AE74: =IF(INDEX($K74:$O74,1,aux!$AL$1)>0,(O74-INDEX($K74:$O74,1,aux!$AL$1))/INDEX($K74:$O74,1,aux!$AL$1),"n.d.") -> 0.1287479103 | AX74: 08
A75: 0814 | B75: Cascas de citrinos, melões ou melancias | C75: 4.264 | D75: 0.67 | E75: 0.328 | F75: 4.145 | G75: 21.381 | H75: 6.1576 | I75: 1.310062612e-06 | J75: 8.932105388e-07 | K75: 26.05 | L75: 7.042 | M75: 95.36 | N75: 0.001 | O75: 0.037 | P75: 25.698 | Q75: 1.063788057e-05 | R75: 6.194153763e-06 | S75: 19.5404 | U75: =G75-INDEX($C75:$G75,1,aux!$AL$1) -> 17.117 | V75: 9.354882872e-06 | W75: 6.634979974e-06 | X75: =+IF(INDEX($C75:$G75,1,aux!$AL$1)>0,(G75/INDEX($C75:$G75,1,aux!$AL$1))^(1/($G$3-INDEX($C$3:$G$3,1,aux!$AL$1)))-1,"n.d.") -> 0.4964172447 | Y75: =IF(INDEX($C75:$G75,1,aux!$AL$1)>0,(G75-INDEX($C75:$G75,1,aux!$AL$1))/INDEX($C75:$G75,1,aux!$AL$1),"n.d.") -> 4.014305816 | AA75: =O75-INDEX($K75:$O75,1,aux!$AL$1) -> -26.013 | AB75: -2.004208405e-05 | AC75: -1.327960306e-05 | AD75: =+IF(INDEX($K75:$O75,1,aux!$AL$1)>0,(O75/INDEX($K75:$O75,1,aux!$AL$1))^(1/($O$3-INDEX($K$3:$O$3,1,aux!$AL$1)))-1,"n.d.") -> -0.8058673875 | AE75: =IF(INDEX($K75:$O75,1,aux!$AL$1)>0,(O75-INDEX($K75:$O75,1,aux!$AL$1))/INDEX($K75:$O75,1,aux!$AL$1),"n.d.") -> -0.9985796545 | AX75: =+LEFT(A75,2) -> 08
A76: 08SS | B76: Frutas; cascas de citrinos e de melões | C76: 0 | D76: 0 | E76: 0 | F76: 0 | G76: 0 | H76: 0 | I76: 0 | J76: 0 | K76: 0 | L76: 0 | M76: 0 | N76: 0 | O76: 0 | P76: 0 | Q76: 0 | R76: 0 | S76: 0 | U76: =G76-INDEX($C76:$G76,1,aux!$AL$1) -> 0 | V76: 0 | W76: 0 | X76: =+IF(INDEX($C76:$G76,1,aux!$AL$1)>0,(G76/INDEX($C76:$G76,1,aux!$AL$1))^(1/($G$3-INDEX($C$3:$G$3,1,aux!$AL$1)))-1,"n.d.") -> n.d. | Y76: =IF(INDEX($C76:$G76,1,aux!$AL$1)>0,(G76-INDEX($C76:$G76,1,aux!$AL$1))/INDEX($C76:$G76,1,aux!$AL$1),"n.d.") -> n.d. | AA76: =O76-INDEX($K76:$O76,1,aux!$AL$1) -> 0 | AB76: 0 | AC76: 0 | AD76: =+IF(INDEX($K76:$O76,1,aux!$AL$1)>0,(O76/INDEX($K76:$O76,1,aux!$AL$1))^(1/($O$3-INDEX($K$3:$O$3,1,aux!$AL$1)))-1,"n.d.") -> n.d. | AE76: =IF(INDEX($K76:$O76,1,aux!$AL$1)>0,(O76-INDEX($K76:$O76,1,aux!$AL$1))/INDEX($K76:$O76,1,aux!$AL$1),"n.d.") -> n.d. | AX76: 08
A77: 0901 | B77: Café | C77: 41468.929 | D77: 45093.486 | E77: 53381.923 | F77: 76328.097 | G77: 84034.053 | H77: 60061.2976 | I77: 0.01277836501 | J77: 0.008712385343 | K77: 26564.113 | L77: 26524.953 | M77: 21505.404 | N77: 31109.453 | O77: 32787.552 | P77: 27698.295 | Q77: 0.01146591775 | R77: 0.006676297696 | S77: -32363.0026 | U77: =G77-INDEX($C77:$G77,1,aux!$AL$1) -> 42565.124 | V77: 0.02326294032 | W77: 0.01649931327 | X77: =+IF(INDEX($C77:$G77,1,aux!$AL$1)>0,(G77/INDEX($C77:$G77,1,aux!$AL$1))^(1/($G$3-INDEX($C$3:$G$3,1,aux!$AL$1)))-1,"n.d.") -> 0.1931172446 | Y77: =IF(INDEX($C77:$G77,1,aux!$AL$1)>0,(G77-INDEX($C77:$G77,1,aux!$AL$1))/INDEX($C77:$G77,1,aux!$AL$1),"n.d.") -> 1.026434129 | AA77: =O77-INDEX($K77:$O77,1,aux!$AL$1) -> 6223.439 | AB77: 0.004794936666 | AC77: 0.00317705761 | AD77: =+IF(INDEX($K77:$O77,1,aux!$AL$1)>0,(O77/INDEX($K77:$O77,1,aux!$AL$1))^(1/($O$3-INDEX($K$3:$O$3,1,aux!$AL$1)))-1,"n.d.") -> 0.05403108322 | AE77: =IF(INDEX($K77:$O77,1,aux!$AL$1)>0,(O77-INDEX($K77:$O77,1,aux!$AL$1))/INDEX($K77:$O77,1,aux!$AL$1),"n.d.") -> 0.2342799475 | AX77: 09
A78: 0902 | B78: Chá | C78: 2859.047 | D78: 2500.88 | E78: 2438.41 | F78: 2739.252 | G78: 3621.113 | H78: 2831.7404 | I78: 0.0006024680433 | J78: 0.0004107672419 | K78: 227.275 | L78: 91.522 | M78: 257.413 | N78: 314.442 | O78: 212.624 | P78: 220.6552 | Q78: 9.13418813e-05 | R78: 5.31859381e-05 | S78: -2611.0852 | U78: =G78-INDEX($C78:$G78,1,aux!$AL$1) -> 762.066 | V78: 0.0004164887639 | W78: 0.0002953959601 | X78: =+IF(INDEX($C78:$G78,1,aux!$AL$1)>0,(G78/INDEX($C78:$G78,1,aux!$AL$1))^(1/($G$3-INDEX($C$3:$G$3,1,aux!$AL$1)))-1,"n.d.") -> 0.06085296782 | Y78: =IF(INDEX($C78:$G78,1,aux!$AL$1)>0,(G78-INDEX($C78:$G78,1,aux!$AL$1))/INDEX($C78:$G78,1,aux!$AL$1),"n.d.") -> 0.2665454608 | AA78: =O78-INDEX($K78:$O78,1,aux!$AL$1) -> -14.651 | AB78: -1.128807033e-05 | AC78: -7.479316669e-06 | AD78: =+IF(INDEX($K78:$O78,1,aux!$AL$1)>0,(O78/INDEX($K78:$O78,1,aux!$AL$1))^(1/($O$3-INDEX($K$3:$O$3,1,aux!$AL$1)))-1,"n.d.") -> -0.01652085632 | AE78: =IF(INDEX($K78:$O78,1,aux!$AL$1)>0,(O78-INDEX($K78:$O78,1,aux!$AL$1))/INDEX($K78:$O78,1,aux!$AL$1),"n.d.") -> -0.06446375536 | AX78: 09
A79: 0903 | B79: Mate | C79: 11.002 | D79: 22.662 | E79: 23.037 | F79: 13.227 | G79: 29.093 | H79: 19.8042 | I79: 4.213450366e-06 | J79: 2.87276214e-06 | K79: 86.706 | L79: 154.017 | M79: 170.301 | N79: 157.827 | O79: 80.826 | P79: 129.9354 | Q79: 5.378773708e-05 | R79: 3.131916285e-05 | S79: 110.1312 | U79: =G79-INDEX($C79:$G79,1,aux!$AL$1) -> 18.091 | V79: 9.887199044e-06 | W79: 7.012526886e-06 | X79: =+IF(INDEX($C79:$G79,1,aux!$AL$1)>0,(G79/INDEX($C79:$G79,1,aux!$AL$1))^(1/($G$3-INDEX($C$3:$G$3,1,aux!$AL$1)))-1,"n.d.") -> 0.2752026794 | Y79: =IF(INDEX($C79:$G79,1,aux!$AL$1)>0,(G79-INDEX($C79:$G79,1,aux!$AL$1))/INDEX($C79:$G79,1,aux!$AL$1),"n.d.") -> 1.644337393 | AA79: =O79-INDEX($K79:$O79,1,aux!$AL$1) -> -5.88 | AB79: -4.530329227e-06 | AC79: -3.001732442e-06 | AD79: =+IF(INDEX($K79:$O79,1,aux!$AL$1)>0,(O79/INDEX($K79:$O79,1,aux!$AL$1))^(1/($O$3-INDEX($K$3:$O$3,1,aux!$AL$1)))-1,"n.d.") -> -0.01740288702 | AE79: =IF(INDEX($K79:$O79,1,aux!$AL$1)>0,(O79-INDEX($K79:$O79,1,aux!$AL$1))/INDEX($K79:$O79,1,aux!$AL$1),"n.d.") -> -0.0678153761 | AX79: 09
A80: 0904 | B80: Pimenta | C80: 2150.566 | D80: 2341.582 | E80: 2539.687 | F80: 2903.756 | G80: 3530.545 | H80: 2693.2272 | I80: 0.000572998613 | J80: 0.0003906747626 | K80: 43.306 | L80: 1358.055 | M80: 1872.832 | N80: 1652.268 | O80: 1691.176 | P80: 1323.5274 | Q80: 0.0005478841318 | R80: 0.0003190182981 | S80: -1369.6998 | U80: =G80-INDEX($C80:$G80,1,aux!$AL$1) -> 1379.979 | V80: 0.0007541941877 | W80: 0.0005349145895 | X80: =+IF(INDEX($C80:$G80,1,aux!$AL$1)>0,(G80/INDEX($C80:$G80,1,aux!$AL$1))^(1/($G$3-INDEX($C$3:$G$3,1,aux!$AL$1)))-1,"n.d.") -> 0.1319369685 | Y80: =IF(INDEX($C80:$G80,1,aux!$AL$1)>0,(G80-INDEX($C80:$G80,1,aux!$AL$1))/INDEX($C80:$G80,1,aux!$AL$1),"n.d.") -> 0.6416817712 | AA80: =O80-INDEX($K80:$O80,1,aux!$AL$1) -> 1647.87 | AB80: 0.001269624766 | AC80: 0.0008412355169 | AD80: =+IF(INDEX($K80:$O80,1,aux!$AL$1)>0,(O80/INDEX($K80:$O80,1,aux!$AL$1))^(1/($O$3-INDEX($K$3:$O$3,1,aux!$AL$1)))-1,"n.d.") -> 1.49982832 | AE80: =IF(INDEX($K80:$O80,1,aux!$AL$1)>0,(O80-INDEX($K80:$O80,1,aux!$AL$1))/INDEX($K80:$O80,1,aux!$AL$1),"n.d.") -> 38.05177112 | AX80: 09
A81: 0905 | B81: Baunilha | C81: 90.05 | D81: 53.653 | E81: 31.855 | F81: 53.941 | G81: 116.445 | H81: 69.1888 | I81: 1.472029038e-05 | J81: 1.003640466e-05 | K81: 97.233 | L81: 153.411 | M81: 212.784 | N81: 79.088 | O81: 54.301 | P81: 119.3634 | Q81: 4.941137809e-05 | R81: 2.877092588e-05 | S81: 50.1746 | U81: =G81-INDEX($C81:$G81,1,aux!$AL$1) -> 26.395 | V81: 1.442554965e-05 | W81: 1.023136627e-05 | X81: =+IF(INDEX($C81:$G81,1,aux!$AL$1)>0,(G81/INDEX($C81:$G81,1,aux!$AL$1))^(1/($G$3-INDEX($C$3:$G$3,1,aux!$AL$1)))-1,"n.d.") -> 0.06637334763 | Y81: =IF(INDEX($C81:$G81,1,aux!$AL$1)>0,(G81-INDEX($C81:$G81,1,aux!$AL$1))/INDEX($C81:$G81,1,aux!$AL$1),"n.d.") -> 0.2931149361 | AA81: =O81-INDEX($K81:$O81,1,aux!$AL$1) -> -42.932 | AB81: -3.307756707e-05 | AC81: -2.191673082e-05 | AD81: =+IF(INDEX($K81:$O81,1,aux!$AL$1)>0,(O81/INDEX($K81:$O81,1,aux!$AL$1))^(1/($O$3-INDEX($K$3:$O$3,1,aux!$AL$1)))-1,"n.d.") -> -0.1355327686 | AE81: =IF(INDEX($K81:$O81,1,aux!$AL$1)>0,(O81-INDEX($K81:$O81,1,aux!$AL$1))/INDEX($K81:$O81,1,aux!$AL$1),"n.d.") -> -0.4415373381 | AX81: 09
A82: 0906 | B82: Canela | C82: 311.519 | D82: 389.973 | E82: 334.416 | F82: 446.93 | G82: 546.201 | H82: 405.8078 | I82: 8.633779821e-05 | J82: 5.886575999e-05 | K82: 374.787 | L82: 812.302 | M82: 1256.084 | N82: 928.619 | O82: 877.23 | P82: 849.8044 | Q82: 0.0003517829294 | R82: 0.000204833805 | S82: 443.9966 | U82: =G82-INDEX($C82:$G82,1,aux!$AL$1) -> 234.682 | V82: 0.0001282597781 | W82: 9.09686493e-05 | X82: =+IF(INDEX($C82:$G82,1,aux!$AL$1)>0,(G82/INDEX($C82:$G82,1,aux!$AL$1))^(1/($G$3-INDEX($C$3:$G$3,1,aux!$AL$1)))-1,"n.d.") -> 0.1507129158 | Y82: =IF(INDEX($C82:$G82,1,aux!$AL$1)>0,(G82-INDEX($C82:$G82,1,aux!$AL$1))/INDEX($C82:$G82,1,aux!$AL$1),"n.d.") -> 0.7533473079 | AA82: =O82-INDEX($K82:$O82,1,aux!$AL$1) -> 502.443 | AB82: 0.0003871143211 | AC82: 0.0002564965057 | AD82: =+IF(INDEX($K82:$O82,1,aux!$AL$1)>0,(O82/INDEX($K82:$O82,1,aux!$AL$1))^(1/($O$3-INDEX($K$3:$O$3,1,aux!$AL$1)))-1,"n.d.") -> 0.2368933064 | AE82: =IF(INDEX($K82:$O82,1,aux!$AL$1)>0,(O82-INDEX($K82:$O82,1,aux!$AL$1))/INDEX($K82:$O82,1,aux!$AL$1),"n.d.") -> 1.340609466 | AX82: 09
A83: 0907 | B83: Cravo-da-índia | C83: 23.454 | D83: 29.882 | E83: 41.774 | F83: 52.45 | G83: 50.86 | H83: 39.684 | I83: 8.442985039e-06 | J83: 5.756490682e-06 | K83: 0.356 | L83: 40.237 | M83: 58.484 | N83: 45.981 | O83: 46.085 | P83: 38.2286 | Q83: 1.582501678e-05 | R83: 9.21448465e-06 | S83: -1.4554 | U83: =G83-INDEX($C83:$G83,1,aux!$AL$1) -> 27.406 | V83: 1.497808728e-05 | W83: 1.062325531e-05 | X83: =+IF(INDEX($C83:$G83,1,aux!$AL$1)>0,(G83/INDEX($C83:$G83,1,aux!$AL$1))^(1/($G$3-INDEX($C$3:$G$3,1,aux!$AL$1)))-1,"n.d.") -> 0.2135002182 | Y83: =IF(INDEX($C83:$G83,1,aux!$AL$1)>0,(G83-INDEX($C83:$G83,1,aux!$AL$1))/INDEX($C83:$G83,1,aux!$AL$1),"n.d.") -> 1.168500043 | AA83: =O83-INDEX($K83:$O83,1,aux!$AL$1) -> 45.729 | AB83: 3.523255531e-05 | AC83: 2.334459572e-05 | AD83: =+IF(INDEX($K83:$O83,1,aux!$AL$1)>0,(O83/INDEX($K83:$O83,1,aux!$AL$1))^(1/($O$3-INDEX($K$3:$O$3,1,aux!$AL$1)))-1,"n.d.") -> 2.373085879 | AE83: =IF(INDEX($K83:$O83,1,aux!$AL$1)>0,(O83-INDEX($K83:$O83,1,aux!$AL$1))/INDEX($K83:$O83,1,aux!$AL$1),"n.d.") -> 128.4522472 | AX83: 09
A84: 0908 | B84: Noz-moscada, etc. | C84: 233.459 | D84: 192.33 | E84: 191.013 | F84: 317.973 | G84: 253.377 | H84: 237.6304 | I84: 5.055714928e-05 | J84: 3.447024451e-05 | K84: 2.292 | L84: 130.071 | M84: 181.299 | N84: 123.063 | O84: 128.326 | P84: 113.0102 | Q84: 4.678142312e-05 | R84: 2.723957334e-05 | S84: -124.6202 | U84: =G84-INDEX($C84:$G84,1,aux!$AL$1) -> 19.918 | V84: 1.088570176e-05 | W84: 7.720718065e-06 | X84: =+IF(INDEX($C84:$G84,1,aux!$AL$1)>0,(G84/INDEX($C84:$G84,1,aux!$AL$1))^(1/($G$3-INDEX($C$3:$G$3,1,aux!$AL$1)))-1,"n.d.") -> 0.02067891246 | Y84: =IF(INDEX($C84:$G84,1,aux!$AL$1)>0,(G84-INDEX($C84:$G84,1,aux!$AL$1))/INDEX($C84:$G84,1,aux!$AL$1),"n.d.") -> 0.08531690789 | AA84: =O84-INDEX($K84:$O84,1,aux!$AL$1) -> 126.034 | AB84: 9.710467923e-05 | AC84: 6.4340195e-05 | AD84: =+IF(INDEX($K84:$O84,1,aux!$AL$1)>0,(O84/INDEX($K84:$O84,1,aux!$AL$1))^(1/($O$3-INDEX($K$3:$O$3,1,aux!$AL$1)))-1,"n.d.") -> 1.735426255 | AE84: =IF(INDEX($K84:$O84,1,aux!$AL$1)>0,(O84-INDEX($K84:$O84,1,aux!$AL$1))/INDEX($K84:$O84,1,aux!$AL$1),"n.d.") -> 54.9886562 | AX84: 09
A85: 0909 | B85: Sementes de anis, funcho, etc. | C85: 294.621 | D85: 346.395 | E85: 365.272 | F85: 434.353 | G85: 657.968 | H85: 419.7218 | I85: 8.929807676e-05 | J85: 6.088410016e-05 | K85: 2.104 | L85: 198.776 | M85: 295.02 | N85: 275.671 | O85: 206.674 | P85: 195.649 | Q85: 8.099037654e-05 | R85: 4.715853333e-05 | S85: -224.0728 | U85: =G85-INDEX($C85:$G85,1,aux!$AL$1) -> 363.347 | V85: 0.0001985785258 | W85: 0.0001408424413 | X85: =+IF(INDEX($C85:$G85,1,aux!$AL$1)>0,(G85/INDEX($C85:$G85,1,aux!$AL$1))^(1/($G$3-INDEX($C$3:$G$3,1,aux!$AL$1)))-1,"n.d.") -> 0.2224617192 | Y85: =IF(INDEX($C85:$G85,1,aux!$AL$1)>0,(G85-INDEX($C85:$G85,1,aux!$AL$1))/INDEX($C85:$G85,1,aux!$AL$1),"n.d.") -> 1.233269183 | AA85: =O85-INDEX($K85:$O85,1,aux!$AL$1) -> 204.57 | AB85: 0.0001576138521 | AC85: 0.0001044327221 | AD85: =+IF(INDEX($K85:$O85,1,aux!$AL$1)>0,(O85/INDEX($K85:$O85,1,aux!$AL$1))^(1/($O$3-INDEX($K$3:$O$3,1,aux!$AL$1)))-1,"n.d.") -> 2.14818342 | AE85: =IF(INDEX($K85:$O85,1,aux!$AL$1)>0,(O85-INDEX($K85:$O85,1,aux!$AL$1))/INDEX($K85:$O85,1,aux!$AL$1),"n.d.") -> 97.22908745 | AX85: 09
A86: 0910 | B86: Gengibre, açafrão, tomilho, louro, etc. | C86: 12704.183 | D86: 12039.177 | E86: 15368.71 | F86: 15124.923 | G86: 17497.64 | H86: 14546.9266 | I86: 0.003094937094 | J86: 0.002110151381 | K86: 771.004 | L86: 1350.814 | M86: 1775.077 | N86: 1337.449 | O86: 1443.875 | P86: 1335.6438 | Q86: 0.0005528998068 | R86: 0.0003219387917 | S86: -13211.2828 | U86: =G86-INDEX($C86:$G86,1,aux!$AL$1) -> 4793.457 | V86: 0.002619748133 | W86: 0.001858064567 | X86: =+IF(INDEX($C86:$G86,1,aux!$AL$1)>0,(G86/INDEX($C86:$G86,1,aux!$AL$1))^(1/($G$3-INDEX($C$3:$G$3,1,aux!$AL$1)))-1,"n.d.") -> 0.08332354944 | Y86: =IF(INDEX($C86:$G86,1,aux!$AL$1)>0,(G86-INDEX($C86:$G86,1,aux!$AL$1))/INDEX($C86:$G86,1,aux!$AL$1),"n.d.") -> 0.3773132833 | AA86: =O86-INDEX($K86:$O86,1,aux!$AL$1) -> 672.871 | AB86: 0.000518422986 | AC86: 0.0003434997806 | AD86: =+IF(INDEX($K86:$O86,1,aux!$AL$1)>0,(O86/INDEX($K86:$O86,1,aux!$AL$1))^(1/($O$3-INDEX($K$3:$O$3,1,aux!$AL$1)))-1,"n.d.") -> 0.1698178434 | AE86: =IF(INDEX($K86:$O86,1,aux!$AL$1)>0,(O86-INDEX($K86:$O86,1,aux!$AL$1))/INDEX($K86:$O86,1,aux!$AL$1),"n.d.") -> 0.8727205047 | AX86: 09
A87: 09SS | B87: Café, chá, mate e especiarias | C87: 0 | D87: 0 | E87: 0 | F87: 0 | G87: 0 | H87: 0 | I87: 0 | J87: 0 | K87: 0 | L87: 0 | M87: 0 | N87: 0 | O87: 0 | P87: 0 | Q87: 0 | R87: 0 | S87: 0 | U87: =G87-INDEX($C87:$G87,1,aux!$AL$1) -> 0 | V87: 0 | W87: 0 | X87: =+IF(INDEX($C87:$G87,1,aux!$AL$1)>0,(G87/INDEX($C87:$G87,1,aux!$AL$1))^(1/($G$3-INDEX($C$3:$G$3,1,aux!$AL$1)))-1,"n.d.") -> n.d. | Y87: =IF(INDEX($C87:$G87,1,aux!$AL$1)>0,(G87-INDEX($C87:$G87,1,aux!$AL$1))/INDEX($C87:$G87,1,aux!$AL$1),"n.d.") -> n.d. | AA87: =O87-INDEX($K87:$O87,1,aux!$AL$1) -> 0 | AB87: 0 | AC87: 0 | AD87: =+IF(INDEX($K87:$O87,1,aux!$AL$1)>0,(O87/INDEX($K87:$O87,1,aux!$AL$1))^(1/($O$3-INDEX($K$3:$O$3,1,aux!$AL$1)))-1,"n.d.") -> n.d. | AE87: =IF(INDEX($K87:$O87,1,aux!$AL$1)>0,(O87-INDEX($K87:$O87,1,aux!$AL$1))/INDEX($K87:$O87,1,aux!$AL$1),"n.d.") -> n.d. | AX87: 09
A88: 1001 | B88: Trigo e mistura trigo/centeio | C88: 30232.544 | D88: 33863.864 | E88: 28676.348 | F88: 46233.984 | G88: 60506.588 | H88: 39902.6656 | I88: 0.008489507325 | J88: 0.005788209926 | K88: 5316.712 | L88: 5665.305 | M88: 2670.144 | N88: 1322.973 | O88: 5619.894 | P88: 4119.0056 | Q88: 0.001705093379 | R88: 0.0009928303384 | S88: -35783.66 | U88: =G88-INDEX($C88:$G88,1,aux!$AL$1) -> 30274.044 | V88: 0.01654554745 | W88: 0.01173498134 | X88: =+IF(INDEX($C88:$G88,1,aux!$AL$1)>0,(G88/INDEX($C88:$G88,1,aux!$AL$1))^(1/($G$3-INDEX($C$3:$G$3,1,aux!$AL$1)))-1,"n.d.") -> 0.1894111145 | Y88: =IF(INDEX($C88:$G88,1,aux!$AL$1)>0,(G88-INDEX($C88:$G88,1,aux!$AL$1))/INDEX($C88:$G88,1,aux!$AL$1),"n.d.") -> 1.001372693 | AA88: =O88-INDEX($K88:$O88,1,aux!$AL$1) -> 303.182 | AB88: 0.0002335908632 | AC88: 0.0001547740213 | AD88: =+IF(INDEX($K88:$O88,1,aux!$AL$1)>0,(O88/INDEX($K88:$O88,1,aux!$AL$1))^(1/($O$3-INDEX($K$3:$O$3,1,aux!$AL$1)))-1,"n.d.") -> 0.01396099082 | AE88: =IF(INDEX($K88:$O88,1,aux!$AL$1)>0,(O88-INDEX($K88:$O88,1,aux!$AL$1))/INDEX($K88:$O88,1,aux!$AL$1),"n.d.") -> 0.05702434136 | AX88: 10
A89: 1002 | B89: Centeio | C89: 3183.841 | D89: 3050.405 | E89: 2517.52 | F89: 4372.112 | G89: 6124.541 | H89: 3849.6838 | I89: 0.0008190409921 | J89: 0.0005584283067 | K89: 3.076 | L89: 0 | M89: 28.463 | N89: 0.435 | O89: 0 | P89: 6.3948 | Q89: 2.647175605e-06 | R89: 1.541379659e-06 | S89: -3843.289 | U89: =G89-INDEX($C89:$G89,1,aux!$AL$1) -> 2940.7 | V89: 0.00160716855 | W89: 0.001139889327 | X89: =+IF(INDEX($C89:$G89,1,aux!$AL$1)>0,(G89/INDEX($C89:$G89,1,aux!$AL$1))^(1/($G$3-INDEX($C$3:$G$3,1,aux!$AL$1)))-1,"n.d.") -> 0.1776887971 | Y89: =IF(INDEX($C89:$G89,1,aux!$AL$1)>0,(G89-INDEX($C89:$G89,1,aux!$AL$1))/INDEX($C89:$G89,1,aux!$AL$1),"n.d.") -> 0.923632807 | AA89: =O89-INDEX($K89:$O89,1,aux!$AL$1) -> -3.076 | AB89: -2.369947739e-06 | AC89: -1.570294046e-06 | AD89: =+IF(INDEX($K89:$O89,1,aux!$AL$1)>0,(O89/INDEX($K89:$O89,1,aux!$AL$1))^(1/($O$3-INDEX($K$3:$O$3,1,aux!$AL$1)))-1,"n.d.") -> -1 | AE89: =IF(INDEX($K89:$O89,1,aux!$AL$1)>0,(O89-INDEX($K89:$O89,1,aux!$AL$1))/INDEX($K89:$O89,1,aux!$AL$1),"n.d.") -> -1 | AX89: 10
A90: 1003 | B90: Cevada | C90: 33166.732 | D90: 19446.861 | E90: 14482.177 | F90: 32029.025 | G90: 18001.518 | H90: 23425.2626 | I90: 0.004983850964 | J90: 0.003398027061 | K90: 5482.688 | L90: 6048.863 | M90: 1526.877 | N90: 714.174 | O90: 7329.033 | P90: 4220.327 | Q90: 0.001747036135 | R90: 0.001017252485 | S90: -19204.9356 | U90: =G90-INDEX($C90:$G90,1,aux!$AL$1) -> -15165.214 | V90: -0.008288181381 | W90: -0.0058784186 | X90: =+IF(INDEX($C90:$G90,1,aux!$AL$1)>0,(G90/INDEX($C90:$G90,1,aux!$AL$1))^(1/($G$3-INDEX($C$3:$G$3,1,aux!$AL$1)))-1,"n.d.") -> -0.141675297 | Y90: =IF(INDEX($C90:$G90,1,aux!$AL$1)>0,(G90-INDEX($C90:$G90,1,aux!$AL$1))/INDEX($C90:$G90,1,aux!$AL$1),"n.d.") -> -0.4572417325 | AA90: =O90-INDEX($K90:$O90,1,aux!$AL$1) -> 1846.345 | AB90: 0.001422542639 | AC90: 0.0009425567493 | AD90: =+IF(INDEX($K90:$O90,1,aux!$AL$1)>0,(O90/INDEX($K90:$O90,1,aux!$AL$1))^(1/($O$3-INDEX($K$3:$O$3,1,aux!$AL$1)))-1,"n.d.") -> 0.07525949483 | AE90: =IF(INDEX($K90:$O90,1,aux!$AL$1)>0,(O90-INDEX($K90:$O90,1,aux!$AL$1))/INDEX($K90:$O90,1,aux!$AL$1),"n.d.") -> 0.3367590861 | AX90: 10
A91: 1004 | B91: Aveia | C91: 1846.74 | D91: 2140.003 | E91: 3824.129 | F91: 4249.316 | G91: 5108.182 | H91: 3433.674 | I91: 0.0007305326633 | J91: 0.0004980826627 | K91: 651.786 | L91: 1623.692 | M91: 529.858 | N91: 546.086 | O91: 234.022 | P91: 717.0888 | Q91: 0.0002968443075 | R91: 0.0001728445128 | S91: -2716.5852 | U91: =G91-INDEX($C91:$G91,1,aux!$AL$1) -> 3261.442 | V91: 0.001782462342 | W91: 0.001264216998 | X91: =+IF(INDEX($C91:$G91,1,aux!$AL$1)>0,(G91/INDEX($C91:$G91,1,aux!$AL$1))^(1/($G$3-INDEX($C$3:$G$3,1,aux!$AL$1)))-1,"n.d.") -> 0.289630072 | Y91: =IF(INDEX($C91:$G91,1,aux!$AL$1)>0,(G91-INDEX($C91:$G91,1,aux!$AL$1))/INDEX($C91:$G91,1,aux!$AL$1),"n.d.") -> 1.766053695 | AA91: =O91-INDEX($K91:$O91,1,aux!$AL$1) -> -417.764 | AB91: -0.000321872187 | AC91: -0.000213267985 | AD91: =+IF(INDEX($K91:$O91,1,aux!$AL$1)>0,(O91/INDEX($K91:$O91,1,aux!$AL$1))^(1/($O$3-INDEX($K$3:$O$3,1,aux!$AL$1)))-1,"n.d.") -> -0.225916314 | AE91: =IF(INDEX($K91:$O91,1,aux!$AL$1)>0,(O91-INDEX($K91:$O91,1,aux!$AL$1))/INDEX($K91:$O91,1,aux!$AL$1),"n.d.") -> -0.6409527053 | AX91: 10
A92: 1005 | B92: Milho | C92: 15381.47 | D92: 23103.55 | E92: 16255.936 | F92: 12301.12 | G92: 24183.915 | H92: 18245.1982 | I92: 0.003881764324 | J92: 0.002646616103 | K92: 48128.927 | L92: 28841.591 | M92: 26131.424 | N92: 19207.658 | O92: 70455.265 | P92: 38552.973 | Q92: 0.01595929343 | R92: 0.009292670355 | S92: 20307.7748 | U92: =G92-INDEX($C92:$G92,1,aux!$AL$1) -> 8802.445 | V92: 0.004810763683 | W92: 0.003412049208 | X92: =+IF(INDEX($C92:$G92,1,aux!$AL$1)>0,(G92/INDEX($C92:$G92,1,aux!$AL$1))^(1/($G$3-INDEX($C$3:$G$3,1,aux!$AL$1)))-1,"n.d.") -> 0.1197786716 | Y92: =IF(INDEX($C92:$G92,1,aux!$AL$1)>0,(G92-INDEX($C92:$G92,1,aux!$AL$1))/INDEX($C92:$G92,1,aux!$AL$1),"n.d.") -> 0.5722759268 | AA92: =O92-INDEX($K92:$O92,1,aux!$AL$1) -> 22326.338 | AB92: 0.01720164313 | AC92: 0.01139756685 | AD92: =+IF(INDEX($K92:$O92,1,aux!$AL$1)>0,(O92/INDEX($K92:$O92,1,aux!$AL$1))^(1/($O$3-INDEX($K$3:$O$3,1,aux!$AL$1)))-1,"n.d.") -> 0.09995981248 | AE92: =IF(INDEX($K92:$O92,1,aux!$AL$1)>0,(O92-INDEX($K92:$O92,1,aux!$AL$1))/INDEX($K92:$O92,1,aux!$AL$1),"n.d.") -> 0.4638860534 | AX92: 10
A93: 1006 | B93: Arroz | C93: 12844.628 | D93: 12123.661 | E93: 17761.847 | F93: 16428.353 | G93: 31274.258 | H93: 18086.5494 | I93: 0.003848010936 | J93: 0.002623602789 | K93: 5590.38 | L93: 8705.177 | M93: 8484.698 | N93: 11171.455 | O93: 14159.226 | P93: 9622.1872 | Q93: 0.003983176835 | R93: 0.002319297496 | S93: -8464.3622 | U93: =G93-INDEX($C93:$G93,1,aux!$AL$1) -> 18429.63 | V93: 0.01007226909 | W93: 0.007143788396 | X93: =+IF(INDEX($C93:$G93,1,aux!$AL$1)>0,(G93/INDEX($C93:$G93,1,aux!$AL$1))^(1/($G$3-INDEX($C$3:$G$3,1,aux!$AL$1)))-1,"n.d.") -> 0.2491551158 | Y93: =IF(INDEX($C93:$G93,1,aux!$AL$1)>0,(G93-INDEX($C93:$G93,1,aux!$AL$1))/INDEX($C93:$G93,1,aux!$AL$1),"n.d.") -> 1.434812281 | AA93: =O93-INDEX($K93:$O93,1,aux!$AL$1) -> 8568.846 | AB93: 0.006601988687 | AC93: 0.004374384869 | AD93: =+IF(INDEX($K93:$O93,1,aux!$AL$1)>0,(O93/INDEX($K93:$O93,1,aux!$AL$1))^(1/($O$3-INDEX($K$3:$O$3,1,aux!$AL$1)))-1,"n.d.") -> 0.2615357028 | AE93: =IF(INDEX($K93:$O93,1,aux!$AL$1)>0,(O93-INDEX($K93:$O93,1,aux!$AL$1))/INDEX($K93:$O93,1,aux!$AL$1),"n.d.") -> 1.532784176 | AX93: 10
A94: 1007 | B94: Sorgo de grão | C94: 635.258 | D94: 691.118 | E94: 768.777 | F94: 629.765 | G94: 529.517 | H94: 650.887 | I94: 0.0001384797199 | J94: 9.441651422e-05 | K94: 63.247 | L94: 41.826 | M94: 47.933 | N94: 45.71 | O94: 50.962 | P94: 49.9356 | Q94: 2.067121757e-05 | R94: 1.203629795e-05 | S94: -600.9514 | U94: =G94-INDEX($C94:$G94,1,aux!$AL$1) -> -105.741 | V94: -5.779018927e-05 | W94: -4.098787272e-05 | X94: =+IF(INDEX($C94:$G94,1,aux!$AL$1)>0,(G94/INDEX($C94:$G94,1,aux!$AL$1))^(1/($G$3-INDEX($C$3:$G$3,1,aux!$AL$1)))-1,"n.d.") -> -0.04449615031 | Y94: =IF(INDEX($C94:$G94,1,aux!$AL$1)>0,(G94-INDEX($C94:$G94,1,aux!$AL$1))/INDEX($C94:$G94,1,aux!$AL$1),"n.d.") -> -0.1664536299 | AA94: =O94-INDEX($K94:$O94,1,aux!$AL$1) -> -12.285 | AB94: -9.465152136e-06 | AC94: -6.27147671e-06 | AD94: =+IF(INDEX($K94:$O94,1,aux!$AL$1)>0,(O94/INDEX($K94:$O94,1,aux!$AL$1))^(1/($O$3-INDEX($K$3:$O$3,1,aux!$AL$1)))-1,"n.d.") -> -0.05256018106 | AE94: =IF(INDEX($K94:$O94,1,aux!$AL$1)>0,(O94-INDEX($K94:$O94,1,aux!$AL$1))/INDEX($K94:$O94,1,aux!$AL$1),"n.d.") -> -0.1942384619 | AX94: 10
